Workbook

Sheet Instructions
B7: This workbook only sets out amended risk-free interest rate term structures. The risk free interest rate structure on the reference date of the current regime is not included. These can as always be found on EIOPA's website.
B9: Worksheet "Scenario Data Expected"
B10: Risk-free interest rate term structures based on the new alternative extrapolation method both with and without volatility adjustment, including shocked interest rate curves for the new interest rate risk submodule.
B13: Worksheet "RCS and Scaling Factors"
B14: Risk-corrected currency spreads and scaling factors for the calculation of the volatility adjustment.
B16: OPTIONAL: Worksheet "Scenario Data Expected - 100 bps"
B17: The same information as in "Scenario Data", but then for with a parallel downward shock applied to the risk-free rate curve interest rate term structure observed in the market.
B20: OPTIONAL: Worksheet "Scenario Data Expected + 100 bps"
B21: The same information as in "Scenario Data", but then for with a parallel upward shock applied to the risk-free rate curve interest rate term structure observed in the market.
B24: OPTIONAL: Worksheet "Scenario Data Current - 100 bps"
B25: Baseline risk free rate information based on the smith wilson extrapolation, but then for with a parallel downward shock applied to the risk-free rate curve interest rate term structure observed in the market. Including shocked interest rate curves for the current interest rate risk submodule. To obtain curves for different currencies please change the currency in sheet "Scenario Data Expected".
B28: OPTIONAL: Worksheet "Scenario Data Current + 100 bps"
B29: Baseline risk free rate information based on the smith wilson extrapolation, but then for with a parallel upward shock applied to the risk-free rate curve interest rate term structure observed in the market. Including shocked interest rate curves for the current interest rate risk submodule.To obtain curves for different currencies please change the currency in sheet "Scenario Data Expected".
B32: Inputs are provided for integer term maturities
B34: Undertakings shall apply appropriate interpolation techniques for discounting inter-annual cash flows

Sheet Updates new version
A1: Nr | B1: Update
A2: 1 | B2: The 13Y and 14Y maturity points for the Euro were incorrectly identified as DLT - which leads to incorrect interpolation in the alternative extrapolation method. The difference is about 0.8 basis points for the 13- and 14-year points in the base case. The impact is similar in the alternative interest rate scenarios. Our estimate is that the impact on the SII review impact assessment results is limited. Nevertheless, this file contains the updated curves. Given the assessment of the materiality on the overall outcomes, we will not require you or other institutions to use these corrected curves.

Sheet Scenario Data Expected
J3: CZK
J4: =VLOOKUP(J3,'RCS and Scaling Factors'!$B$9:$F$12,4,FALSE)*10000 -> 38.01852598
J5: =VLOOKUP(J3,'RCS and Scaling Factors'!$B$9:$F$12,5,FALSE)*10000 -> 32.32
J7: =VLOOKUP(J3,'RCS and Scaling Factors'!$B$9:$F$12,5,FALSE)*J6*10000 -> 0
B11: NO volatility adjustment | F11: WITH volatility adjustment
B12: Alternative Extrapolation Method RFR | C12: Expected New Regime - Up Shock | D12: Expected New Regime - Down Shock | F12: Alternative Extrapolation Method RFR | G12: Expected New Regime - Up Shock | H12: Expected New Regime - Down Shock
A13: 1 | B13: =BaseCurve -> 0.03568 | C13: =BaseCurveUp -> 0.0788448 | D13: =BaseCurveDown -> 0.0033856 | F13: =BaseCurveWithVA -> 0.03568 | G13: =BaseCurveUpWithVA -> 0.0788448 | H13: =BaseCurveDownWithVA -> 0.0033856 | U13: Czech Republic | V13: 1
A14: 2 | B14: 0.03544592418 | C14: 0.07283226399 | D14: 0.007468502848 | F14: 0.03544592418 | G14: 0.07283226399 | H14: 0.007468502848 | U14: Hungary | V14: 2
A15: 3 | B15: 0.03527123047 | C15: 0.06975413341 | D15: 0.01145188907 | F15: 0.03527123047 | G15: 0.06975413341 | H15: 0.01145188907 | U15: Poland | V15: 3
A16: 4 | B16: 0.03550416799 | C16: 0.06793608527 | D16: 0.0139025008 | F16: 0.03550416799 | G16: 0.06793608527 | H16: 0.0139025008 | U16: Romania | V16: 4
A17: 5 | B17: 0.03564395566 | C17: 0.06748373571 | D17: 0.0142863734 | F17: 0.03564395566 | G17: 0.06748373571 | H17: 0.0142863734 | U17: Switzerland | V17: 5
A18: 6 | B18: 0.03616220854 | C18: 0.06538871404 | D18: 0.01572056929 | F18: 0.03616220854 | G18: 0.06538871404 | H18: 0.01572056929 | U18: United States | V18: 6
A19: 7 | B19: 0.03653254794 | C19: 0.06304959068 | D19: 0.0167155052 | F19: 0.03653254794 | G19: 0.06304959068 | H19: 0.0167155052
A20: 8 | B20: 0.03681038935 | C20: 0.06122592173 | D20: 0.0166224414 | F20: 0.03681038935 | G20: 0.06122592173 | H20: 0.0166224414
A21: 9 | B21: 0.03702653972 | C21: 0.06007503243 | D21: 0.01648618923 | F21: 0.03702653972 | G21: 0.06007503243 | H21: 0.01648618923
A22: 10 | B22: 0.03719949245 | C22: 0.05885934019 | D22: 0.01621969547 | F22: 0.03719949245 | G22: 0.05885934019 | H22: 0.01621969547
A23: 11 | B23: 0.0373556262 | C23: 0.05834982318 | D23: 0.01625859728 | F23: 0.0373556262 | G23: 0.05834982318 | H23: 0.01625859728
A24: 12 | B24: 0.03743430768 | C24: 0.05776031356 | D24: 0.01641897232 | F24: 0.03743430768 | G24: 0.05776031356 | H24: 0.01641897232
A25: 13 | B25: 0.03745834465 | C25: 0.05712531338 | D25: 0.01666052998 | F25: 0.03745834465 | G25: 0.05712531338 | H25: 0.01666052998
A26: 14 | B26: 0.03744355851 | C26: 0.05646790499 | D26: 0.01695569062 | F26: 0.03744355851 | G26: 0.05646790499 | H26: 0.01695569062
A27: 15 | B27: 0.03740115558 | C27: 0.05580370544 | D27: 0.01728522285 | F27: 0.03740115558 | G27: 0.05580370544 | H27: 0.01728522285
A28: 16 | B28: 0.03733920627 | C28: 0.05514332638 | D28: 0.01763553324 | F28: 0.03733920627 | G28: 0.05514332638 | H28: 0.01763553324
A29: 17 | B29: 0.03726359933 | C29: 0.05449395457 | D29: 0.01799692475 | F29: 0.03726359933 | G29: 0.05449395457 | H29: 0.01799692475
A30: 18 | B30: 0.03717867515 | C30: 0.05386039544 | D30: 0.01836244491 | F30: 0.03717867515 | G30: 0.05386039544 | H30: 0.01836244491
A31: 19 | B31: 0.03708765666 | C31: 0.05324577822 | D31: 0.01872710515 | F31: 0.03708765666 | G31: 0.05324577822 | H31: 0.01872710515
A32: 20 | B32: 0.0369929487 | C32: 0.05265204178 | D32: 0.01908734043 | F32: 0.0369929487 | G32: 0.05265204178 | H32: 0.01908734043
A33: 21 | B33: 0.03689634996 | C33: 0.05208027498 | D33: 0.01944062826 | F33: 0.03689634996 | G33: 0.05208027498 | H33: 0.01944062826
A34: 22 | B34: 0.03679920544 | C34: 0.05153095848 | D34: 0.01978521584 | F34: 0.03679920544 | G34: 0.05153095848 | H34: 0.01978521584
A35: 23 | B35: 0.03670251771 | C35: 0.05100413851 | D35: 0.02011992207 | F35: 0.03670251771 | G35: 0.05100413851 | H35: 0.02011992207
A36: 24 | B36: 0.03660702905 | C36: 0.05049955298 | D36: 0.02044399197 | F36: 0.03660702905 | G36: 0.05049955298 | H36: 0.02044399197
A37: 25 | B37: 0.0365132829 | C37: 0.0500167237 | D37: 0.02075698882 | F37: 0.0365132829 | G37: 0.0500167237 | H37: 0.02075698882
A38: 26 | B38: 0.03642167007 | C38: 0.04955502419 | D38: 0.0210587133 | F38: 0.03642167007 | G38: 0.04955502419 | H38: 0.0210587133
A39: 27 | B39: 0.036332464 | C39: 0.0491137297 | D39: 0.02134914268 | F39: 0.036332464 | G39: 0.0491137297 | H39: 0.02134914268
A40: 28 | B40: 0.03624584766 | C40: 0.04869205426 | D40: 0.0216283846 | F40: 0.03624584766 | G40: 0.04869205426 | H40: 0.0216283846
A41: 29 | B41: 0.03616193436 | C41: 0.04828917802 | D41: 0.02189664197 | F41: 0.03616193436 | G41: 0.04828917802 | H41: 0.02189664197
A42: 30 | B42: 0.03608078383 | C42: 0.04790426741 | D42: 0.02215418606 | F42: 0.03608078383 | G42: 0.04790426741 | H42: 0.02215418606
A43: 31 | B43: 0.03600241477 | C43: 0.0475364899 | D43: 0.02240133597 | F43: 0.03600241477 | G43: 0.0475364899 | H43: 0.02240133597
A44: 32 | B44: 0.03592681459 | C44: 0.04718502472 | D44: 0.02263844285 | F44: 0.03592681459 | G44: 0.04718502472 | H44: 0.02263844285
A45: 33 | B45: 0.03585394712 | C45: 0.04684907054 | D45: 0.02286587784 | F45: 0.03585394712 | G45: 0.04684907054 | H45: 0.02286587784
A46: 34 | B46: 0.03578375862 | C46: 0.04652785075 | D46: 0.02308402287 | F46: 0.03578375862 | G46: 0.04652785075 | H46: 0.02308402287
A47: 35 | B47: 0.03571618247 | C47: 0.04622061703 | D47: 0.02329326361 | F47: 0.03571618247 | G47: 0.04622061703 | H47: 0.02329326361
A48: 36 | B48: 0.03565114295 | C48: 0.04592665168 | D48: 0.02349398423 | F48: 0.03565114295 | G48: 0.04592665168 | H48: 0.02349398423
A49: 37 | B49: 0.03558855806 | C49: 0.04564526876 | D49: 0.02368656341 | F49: 0.03558855806 | G49: 0.04564526876 | H49: 0.02368656341
A50: 38 | B50: 0.03552834191 | C50: 0.04537581469 | D50: 0.02387137144 | F50: 0.03552834191 | G50: 0.04537581469 | H50: 0.02387137144
A51: 39 | B51: 0.03547040642 | C51: 0.0451176681 | D51: 0.02404876813 | F51: 0.03547040642 | G51: 0.0451176681 | H51: 0.02404876813
A52: 40 | B52: 0.03541466276 | C52: 0.04487023945 | D52: 0.02421910133 | F52: 0.03541466276 | G52: 0.04487023945 | H52: 0.02421910133
A53: 41 | B53: 0.03536102237 | C53: 0.0446329702 | D53: 0.02438270597 | F53: 0.03536102237 | G53: 0.0446329702 | H53: 0.02438270597
A54: 42 | B54: 0.03530939784 | C54: 0.04440533185 | D54: 0.02453990346 | F54: 0.03530939784 | G54: 0.04440533185 | H54: 0.02453990346
A55: 43 | B55: 0.03525970346 | C55: 0.04418682483 | D55: 0.02469100145 | F55: 0.03525970346 | G55: 0.04418682483 | H55: 0.02469100145
A56: 44 | B56: 0.03521185572 | C56: 0.04397697728 | D56: 0.02483629368 | F56: 0.03521185572 | G56: 0.04397697728 | H56: 0.02483629368
A57: 45 | B57: 0.03516577363 | C57: 0.04377534381 | D57: 0.02497606017 | F57: 0.03516577363 | G57: 0.04377534381 | H57: 0.02497606017
A58: 46 | B58: 0.03512137894 | C58: 0.04358150416 | D58: 0.02511056743 | F58: 0.03512137894 | G58: 0.04358150416 | H58: 0.02511056743
A59: 47 | B59: 0.03507859629 | C59: 0.04339506199 | D59: 0.0252400688 | F59: 0.03507859629 | G59: 0.04339506199 | H59: 0.0252400688
A60: 48 | B60: 0.03503735329 | C60: 0.04321564355 | D60: 0.02536480484 | F60: 0.03503735329 | G60: 0.04321564355 | H60: 0.02536480484
A61: 49 | B61: 0.03499758056 | C61: 0.04304289648 | D61: 0.02548500382 | F61: 0.03499758056 | G61: 0.04304289648 | H61: 0.02548500382
A62: 50 | B62: 0.03495921174 | C62: 0.04287648859 | D62: 0.02560088218 | F62: 0.03495921174 | G62: 0.04287648859 | H62: 0.02560088218
A63: 51 | B63: 0.03492218342 | C63: 0.04271610673 | D63: 0.02571264504 | F63: 0.03492218342 | G63: 0.04271610673 | H63: 0.02571264504
A64: 52 | B64: 0.03488643512 | C64: 0.04256145566 | D64: 0.02582048671 | F64: 0.03488643512 | G64: 0.04256145566 | H64: 0.02582048671
A65: 53 | B65: 0.03485190918 | C65: 0.04241225699 | D65: 0.02592459124 | F65: 0.03485190918 | G65: 0.04241225699 | H65: 0.02592459124
A66: 54 | B66: 0.03481855071 | C66: 0.04226824822 | D66: 0.02602513285 | F66: 0.03481855071 | G66: 0.04226824822 | H66: 0.02602513285
A67: 55 | B67: 0.03478630746 | C67: 0.04212918173 | D67: 0.0261222765 | F67: 0.03478630746 | G67: 0.04212918173 | H67: 0.0261222765
A68: 56 | B68: 0.03475512977 | C68: 0.04199482392 | D68: 0.02621617836 | F68: 0.03475512977 | G68: 0.04199482392 | H68: 0.02621617836
A69: 57 | B69: 0.03472497041 | C69: 0.04186495437 | D69: 0.02630698625 | F69: 0.03472497041 | G69: 0.04186495437 | H69: 0.02630698625
A70: 58 | B70: 0.03469578449 | C70: 0.04173936497 | D70: 0.0263948401 | F70: 0.03469578449 | G70: 0.04173936497 | H70: 0.0263948401
A71: 59 | B71: 0.03466752939 | C71: 0.04161785926 | D71: 0.02647987241 | F71: 0.03466752939 | G71: 0.04161785926 | H71: 0.02647987241
A72: 60 | B72: 0.03464016459 | C72: 0.04150025166 | D72: 0.02656220864 | F72: 0.03464016459 | G72: 0.04150025166 | H72: 0.02656220864
A73: 61 | B73: 0.03461365165 | C73: 0.04138636682 | D73: 0.02664196759 | F73: 0.03461365165 | G73: 0.04138636682 | H73: 0.02664196759
A74: 62 | B74: 0.03458795403 | C74: 0.041276039 | D74: 0.02671926182 | F74: 0.03458795403 | G74: 0.041276039 | H74: 0.02671926182
A75: 63 | B75: 0.03456303704 | C75: 0.04116911146 | D75: 0.02679419796 | F75: 0.03456303704 | G75: 0.04116911146 | H75: 0.02679419796
A76: 64 | B76: 0.03453886773 | C76: 0.04106543597 | D76: 0.02686687706 | F76: 0.03453886773 | G76: 0.04106543597 | H76: 0.02686687706
A77: 65 | B77: 0.0345154148 | C77: 0.04096487222 | D77: 0.02693739491 | F77: 0.0345154148 | G77: 0.04096487222 | H77: 0.02693739491
A78: 66 | B78: 0.03449264852 | C78: 0.04086728739 | D78: 0.02700584236 | F78: 0.03449264852 | G78: 0.04086728739 | H78: 0.02700584236
A79: 67 | B79: 0.03447054065 | C79: 0.04077255568 | D79: 0.02707230557 | F79: 0.03447054065 | G79: 0.04077255568 | H79: 0.02707230557
A80: 68 | B80: 0.03444906434 | C80: 0.04068055791 | D80: 0.02713686629 | F80: 0.03444906434 | G80: 0.04068055791 | H80: 0.02713686629
A81: 69 | B81: 0.03442819408 | C81: 0.04059118108 | D81: 0.02719960213 | F81: 0.03442819408 | G81: 0.04059118108 | H81: 0.02719960213
A82: 70 | B82: 0.03440790561 | C82: 0.04050431802 | D82: 0.02726058677 | F82: 0.03440790561 | G82: 0.04050431802 | H82: 0.02726058677
A83: 71 | B83: 0.03438817585 | C83: 0.04041986709 | D83: 0.02731989019 | F83: 0.03438817585 | G83: 0.04041986709 | H83: 0.02731989019
A84: 72 | B84: 0.03436898288 | C84: 0.04033773178 | D84: 0.02737757891 | F84: 0.03436898288 | G84: 0.04033773178 | H84: 0.02737757891
A85: 73 | B85: 0.03435030581 | C85: 0.04025782044 | D85: 0.02743371613 | F85: 0.03435030581 | G85: 0.04025782044 | H85: 0.02743371613
A86: 74 | B86: 0.03433212477 | C86: 0.04018004602 | D86: 0.02748836197 | F86: 0.03433212477 | G86: 0.04018004602 | H86: 0.02748836197
A87: 75 | B87: 0.03431442084 | C87: 0.04010432576 | D87: 0.02754157363 | F87: 0.03431442084 | G87: 0.04010432576 | H87: 0.02754157363
A88: 76 | B88: 0.034297176 | C88: 0.04003058099 | D88: 0.02759340552 | F88: 0.034297176 | G88: 0.04003058099 | H88: 0.02759340552
A89: 77 | B89: 0.03428037307 | C89: 0.03995873684 | D89: 0.02764390947 | F89: 0.03428037307 | G89: 0.03995873684 | H89: 0.02764390947
A90: 78 | B90: 0.03426399571 | C90: 0.03988872207 | D90: 0.02769313483 | F90: 0.03426399571 | G90: 0.03988872207 | H90: 0.02769313483
A91: 79 | B91: 0.0342480283 | C91: 0.03982046883 | D91: 0.02774112863 | F91: 0.0342480283 | G91: 0.03982046883 | H91: 0.02774112863
A92: 80 | B92: 0.03423245598 | C92: 0.0397539125 | D92: 0.02778793569 | F92: 0.03423245598 | G92: 0.0397539125 | H92: 0.02778793569
A93: 81 | B93: 0.03421726454 | C93: 0.03968899148 | D93: 0.02783359876 | F93: 0.03421726454 | G93: 0.03968899148 | H93: 0.02783359876
A94: 82 | B94: 0.03420244045 | C94: 0.03962564706 | D94: 0.02787815864 | F94: 0.03420244045 | G94: 0.03962564706 | H94: 0.02787815864
A95: 83 | B95: 0.03418797075 | C95: 0.03956382322 | D95: 0.02792165423 | F95: 0.03418797075 | G95: 0.03956382322 | H95: 0.02792165423
A96: 84 | B96: 0.03417384311 | C96: 0.0395034665 | D96: 0.02796412271 | F96: 0.03417384311 | G96: 0.0395034665 | H96: 0.02796412271
A97: 85 | B97: 0.03416004571 | C97: 0.03944452586 | D97: 0.02800559957 | F97: 0.03416004571 | G97: 0.03944452586 | H97: 0.02800559957
A98: 86 | B98: 0.03414656727 | C98: 0.03938695256 | D98: 0.02804611873 | F98: 0.03414656727 | G98: 0.03938695256 | H98: 0.02804611873
A99: 87 | B99: 0.034133397 | C99: 0.03933070002 | D99: 0.02808571263 | F99: 0.034133397 | G99: 0.03933070002 | H99: 0.02808571263
A100: 88 | B100: 0.03412052458 | C100: 0.03927572371 | D100: 0.02812441227 | F100: 0.03412052458 | G100: 0.03927572371 | H100: 0.02812441227
A101: 89 | B101: 0.03410794014 | C101: 0.03922198105 | D101: 0.02816224732 | F101: 0.03410794014 | G101: 0.03922198105 | H101: 0.02816224732
A102: 90 | B102: 0.03409563421 | C102: 0.03916943129 | D102: 0.02819924618 | F102: 0.03409563421 | G102: 0.03916943129 | H102: 0.02819924618
A103: 91 | B103: 0.03408359775 | C103: 0.03911803545 | D103: 0.02823543604 | F103: 0.03408359775 | G103: 0.03911803545 | H103: 0.02823543604
A104: 92 | B104: 0.03407182207 | C104: 0.03906775618 | D104: 0.02827084294 | F104: 0.03407182207 | G104: 0.03906775618 | H104: 0.02827084294
A105: 93 | B105: 0.03406029887 | C105: 0.03901855771 | D105: 0.02830549184 | F105: 0.03406029887 | G105: 0.03901855771 | H105: 0.02830549184
A106: 94 | B106: 0.03404902018 | C106: 0.03897040577 | D106: 0.02833940666 | F106: 0.03404902018 | G106: 0.03897040577 | H106: 0.02833940666
A107: 95 | B107: 0.03403797836 | C107: 0.0389232675 | D107: 0.02837261033 | F107: 0.03403797836 | G107: 0.0389232675 | H107: 0.02837261033
A108: 96 | B108: 0.03402716606 | C108: 0.03887711138 | D108: 0.02840512488 | F108: 0.03402716606 | G108: 0.03887711138 | H108: 0.02840512488
A109: 97 | B109: 0.03401657625 | C109: 0.03883190717 | D109: 0.02843697141 | F109: 0.03401657625 | G109: 0.03883190717 | H109: 0.02843697141
A110: 98 | B110: 0.03400620218 | C110: 0.03878762586 | D110: 0.0284681702 | F110: 0.03400620218 | G110: 0.03878762586 | H110: 0.0284681702
A111: 99 | B111: 0.03399603736 | C111: 0.03874423959 | D111: 0.02849874073 | F111: 0.03399603736 | G111: 0.03874423959 | H111: 0.02849874073
A112: 100 | B112: 0.03398607554 | C112: 0.03870172158 | D112: 0.0285287017 | F112: 0.03398607554 | G112: 0.03870172158 | H112: 0.0285287017
A113: 101 | B113: 0.03397631074 | C113: 0.03866004612 | D113: 0.02855807109 | F113: 0.03397631074 | G113: 0.03866004612 | H113: 0.02855807109
A114: 102 | B114: 0.03396673719 | C114: 0.03861918849 | D114: 0.02858686619 | F114: 0.03396673719 | G114: 0.03861918849 | H114: 0.02858686619
A115: 103 | B115: 0.03395734935 | C115: 0.03857912493 | D115: 0.02861510362 | F115: 0.03395734935 | G115: 0.03857912493 | H115: 0.02861510362
A116: 104 | B116: 0.0339481419 | C116: 0.03853983256 | D116: 0.02864279938 | F116: 0.0339481419 | G116: 0.03853983256 | H116: 0.02864279938
A117: 105 | B117: 0.03393910969 | C117: 0.0385012894 | D117: 0.02866996886 | F117: 0.03393910969 | G117: 0.0385012894 | H117: 0.02866996886
A118: 106 | B118: 0.03393024779 | C118: 0.03846347427 | D118: 0.02869662688 | F118: 0.03393024779 | G118: 0.03846347427 | H118: 0.02869662688
A119: 107 | B119: 0.03392155144 | C119: 0.03842636677 | D119: 0.02872278771 | F119: 0.03392155144 | G119: 0.03842636677 | H119: 0.02872278771
A120: 108 | B120: 0.03391301606 | C120: 0.03838994728 | D120: 0.0287484651 | F120: 0.03391301606 | G120: 0.03838994728 | H120: 0.0287484651
A121: 109 | B121: 0.03390463722 | C121: 0.03835419685 | D121: 0.0287736723 | F121: 0.03390463722 | G121: 0.03835419685 | H121: 0.0287736723
A122: 110 | B122: 0.03389641068 | C122: 0.03831909727 | D122: 0.02879842209 | F122: 0.03389641068 | G122: 0.03831909727 | H122: 0.02879842209
A123: 111 | B123: 0.03388833233 | C123: 0.03828463094 | D123: 0.02882272677 | F123: 0.03388833233 | G123: 0.03828463094 | H123: 0.02882272677
A124: 112 | B124: 0.0338803982 | C124: 0.0382507809 | D124: 0.02884659823 | F124: 0.0338803982 | G124: 0.0382507809 | H124: 0.02884659823
A125: 113 | B125: 0.03387260447 | C125: 0.03821753079 | D125: 0.02887004793 | F125: 0.03387260447 | G125: 0.03821753079 | H125: 0.02887004793
A126: 114 | B126: 0.03386494747 | C126: 0.03818486483 | D126: 0.02889308694 | F126: 0.03386494747 | G126: 0.03818486483 | H126: 0.02889308694
A127: 115 | B127: 0.03385742362 | C127: 0.03815276777 | D127: 0.02891572593 | F127: 0.03385742362 | G127: 0.03815276777 | H127: 0.02891572593
A128: 116 | B128: 0.03385002948 | C128: 0.0381212249 | D128: 0.02893797522 | F128: 0.03385002948 | G128: 0.0381212249 | H128: 0.02893797522
A129: 117 | B129: 0.03384276175 | C129: 0.03809022199 | D129: 0.02895984479 | F129: 0.03384276175 | G129: 0.03809022199 | H129: 0.02895984479
A130: 118 | B130: 0.0338356172 | C130: 0.03805974531 | D130: 0.02898134424 | F130: 0.0338356172 | G130: 0.03805974531 | H130: 0.02898134424
A131: 119 | B131: 0.03382859273 | C131: 0.0380297816 | D131: 0.02900248291 | F131: 0.03382859273 | G131: 0.0380297816 | H131: 0.02900248291
A132: 120 | B132: 0.03382168535 | C132: 0.03800031801 | D132: 0.02902326977 | F132: 0.03382168535 | G132: 0.03800031801 | H132: 0.02902326977
A133: 121 | B133: 0.03381489216 | C133: 0.03797134214 | D133: 0.02904371354 | F133: 0.03381489216 | G133: 0.03797134214 | H133: 0.02904371354
A134: 122 | B134: 0.03380821034 | C134: 0.03794284198 | D134: 0.02906382263 | F134: 0.03380821034 | G134: 0.03794284198 | H134: 0.02906382263
A135: 123 | B135: 0.03380163719 | C135: 0.03791480593 | D135: 0.02908360519 | F135: 0.03380163719 | G135: 0.03791480593 | H135: 0.02908360519
A136: 124 | B136: 0.03379517008 | C136: 0.03788722273 | D136: 0.02910306911 | F136: 0.03379517008 | G136: 0.03788722273 | H136: 0.02910306911
A137: 125 | B137: 0.03378880646 | C137: 0.03786008153 | D137: 0.02912222201 | F137: 0.03378880646 | G137: 0.03786008153 | H137: 0.02912222201
A138: 126 | B138: 0.03378254387 | C138: 0.03783337177 | D138: 0.02914107129 | F138: 0.03378254387 | G138: 0.03783337177 | H138: 0.02914107129
A139: 127 | B139: 0.03377637993 | C139: 0.03780708326 | D139: 0.0291596241 | F139: 0.03377637993 | G139: 0.03780708326 | H139: 0.0291596241
A140: 128 | B140: 0.03377031232 | C140: 0.03778120612 | D140: 0.02917788739 | F140: 0.03377031232 | G140: 0.03778120612 | H140: 0.02917788739
A141: 129 | B141: 0.0337643388 | C141: 0.03775573076 | D141: 0.02919586788 | F141: 0.0337643388 | G141: 0.03775573076 | H141: 0.02919586788
A142: 130 | B142: 0.03375845721 | C142: 0.03773064791 | D142: 0.02921357208 | F142: 0.03375845721 | G142: 0.03773064791 | H142: 0.02921357208
A143: 131 | B143: 0.03375266543 | C143: 0.03770594857 | D143: 0.02923100631 | F143: 0.03375266543 | G143: 0.03770594857 | H143: 0.02923100631
A144: 132 | B144: 0.03374696144 | C144: 0.037681624 | D144: 0.02924817669 | F144: 0.03374696144 | G144: 0.037681624 | H144: 0.02924817669
A145: 133 | B145: 0.03374134324 | C145: 0.03765766576 | D145: 0.02926508917 | F145: 0.03374134324 | G145: 0.03765766576 | H145: 0.02926508917
A146: 134 | B146: 0.03373580891 | C146: 0.03763406561 | D146: 0.02928174951 | F146: 0.03373580891 | G146: 0.03763406561 | H146: 0.02928174951
A147: 135 | B147: 0.0337303566 | C147: 0.03761081561 | D147: 0.02929816332 | F147: 0.0337303566 | G147: 0.03761081561 | H147: 0.02929816332
A148: 136 | B148: 0.03372498449 | C148: 0.037587908 | D148: 0.02931433601 | F148: 0.03372498449 | G148: 0.037587908 | H148: 0.02931433601
A149: 137 | B149: 0.03371969083 | C149: 0.0375653353 | D149: 0.02933027287 | F149: 0.03371969083 | G149: 0.0375653353 | H149: 0.02933027287
A150: 138 | B150: 0.03371447392 | C150: 0.0375430902 | D150: 0.02934597901 | F150: 0.03371447392 | G150: 0.0375430902 | H150: 0.02934597901
A151: 139 | B151: 0.03370933209 | C151: 0.03752116563 | D151: 0.0293614594 | F151: 0.03370933209 | G151: 0.03752116563 | H151: 0.0293614594
A152: 140 | B152: 0.03370426373 | C152: 0.03749955472 | D152: 0.02937671889 | F152: 0.03370426373 | G152: 0.03749955472 | H152: 0.02937671889
A153: 141 | B153: 0.03369926729 | C153: 0.03747825077 | D153: 0.02939176215 | F153: 0.03369926729 | G153: 0.03747825077 | H153: 0.02939176215
A154: 142 | B154: 0.03369434124 | C154: 0.03745724729 | D154: 0.02940659376 | F154: 0.03369434124 | G154: 0.03745724729 | H154: 0.02940659376
A155: 143 | B155: 0.03368948411 | C155: 0.03743653798 | D155: 0.02942121816 | F155: 0.03368948411 | G155: 0.03743653798 | H155: 0.02942121816
A156: 144 | B156: 0.03368469445 | C156: 0.0374161167 | D156: 0.02943563964 | F156: 0.03368469445 | G156: 0.0374161167 | H156: 0.02943563964
A157: 145 | B157: 0.03367997088 | C157: 0.03739597748 | D157: 0.02944986241 | F157: 0.03367997088 | G157: 0.03739597748 | H157: 0.02944986241
A158: 146 | B158: 0.03367531204 | C158: 0.03737611451 | D158: 0.02946389054 | F158: 0.03367531204 | G158: 0.03737611451 | H158: 0.02946389054
A159: 147 | B159: 0.0336707166 | C159: 0.03735652216 | D159: 0.02947772801 | F159: 0.0336707166 | G159: 0.03735652216 | H159: 0.02947772801
A160: 148 | B160: 0.03366618329 | C160: 0.03733719493 | D160: 0.02949137867 | F160: 0.03366618329 | G160: 0.03733719493 | H160: 0.02949137867
A161: 149 | B161: 0.03366171084 | C161: 0.03731812747 | D161: 0.02950484628 | F161: 0.03366171084 | G161: 0.03731812747 | H161: 0.02950484628
A162: 150 | B162: 0.03365729804 | C162: 0.03729931459 | D162: 0.02951813449 | F162: 0.03365729804 | G162: 0.03729931459 | H162: 0.02951813449

Sheet Scenario Data Expected -100bps
J3: EUR
J4: =VLOOKUP(J3,'RCS and Scaling Factors'!$B$9:$F$12,4,FALSE)*10000 -> 51.87702264
J5: =VLOOKUP(J3,'RCS and Scaling Factors'!$B$9:$F$12,5,FALSE)*10000 -> 44.09
J7: =VLOOKUP(J3,'RCS and Scaling Factors'!$B$9:$F$12,5,FALSE)*J6*10000 -> 0
B11: NO volatility adjustment | F11: WITH volatility adjustment
B12: Alternative Extrapolation Method RFR | C12: Expected New Regime - Up Shock | D12: Expected New Regime - Down Shock | F12: Alternative Extrapolation Method RFR | G12: Expected New Regime - Up Shock | H12: Expected New Regime - Down Shock
A13: 1 | B13: =BaseCurveMinus -> 0.02537481182 | C13: =BaseCurveMinusUp -> 0.06225344703 | D13: =BaseCurveMinusDown -> -0.0009425790367 | F13: =BaseCurveMinusWithVA -> 0.02537481182 | G13: =BaseCurveMinusUpWithVA -> 0.06225344703 | H13: =BaseCurveMinusDownWithVA -> -0.0009425790367 | U13: Czech Republic | V13: 1
A14: 2 | B14: 0.02514306509 | C14: 0.05706888959 | D14: 0.002420101894 | F14: 0.02514306509 | G14: 0.05706888959 | H14: 0.002420101894 | U14: Hungary | V14: 2
A15: 3 | B15: 0.02497010962 | C15: 0.05440546333 | D15: 0.005683261385 | F15: 0.02497010962 | G15: 0.05440546333 | H15: 0.005683261385 | U15: Poland | V15: 3
A16: 4 | B16: 0.02520072937 | C16: 0.05289306488 | D16: 0.007720437621 | F16: 0.02520072937 | G16: 0.05289306488 | H16: 0.007720437621 | U16: Romania | V16: 4
A17: 5 | B17: 0.02533912613 | C17: 0.05254173288 | D17: 0.008103475676 | F17: 0.02533912613 | G17: 0.05254173288 | H17: 0.008103475676 | U17: Switzerland | V17: 5
A18: 6 | B18: 0.0258522223 | C18: 0.05085163345 | D18: 0.009328377827 | F18: 0.0258522223 | G18: 0.05085163345 | H18: 0.009328377827 | U18: United States | V18: 6
A19: 7 | B19: 0.02621887676 | C19: 0.04891986117 | D19: 0.01021789236 | F19: 0.02621887676 | G19: 0.04891986117 | H19: 0.01021789236
A20: 8 | B20: 0.02649395361 | C20: 0.04740189783 | D20: 0.01022625124 | F20: 0.02649395361 | G20: 0.04740189783 | H20: 0.01022625124
A21: 9 | B21: 0.02670795324 | C21: 0.04645449828 | D21: 0.01019185148 | F21: 0.02670795324 | G21: 0.04645449828 | H21: 0.01019185148
A22: 10 | B22: 0.02687918507 | C22: 0.04544294059 | D22: 0.01002751104 | F22: 0.02687918507 | G22: 0.04544294059 | H22: 0.01002751104
A23: 11 | B23: 0.02708328591 | C23: 0.04508934959 | D23: 0.01016130953 | F23: 0.02708328591 | G23: 0.04508934959 | H23: 0.01016130953
A24: 12 | B24: 0.02728690091 | C24: 0.04473309963 | D24: 0.0104445412 | F24: 0.02728690091 | G24: 0.04473309963 | H24: 0.0104445412
A25: 13 | B25: 0.02748692946 | C25: 0.04438076325 | D25: 0.01082631539 | F25: 0.02748692946 | G25: 0.04438076325 | H25: 0.01082631539
A26: 14 | B26: 0.02768146622 | C26: 0.04403645439 | D26: 0.01127188625 | F26: 0.02768146622 | G26: 0.04403645439 | H26: 0.01127188625
A27: 15 | B27: 0.02786937274 | C27: 0.04370270483 | D27: 0.0117571009 | F27: 0.02786937274 | G27: 0.04370270483 | H27: 0.0117571009
A28: 16 | B28: 0.02805001269 | C28: 0.04338100634 | D28: 0.01226495293 | F28: 0.02805001269 | G28: 0.04338100634 | H28: 0.01226495293
A29: 17 | B29: 0.02822308298 | C29: 0.04307215686 | D29: 0.01278336898 | F29: 0.02822308298 | G29: 0.04307215686 | H29: 0.01278336898
A30: 18 | B30: 0.0283885032 | C30: 0.04277648729 | D30: 0.01330374579 | F30: 0.0283885032 | G30: 0.04277648729 | H30: 0.01330374579
A31: 19 | B31: 0.02854634182 | C31: 0.04249401324 | D31: 0.01381995929 | F31: 0.02854634182 | G31: 0.04249401324 | H31: 0.01381995929
A32: 20 | B32: 0.02869676597 | C32: 0.0422245384 | D32: 0.01432767901 | F32: 0.02869676597 | G32: 0.0422245384 | H32: 0.01432767901
A33: 21 | B33: 0.02884000685 | C33: 0.04196772588 | D33: 0.01482388514 | F33: 0.02884000685 | G33: 0.04196772588 | H33: 0.01482388514
A34: 22 | B34: 0.02897633568 | C34: 0.04172314802 | D34: 0.01530652288 | F34: 0.02897633568 | G34: 0.04172314802 | H34: 0.01530652288
A35: 23 | B35: 0.02910604688 | C35: 0.04149032139 | D35: 0.01577425173 | F35: 0.02910604688 | G35: 0.04149032139 | H35: 0.01577425173
A36: 24 | B36: 0.02922944621 | C36: 0.04126873147 | D36: 0.01622626155 | F36: 0.02922944621 | G36: 0.04126873147 | H36: 0.01622626155
A37: 25 | B37: 0.02934684253 | C37: 0.04105785018 | D37: 0.01666213621 | F37: 0.02934684253 | G37: 0.04105785018 | H37: 0.01666213621
A38: 26 | B38: 0.02945854195 | C38: 0.04085714809 | D38: 0.0170817517 | F38: 0.02945854195 | G38: 0.04085714809 | H38: 0.0170817517
A39: 27 | B39: 0.02956484395 | C39: 0.04066610305 | D39: 0.01748519945 | F39: 0.02956484395 | G39: 0.04066610305 | H39: 0.01748519945
A40: 28 | B40: 0.0296660386 | C40: 0.04048420606 | D40: 0.01787272837 | F40: 0.0296660386 | G40: 0.04048420606 | H40: 0.01787272837
A41: 29 | B41: 0.02976240491 | C41: 0.04031096523 | D41: 0.0182447007 | F41: 0.02976240491 | G41: 0.04031096523 | H41: 0.0182447007
A42: 30 | B42: 0.02985420971 | C42: 0.0401459083 | D42: 0.01860155851 | F42: 0.02985420971 | G42: 0.0401459083 | H42: 0.01860155851
A43: 31 | B43: 0.02994170714 | C43: 0.03998858414 | D43: 0.01894379802 | F43: 0.02994170714 | G43: 0.03998858414 | H43: 0.01894379802
A44: 32 | B44: 0.03002513843 | C44: 0.03983856346 | D44: 0.01927195006 | F44: 0.03002513843 | G44: 0.03983856346 | H44: 0.01927195006
A45: 33 | B45: 0.03010473196 | C45: 0.03969543904 | D45: 0.01958656517 | F45: 0.03010473196 | G45: 0.03969543904 | H45: 0.01958656517
A46: 34 | B46: 0.03018070347 | C46: 0.0395588255 | D46: 0.01988820229 | F46: 0.03018070347 | G46: 0.0395588255 | H46: 0.01988820229
A47: 35 | B47: 0.03025325649 | C47: 0.03942835886 | D47: 0.02017742024 | F47: 0.03025325649 | G47: 0.03942835886 | H47: 0.02017742024
A48: 36 | B48: 0.0303225827 | C48: 0.03930369582 | D48: 0.02045477135 | F48: 0.0303225827 | G48: 0.03930369582 | H48: 0.02045477135
A49: 37 | B49: 0.03038886253 | C49: 0.03918451303 | D49: 0.02072079674 | F49: 0.03038886253 | G49: 0.03918451303 | H49: 0.02072079674
A50: 38 | B50: 0.03045226559 | C50: 0.0390705062 | D50: 0.02097602291 | F50: 0.03045226559 | G50: 0.0390705062 | H50: 0.02097602291
A51: 39 | B51: 0.03051295131 | C51: 0.03896138915 | D51: 0.02122095939 | F51: 0.03051295131 | G51: 0.03896138915 | H51: 0.02122095939
A52: 40 | B52: 0.03057106943 | C52: 0.03885689291 | D52: 0.02145609711 | F52: 0.03057106943 | G52: 0.03885689291 | H52: 0.02145609711
A53: 41 | B53: 0.03062676056 | C53: 0.03875676479 | D53: 0.0216819074 | F53: 0.03062676056 | G53: 0.03875676479 | H53: 0.0216819074
A54: 42 | B54: 0.03068015673 | C54: 0.03866076744 | D54: 0.02189884148 | F54: 0.03068015673 | G54: 0.03866076744 | H54: 0.02189884148
A55: 43 | B55: 0.03073138187 | C55: 0.03856867795 | D55: 0.0221073303 | F55: 0.03073138187 | G55: 0.03856867795 | H55: 0.0221073303
A56: 44 | B56: 0.03078055233 | C56: 0.03848028703 | D56: 0.02230778465 | F56: 0.03078055233 | G56: 0.03848028703 | H56: 0.02230778465
A57: 45 | B57: 0.03082777732 | C57: 0.03839539812 | D57: 0.02250059546 | F57: 0.03082777732 | G57: 0.03839539812 | H57: 0.02250059546
A58: 46 | B58: 0.03087315939 | C58: 0.03831382667 | D58: 0.0226861343 | F58: 0.03087315939 | G58: 0.03831382667 | H58: 0.0226861343
A59: 47 | B59: 0.03091679484 | C59: 0.03823539931 | D59: 0.02286475394 | F59: 0.03091679484 | G59: 0.03823539931 | H59: 0.02286475394
A60: 48 | B60: 0.0309587741 | C60: 0.03815995321 | D60: 0.02303678901 | F60: 0.0309587741 | G60: 0.03815995321 | H60: 0.02303678901
A61: 49 | B61: 0.03099918215 | C61: 0.03808733538 | D61: 0.02320255673 | F61: 0.03099918215 | G61: 0.03808733538 | H61: 0.02320255673
A62: 50 | B62: 0.03103809881 | C62: 0.03801740203 | D62: 0.02336235762 | F62: 0.03103809881 | G62: 0.03801740203 | H62: 0.02336235762
A63: 51 | B63: 0.03107559915 | C63: 0.03795001799 | D63: 0.02351647627 | F63: 0.03107559915 | G63: 0.03795001799 | H63: 0.02351647627
A64: 52 | B64: 0.03111175371 | C64: 0.03788505616 | D64: 0.02366518209 | F64: 0.03111175371 | G64: 0.03788505616 | H64: 0.02366518209
A65: 53 | B65: 0.03114662889 | C65: 0.03782239697 | D65: 0.02380873008 | F65: 0.03114662889 | G65: 0.03782239697 | H65: 0.02380873008
A66: 54 | B66: 0.03118028713 | C66: 0.03776192793 | D66: 0.02394736154 | F66: 0.03118028713 | G66: 0.03776192793 | H66: 0.02394736154
A67: 55 | B67: 0.03121278724 | C67: 0.03770354311 | D67: 0.02408130481 | F67: 0.03121278724 | G67: 0.03770354311 | H67: 0.02408130481
A68: 56 | B68: 0.03124418458 | C68: 0.03764714277 | D68: 0.02421077592 | F68: 0.03124418458 | G68: 0.03764714277 | H68: 0.02421077592
A69: 57 | B69: 0.03127453132 | C69: 0.03759263294 | D69: 0.02433597932 | F69: 0.03127453132 | G69: 0.03759263294 | H69: 0.02433597932
A70: 58 | B70: 0.03130387662 | C70: 0.03753992506 | D70: 0.02445710848 | F70: 0.03130387662 | G70: 0.03753992506 | H70: 0.02445710848
A71: 59 | B71: 0.03133226685 | C71: 0.03748893561 | D71: 0.0245743465 | F71: 0.03133226685 | G71: 0.03748893561 | H71: 0.0245743465
A72: 60 | B72: 0.03135974573 | C72: 0.03743958581 | D72: 0.02468786672 | F72: 0.03135974573 | G72: 0.03743958581 | H72: 0.02468786672
A73: 61 | B73: 0.03138635454 | C73: 0.03739180131 | D73: 0.02479783323 | F73: 0.03138635454 | G73: 0.03739180131 | H73: 0.02479783323
A74: 62 | B74: 0.03141213227 | C74: 0.03734551189 | D74: 0.02490440146 | F74: 0.03141213227 | G74: 0.03734551189 | H74: 0.02490440146
A75: 63 | B75: 0.03143711572 | C75: 0.03730065124 | D75: 0.02500771862 | F75: 0.03143711572 | G75: 0.03730065124 | H75: 0.02500771862
A76: 64 | B76: 0.0314613397 | C76: 0.03725715667 | D76: 0.02510792418 | F76: 0.0314613397 | G76: 0.03725715667 | H76: 0.02510792418
A77: 65 | B77: 0.03148483712 | C77: 0.03721496893 | D77: 0.02520515036 | F77: 0.03148483712 | G77: 0.03721496893 | H77: 0.02520515036
A78: 66 | B78: 0.03150763911 | C78: 0.03717403193 | D78: 0.02529952249 | F78: 0.03150763911 | G78: 0.03717403193 | H78: 0.02529952249
A79: 67 | B79: 0.03152977512 | C79: 0.03713429262 | D79: 0.02539115944 | F79: 0.03152977512 | G79: 0.03713429262 | H79: 0.02539115944
A80: 68 | B80: 0.03155127307 | C80: 0.03709570075 | D80: 0.02548017398 | F80: 0.03155127307 | G80: 0.03709570075 | H80: 0.02548017398
A81: 69 | B81: 0.03157215939 | C81: 0.03705820871 | D81: 0.02556667314 | F81: 0.03157215939 | G81: 0.03705820871 | H81: 0.02556667314
A82: 70 | B82: 0.03159245914 | C82: 0.03702177138 | D82: 0.02565075855 | F82: 0.03159245914 | G82: 0.03702177138 | H82: 0.02565075855
A83: 71 | B83: 0.03161219608 | C83: 0.03698634596 | D83: 0.0257325267 | F83: 0.03161219608 | G83: 0.03698634596 | H83: 0.0257325267
A84: 72 | B84: 0.03163139276 | C84: 0.03695189186 | D84: 0.02581206929 | F84: 0.03163139276 | G84: 0.03695189186 | H84: 0.02581206929
A85: 73 | B85: 0.03165007059 | C85: 0.03691837054 | D85: 0.02588947347 | F85: 0.03165007059 | G85: 0.03691837054 | H85: 0.02588947347
A86: 74 | B86: 0.03166824989 | C86: 0.03688574541 | D86: 0.02596482213 | F86: 0.03166824989 | G86: 0.03688574541 | H86: 0.02596482213
A87: 75 | B87: 0.03168594999 | C87: 0.03685398169 | D87: 0.0260381941 | F87: 0.03168594999 | G87: 0.03685398169 | H87: 0.0260381941
A88: 76 | B88: 0.03170318923 | C88: 0.03682304632 | D88: 0.02610966439 | F88: 0.03170318923 | G88: 0.03682304632 | H88: 0.02610966439
A89: 77 | B89: 0.0317199851 | C89: 0.03679290787 | D89: 0.02617930442 | F89: 0.0317199851 | G89: 0.03679290787 | H89: 0.02617930442
A90: 78 | B90: 0.03173635421 | C90: 0.03676353642 | D90: 0.02624718223 | F90: 0.03173635421 | G90: 0.03676353642 | H90: 0.02624718223
A91: 79 | B91: 0.03175231238 | C91: 0.0367349035 | D91: 0.02631336263 | F91: 0.03175231238 | G91: 0.0367349035 | H91: 0.02631336263
A92: 80 | B92: 0.03176787467 | C92: 0.03670698198 | D92: 0.02637790738 | F92: 0.03176787467 | G92: 0.03670698198 | H92: 0.02637790738
A93: 81 | B93: 0.03178305547 | C93: 0.03667974602 | D93: 0.02644087542 | F93: 0.03178305547 | G93: 0.03667974602 | H93: 0.02644087542
A94: 82 | B94: 0.03179786844 | C94: 0.03665317099 | D94: 0.02650232293 | F94: 0.03179786844 | G94: 0.03665317099 | H94: 0.02650232293
A95: 83 | B95: 0.03181232665 | C95: 0.03662723339 | D95: 0.02656230355 | F95: 0.03181232665 | G95: 0.03662723339 | H95: 0.02656230355
A96: 84 | B96: 0.03182644256 | C96: 0.0366019108 | D96: 0.02662086851 | F96: 0.03182644256 | G96: 0.0366019108 | H96: 0.02662086851
A97: 85 | B97: 0.03184022807 | C97: 0.03657718181 | D97: 0.02667806671 | F97: 0.03184022807 | G97: 0.03657718181 | H97: 0.02667806671
A98: 86 | B98: 0.03185369452 | C98: 0.036553026 | D98: 0.0267339449 | F98: 0.03185369452 | G98: 0.036553026 | H98: 0.0267339449
A99: 87 | B99: 0.03186685279 | C99: 0.03652942384 | D99: 0.02678854776 | F99: 0.03186685279 | G99: 0.03652942384 | H99: 0.02678854776
A100: 88 | B100: 0.03187971324 | C100: 0.03650635665 | D100: 0.02684191802 | F100: 0.03187971324 | G100: 0.03650635665 | H100: 0.02684191802
A101: 89 | B101: 0.0318922858 | C101: 0.03648380659 | D101: 0.02689409656 | F101: 0.0318922858 | G101: 0.03648380659 | H101: 0.02689409656
A102: 90 | B102: 0.03190457996 | C102: 0.03646175659 | D102: 0.02694512252 | F102: 0.03190457996 | G102: 0.03646175659 | H102: 0.02694512252
A103: 91 | B103: 0.03191660481 | C103: 0.0364401903 | D103: 0.02699503335 | F103: 0.03191660481 | G103: 0.0364401903 | H103: 0.02699503335
A104: 92 | B104: 0.03192836904 | C104: 0.03641909207 | D104: 0.02704386494 | F104: 0.03192836904 | G104: 0.03641909207 | H104: 0.02704386494
A105: 93 | B105: 0.031939881 | C105: 0.03639844692 | D105: 0.02709165168 | F105: 0.031939881 | G105: 0.03639844692 | H105: 0.02709165168
A106: 94 | B106: 0.03195114867 | C106: 0.03637824048 | D106: 0.02713842653 | F106: 0.03195114867 | G106: 0.03637824048 | H106: 0.02713842653
A107: 95 | B107: 0.0319621797 | C107: 0.03635845898 | D107: 0.02718422109 | F107: 0.0319621797 | G107: 0.03635845898 | H107: 0.02718422109
A108: 96 | B108: 0.03197298144 | C108: 0.03633908922 | D108: 0.0272290657 | F108: 0.03197298144 | G108: 0.03633908922 | H108: 0.0272290657
A109: 97 | B109: 0.03198356093 | C109: 0.03632011853 | D109: 0.02727298946 | F109: 0.03198356093 | G109: 0.03632011853 | H109: 0.02727298946
A110: 98 | B110: 0.03199392495 | C110: 0.03630153475 | D110: 0.0273160203 | F110: 0.03199392495 | G110: 0.03630153475 | H110: 0.0273160203
A111: 99 | B111: 0.03200407997 | C111: 0.0362833262 | D111: 0.02735818505 | F111: 0.03200407997 | G111: 0.0362833262 | H111: 0.02735818505
A112: 100 | B112: 0.03201403225 | C112: 0.03626548168 | D112: 0.0273995095 | F112: 0.03201403225 | G112: 0.03626548168 | H112: 0.0273995095
A113: 101 | B113: 0.03202378776 | C113: 0.03624799041 | D113: 0.02744001842 | F113: 0.03202378776 | G113: 0.03624799041 | H113: 0.02744001842
A114: 102 | B114: 0.03203335228 | C114: 0.03623084202 | D114: 0.02747973563 | F114: 0.03203335228 | G114: 0.03623084202 | H114: 0.02747973563
A115: 103 | B115: 0.03204273135 | C115: 0.03621402657 | D115: 0.02751868403 | F115: 0.03204273135 | G115: 0.03621402657 | H115: 0.02751868403
A116: 104 | B116: 0.03205193028 | C116: 0.03619753448 | D116: 0.02755688568 | F116: 0.03205193028 | G116: 0.03619753448 | H116: 0.02755688568
A117: 105 | B117: 0.03206095422 | C117: 0.03618135652 | D117: 0.02759436177 | F117: 0.03206095422 | G117: 0.03618135652 | H117: 0.02759436177
A118: 106 | B118: 0.03206980809 | C118: 0.03616548383 | D118: 0.02763113273 | F118: 0.03206980809 | G118: 0.03616548383 | H118: 0.02763113273
A119: 107 | B119: 0.03207849666 | C119: 0.03614990786 | D119: 0.02766721823 | F119: 0.03207849666 | G119: 0.03614990786 | H119: 0.02766721823
A120: 108 | B120: 0.03208702449 | C120: 0.03613462039 | D120: 0.02770263722 | F120: 0.03208702449 | G120: 0.03613462039 | H120: 0.02770263722
A121: 109 | B121: 0.032095396 | C121: 0.03611961349 | D121: 0.02773740795 | F121: 0.032095396 | G121: 0.03611961349 | H121: 0.02773740795
A122: 110 | B122: 0.03210361545 | C122: 0.03610487951 | D122: 0.02777154803 | F122: 0.03210361545 | G122: 0.03610487951 | H122: 0.02777154803
A123: 111 | B123: 0.03211168693 | C123: 0.03609041108 | D123: 0.02780507443 | F123: 0.03211168693 | G123: 0.03609041108 | H123: 0.02780507443
A124: 112 | B124: 0.0321196144 | C124: 0.03607620112 | D124: 0.02783800351 | F124: 0.0321196144 | G124: 0.03607620112 | H124: 0.02783800351
A125: 113 | B125: 0.03212740167 | C125: 0.03606224274 | D125: 0.02787035109 | F125: 0.03212740167 | G125: 0.03606224274 | H125: 0.02787035109
A126: 114 | B126: 0.03213505243 | C126: 0.03604852935 | D126: 0.0279021324 | F126: 0.03213505243 | G126: 0.03604852935 | H126: 0.0279021324
A127: 115 | B127: 0.03214257023 | C127: 0.03603505455 | D127: 0.02793336218 | F127: 0.03214257023 | G127: 0.03603505455 | H127: 0.02793336218
A128: 116 | B128: 0.0321499585 | C128: 0.03602181218 | D128: 0.02796405462 | F128: 0.0321499585 | G128: 0.03602181218 | H128: 0.02796405462
A129: 117 | B129: 0.03215722056 | C129: 0.03600879628 | D129: 0.02799422348 | F129: 0.03215722056 | G129: 0.03600879628 | H129: 0.02799422348
A130: 118 | B130: 0.03216435961 | C130: 0.03599600109 | D130: 0.02802388201 | F130: 0.03216435961 | G130: 0.03599600109 | H130: 0.02802388201
A131: 119 | B131: 0.03217137876 | C131: 0.03598342105 | D131: 0.02805304305 | F131: 0.03217137876 | G131: 0.03598342105 | H131: 0.02805304305
A132: 120 | B132: 0.03217828099 | C132: 0.03597105079 | D132: 0.028081719 | F132: 0.03217828099 | G132: 0.03597105079 | H132: 0.028081719
A133: 121 | B133: 0.0321850692 | C133: 0.0359588851 | D133: 0.02810992186 | F133: 0.0321850692 | G133: 0.0359588851 | H133: 0.02810992186
A134: 122 | B134: 0.03219174618 | C134: 0.03594691895 | D134: 0.02813766323 | F134: 0.03219174618 | G134: 0.03594691895 | H134: 0.02813766323
A135: 123 | B135: 0.03219831466 | C135: 0.03593514748 | D135: 0.02816495433 | F135: 0.03219831466 | G135: 0.03593514748 | H135: 0.02816495433
A136: 124 | B136: 0.03220477725 | C136: 0.03592356598 | D136: 0.02819180603 | F136: 0.03220477725 | G136: 0.03592356598 | H136: 0.02819180603
A137: 125 | B137: 0.03221113649 | C137: 0.03591216989 | D137: 0.02821822886 | F137: 0.03221113649 | G137: 0.03591216989 | H137: 0.02821822886
A138: 126 | B138: 0.03221739484 | C138: 0.03590095478 | D138: 0.028244233 | F138: 0.03221739484 | G138: 0.03590095478 | H138: 0.028244233
A139: 127 | B139: 0.03222355469 | C139: 0.03588991639 | D139: 0.02826982833 | F139: 0.03222355469 | G139: 0.03588991639 | H139: 0.02826982833
A140: 128 | B140: 0.03222961832 | C140: 0.03587905058 | D140: 0.02829502439 | F140: 0.03222961832 | G140: 0.03587905058 | H140: 0.02829502439
A141: 129 | B141: 0.032235588 | C141: 0.03586835332 | D141: 0.02831983047 | F141: 0.032235588 | G141: 0.03586835332 | H141: 0.02831983047
A142: 130 | B142: 0.03224146587 | C142: 0.03585782074 | D142: 0.02834425553 | F142: 0.03224146587 | G142: 0.03585782074 | H142: 0.02834425553
A143: 131 | B143: 0.03224725404 | C143: 0.03584744904 | D143: 0.02836830829 | F143: 0.03224725404 | G143: 0.03584744904 | H143: 0.02836830829
A144: 132 | B144: 0.03225295455 | C144: 0.03583723459 | D144: 0.0283919972 | F144: 0.03225295455 | G144: 0.03583723459 | H144: 0.0283919972
A145: 133 | B145: 0.03225856937 | C145: 0.03582717383 | D145: 0.02841533044 | F145: 0.03225856937 | G145: 0.03582717383 | H145: 0.02841533044
A146: 134 | B146: 0.03226410043 | C146: 0.03581726331 | D146: 0.02843831596 | F146: 0.03226410043 | G146: 0.03581726331 | H146: 0.02843831596
A147: 135 | B147: 0.03226954957 | C147: 0.0358074997 | D147: 0.02846096148 | F147: 0.03226954957 | G147: 0.0358074997 | H147: 0.02846096148
A148: 136 | B148: 0.03227491862 | C148: 0.03579787976 | D148: 0.02848327449 | F148: 0.03227491862 | G148: 0.03579787976 | H148: 0.02848327449
A149: 137 | B149: 0.03228020931 | C149: 0.03578840034 | D149: 0.02850526225 | F149: 0.03228020931 | G149: 0.03578840034 | H149: 0.02850526225
A150: 138 | B150: 0.03228542336 | C150: 0.03577905838 | D150: 0.02852693182 | F150: 0.03228542336 | G150: 0.03577905838 | H150: 0.02852693182
A151: 139 | B151: 0.03229056241 | C151: 0.03576985092 | D151: 0.02854829005 | F151: 0.03229056241 | G151: 0.03576985092 | H151: 0.02854829005
A152: 140 | B152: 0.03229562807 | C152: 0.03576077506 | D152: 0.02856934362 | F152: 0.03229562807 | G152: 0.03576077506 | H152: 0.02856934362
A153: 141 | B153: 0.03230062191 | C153: 0.03575182802 | D153: 0.02859009898 | F153: 0.03230062191 | G153: 0.03575182802 | H153: 0.02859009898
A154: 142 | B154: 0.03230554544 | C154: 0.03574300706 | D154: 0.02861056243 | F154: 0.03230554544 | G154: 0.03574300706 | H154: 0.02861056243
A155: 143 | B155: 0.03231040013 | C155: 0.03573430954 | D155: 0.02863074009 | F155: 0.03231040013 | G155: 0.03573430954 | H155: 0.02863074009
A156: 144 | B156: 0.03231518742 | C156: 0.0357257329 | D156: 0.0286506379 | F156: 0.03231518742 | G156: 0.0357257329 | H156: 0.0286506379
A157: 145 | B157: 0.03231990869 | C157: 0.03571727461 | D157: 0.02867026164 | F157: 0.03231990869 | G157: 0.03571727461 | H157: 0.02867026164
A158: 146 | B158: 0.03232456532 | C158: 0.03570893226 | D158: 0.02868961693 | F158: 0.03232456532 | G158: 0.03570893226 | H158: 0.02868961693
A159: 147 | B159: 0.03232915861 | C159: 0.03570070348 | D159: 0.02870870925 | F159: 0.03232915861 | G159: 0.03570070348 | H159: 0.02870870925
A160: 148 | B160: 0.03233368986 | C160: 0.03569258596 | D160: 0.02872754392 | F160: 0.03233368986 | G160: 0.03569258596 | H160: 0.02872754392
A161: 149 | B161: 0.0323381603 | C161: 0.03568457746 | D161: 0.02874612611 | F161: 0.0323381603 | G161: 0.03568457746 | H161: 0.02874612611
A162: 150 | B162: 0.03234257115 | C162: 0.03567667579 | D162: 0.02876446087 | F162: 0.03234257115 | G162: 0.03567667579 | H162: 0.02876446087

Sheet Scenario Data Expected +100bps
J3: EUR
J4: =VLOOKUP(J3,'RCS and Scaling Factors'!$B$9:$F$12,4,FALSE)*10000 -> 51.87702264
J5: =VLOOKUP(J3,'RCS and Scaling Factors'!$B$9:$F$12,5,FALSE)*10000 -> 44.09
J7: =VLOOKUP(J3,'RCS and Scaling Factors'!$B$9:$F$12,5,FALSE)*J6*10000 -> 0
B11: NO volatility adjustment | F11: WITH volatility adjustment
B12: Alternative Extrapolation Method RFR | C12: Expected New Regime - Up Shock | D12: Expected New Regime - Down Shock | F12: Alternative Extrapolation Method RFR | G12: Expected New Regime - Up Shock | H12: Expected New Regime - Down Shock
A13: 1 | B13: =BaseCurvePlus -> 0.04608875705 | C13: =BaseCurvePlusUp -> 0.09560289884 | D13: =BaseCurvePlusDown -> 0.007757277959 | F13: =BaseCurvePlusWithVA -> 0.04608875705 | G13: =BaseCurvePlusUpWithVA -> 0.09560289884 | H13: =BaseCurvePlusDownWithVA -> 0.007757277959 | U13: Czech Republic | V13: 1
A14: 2 | B14: 0.04585232872 | C14: 0.08875406295 | D14: 0.01256764107 | F14: 0.04585232872 | G14: 0.08875406295 | H14: 0.01256764107 | U14: Hungary | V14: 2
A15: 3 | B15: 0.04567587932 | C15: 0.08525706018 | D15: 0.01727849242 | F15: 0.04567587932 | G15: 0.08525706018 | H15: 0.01727849242 | U15: Poland | V15: 3
A16: 4 | B16: 0.0459111579 | C16: 0.08313029053 | D16: 0.02014669474 | F16: 0.0459111579 | G16: 0.08313029053 | H16: 0.02014669474 | U16: Romania | V16: 4
A17: 5 | B17: 0.04605235046 | C17: 0.08257590816 | D17: 0.02053141027 | F17: 0.04605235046 | G17: 0.08257590816 | H17: 0.02053141027 | U17: Switzerland | V17: 5
A18: 6 | B18: 0.04657581186 | C18: 0.08007189473 | D18: 0.02217700335 | F18: 0.04657581186 | G18: 0.08007189473 | H18: 0.02217700335 | U18: United States | V18: 6
A19: 7 | B19: 0.04694987324 | C19: 0.07732132633 | D19: 0.02327842014 | F19: 0.04694987324 | G19: 0.07732132633 | H19: 0.02327842014
A20: 8 | B20: 0.047230507 | C20: 0.07518887938 | D20: 0.02308291434 | F20: 0.047230507 | G20: 0.07518887938 | H20: 0.02308291434
A21: 9 | B21: 0.04744882971 | C21: 0.07383245522 | D21: 0.02284378612 | F21: 0.04744882971 | G21: 0.07383245522 | H21: 0.02284378612
A22: 10 | B22: 0.04762352065 | C22: 0.07241057685 | D22: 0.02247411239 | F22: 0.04762352065 | G22: 0.07241057685 | H22: 0.02247411239
A23: 11 | B23: 0.04773070497 | C23: 0.07174283351 | D23: 0.02241695521 | F23: 0.04773070497 | G23: 0.07174283351 | H23: 0.02241695521
A24: 12 | B24: 0.04768194921 | C24: 0.07091578195 | D24: 0.02245278467 | F24: 0.04768194921 | G24: 0.07091578195 | H24: 0.02245278467
A25: 13 | B25: 0.04752652907 | C25: 0.0699926384 | D25: 0.02255212349 | F25: 0.04752652907 | G25: 0.0699926384 | H25: 0.02255212349
A26: 14 | B26: 0.04729838231 | C26: 0.06901598768 | D26: 0.02269470158 | F26: 0.04729838231 | G26: 0.06901598768 | H26: 0.02269470158
A27: 15 | B27: 0.04702132988 | C27: 0.068014894 | D27: 0.02286630553 | F27: 0.04702132988 | G27: 0.068014894 | H27: 0.02286630553
A28: 16 | B28: 0.04671233459 | C28: 0.06700933194 | D28: 0.02305681977 | F28: 0.04671233459 | G28: 0.06700933194 | H28: 0.02305681977
A29: 17 | B29: 0.04638360323 | C29: 0.06601303786 | D29: 0.02325896666 | F29: 0.04638360323 | G29: 0.06601303786 | H29: 0.02325896666
A30: 18 | B30: 0.04604398128 | C30: 0.06503539538 | D30: 0.02346747255 | F30: 0.04604398128 | G30: 0.06503539538 | H30: 0.02346747255
A31: 19 | B31: 0.04569990078 | C31: 0.0640827113 | D31: 0.02367850199 | F31: 0.04569990078 | G31: 0.0640827113 | H31: 0.02367850199
A32: 20 | B32: 0.04535603807 | C32: 0.06315909608 | D32: 0.02388926568 | F32: 0.04535603807 | G32: 0.06315909608 | H32: 0.02388926568
A33: 21 | B33: 0.04501577835 | C33: 0.06226708172 | D33: 0.0240977437 | F33: 0.04501577835 | G33: 0.06226708172 | H33: 0.0240977437
A34: 22 | B34: 0.04468154916 | C34: 0.06140806158 | D34: 0.02430248708 | F34: 0.04468154916 | G34: 0.06140806158 | H34: 0.02430248708
A35: 23 | B35: 0.0443550628 | C35: 0.0605826072 | D35: 0.0245024734 | F35: 0.0443550628 | G35: 0.0605826072 | H35: 0.0245024734
A36: 24 | B36: 0.04403749488 | C36: 0.0597906988 | D36: 0.02469700066 | F36: 0.04403749488 | G36: 0.0597906988 | H36: 0.02469700066
A37: 25 | B37: 0.04372961691 | C37: 0.05903189439 | D37: 0.02488560818 | F37: 0.04372961691 | G37: 0.05903189439 | H37: 0.02488560818
A38: 26 | B38: 0.04343189591 | C38: 0.05830545459 | D38: 0.02506801744 | F38: 0.04343189591 | G38: 0.05830545459 | H38: 0.02506801744
A39: 27 | B39: 0.04314456952 | C39: 0.05761043519 | D39: 0.02524408717 | F39: 0.04314456952 | G39: 0.05761043519 | H39: 0.02524408717
A40: 28 | B40: 0.04286770324 | C40: 0.056945756 | D40: 0.02541377927 | F40: 0.04286770324 | G40: 0.056945756 | H40: 0.02541377927
A41: 29 | B41: 0.04260123412 | C41: 0.05631025216 | D41: 0.02557713274 | F41: 0.04260123412 | G41: 0.05631025216 | H41: 0.02557713274
A42: 30 | B42: 0.04234500428 | C42: 0.05570271221 | D42: 0.02573424362 | F42: 0.04234500428 | G42: 0.05570271221 | H42: 0.02573424362
A43: 31 | B43: 0.04209878672 | C43: 0.05512190639 | D43: 0.02588524955 | F43: 0.04209878672 | G43: 0.05512190639 | H43: 0.02588524955
A44: 32 | B44: 0.04186230523 | C44: 0.05456660745 | D44: 0.02603031785 | F44: 0.04186230523 | G44: 0.05456660745 | H44: 0.02603031785
A45: 33 | B45: 0.04163524977 | C45: 0.05403560578 | D45: 0.02616963631 | F45: 0.04163524977 | G45: 0.05403560578 | H45: 0.02616963631
A46: 34 | B46: 0.04141728825 | C46: 0.05352772036 | D46: 0.02630340607 | F46: 0.04141728825 | G46: 0.05352772036 | H46: 0.02630340607
A47: 35 | B47: 0.04120807567 | C47: 0.05304180633 | D47: 0.02643183615 | F47: 0.04120807567 | G47: 0.05304180633 | H47: 0.02643183615
A48: 36 | B48: 0.04100726112 | C48: 0.05257676014 | D48: 0.02655513925 | F48: 0.04100726112 | G48: 0.05257676014 | H48: 0.02655513925
A49: 37 | B49: 0.04081449304 | C49: 0.0521315228 | D49: 0.02667352852 | F49: 0.04081449304 | G49: 0.0521315228 | H49: 0.02667352852
A50: 38 | B50: 0.04062942332 | C50: 0.05170508173 | D50: 0.02678721517 | F50: 0.04062942332 | G50: 0.05170508173 | H50: 0.02678721517
A51: 39 | B51: 0.04045171021 | C51: 0.05129647149 | D51: 0.02689640658 | F51: 0.04045171021 | G51: 0.05129647149 | H51: 0.02689640658
A52: 40 | B52: 0.04028102055 | C52: 0.05090477373 | D52: 0.02700130505 | F52: 0.04028102055 | G52: 0.05090477373 | H52: 0.02700130505
A53: 41 | B53: 0.04011703137 | C53: 0.05052911654 | D53: 0.02710210676 | F53: 0.04011703137 | G53: 0.05052911654 | H53: 0.02710210676
A54: 42 | B54: 0.03995943092 | C54: 0.05016867336 | D54: 0.0271990012 | F54: 0.03995943092 | G54: 0.05016867336 | H54: 0.0271990012
A55: 43 | B55: 0.03980791936 | C55: 0.0498226616 | D55: 0.02729217066 | F55: 0.03980791936 | G55: 0.0498226616 | H55: 0.02729217066
A56: 44 | B56: 0.03966220919 | C56: 0.04949034103 | D56: 0.02738179002 | F56: 0.03966220919 | G56: 0.04949034103 | H56: 0.02738179002
A57: 45 | B57: 0.03952202538 | C57: 0.04917101203 | D57: 0.02746802665 | F57: 0.03952202538 | G57: 0.04917101203 | H57: 0.02746802665
A58: 46 | B58: 0.03938710536 | C58: 0.04886401381 | D58: 0.0275510404 | F58: 0.03938710536 | G58: 0.04886401381 | H58: 0.0275510404
A59: 47 | B59: 0.03925719888 | C59: 0.04856872249 | D59: 0.02763098368 | F59: 0.03925719888 | G59: 0.04856872249 | H59: 0.02763098368
A60: 48 | B60: 0.03913206775 | C60: 0.0482845493 | D60: 0.02770800164 | F60: 0.03913206775 | G60: 0.0482845493 | H60: 0.02770800164
A61: 49 | B61: 0.03901148548 | C61: 0.04801093872 | D61: 0.02778223231 | F61: 0.03901148548 | G61: 0.04801093872 | H61: 0.02778223231
A62: 50 | B62: 0.03889523695 | C62: 0.04774736669 | D62: 0.02785380685 | F62: 0.03889523695 | G62: 0.04774736669 | H62: 0.02785380685
A63: 51 | B63: 0.03878311797 | C63: 0.04749333885 | D63: 0.02792284981 | F63: 0.03878311797 | G63: 0.04749333885 | H63: 0.02792284981
A64: 52 | B64: 0.03867493484 | C64: 0.04724838888 | D64: 0.0279894794 | F64: 0.03867493484 | G64: 0.04724838888 | H64: 0.0279894794
A65: 53 | B65: 0.03857050388 | C65: 0.04701207689 | D65: 0.02805380772 | F65: 0.03857050388 | G65: 0.04701207689 | H65: 0.02805380772
A66: 54 | B66: 0.03846965099 | C66: 0.04678398786 | D66: 0.02811594106 | F66: 0.03846965099 | G66: 0.04678398786 | H66: 0.02811594106
A67: 55 | B67: 0.03837221121 | C67: 0.04656373019 | D67: 0.02817598019 | F67: 0.03837221121 | G67: 0.04656373019 | H67: 0.02817598019
A68: 56 | B68: 0.03827802823 | C68: 0.04635093431 | D68: 0.0282340206 | F68: 0.03827802823 | G68: 0.04635093431 | H68: 0.0282340206
A69: 57 | B69: 0.03818695398 | C69: 0.04614525136 | D69: 0.02829015279 | F69: 0.03818695398 | G69: 0.04614525136 | H69: 0.02829015279
A70: 58 | B70: 0.03809884818 | C70: 0.04594635194 | D70: 0.02834446249 | F70: 0.03809884818 | G70: 0.04594635194 | H70: 0.02834446249
A71: 59 | B71: 0.03801357795 | C71: 0.04575392497 | D71: 0.02839703097 | F71: 0.03801357795 | G71: 0.04575392497 | H71: 0.02839703097
A72: 60 | B72: 0.0379310174 | C72: 0.04556767652 | D72: 0.02844793522 | F72: 0.0379310174 | G72: 0.04556767652 | H72: 0.02844793522
A73: 61 | B73: 0.03785104725 | C73: 0.04538732883 | D73: 0.02849724822 | F73: 0.03785104725 | G73: 0.04538732883 | H73: 0.02849724822
A74: 62 | B74: 0.03777355447 | C74: 0.0452126193 | D74: 0.02854503914 | F74: 0.03777355447 | G74: 0.0452126193 | H74: 0.02854503914
A75: 63 | B75: 0.03769843192 | C75: 0.0450432996 | D75: 0.02859137356 | F75: 0.03769843192 | G75: 0.0450432996 | H75: 0.02859137356
A76: 64 | B76: 0.03762557804 | C76: 0.04487913476 | D76: 0.02863631365 | F76: 0.03762557804 | G76: 0.04487913476 | H76: 0.02863631365
A77: 65 | B77: 0.03755489653 | C77: 0.04471990242 | D77: 0.02867991839 | F77: 0.03755489653 | G77: 0.04471990242 | H77: 0.02867991839
A78: 66 | B78: 0.03748629605 | C78: 0.04456539204 | D78: 0.02872224372 | F78: 0.03748629605 | G78: 0.04456539204 | H78: 0.02872224372
A79: 67 | B79: 0.03741968994 | C79: 0.04441540419 | D79: 0.02876334274 | F79: 0.03741968994 | G79: 0.04441540419 | H79: 0.02876334274
A80: 68 | B80: 0.03735499597 | C80: 0.04426974988 | D80: 0.02880326584 | F80: 0.03735499597 | G80: 0.04426974988 | H80: 0.02880326584
A81: 69 | B81: 0.03729213605 | C81: 0.04412824995 | D81: 0.02884206087 | F81: 0.03729213605 | G81: 0.04412824995 | H81: 0.02884206087
A82: 70 | B82: 0.03723103606 | C82: 0.04399073451 | D82: 0.02887977327 | F82: 0.03723103606 | G82: 0.04399073451 | H82: 0.02887977327
A83: 71 | B83: 0.03717162555 | C83: 0.04385704232 | D83: 0.02891644624 | F83: 0.03717162555 | G83: 0.04385704232 | H83: 0.02891644624
A84: 72 | B84: 0.03711383762 | C84: 0.04372702037 | D84: 0.0289521208 | F84: 0.03711383762 | G84: 0.04372702037 | H84: 0.0289521208
A85: 73 | B85: 0.03705760862 | C85: 0.04360052331 | D85: 0.028986836 | F85: 0.03705760862 | G85: 0.04360052331 | H85: 0.028986836
A86: 74 | B86: 0.03700287806 | C86: 0.04347741308 | D86: 0.02902062894 | F86: 0.03700287806 | G86: 0.04347741308 | H86: 0.02902062894
A87: 75 | B87: 0.03694958836 | C87: 0.04335755844 | D87: 0.02905353494 | F87: 0.03694958836 | G87: 0.04335755844 | H87: 0.02905353494
A88: 76 | B88: 0.03689768476 | C88: 0.0432408346 | D88: 0.02908558763 | F88: 0.03689768476 | G88: 0.0432408346 | H88: 0.02908558763
A89: 77 | B89: 0.03684711508 | C89: 0.04312712282 | D89: 0.02911681902 | F89: 0.03684711508 | G89: 0.04312712282 | H89: 0.02911681902
A90: 78 | B90: 0.03679782965 | C90: 0.04301631012 | D90: 0.0291472596 | F90: 0.03679782965 | G90: 0.04301631012 | H90: 0.0291472596
A91: 79 | B91: 0.03674978114 | C91: 0.04290828888 | D91: 0.02917693844 | F91: 0.03674978114 | G91: 0.04290828888 | H91: 0.02917693844
A92: 80 | B92: 0.03670292442 | C92: 0.04280295663 | D92: 0.02920588324 | F92: 0.03670292442 | G92: 0.04280295663 | H92: 0.02920588324
A93: 81 | B93: 0.03665721647 | C93: 0.04270021566 | D93: 0.02923412043 | F93: 0.03665721647 | G93: 0.04270021566 | H93: 0.02923412043
A94: 82 | B94: 0.03661261623 | C94: 0.04259997286 | D94: 0.02926167523 | F94: 0.03661261623 | G94: 0.04259997286 | H94: 0.02926167523
A95: 83 | B95: 0.03656908454 | C95: 0.04250213937 | D95: 0.02928857169 | F95: 0.03656908454 | G95: 0.04250213937 | H95: 0.02928857169
A96: 84 | B96: 0.03652658398 | C96: 0.04240663041 | D96: 0.0293148328 | F96: 0.03652658398 | G96: 0.04240663041 | H96: 0.0293148328
A97: 85 | B97: 0.03648507884 | C97: 0.04231336505 | D97: 0.02934048051 | F97: 0.03648507884 | G97: 0.04231336505 | H97: 0.02934048051
A98: 86 | B98: 0.03644453499 | C98: 0.04222226598 | D98: 0.0293655358 | F98: 0.03644453499 | G98: 0.04222226598 | H98: 0.0293655358
A99: 87 | B99: 0.03640491978 | C99: 0.04213325934 | D99: 0.02939001872 | F99: 0.03640491978 | G99: 0.04213325934 | H99: 0.02939001872
A100: 88 | B100: 0.03636620203 | C100: 0.0420462745 | D100: 0.02941394845 | F100: 0.03636620203 | G100: 0.0420462745 | H100: 0.02941394845
A101: 89 | B101: 0.03632835187 | C101: 0.04196124394 | D101: 0.02943734335 | F101: 0.03632835187 | G101: 0.04196124394 | H101: 0.02943734335
A102: 90 | B102: 0.03629134075 | C102: 0.04187810307 | D102: 0.02946022099 | F102: 0.03629134075 | G102: 0.04187810307 | H102: 0.02946022099
A103: 91 | B103: 0.0362551413 | C103: 0.04179679003 | D103: 0.02948259817 | F103: 0.0362551413 | G103: 0.04179679003 | H103: 0.02948259817
A104: 92 | B104: 0.03621972734 | C104: 0.04171724563 | D104: 0.02950449102 | F104: 0.03621972734 | G104: 0.04171724563 | H104: 0.02950449102
A105: 93 | B105: 0.03618507376 | C105: 0.04163941315 | D105: 0.02952591497 | F105: 0.03618507376 | G105: 0.04163941315 | H105: 0.02952591497
A106: 94 | B106: 0.0361511565 | C106: 0.04156323824 | D106: 0.02954688481 | F106: 0.0361511565 | G106: 0.04156323824 | H106: 0.02954688481
A107: 95 | B107: 0.0361179525 | C107: 0.04148866881 | D107: 0.02956741476 | F107: 0.0361179525 | G107: 0.04148866881 | H107: 0.02956741476
A108: 96 | B108: 0.03608543962 | C108: 0.04141565488 | D108: 0.02958751841 | F108: 0.03608543962 | G108: 0.04141565488 | H108: 0.02958751841
A109: 97 | B109: 0.03605359663 | C109: 0.04134414852 | D109: 0.02960720884 | F109: 0.03605359663 | G109: 0.04134414852 | H109: 0.02960720884
A110: 98 | B110: 0.03602240315 | C110: 0.04127410372 | D110: 0.02962649859 | F110: 0.03602240315 | G110: 0.04127410372 | H110: 0.02962649859
A111: 99 | B111: 0.03599183959 | C111: 0.04120547631 | D111: 0.02964539971 | F111: 0.03599183959 | G111: 0.04120547631 | H111: 0.02964539971
A112: 100 | B112: 0.03596188715 | C112: 0.04113822386 | D112: 0.02966392377 | F112: 0.03596188715 | G112: 0.04113822386 | H112: 0.02966392377
A113: 101 | B113: 0.03593252776 | C113: 0.04107230561 | D113: 0.0296820819 | F113: 0.03593252776 | G113: 0.04107230561 | H113: 0.0296820819
A114: 102 | B114: 0.03590374405 | C114: 0.04100768236 | D114: 0.0296998848 | F114: 0.03590374405 | G114: 0.04100768236 | H114: 0.0296998848
A115: 103 | B115: 0.03587551931 | C115: 0.04094431646 | D115: 0.02971734275 | F115: 0.03587551931 | G115: 0.04094431646 | H115: 0.02971734275
A116: 104 | B116: 0.03584783746 | C116: 0.04088217165 | D116: 0.02973446565 | F116: 0.03584783746 | G116: 0.04088217165 | H116: 0.02973446565
A117: 105 | B117: 0.03582068304 | C117: 0.04082121307 | D117: 0.02975126302 | F117: 0.03582068304 | G117: 0.04082121307 | H117: 0.02975126302
A118: 106 | B118: 0.03579404117 | C118: 0.04076140717 | D118: 0.02976774404 | F118: 0.03579404117 | G118: 0.04076140717 | H118: 0.02976774404
A119: 107 | B119: 0.03576789749 | C119: 0.04070272161 | D119: 0.02978391752 | F119: 0.03576789749 | G119: 0.04070272161 | H119: 0.02978391752
A120: 108 | B120: 0.03574223821 | C120: 0.04064512528 | D120: 0.02979979199 | F120: 0.03574223821 | G120: 0.04064512528 | H120: 0.02979979199
A121: 109 | B121: 0.03571705 | C121: 0.0405885882 | D121: 0.02981537564 | F121: 0.03571705 | G121: 0.0405885882 | H121: 0.02981537564
A122: 110 | B122: 0.03569232005 | C122: 0.04053308145 | D122: 0.02983067636 | F122: 0.03569232005 | G122: 0.04053308145 | H122: 0.02983067636
A123: 111 | B123: 0.03566803599 | C123: 0.04047857717 | D123: 0.02984570179 | F123: 0.03566803599 | G123: 0.04047857717 | H123: 0.02984570179
A124: 112 | B124: 0.03564418588 | C124: 0.0404250485 | D124: 0.02986045927 | F124: 0.03564418588 | G124: 0.0404250485 | H124: 0.02986045927
A125: 113 | B125: 0.03562075821 | C125: 0.04037246949 | D125: 0.0298749559 | F125: 0.03562075821 | G125: 0.04037246949 | H125: 0.0298749559
A126: 114 | B126: 0.03559774187 | C126: 0.04032081514 | D126: 0.02988919851 | F126: 0.03559774187 | G126: 0.04032081514 | H126: 0.02988919851
A127: 115 | B127: 0.03557512615 | C127: 0.0402700613 | D127: 0.02990319373 | F127: 0.03557512615 | G127: 0.0402700613 | H127: 0.02990319373
A128: 116 | B128: 0.03555290069 | C128: 0.04022018464 | D128: 0.02991694793 | F128: 0.03555290069 | G128: 0.04022018464 | H128: 0.02991694793
A129: 117 | B129: 0.03553105547 | C129: 0.04017116265 | D129: 0.02993046727 | F129: 0.03553105547 | G129: 0.04017116265 | H129: 0.02993046727
A130: 118 | B130: 0.03550958085 | C130: 0.04012297356 | D130: 0.02994375773 | F130: 0.03550958085 | G130: 0.04012297356 | H130: 0.02994375773
A131: 119 | B131: 0.03548846747 | C131: 0.04007559633 | D131: 0.02995682504 | F131: 0.03548846747 | G131: 0.04007559633 | H131: 0.02995682504
A132: 120 | B132: 0.0354677063 | C132: 0.04002901066 | D132: 0.02996967479 | F132: 0.0354677063 | G132: 0.04002901066 | H132: 0.02996967479
A133: 121 | B133: 0.03544728862 | C133: 0.03998319686 | D133: 0.02998231235 | F133: 0.03544728862 | G133: 0.03998319686 | H133: 0.02998231235
A134: 122 | B134: 0.03542720597 | C134: 0.03993813594 | D134: 0.02999474294 | F134: 0.03542720597 | G134: 0.03993813594 | H134: 0.02999474294
A135: 123 | B135: 0.03540745018 | C135: 0.03989380949 | D135: 0.03000697159 | F135: 0.03540745018 | G135: 0.03989380949 | H135: 0.03000697159
A136: 124 | B136: 0.03538801334 | C136: 0.03985019972 | D136: 0.03001900318 | F136: 0.03538801334 | G136: 0.03985019972 | H136: 0.03001900318
A137: 125 | B137: 0.0353688878 | C137: 0.03980728938 | D137: 0.03003084243 | F137: 0.0353688878 | G137: 0.03980728938 | H137: 0.03003084243
A138: 126 | B138: 0.03535006613 | C138: 0.0397650618 | D138: 0.03004249392 | F138: 0.03535006613 | G138: 0.0397650618 | H138: 0.03004249392
A139: 127 | B139: 0.03533154116 | C139: 0.03972350082 | D139: 0.03005396208 | F139: 0.03533154116 | G139: 0.03972350082 | H139: 0.03005396208
A140: 128 | B140: 0.03531330593 | C140: 0.03968259078 | D140: 0.0300652512 | F140: 0.03531330593 | G140: 0.03968259078 | H140: 0.0300652512
A141: 129 | B141: 0.0352953537 | C141: 0.03964231651 | D141: 0.03007636543 | F141: 0.0352953537 | G141: 0.03964231651 | H141: 0.03007636543
A142: 130 | B142: 0.03527767793 | C142: 0.03960266332 | D142: 0.03008730881 | F142: 0.03527767793 | G142: 0.03960266332 | H142: 0.03008730881
A143: 131 | B143: 0.03526027229 | C143: 0.03956361695 | D143: 0.03009808524 | F143: 0.03526027229 | G143: 0.03956361695 | H143: 0.03009808524
A144: 132 | B144: 0.03524313064 | C144: 0.03952516357 | D144: 0.03010869852 | F144: 0.03524313064 | G144: 0.03952516357 | H144: 0.03010869852
A145: 133 | B145: 0.03522624701 | C145: 0.0394872898 | D145: 0.03011915232 | F145: 0.03522624701 | G145: 0.0394872898 | H145: 0.03011915232
A146: 134 | B146: 0.03520961562 | C146: 0.03944998262 | D146: 0.03012945021 | F146: 0.03520961562 | G146: 0.03944998262 | H146: 0.03012945021
A147: 135 | B147: 0.03519323088 | C147: 0.03941322941 | D147: 0.03013959565 | F147: 0.03519323088 | G147: 0.03941322941 | H147: 0.03013959565
A148: 136 | B148: 0.03517708732 | C148: 0.03937701794 | D148: 0.03014959199 | F148: 0.03517708732 | G148: 0.03937701794 | H148: 0.03014959199
A149: 137 | B149: 0.03516117967 | C149: 0.03934133631 | D149: 0.03015944251 | F149: 0.03516117967 | G149: 0.03934133631 | H149: 0.03015944251
A150: 138 | B150: 0.03514550279 | C150: 0.03930617298 | D150: 0.03016915037 | F150: 0.03514550279 | G150: 0.03930617298 | H150: 0.03016915037
A151: 139 | B151: 0.03513005171 | C151: 0.03927151675 | D151: 0.03017871864 | F151: 0.03513005171 | G151: 0.03927151675 | H151: 0.03017871864
A152: 140 | B152: 0.03511482157 | C152: 0.03923735672 | D152: 0.03018815031 | F152: 0.03511482157 | G152: 0.03923735672 | H152: 0.03018815031
A153: 141 | B153: 0.03509980767 | C153: 0.03920368231 | D153: 0.03019744829 | F153: 0.03509980767 | G153: 0.03920368231 | H153: 0.03019744829
A154: 142 | B154: 0.03508500544 | C154: 0.03917048324 | D154: 0.0302066154 | F154: 0.03508500544 | G154: 0.03917048324 | H154: 0.0302066154
A155: 143 | B155: 0.03507041043 | C155: 0.03913774952 | D155: 0.03021565438 | F155: 0.03507041043 | G155: 0.03913774952 | H155: 0.03021565438
A156: 144 | B156: 0.03505601833 | C156: 0.03910547144 | D156: 0.0302245679 | F156: 0.03505601833 | G156: 0.03910547144 | H156: 0.0302245679
A157: 145 | B157: 0.03504182493 | C157: 0.03907363954 | D157: 0.03023335855 | F157: 0.03504182493 | G157: 0.03907363954 | H157: 0.03023335855
A158: 146 | B158: 0.03502782615 | C158: 0.03904224464 | D158: 0.03024202886 | F158: 0.03502782615 | G158: 0.03904224464 | H158: 0.03024202886
A159: 147 | B159: 0.03501401801 | C159: 0.03901127781 | D159: 0.03025058128 | F159: 0.03501401801 | G159: 0.03901127781 | H159: 0.03025058128
A160: 148 | B160: 0.03500039664 | C160: 0.03898073035 | D160: 0.0302590182 | F160: 0.03500039664 | G160: 0.03898073035 | H160: 0.0302590182
A161: 149 | B161: 0.03498695828 | C161: 0.03895059379 | D161: 0.03026734195 | F161: 0.03498695828 | G161: 0.03895059379 | H161: 0.03026734195
A162: 150 | B162: 0.03497369927 | C162: 0.0389208599 | D162: 0.03027555477 | F162: 0.03497369927 | G162: 0.0389208599 | H162: 0.03027555477

Sheet Scenario Data Current -100bps
I6: ='Scenario Data Expected'!J3 -> CZK
B11: NO volatility adjustment | F11: WITH volatility adjustment
B12: Smith Wilson Extrapolated RFR | C12: Baseline Scenario - Up Shock | D12: Baseline Scenario - Down Shock | F12: Smith Wilson Extrapolated RFR | G12: Baseline Scenario - Up Shock | H12: Baseline Scenario - Down Shock
A13: 1 | B13: =SWDOWN -> 0.02537481182 | C13: =ROUND(B13 + MAX(0.01,Shocks!E12*ABS(B13) ),5) -> 0.04314 | D13: =ROUND(IF(B13<0,B13, B13 - Shocks!D12 * ABS(B13)),5) -> 0.00634 | F13: =SWDOWNVA -> 0.02697481182 | G13: =ROUND(B13 + MAX(0.01,Shocks!E12*ABS(B13) )+F13-B13, 5) -> 0.04474 | H13: =ROUND(IF(B13<0,B13, B13 - Shocks!D12 * ABS(B13))+F13-B13, 5) -> 0.00794 | U13: Czech Republic | V13: 1
A14: 2 | B14: 0.02514306509 | C14: =ROUND(B14 + MAX(0.01,Shocks!E13*ABS(B14) ),5) -> 0.04274 | D14: =ROUND(IF(B14<0,B14, B14 - Shocks!D13 * ABS(B14)),5) -> 0.0088 | F14: 0.02674306509 | G14: =ROUND(B14 + MAX(0.01,Shocks!E13*ABS(B14) )+F14-B14, 5) -> 0.04434 | H14: =ROUND(IF(B14<0,B14, B14 - Shocks!D13 * ABS(B14))+F14-B14, 5) -> 0.0104 | U14: Hungary | V14: 2
A15: 3 | B15: 0.02497010962 | C15: =ROUND(B15 + MAX(0.01,Shocks!E14*ABS(B15) ),5) -> 0.04095 | D15: =ROUND(IF(B15<0,B15, B15 - Shocks!D14 * ABS(B15)),5) -> 0.01099 | F15: 0.02657010962 | G15: =ROUND(B15 + MAX(0.01,Shocks!E14*ABS(B15) )+F15-B15, 5) -> 0.04255 | H15: =ROUND(IF(B15<0,B15, B15 - Shocks!D14 * ABS(B15))+F15-B15, 5) -> 0.01259 | U15: Poland | V15: 3
A16: 4 | B16: 0.02512361501 | C16: =ROUND(B16 + MAX(0.01,Shocks!E15*ABS(B16) ),5) -> 0.03995 | D16: =ROUND(IF(B16<0,B16, B16 - Shocks!D15 * ABS(B16)),5) -> 0.01256 | F16: 0.0267237077 | G16: =ROUND(B16 + MAX(0.01,Shocks!E15*ABS(B16) )+F16-B16, 5) -> 0.04155 | H16: =ROUND(IF(B16<0,B16, B16 - Shocks!D15 * ABS(B16))+F16-B16, 5) -> 0.01416 | U16: Romania | V16: 4
A17: 5 | B17: 0.02533912613 | C17: =ROUND(B17 + MAX(0.01,Shocks!E16*ABS(B17) ),5) -> 0.03928 | D17: =ROUND(IF(B17<0,B17, B17 - Shocks!D16 * ABS(B17)),5) -> 0.01368 | F17: 0.02693912613 | G17: =ROUND(B17 + MAX(0.01,Shocks!E16*ABS(B17) )+F17-B17, 5) -> 0.04088 | H17: =ROUND(IF(B17<0,B17, B17 - Shocks!D16 * ABS(B17))+F17-B17, 5) -> 0.01528 | U17: Switzerland | V17: 5
A18: 6 | B18: 0.02549127836 | C18: =ROUND(B18 + MAX(0.01,Shocks!E17*ABS(B18) ),5) -> 0.03875 | D18: =ROUND(IF(B18<0,B18, B18 - Shocks!D17 * ABS(B18)),5) -> 0.01478 | F18: 0.02709036959 | G18: =ROUND(B18 + MAX(0.01,Shocks!E17*ABS(B18) )+F18-B18, 5) -> 0.04035 | H18: =ROUND(IF(B18<0,B18, B18 - Shocks!D17 * ABS(B18))+F18-B18, 5) -> 0.01638 | U18: United States | V18: 6
A19: 7 | B19: 0.02566377187 | C19: =ROUND(B19 + MAX(0.01,Shocks!E18*ABS(B19) ),5) -> 0.03824 | D19: =ROUND(IF(B19<0,B19, B19 - Shocks!D18 * ABS(B19)),5) -> 0.01565 | F19: 0.02726141662 | G19: =ROUND(B19 + MAX(0.01,Shocks!E18*ABS(B19) )+F19-B19, 5) -> 0.03984 | H19: =ROUND(IF(B19<0,B19, B19 - Shocks!D18 * ABS(B19))+F19-B19, 5) -> 0.01725
A20: 8 | B20: 0.02592771419 | C20: =ROUND(B20 + MAX(0.01,Shocks!E19*ABS(B20) ),5) -> 0.03811 | D20: =ROUND(IF(B20<0,B20, B20 - Shocks!D19 * ABS(B20)),5) -> 0.01659 | F20: 0.02752420663 | G20: =ROUND(B20 + MAX(0.01,Shocks!E19*ABS(B20) )+F20-B20, 5) -> 0.03971 | H20: =ROUND(IF(B20<0,B20, B20 - Shocks!D19 * ABS(B20))+F20-B20, 5) -> 0.01819
A21: 9 | B21: 0.0263236982 | C21: =ROUND(B21 + MAX(0.01,Shocks!E20*ABS(B21) ),5) -> 0.03791 | D21: =ROUND(IF(B21<0,B21, B21 - Shocks!D20 * ABS(B21)),5) -> 0.01764 | F21: 0.02792048372 | G21: =ROUND(B21 + MAX(0.01,Shocks!E20*ABS(B21) )+F21-B21, 5) -> 0.0395 | H21: =ROUND(IF(B21<0,B21, B21 - Shocks!D20 * ABS(B21))+F21-B21, 5) -> 0.01923
A22: 10 | B22: 0.02687918507 | C22: =ROUND(B22 + MAX(0.01,Shocks!E21*ABS(B22) ),5) -> 0.03817 | D22: =ROUND(IF(B22<0,B22, B22 - Shocks!D21 * ABS(B22)),5) -> 0.01855 | F22: 0.02847918507 | G22: =ROUND(B22 + MAX(0.01,Shocks!E21*ABS(B22) )+F22-B22, 5) -> 0.03977 | H22: =ROUND(IF(B22<0,B22, B22 - Shocks!D21 * ABS(B22))+F22-B22, 5) -> 0.02015
A23: 11 | B23: 0.0275922557 | C23: =ROUND(B23 + MAX(0.01,Shocks!E22*ABS(B23) ),5) -> 0.03835 | D23: =ROUND(IF(B23<0,B23, B23 - Shocks!D22 * ABS(B23)),5) -> 0.01931 | F23: 0.02919898808 | G23: =ROUND(B23 + MAX(0.01,Shocks!E22*ABS(B23) )+F23-B23, 5) -> 0.03996 | H23: =ROUND(IF(B23<0,B23, B23 - Shocks!D22 * ABS(B23))+F23-B23, 5) -> 0.02092
A24: 12 | B24: 0.02837739304 | C24: =ROUND(B24 + MAX(0.01,Shocks!E23*ABS(B24) ),5) -> 0.03888 | D24: =ROUND(IF(B24<0,B24, B24 - Shocks!D23 * ABS(B24)),5) -> 0.02015 | F24: 0.02999080103 | G24: =ROUND(B24 + MAX(0.01,Shocks!E23*ABS(B24) )+F24-B24, 5) -> 0.04049 | H24: =ROUND(IF(B24<0,B24, B24 - Shocks!D23 * ABS(B24))+F24-B24, 5) -> 0.02176
A25: 13 | B25: 0.02915824677 | C25: =ROUND(B25 + MAX(0.01,Shocks!E24*ABS(B25) ),5) -> 0.03936 | D25: =ROUND(IF(B25<0,B25, B25 - Shocks!D24 * ABS(B25)),5) -> 0.02099 | F25: 0.03077466636 | G25: =ROUND(B25 + MAX(0.01,Shocks!E24*ABS(B25) )+F25-B25, 5) -> 0.04098 | H25: =ROUND(IF(B25<0,B25, B25 - Shocks!D24 * ABS(B25))+F25-B25, 5) -> 0.02261
A26: 14 | B26: 0.02988159743 | C26: =ROUND(B26 + MAX(0.01,Shocks!E25*ABS(B26) ),5) -> 0.04004 | D26: =ROUND(IF(B26<0,B26, B26 - Shocks!D25 * ABS(B26)),5) -> 0.02151 | F26: 0.03149443387 | G26: =ROUND(B26 + MAX(0.01,Shocks!E25*ABS(B26) )+F26-B26, 5) -> 0.04165 | H26: =ROUND(IF(B26<0,B26, B26 - Shocks!D25 * ABS(B26))+F26-B26, 5) -> 0.02313
A27: 15 | B27: 0.03050815009 | C27: =ROUND(B27 + MAX(0.01,Shocks!E26*ABS(B27) ),5) -> 0.04058 | D27: =ROUND(IF(B27<0,B27, B27 - Shocks!D26 * ABS(B27)),5) -> 0.02227 | F27: 0.03210815009 | G27: =ROUND(B27 + MAX(0.01,Shocks!E26*ABS(B27) )+F27-B27, 5) -> 0.04218 | H27: =ROUND(IF(B27<0,B27, B27 - Shocks!D26 * ABS(B27))+F27-B27, 5) -> 0.02387
A28: 16 | B28: 0.03101650381 | C28: =ROUND(B28 + MAX(0.01,Shocks!E27*ABS(B28) ),5) -> 0.04102 | D28: =ROUND(IF(B28<0,B28, B28 - Shocks!D27 * ABS(B28)),5) -> 0.02233 | F28: 0.0325929323 | G28: =ROUND(B28 + MAX(0.01,Shocks!E27*ABS(B28) )+F28-B28, 5) -> 0.04259 | H28: =ROUND(IF(B28<0,B28, B28 - Shocks!D27 * ABS(B28))+F28-B28, 5) -> 0.02391
A29: 17 | B29: 0.03142420854 | C29: =ROUND(B29 + MAX(0.01,Shocks!E28*ABS(B29) ),5) -> 0.04142 | D29: =ROUND(IF(B29<0,B29, B29 - Shocks!D28 * ABS(B29)),5) -> 0.02263 | F29: 0.03296892328 | G29: =ROUND(B29 + MAX(0.01,Shocks!E28*ABS(B29) )+F29-B29, 5) -> 0.04297 | H29: =ROUND(IF(B29<0,B29, B29 - Shocks!D28 * ABS(B29))+F29-B29, 5) -> 0.02417
A30: 18 | B30: 0.03175260425 | C30: =ROUND(B30 + MAX(0.01,Shocks!E29*ABS(B30) ),5) -> 0.04175 | D30: =ROUND(IF(B30<0,B30, B30 - Shocks!D29 * ABS(B30)),5) -> 0.02286 | F30: 0.03326025432 | G30: =ROUND(B30 + MAX(0.01,Shocks!E29*ABS(B30) )+F30-B30, 5) -> 0.04326 | H30: =ROUND(IF(B30<0,B30, B30 - Shocks!D29 * ABS(B30))+F30-B30, 5) -> 0.02437
A31: 19 | B31: 0.03201806951 | C31: =ROUND(B31 + MAX(0.01,Shocks!E30*ABS(B31) ),5) -> 0.04202 | D31: =ROUND(IF(B31<0,B31, B31 - Shocks!D30 * ABS(B31)),5) -> 0.02273 | F31: 0.03348534355 | G31: =ROUND(B31 + MAX(0.01,Shocks!E30*ABS(B31) )+F31-B31, 5) -> 0.04349 | H31: =ROUND(IF(B31<0,B31, B31 - Shocks!D30 * ABS(B31))+F31-B31, 5) -> 0.0242
A32: 20 | B32: 0.03223329944 | C32: =ROUND(B32 + MAX(0.01,Shocks!E31*ABS(B32) ),5) -> 0.04223 | D32: =ROUND(IF(B32<0,B32, B32 - Shocks!D31 * ABS(B32)),5) -> 0.02289 | F32: 0.03365837476 | G32: =ROUND(B32 + MAX(0.01,Shocks!E31*ABS(B32) )+F32-B32, 5) -> 0.04366 | H32: =ROUND(IF(B32<0,B32, B32 - Shocks!D31 * ABS(B32))+F32-B32, 5) -> 0.02431
A33: 21 | B33: 0.03240821838 | C33: =ROUND(B33 + MAX(0.01,Shocks!E32*ABS(B33) ),5) -> 0.04241 | D33: =ROUND(IF(B33<0,B33, B33 - Shocks!D32 * ABS(B33)),5) -> 0.02305 | F33: 0.03379035424 | G33: =ROUND(B33 + MAX(0.01,Shocks!E32*ABS(B33) )+F33-B33, 5) -> 0.04379 | H33: =ROUND(IF(B33<0,B33, B33 - Shocks!D32 * ABS(B33))+F33-B33, 5) -> 0.02443
A34: 22 | B34: 0.03255064259 | C34: =ROUND(B34 + MAX(0.01,Shocks!E33*ABS(B34) ),5) -> 0.04255 | D34: =ROUND(IF(B34<0,B34, B34 - Shocks!D33 * ABS(B34)),5) -> 0.02319 | F34: 0.03388987821 | G34: =ROUND(B34 + MAX(0.01,Shocks!E33*ABS(B34) )+F34-B34, 5) -> 0.04389 | H34: =ROUND(IF(B34<0,B34, B34 - Shocks!D33 * ABS(B34))+F34-B34, 5) -> 0.02453
A35: 23 | B35: 0.03266676834 | C35: =ROUND(B35 + MAX(0.01,Shocks!E34*ABS(B35) ),5) -> 0.04267 | D35: =ROUND(IF(B35<0,B35, B35 - Shocks!D34 * ABS(B35)),5) -> 0.02332 | F35: 0.033963698 | G35: =ROUND(B35 + MAX(0.01,Shocks!E34*ABS(B35) )+F35-B35, 5) -> 0.04396 | H35: =ROUND(IF(B35<0,B35, B35 - Shocks!D34 * ABS(B35))+F35-B35, 5) -> 0.02462
A36: 24 | B36: 0.03276153605 | C36: =ROUND(B36 + MAX(0.01,Shocks!E35*ABS(B36) ),5) -> 0.04276 | D36: =ROUND(IF(B36<0,B36, B36 - Shocks!D35 * ABS(B36)),5) -> 0.02343 | F36: 0.03401714114 | G36: =ROUND(B36 + MAX(0.01,Shocks!E35*ABS(B36) )+F36-B36, 5) -> 0.04402 | H36: =ROUND(IF(B36<0,B36, B36 - Shocks!D35 * ABS(B36))+F36-B36, 5) -> 0.02468
A37: 25 | B37: 0.03283890494 | C37: =ROUND(B37 + MAX(0.01,Shocks!E36*ABS(B37) ),5) -> 0.04284 | D37: =ROUND(IF(B37<0,B37, B37 - Shocks!D36 * ABS(B37)),5) -> 0.02353 | F37: 0.03405442867 | G37: =ROUND(B37 + MAX(0.01,Shocks!E36*ABS(B37) )+F37-B37, 5) -> 0.04405 | H37: =ROUND(IF(B37<0,B37, B37 - Shocks!D36 * ABS(B37))+F37-B37, 5) -> 0.02474
A38: 26 | B38: 0.03290206234 | C38: =ROUND(B38 + MAX(0.01,Shocks!E37*ABS(B38) ),5) -> 0.0429 | D38: =ROUND(IF(B38<0,B38, B38 - Shocks!D37 * ABS(B38)),5) -> 0.02361 | F38: 0.03407891639 | G38: =ROUND(B38 + MAX(0.01,Shocks!E37*ABS(B38) )+F38-B38, 5) -> 0.04408 | H38: =ROUND(IF(B38<0,B38, B38 - Shocks!D37 * ABS(B38))+F38-B38, 5) -> 0.02479
A39: 27 | B39: 0.03295358461 | C39: =ROUND(B39 + MAX(0.01,Shocks!E38*ABS(B39) ),5) -> 0.04295 | D39: =ROUND(IF(B39<0,B39, B39 - Shocks!D38 * ABS(B39)),5) -> 0.02369 | F39: 0.03409327986 | G39: =ROUND(B39 + MAX(0.01,Shocks!E38*ABS(B39) )+F39-B39, 5) -> 0.04409 | H39: =ROUND(IF(B39<0,B39, B39 - Shocks!D38 * ABS(B39))+F39-B39, 5) -> 0.02483
A40: 28 | B40: 0.03299556182 | C40: =ROUND(B40 + MAX(0.01,Shocks!E39*ABS(B40) ),5) -> 0.043 | D40: =ROUND(IF(B40<0,B40, B40 - Shocks!D39 * ABS(B40)),5) -> 0.02377 | F40: 0.03409965725 | G40: =ROUND(B40 + MAX(0.01,Shocks!E39*ABS(B40) )+F40-B40, 5) -> 0.0441 | H40: =ROUND(IF(B40<0,B40, B40 - Shocks!D39 * ABS(B40))+F40-B40, 5) -> 0.02487
A41: 29 | B41: 0.03302969509 | C41: =ROUND(B41 + MAX(0.01,Shocks!E40*ABS(B41) ),5) -> 0.04303 | D41: =ROUND(IF(B41<0,B41, B41 - Shocks!D40 * ABS(B41)),5) -> 0.02383 | F41: 0.03409976046 | G41: =ROUND(B41 + MAX(0.01,Shocks!E40*ABS(B41) )+F41-B41, 5) -> 0.0441 | H41: =ROUND(IF(B41<0,B41, B41 - Shocks!D40 * ABS(B41))+F41-B41, 5) -> 0.0249
A42: 30 | B42: 0.03305737302 | C42: =ROUND(B42 + MAX(0.01,Shocks!E41*ABS(B42) ),5) -> 0.04306 | D42: =ROUND(IF(B42<0,B42, B42 - Shocks!D41 * ABS(B42)),5) -> 0.0239 | F42: 0.03409496196 | G42: =ROUND(B42 + MAX(0.01,Shocks!E41*ABS(B42) )+F42-B42, 5) -> 0.04409 | H42: =ROUND(IF(B42<0,B42, B42 - Shocks!D41 * ABS(B42))+F42-B42, 5) -> 0.02493
A43: 31 | B43: 0.03307973212 | C43: =ROUND(B43 + MAX(0.01,Shocks!E42*ABS(B43) ),5) -> 0.04308 | D43: =ROUND(IF(B43<0,B43, B43 - Shocks!D42 * ABS(B43)),5) -> 0.02395 | F43: 0.03408636314 | G43: =ROUND(B43 + MAX(0.01,Shocks!E42*ABS(B43) )+F43-B43, 5) -> 0.04409 | H43: =ROUND(IF(B43<0,B43, B43 - Shocks!D42 * ABS(B43))+F43-B43, 5) -> 0.02496
A44: 32 | B44: 0.03309770478 | C44: =ROUND(B44 + MAX(0.01,Shocks!E43*ABS(B44) ),5) -> 0.0431 | D44: =ROUND(IF(B44<0,B44, B44 - Shocks!D43 * ABS(B44)),5) -> 0.02401 | F44: 0.03407484818 | G44: =ROUND(B44 + MAX(0.01,Shocks!E43*ABS(B44) )+F44-B44, 5) -> 0.04407 | H44: =ROUND(IF(B44<0,B44, B44 - Shocks!D43 * ABS(B44))+F44-B44, 5) -> 0.02499
A45: 33 | B45: 0.03311205758 | C45: =ROUND(B45 + MAX(0.01,Shocks!E44*ABS(B45) ),5) -> 0.04311 | D45: =ROUND(IF(B45<0,B45, B45 - Shocks!D44 * ABS(B45)),5) -> 0.02406 | F45: 0.03406112688 | G45: =ROUND(B45 + MAX(0.01,Shocks!E44*ABS(B45) )+F45-B45, 5) -> 0.04406 | H45: =ROUND(IF(B45<0,B45, B45 - Shocks!D44 * ABS(B45))+F45-B45, 5) -> 0.02501
A46: 34 | B46: 0.03312342197 | C46: =ROUND(B46 + MAX(0.01,Shocks!E45*ABS(B46) ),5) -> 0.04312 | D46: =ROUND(IF(B46<0,B46, B46 - Shocks!D45 * ABS(B46)),5) -> 0.02411 | F46: 0.03404576868 | G46: =ROUND(B46 + MAX(0.01,Shocks!E45*ABS(B46) )+F46-B46, 5) -> 0.04405 | H46: =ROUND(IF(B46<0,B46, B46 - Shocks!D45 * ABS(B46))+F46-B46, 5) -> 0.02504
A47: 35 | B47: 0.03313231901 | C47: =ROUND(B47 + MAX(0.01,Shocks!E46*ABS(B47) ),5) -> 0.04313 | D47: =ROUND(IF(B47<0,B47, B47 - Shocks!D46 * ABS(B47)),5) -> 0.02416 | F47: 0.03402922991 | G47: =ROUND(B47 + MAX(0.01,Shocks!E46*ABS(B47) )+F47-B47, 5) -> 0.04403 | H47: =ROUND(IF(B47<0,B47, B47 - Shocks!D46 * ABS(B47))+F47-B47, 5) -> 0.02506
A48: 36 | B48: 0.03313917928 | C48: =ROUND(B48 + MAX(0.01,Shocks!E47*ABS(B48) ),5) -> 0.04314 | D48: =ROUND(IF(B48<0,B48, B48 - Shocks!D47 * ABS(B48)),5) -> 0.02421 | F48: 0.03401187553 | G48: =ROUND(B48 + MAX(0.01,Shocks!E47*ABS(B48) )+F48-B48, 5) -> 0.04401 | H48: =ROUND(IF(B48<0,B48, B48 - Shocks!D47 * ABS(B48))+F48-B48, 5) -> 0.02508
A49: 37 | B49: 0.03314435913 | C49: =ROUND(B49 + MAX(0.01,Shocks!E48*ABS(B49) ),5) -> 0.04314 | D49: =ROUND(IF(B49<0,B49, B49 - Shocks!D48 * ABS(B49)),5) -> 0.02426 | F49: 0.03399399669 | G49: =ROUND(B49 + MAX(0.01,Shocks!E48*ABS(B49) )+F49-B49, 5) -> 0.04399 | H49: =ROUND(IF(B49<0,B49, B49 - Shocks!D48 * ABS(B49))+F49-B49, 5) -> 0.02511
A50: 38 | B50: 0.03314815377 | C50: =ROUND(B50 + MAX(0.01,Shocks!E49*ABS(B50) ),5) -> 0.04315 | D50: =ROUND(IF(B50<0,B50, B50 - Shocks!D49 * ABS(B50)),5) -> 0.0243 | F50: 0.0339758248 | G50: =ROUND(B50 + MAX(0.01,Shocks!E49*ABS(B50) )+F50-B50, 5) -> 0.04398 | H50: =ROUND(IF(B50<0,B50, B50 - Shocks!D49 * ABS(B50))+F50-B50, 5) -> 0.02513
A51: 39 | B51: 0.03315080803 | C51: =ROUND(B51 + MAX(0.01,Shocks!E50*ABS(B51) ),5) -> 0.04315 | D51: =ROUND(IF(B51<0,B51, B51 - Shocks!D50 * ABS(B51)),5) -> 0.02435 | F51: 0.03395754295 | G51: =ROUND(B51 + MAX(0.01,Shocks!E50*ABS(B51) )+F51-B51, 5) -> 0.04396 | H51: =ROUND(IF(B51<0,B51, B51 - Shocks!D50 * ABS(B51))+F51-B51, 5) -> 0.02515
A52: 40 | B52: 0.03315252513 | C52: =ROUND(B52 + MAX(0.01,Shocks!E51*ABS(B52) ),5) -> 0.04315 | D52: =ROUND(IF(B52<0,B52, B52 - Shocks!D51 * ABS(B52)),5) -> 0.02439 | F52: 0.03393929509 | G52: =ROUND(B52 + MAX(0.01,Shocks!E51*ABS(B52) )+F52-B52, 5) -> 0.04394 | H52: =ROUND(IF(B52<0,B52, B52 - Shocks!D51 * ABS(B52))+F52-B52, 5) -> 0.02518
A53: 41 | B53: 0.03315347384 | C53: =ROUND(B53 + MAX(0.01,Shocks!E52*ABS(B53) ),5) -> 0.04315 | D53: =ROUND(IF(B53<0,B53, B53 - Shocks!D52 * ABS(B53)),5) -> 0.02443 | F53: 0.03392119348 | G53: =ROUND(B53 + MAX(0.01,Shocks!E52*ABS(B53) )+F53-B53, 5) -> 0.04392 | H53: =ROUND(IF(B53<0,B53, B53 - Shocks!D52 * ABS(B53))+F53-B53, 5) -> 0.0252
A54: 42 | B54: 0.0331537944 | C54: =ROUND(B54 + MAX(0.01,Shocks!E53*ABS(B54) ),5) -> 0.04315 | D54: =ROUND(IF(B54<0,B54, B54 - Shocks!D53 * ABS(B54)),5) -> 0.02448 | F54: 0.03390332478 | G54: =ROUND(B54 + MAX(0.01,Shocks!E53*ABS(B54) )+F54-B54, 5) -> 0.0439 | H54: =ROUND(IF(B54<0,B54, B54 - Shocks!D53 * ABS(B54))+F54-B54, 5) -> 0.02523
A55: 43 | B55: 0.0331536034 | C55: =ROUND(B55 + MAX(0.01,Shocks!E54*ABS(B55) ),5) -> 0.04315 | D55: =ROUND(IF(B55<0,B55, B55 - Shocks!D54 * ABS(B55)),5) -> 0.02452 | F55: 0.03388575491 | G55: =ROUND(B55 + MAX(0.01,Shocks!E54*ABS(B55) )+F55-B55, 5) -> 0.04389 | H55: =ROUND(IF(B55<0,B55, B55 - Shocks!D54 * ABS(B55))+F55-B55, 5) -> 0.02525
A56: 44 | B56: 0.03315299774 | C56: =ROUND(B56 + MAX(0.01,Shocks!E55*ABS(B56) ),5) -> 0.04315 | D56: =ROUND(IF(B56<0,B56, B56 - Shocks!D55 * ABS(B56)),5) -> 0.02456 | F56: 0.03386853311 | G56: =ROUND(B56 + MAX(0.01,Shocks!E55*ABS(B56) )+F56-B56, 5) -> 0.04387 | H56: =ROUND(IF(B56<0,B56, B56 - Shocks!D55 * ABS(B56))+F56-B56, 5) -> 0.02528
A57: 45 | B57: 0.033152058 | C57: =ROUND(B57 + MAX(0.01,Shocks!E56*ABS(B57) ),5) -> 0.04315 | D57: =ROUND(IF(B57<0,B57, B57 - Shocks!D56 * ABS(B57)),5) -> 0.0246 | F57: 0.03385169513 | G57: =ROUND(B57 + MAX(0.01,Shocks!E56*ABS(B57) )+F57-B57, 5) -> 0.04385 | H57: =ROUND(IF(B57<0,B57, B57 - Shocks!D56 * ABS(B57))+F57-B57, 5) -> 0.0253
A58: 46 | B58: 0.0331508511 | C58: =ROUND(B58 + MAX(0.01,Shocks!E57*ABS(B58) ),5) -> 0.04315 | D58: =ROUND(IF(B58<0,B58, B58 - Shocks!D57 * ABS(B58)),5) -> 0.02465 | F58: 0.03383526591 | G58: =ROUND(B58 + MAX(0.01,Shocks!E57*ABS(B58) )+F58-B58, 5) -> 0.04384 | H58: =ROUND(IF(B58<0,B58, B58 - Shocks!D57 * ABS(B58))+F58-B58, 5) -> 0.02533
A59: 47 | B59: 0.03314943266 | C59: =ROUND(B59 + MAX(0.01,Shocks!E58*ABS(B59) ),5) -> 0.04315 | D59: =ROUND(IF(B59<0,B59, B59 - Shocks!D58 * ABS(B59)),5) -> 0.02469 | F59: 0.03381926173 | G59: =ROUND(B59 + MAX(0.01,Shocks!E58*ABS(B59) )+F59-B59, 5) -> 0.04382 | H59: =ROUND(IF(B59<0,B59, B59 - Shocks!D58 * ABS(B59))+F59-B59, 5) -> 0.02536
A60: 48 | B60: 0.03314784883 | C60: =ROUND(B60 + MAX(0.01,Shocks!E59*ABS(B60) ),5) -> 0.04315 | D60: =ROUND(IF(B60<0,B60, B60 - Shocks!D59 * ABS(B60)),5) -> 0.02473 | F60: 0.03380369198 | G60: =ROUND(B60 + MAX(0.01,Shocks!E59*ABS(B60) )+F60-B60, 5) -> 0.0438 | H60: =ROUND(IF(B60<0,B60, B60 - Shocks!D59 * ABS(B60))+F60-B60, 5) -> 0.02538
A61: 49 | B61: 0.03314613787 | C61: =ROUND(B61 + MAX(0.01,Shocks!E60*ABS(B61) ),5) -> 0.04315 | D61: =ROUND(IF(B61<0,B61, B61 - Shocks!D60 * ABS(B61)),5) -> 0.02477 | F61: 0.03378856055 | G61: =ROUND(B61 + MAX(0.01,Shocks!E60*ABS(B61) )+F61-B61, 5) -> 0.04379 | H61: =ROUND(IF(B61<0,B61, B61 - Shocks!D60 * ABS(B61))+F61-B61, 5) -> 0.02541
A62: 50 | B62: 0.03314433145 | C62: =ROUND(B62 + MAX(0.01,Shocks!E61*ABS(B62) ),5) -> 0.04314 | D62: =ROUND(IF(B62<0,B62, B62 - Shocks!D61 * ABS(B62)),5) -> 0.02481 | F62: 0.03377386704 | G62: =ROUND(B62 + MAX(0.01,Shocks!E61*ABS(B62) )+F62-B62, 5) -> 0.04377 | H62: =ROUND(IF(B62<0,B62, B62 - Shocks!D61 * ABS(B62))+F62-B62, 5) -> 0.02544
A63: 51 | B63: 0.03314245575 | C63: =ROUND(B63 + MAX(0.01,Shocks!E62*ABS(B63) ),5) -> 0.04314 | D63: =ROUND(IF(B63<0,B63, B63 - Shocks!D62 * ABS(B63)),5) -> 0.02485 | F63: 0.03375960767 | G63: =ROUND(B63 + MAX(0.01,Shocks!E62*ABS(B63) )+F63-B63, 5) -> 0.04376 | H63: =ROUND(IF(B63<0,B63, B63 - Shocks!D62 * ABS(B63))+F63-B63, 5) -> 0.02547
A64: 52 | B64: 0.03314053235 | C64: =ROUND(B64 + MAX(0.01,Shocks!E63*ABS(B64) ),5) -> 0.04314 | D64: =ROUND(IF(B64<0,B64, B64 - Shocks!D63 * ABS(B64)),5) -> 0.02489 | F64: 0.03374577606 | G64: =ROUND(B64 + MAX(0.01,Shocks!E63*ABS(B64) )+F64-B64, 5) -> 0.04375 | H64: =ROUND(IF(B64<0,B64, B64 - Shocks!D63 * ABS(B64))+F64-B64, 5) -> 0.0255
A65: 53 | B65: 0.03313857901 | C65: =ROUND(B65 + MAX(0.01,Shocks!E64*ABS(B65) ),5) -> 0.04314 | D65: =ROUND(IF(B65<0,B65, B65 - Shocks!D64 * ABS(B65)),5) -> 0.02493 | F65: 0.03373236389 | G65: =ROUND(B65 + MAX(0.01,Shocks!E64*ABS(B65) )+F65-B65, 5) -> 0.04373 | H65: =ROUND(IF(B65<0,B65, B65 - Shocks!D64 * ABS(B65))+F65-B65, 5) -> 0.02553
A66: 54 | B66: 0.03313661026 | C66: =ROUND(B66 + MAX(0.01,Shocks!E65*ABS(B66) ),5) -> 0.04314 | D66: =ROUND(IF(B66<0,B66, B66 - Shocks!D65 * ABS(B66)),5) -> 0.02498 | F66: 0.03371936133 | G66: =ROUND(B66 + MAX(0.01,Shocks!E65*ABS(B66) )+F66-B66, 5) -> 0.04372 | H66: =ROUND(IF(B66<0,B66, B66 - Shocks!D65 * ABS(B66))+F66-B66, 5) -> 0.02556
A67: 55 | B67: 0.03313463797 | C67: =ROUND(B67 + MAX(0.01,Shocks!E66*ABS(B67) ),5) -> 0.04313 | D67: =ROUND(IF(B67<0,B67, B67 - Shocks!D66 * ABS(B67)),5) -> 0.02502 | F67: 0.03370675752 | G67: =ROUND(B67 + MAX(0.01,Shocks!E66*ABS(B67) )+F67-B67, 5) -> 0.04371 | H67: =ROUND(IF(B67<0,B67, B67 - Shocks!D66 * ABS(B67))+F67-B67, 5) -> 0.02559
A68: 56 | B68: 0.03313267178 | C68: =ROUND(B68 + MAX(0.01,Shocks!E67*ABS(B68) ),5) -> 0.04313 | D68: =ROUND(IF(B68<0,B68, B68 - Shocks!D67 * ABS(B68)),5) -> 0.02506 | F68: 0.03369454085 | G68: =ROUND(B68 + MAX(0.01,Shocks!E67*ABS(B68) )+F68-B68, 5) -> 0.04369 | H68: =ROUND(IF(B68<0,B68, B68 - Shocks!D67 * ABS(B68))+F68-B68, 5) -> 0.02562
A69: 57 | B69: 0.03313071947 | C69: =ROUND(B69 + MAX(0.01,Shocks!E68*ABS(B69) ),5) -> 0.04313 | D69: =ROUND(IF(B69<0,B69, B69 - Shocks!D68 * ABS(B69)),5) -> 0.0251 | F69: 0.03368269925 | G69: =ROUND(B69 + MAX(0.01,Shocks!E68*ABS(B69) )+F69-B69, 5) -> 0.04368 | H69: =ROUND(IF(B69<0,B69, B69 - Shocks!D68 * ABS(B69))+F69-B69, 5) -> 0.02565
A70: 58 | B70: 0.03312878724 | C70: =ROUND(B70 + MAX(0.01,Shocks!E69*ABS(B70) ),5) -> 0.04313 | D70: =ROUND(IF(B70<0,B70, B70 - Shocks!D69 * ABS(B70)),5) -> 0.02514 | F70: 0.03367122038 | G70: =ROUND(B70 + MAX(0.01,Shocks!E69*ABS(B70) )+F70-B70, 5) -> 0.04367 | H70: =ROUND(IF(B70<0,B70, B70 - Shocks!D69 * ABS(B70))+F70-B70, 5) -> 0.02568
A71: 59 | B71: 0.03312688003 | C71: =ROUND(B71 + MAX(0.01,Shocks!E70*ABS(B71) ),5) -> 0.04313 | D71: =ROUND(IF(B71<0,B71, B71 - Shocks!D70 * ABS(B71)),5) -> 0.02518 | F71: 0.03366009182 | G71: =ROUND(B71 + MAX(0.01,Shocks!E70*ABS(B71) )+F71-B71, 5) -> 0.04366 | H71: =ROUND(IF(B71<0,B71, B71 - Shocks!D70 * ABS(B71))+F71-B71, 5) -> 0.02571
A72: 60 | B72: 0.03312500167 | C72: =ROUND(B72 + MAX(0.01,Shocks!E71*ABS(B72) ),5) -> 0.04313 | D72: =ROUND(IF(B72<0,B72, B72 - Shocks!D71 * ABS(B72)),5) -> 0.02522 | F72: 0.03364930117 | G72: =ROUND(B72 + MAX(0.01,Shocks!E71*ABS(B72) )+F72-B72, 5) -> 0.04365 | H72: =ROUND(IF(B72<0,B72, B72 - Shocks!D71 * ABS(B72))+F72-B72, 5) -> 0.02575
A73: 61 | B73: 0.03312315512 | C73: =ROUND(B73 + MAX(0.01,Shocks!E72*ABS(B73) ),5) -> 0.04312 | D73: =ROUND(IF(B73<0,B73, B73 - Shocks!D72 * ABS(B73)),5) -> 0.02526 | F73: 0.03363883618 | G73: =ROUND(B73 + MAX(0.01,Shocks!E72*ABS(B73) )+F73-B73, 5) -> 0.04364 | H73: =ROUND(IF(B73<0,B73, B73 - Shocks!D72 * ABS(B73))+F73-B73, 5) -> 0.02578
A74: 62 | B74: 0.0331213426 | C74: =ROUND(B74 + MAX(0.01,Shocks!E73*ABS(B74) ),5) -> 0.04312 | D74: =ROUND(IF(B74<0,B74, B74 - Shocks!D73 * ABS(B74)),5) -> 0.0253 | F74: 0.03362868481 | G74: =ROUND(B74 + MAX(0.01,Shocks!E73*ABS(B74) )+F74-B74, 5) -> 0.04363 | H74: =ROUND(IF(B74<0,B74, B74 - Shocks!D73 * ABS(B74))+F74-B74, 5) -> 0.02581
A75: 63 | B75: 0.0331195657 | C75: =ROUND(B75 + MAX(0.01,Shocks!E74*ABS(B75) ),5) -> 0.04312 | D75: =ROUND(IF(B75<0,B75, B75 - Shocks!D74 * ABS(B75)),5) -> 0.02535 | F75: 0.03361883529 | G75: =ROUND(B75 + MAX(0.01,Shocks!E74*ABS(B75) )+F75-B75, 5) -> 0.04362 | H75: =ROUND(IF(B75<0,B75, B75 - Shocks!D74 * ABS(B75))+F75-B75, 5) -> 0.02585
A76: 64 | B76: 0.03311782551 | C76: =ROUND(B76 + MAX(0.01,Shocks!E75*ABS(B76) ),5) -> 0.04312 | D76: =ROUND(IF(B76<0,B76, B76 - Shocks!D75 * ABS(B76)),5) -> 0.02539 | F76: 0.03360927617 | G76: =ROUND(B76 + MAX(0.01,Shocks!E75*ABS(B76) )+F76-B76, 5) -> 0.04361 | H76: =ROUND(IF(B76<0,B76, B76 - Shocks!D75 * ABS(B76))+F76-B76, 5) -> 0.02588
A77: 65 | B77: 0.03311612272 | C77: =ROUND(B77 + MAX(0.01,Shocks!E76*ABS(B77) ),5) -> 0.04312 | D77: =ROUND(IF(B77<0,B77, B77 - Shocks!D76 * ABS(B77)),5) -> 0.02543 | F77: 0.03359999636 | G77: =ROUND(B77 + MAX(0.01,Shocks!E76*ABS(B77) )+F77-B77, 5) -> 0.0436 | H77: =ROUND(IF(B77<0,B77, B77 - Shocks!D76 * ABS(B77))+F77-B77, 5) -> 0.02591
A78: 66 | B78: 0.03311445765 | C78: =ROUND(B78 + MAX(0.01,Shocks!E77*ABS(B78) ),5) -> 0.04311 | D78: =ROUND(IF(B78<0,B78, B78 - Shocks!D77 * ABS(B78)),5) -> 0.02547 | F78: 0.03359098511 | G78: =ROUND(B78 + MAX(0.01,Shocks!E77*ABS(B78) )+F78-B78, 5) -> 0.04359 | H78: =ROUND(IF(B78<0,B78, B78 - Shocks!D77 * ABS(B78))+F78-B78, 5) -> 0.02595
A79: 67 | B79: 0.03311283038 | C79: =ROUND(B79 + MAX(0.01,Shocks!E78*ABS(B79) ),5) -> 0.04311 | D79: =ROUND(IF(B79<0,B79, B79 - Shocks!D78 * ABS(B79)),5) -> 0.02551 | F79: 0.03358223208 | G79: =ROUND(B79 + MAX(0.01,Shocks!E78*ABS(B79) )+F79-B79, 5) -> 0.04358 | H79: =ROUND(IF(B79<0,B79, B79 - Shocks!D78 * ABS(B79))+F79-B79, 5) -> 0.02598
A80: 68 | B80: 0.03311124073 | C80: =ROUND(B80 + MAX(0.01,Shocks!E79*ABS(B80) ),5) -> 0.04311 | D80: =ROUND(IF(B80<0,B80, B80 - Shocks!D79 * ABS(B80)),5) -> 0.02555 | F80: 0.03357372731 | G80: =ROUND(B80 + MAX(0.01,Shocks!E79*ABS(B80) )+F80-B80, 5) -> 0.04357 | H80: =ROUND(IF(B80<0,B80, B80 - Shocks!D79 * ABS(B80))+F80-B80, 5) -> 0.02601
A81: 69 | B81: 0.03310968837 | C81: =ROUND(B81 + MAX(0.01,Shocks!E80*ABS(B81) ),5) -> 0.04311 | D81: =ROUND(IF(B81<0,B81, B81 - Shocks!D80 * ABS(B81)),5) -> 0.02559 | F81: 0.03356546122 | G81: =ROUND(B81 + MAX(0.01,Shocks!E80*ABS(B81) )+F81-B81, 5) -> 0.04357 | H81: =ROUND(IF(B81<0,B81, B81 - Shocks!D80 * ABS(B81))+F81-B81, 5) -> 0.02605
A82: 70 | B82: 0.0331081728 | C82: =ROUND(B82 + MAX(0.01,Shocks!E81*ABS(B82) ),5) -> 0.04311 | D82: =ROUND(IF(B82<0,B82, B82 - Shocks!D81 * ABS(B82)),5) -> 0.02564 | F82: 0.03355742463 | G82: =ROUND(B82 + MAX(0.01,Shocks!E81*ABS(B82) )+F82-B82, 5) -> 0.04356 | H82: =ROUND(IF(B82<0,B82, B82 - Shocks!D81 * ABS(B82))+F82-B82, 5) -> 0.02608
A83: 71 | B83: 0.03310669342 | C83: =ROUND(B83 + MAX(0.01,Shocks!E82*ABS(B83) ),5) -> 0.04311 | D83: =ROUND(IF(B83<0,B83, B83 - Shocks!D82 * ABS(B83)),5) -> 0.02568 | F83: 0.03354960872 | G83: =ROUND(B83 + MAX(0.01,Shocks!E82*ABS(B83) )+F83-B83, 5) -> 0.04355 | H83: =ROUND(IF(B83<0,B83, B83 - Shocks!D82 * ABS(B83))+F83-B83, 5) -> 0.02612
A84: 72 | B84: 0.03310524955 | C84: =ROUND(B84 + MAX(0.01,Shocks!E83*ABS(B84) ),5) -> 0.04311 | D84: =ROUND(IF(B84<0,B84, B84 - Shocks!D83 * ABS(B84)),5) -> 0.02572 | F84: 0.03354200505 | G84: =ROUND(B84 + MAX(0.01,Shocks!E83*ABS(B84) )+F84-B84, 5) -> 0.04354 | H84: =ROUND(IF(B84<0,B84, B84 - Shocks!D83 * ABS(B84))+F84-B84, 5) -> 0.02615
A85: 73 | B85: 0.03310384043 | C85: =ROUND(B85 + MAX(0.01,Shocks!E84*ABS(B85) ),5) -> 0.0431 | D85: =ROUND(IF(B85<0,B85, B85 - Shocks!D84 * ABS(B85)),5) -> 0.02576 | F85: 0.03353460556 | G85: =ROUND(B85 + MAX(0.01,Shocks!E84*ABS(B85) )+F85-B85, 5) -> 0.04353 | H85: =ROUND(IF(B85<0,B85, B85 - Shocks!D84 * ABS(B85))+F85-B85, 5) -> 0.02619
A86: 74 | B86: 0.03310246527 | C86: =ROUND(B86 + MAX(0.01,Shocks!E85*ABS(B86) ),5) -> 0.0431 | D86: =ROUND(IF(B86<0,B86, B86 - Shocks!D85 * ABS(B86)),5) -> 0.0258 | F86: 0.03352740252 | G86: =ROUND(B86 + MAX(0.01,Shocks!E85*ABS(B86) )+F86-B86, 5) -> 0.04353 | H86: =ROUND(IF(B86<0,B86, B86 - Shocks!D85 * ABS(B86))+F86-B86, 5) -> 0.02623
A87: 75 | B87: 0.03310112322 | C87: =ROUND(B87 + MAX(0.01,Shocks!E86*ABS(B87) ),5) -> 0.0431 | D87: =ROUND(IF(B87<0,B87, B87 - Shocks!D86 * ABS(B87)),5) -> 0.02584 | F87: 0.03352038854 | G87: =ROUND(B87 + MAX(0.01,Shocks!E86*ABS(B87) )+F87-B87, 5) -> 0.04352 | H87: =ROUND(IF(B87<0,B87, B87 - Shocks!D86 * ABS(B87))+F87-B87, 5) -> 0.02626
A88: 76 | B88: 0.03309981342 | C88: =ROUND(B88 + MAX(0.01,Shocks!E87*ABS(B88) ),5) -> 0.0431 | D88: =ROUND(IF(B88<0,B88, B88 - Shocks!D87 * ABS(B88)),5) -> 0.02588 | F88: 0.03351355656 | G88: =ROUND(B88 + MAX(0.01,Shocks!E87*ABS(B88) )+F88-B88, 5) -> 0.04351 | H88: =ROUND(IF(B88<0,B88, B88 - Shocks!D87 * ABS(B88))+F88-B88, 5) -> 0.0263
A89: 77 | B89: 0.03309853502 | C89: =ROUND(B89 + MAX(0.01,Shocks!E88*ABS(B89) ),5) -> 0.0431 | D89: =ROUND(IF(B89<0,B89, B89 - Shocks!D88 * ABS(B89)),5) -> 0.02593 | F89: 0.03350689984 | G89: =ROUND(B89 + MAX(0.01,Shocks!E88*ABS(B89) )+F89-B89, 5) -> 0.04351 | H89: =ROUND(IF(B89<0,B89, B89 - Shocks!D88 * ABS(B89))+F89-B89, 5) -> 0.02633
A90: 78 | B90: 0.03309728713 | C90: =ROUND(B90 + MAX(0.01,Shocks!E89*ABS(B90) ),5) -> 0.0431 | D90: =ROUND(IF(B90<0,B90, B90 - Shocks!D89 * ABS(B90)),5) -> 0.02597 | F90: 0.03350041193 | G90: =ROUND(B90 + MAX(0.01,Shocks!E89*ABS(B90) )+F90-B90, 5) -> 0.0435 | H90: =ROUND(IF(B90<0,B90, B90 - Shocks!D89 * ABS(B90))+F90-B90, 5) -> 0.02637
A91: 79 | B91: 0.03309606888 | C91: =ROUND(B91 + MAX(0.01,Shocks!E90*ABS(B91) ),5) -> 0.0431 | D91: =ROUND(IF(B91<0,B91, B91 - Shocks!D90 * ABS(B91)),5) -> 0.02601 | F91: 0.03349408667 | G91: =ROUND(B91 + MAX(0.01,Shocks!E90*ABS(B91) )+F91-B91, 5) -> 0.04349 | H91: =ROUND(IF(B91<0,B91, B91 - Shocks!D90 * ABS(B91))+F91-B91, 5) -> 0.02641
A92: 80 | B92: 0.03309487941 | C92: =ROUND(B92 + MAX(0.01,Shocks!E91*ABS(B92) ),5) -> 0.04309 | D92: =ROUND(IF(B92<0,B92, B92 - Shocks!D91 * ABS(B92)),5) -> 0.02605 | F92: 0.03348791818 | G92: =ROUND(B92 + MAX(0.01,Shocks!E91*ABS(B92) )+F92-B92, 5) -> 0.04349 | H92: =ROUND(IF(B92<0,B92, B92 - Shocks!D91 * ABS(B92))+F92-B92, 5) -> 0.02644
A93: 81 | B93: 0.03309371786 | C93: =ROUND(B93 + MAX(0.01,Shocks!E92*ABS(B93) ),5) -> 0.04309 | D93: =ROUND(IF(B93<0,B93, B93 - Shocks!D92 * ABS(B93)),5) -> 0.02609 | F93: 0.03348190084 | G93: =ROUND(B93 + MAX(0.01,Shocks!E92*ABS(B93) )+F93-B93, 5) -> 0.04348 | H93: =ROUND(IF(B93<0,B93, B93 - Shocks!D92 * ABS(B93))+F93-B93, 5) -> 0.02648
A94: 82 | B94: 0.0330925834 | C94: =ROUND(B94 + MAX(0.01,Shocks!E93*ABS(B94) ),5) -> 0.04309 | D94: =ROUND(IF(B94<0,B94, B94 - Shocks!D93 * ABS(B94)),5) -> 0.02613 | F94: 0.03347602927 | G94: =ROUND(B94 + MAX(0.01,Shocks!E93*ABS(B94) )+F94-B94, 5) -> 0.04348 | H94: =ROUND(IF(B94<0,B94, B94 - Shocks!D93 * ABS(B94))+F94-B94, 5) -> 0.02652
A95: 83 | B95: 0.0330914752 | C95: =ROUND(B95 + MAX(0.01,Shocks!E94*ABS(B95) ),5) -> 0.04309 | D95: =ROUND(IF(B95<0,B95, B95 - Shocks!D94 * ABS(B95)),5) -> 0.02618 | F95: 0.03347029834 | G95: =ROUND(B95 + MAX(0.01,Shocks!E94*ABS(B95) )+F95-B95, 5) -> 0.04347 | H95: =ROUND(IF(B95<0,B95, B95 - Shocks!D94 * ABS(B95))+F95-B95, 5) -> 0.02655
A96: 84 | B96: 0.03309039246 | C96: =ROUND(B96 + MAX(0.01,Shocks!E95*ABS(B96) ),5) -> 0.04309 | D96: =ROUND(IF(B96<0,B96, B96 - Shocks!D95 * ABS(B96)),5) -> 0.02622 | F96: 0.03346470315 | G96: =ROUND(B96 + MAX(0.01,Shocks!E95*ABS(B96) )+F96-B96, 5) -> 0.04346 | H96: =ROUND(IF(B96<0,B96, B96 - Shocks!D95 * ABS(B96))+F96-B96, 5) -> 0.02659
A97: 85 | B97: 0.03308933441 | C97: =ROUND(B97 + MAX(0.01,Shocks!E96*ABS(B97) ),5) -> 0.04309 | D97: =ROUND(IF(B97<0,B97, B97 - Shocks!D96 * ABS(B97)),5) -> 0.02626 | F97: 0.03345923899 | G97: =ROUND(B97 + MAX(0.01,Shocks!E96*ABS(B97) )+F97-B97, 5) -> 0.04346 | H97: =ROUND(IF(B97<0,B97, B97 - Shocks!D96 * ABS(B97))+F97-B97, 5) -> 0.02663
A98: 86 | B98: 0.03308830027 | C98: =ROUND(B98 + MAX(0.01,Shocks!E97*ABS(B98) ),5) -> 0.04309 | D98: =ROUND(IF(B98<0,B98, B98 - Shocks!D97 * ABS(B98)),5) -> 0.0263 | F98: 0.03345390138 | G98: =ROUND(B98 + MAX(0.01,Shocks!E97*ABS(B98) )+F98-B98, 5) -> 0.04345 | H98: =ROUND(IF(B98<0,B98, B98 - Shocks!D97 * ABS(B98))+F98-B98, 5) -> 0.02667
A99: 87 | B99: 0.03308728931 | C99: =ROUND(B99 + MAX(0.01,Shocks!E98*ABS(B99) ),5) -> 0.04309 | D99: =ROUND(IF(B99<0,B99, B99 - Shocks!D98 * ABS(B99)),5) -> 0.02634 | F99: 0.03344868603 | G99: =ROUND(B99 + MAX(0.01,Shocks!E98*ABS(B99) )+F99-B99, 5) -> 0.04345 | H99: =ROUND(IF(B99<0,B99, B99 - Shocks!D98 * ABS(B99))+F99-B99, 5) -> 0.0267
A100: 88 | B100: 0.03308630083 | C100: =ROUND(B100 + MAX(0.01,Shocks!E99*ABS(B100) ),5) -> 0.04309 | D100: =ROUND(IF(B100<0,B100, B100 - Shocks!D99 * ABS(B100)),5) -> 0.02638 | F100: 0.03344358883 | G100: =ROUND(B100 + MAX(0.01,Shocks!E99*ABS(B100) )+F100-B100, 5) -> 0.04344 | H100: =ROUND(IF(B100<0,B100, B100 - Shocks!D99 * ABS(B100))+F100-B100, 5) -> 0.02674
A101: 89 | B101: 0.03308533411 | C101: =ROUND(B101 + MAX(0.01,Shocks!E100*ABS(B101) ),5) -> 0.04309 | D101: =ROUND(IF(B101<0,B101, B101 - Shocks!D100 * ABS(B101)),5) -> 0.02643 | F101: 0.03343860586 | G101: =ROUND(B101 + MAX(0.01,Shocks!E100*ABS(B101) )+F101-B101, 5) -> 0.04344 | H101: =ROUND(IF(B101<0,B101, B101 - Shocks!D100 * ABS(B101))+F101-B101, 5) -> 0.02678
A102: 90 | B102: 0.0330843885 | C102: =ROUND(B102 + MAX(0.01,Shocks!E101*ABS(B102) ),5) -> 0.04308 | D102: =ROUND(IF(B102<0,B102, B102 - Shocks!D101 * ABS(B102)),5) -> 0.02647 | F102: 0.03343373335 | G102: =ROUND(B102 + MAX(0.01,Shocks!E101*ABS(B102) )+F102-B102, 5) -> 0.04343 | H102: =ROUND(IF(B102<0,B102, B102 - Shocks!D101 * ABS(B102))+F102-B102, 5) -> 0.02682
A103: 91 | B103: 0.03308346334 | C103: =ROUND(B103 + MAX(0.01,Shocks!E102*ABS(B103) ),5) -> 0.04308 | D103: =ROUND(IF(B103<0,B103, B103 - Shocks!D102 * ABS(B103)),5) -> 0.02647 | F103: 0.0334289677 | G103: =ROUND(B103 + MAX(0.01,Shocks!E102*ABS(B103) )+F103-B103, 5) -> 0.04343 | H103: =ROUND(IF(B103<0,B103, B103 - Shocks!D102 * ABS(B103))+F103-B103, 5) -> 0.02681
A104: 92 | B104: 0.03308255802 | C104: =ROUND(B104 + MAX(0.01,Shocks!E103*ABS(B104) ),5) -> 0.04308 | D104: =ROUND(IF(B104<0,B104, B104 - Shocks!D103 * ABS(B104)),5) -> 0.02647 | F104: 0.03342430545 | G104: =ROUND(B104 + MAX(0.01,Shocks!E103*ABS(B104) )+F104-B104, 5) -> 0.04342 | H104: =ROUND(IF(B104<0,B104, B104 - Shocks!D103 * ABS(B104))+F104-B104, 5) -> 0.02681
A105: 93 | B105: 0.03308167192 | C105: =ROUND(B105 + MAX(0.01,Shocks!E104*ABS(B105) ),5) -> 0.04308 | D105: =ROUND(IF(B105<0,B105, B105 - Shocks!D104 * ABS(B105)),5) -> 0.02647 | F105: 0.0334197433 | G105: =ROUND(B105 + MAX(0.01,Shocks!E104*ABS(B105) )+F105-B105, 5) -> 0.04342 | H105: =ROUND(IF(B105<0,B105, B105 - Shocks!D104 * ABS(B105))+F105-B105, 5) -> 0.0268
A106: 94 | B106: 0.03308080447 | C106: =ROUND(B106 + MAX(0.01,Shocks!E105*ABS(B106) ),5) -> 0.04308 | D106: =ROUND(IF(B106<0,B106, B106 - Shocks!D105 * ABS(B106)),5) -> 0.02646 | F106: 0.03341527807 | G106: =ROUND(B106 + MAX(0.01,Shocks!E105*ABS(B106) )+F106-B106, 5) -> 0.04342 | H106: =ROUND(IF(B106<0,B106, B106 - Shocks!D105 * ABS(B106))+F106-B106, 5) -> 0.0268
A107: 95 | B107: 0.0330799551 | C107: =ROUND(B107 + MAX(0.01,Shocks!E106*ABS(B107) ),5) -> 0.04308 | D107: =ROUND(IF(B107<0,B107, B107 - Shocks!D106 * ABS(B107)),5) -> 0.02646 | F107: 0.03341090674 | G107: =ROUND(B107 + MAX(0.01,Shocks!E106*ABS(B107) )+F107-B107, 5) -> 0.04341 | H107: =ROUND(IF(B107<0,B107, B107 - Shocks!D106 * ABS(B107))+F107-B107, 5) -> 0.02679
A108: 96 | B108: 0.03307912326 | C108: =ROUND(B108 + MAX(0.01,Shocks!E107*ABS(B108) ),5) -> 0.04308 | D108: =ROUND(IF(B108<0,B108, B108 - Shocks!D107 * ABS(B108)),5) -> 0.02646 | F108: 0.03340662637 | G108: =ROUND(B108 + MAX(0.01,Shocks!E107*ABS(B108) )+F108-B108, 5) -> 0.04341 | H108: =ROUND(IF(B108<0,B108, B108 - Shocks!D107 * ABS(B108))+F108-B108, 5) -> 0.02679
A109: 97 | B109: 0.03307830845 | C109: =ROUND(B109 + MAX(0.01,Shocks!E108*ABS(B109) ),5) -> 0.04308 | D109: =ROUND(IF(B109<0,B109, B109 - Shocks!D108 * ABS(B109)),5) -> 0.02646 | F109: 0.03340243418 | G109: =ROUND(B109 + MAX(0.01,Shocks!E108*ABS(B109) )+F109-B109, 5) -> 0.0434 | H109: =ROUND(IF(B109<0,B109, B109 - Shocks!D108 * ABS(B109))+F109-B109, 5) -> 0.02679
A110: 98 | B110: 0.03307751014 | C110: =ROUND(B110 + MAX(0.01,Shocks!E109*ABS(B110) ),5) -> 0.04308 | D110: =ROUND(IF(B110<0,B110, B110 - Shocks!D109 * ABS(B110)),5) -> 0.02646 | F110: 0.03339832747 | G110: =ROUND(B110 + MAX(0.01,Shocks!E109*ABS(B110) )+F110-B110, 5) -> 0.0434 | H110: =ROUND(IF(B110<0,B110, B110 - Shocks!D109 * ABS(B110))+F110-B110, 5) -> 0.02678
A111: 99 | B111: 0.03307672787 | C111: =ROUND(B111 + MAX(0.01,Shocks!E110*ABS(B111) ),5) -> 0.04308 | D111: =ROUND(IF(B111<0,B111, B111 - Shocks!D110 * ABS(B111)),5) -> 0.02646 | F111: 0.03339430367 | G111: =ROUND(B111 + MAX(0.01,Shocks!E110*ABS(B111) )+F111-B111, 5) -> 0.04339 | H111: =ROUND(IF(B111<0,B111, B111 - Shocks!D110 * ABS(B111))+F111-B111, 5) -> 0.02678
A112: 100 | B112: 0.03307596115 | C112: =ROUND(B112 + MAX(0.01,Shocks!E111*ABS(B112) ),5) -> 0.04308 | D112: =ROUND(IF(B112<0,B112, B112 - Shocks!D111 * ABS(B112)),5) -> 0.02646 | F112: 0.0333903603 | G112: =ROUND(B112 + MAX(0.01,Shocks!E111*ABS(B112) )+F112-B112, 5) -> 0.04339 | H112: =ROUND(IF(B112<0,B112, B112 - Shocks!D111 * ABS(B112))+F112-B112, 5) -> 0.02678
A113: 101 | B113: 0.03307520955 | C113: =ROUND(B113 + MAX(0.01,Shocks!E112*ABS(B113) ),5) -> 0.04308 | D113: =ROUND(IF(B113<0,B113, B113 - Shocks!D112 * ABS(B113)),5) -> 0.02646 | F113: 0.03338649497 | G113: =ROUND(B113 + MAX(0.01,Shocks!E112*ABS(B113) )+F113-B113, 5) -> 0.04339 | H113: =ROUND(IF(B113<0,B113, B113 - Shocks!D112 * ABS(B113))+F113-B113, 5) -> 0.02677
A114: 102 | B114: 0.03307447261 | C114: =ROUND(B114 + MAX(0.01,Shocks!E113*ABS(B114) ),5) -> 0.04307 | D114: =ROUND(IF(B114<0,B114, B114 - Shocks!D113 * ABS(B114)),5) -> 0.02646 | F114: 0.0333827054 | G114: =ROUND(B114 + MAX(0.01,Shocks!E113*ABS(B114) )+F114-B114, 5) -> 0.04338 | H114: =ROUND(IF(B114<0,B114, B114 - Shocks!D113 * ABS(B114))+F114-B114, 5) -> 0.02677
A115: 103 | B115: 0.03307374993 | C115: =ROUND(B115 + MAX(0.01,Shocks!E114*ABS(B115) ),5) -> 0.04307 | D115: =ROUND(IF(B115<0,B115, B115 - Shocks!D114 * ABS(B115)),5) -> 0.02646 | F115: 0.03337898939 | G115: =ROUND(B115 + MAX(0.01,Shocks!E114*ABS(B115) )+F115-B115, 5) -> 0.04338 | H115: =ROUND(IF(B115<0,B115, B115 - Shocks!D114 * ABS(B115))+F115-B115, 5) -> 0.02676
A116: 104 | B116: 0.0330730411 | C116: =ROUND(B116 + MAX(0.01,Shocks!E115*ABS(B116) ),5) -> 0.04307 | D116: =ROUND(IF(B116<0,B116, B116 - Shocks!D115 * ABS(B116)),5) -> 0.02646 | F116: 0.03337534482 | G116: =ROUND(B116 + MAX(0.01,Shocks!E115*ABS(B116) )+F116-B116, 5) -> 0.04338 | H116: =ROUND(IF(B116<0,B116, B116 - Shocks!D115 * ABS(B116))+F116-B116, 5) -> 0.02676
A117: 105 | B117: 0.03307234573 | C117: =ROUND(B117 + MAX(0.01,Shocks!E116*ABS(B117) ),5) -> 0.04307 | D117: =ROUND(IF(B117<0,B117, B117 - Shocks!D116 * ABS(B117)),5) -> 0.02646 | F117: 0.03337176965 | G117: =ROUND(B117 + MAX(0.01,Shocks!E116*ABS(B117) )+F117-B117, 5) -> 0.04337 | H117: =ROUND(IF(B117<0,B117, B117 - Shocks!D116 * ABS(B117))+F117-B117, 5) -> 0.02676
A118: 106 | B118: 0.03307166344 | C118: =ROUND(B118 + MAX(0.01,Shocks!E117*ABS(B118) ),5) -> 0.04307 | D118: =ROUND(IF(B118<0,B118, B118 - Shocks!D117 * ABS(B118)),5) -> 0.02646 | F118: 0.03336826193 | G118: =ROUND(B118 + MAX(0.01,Shocks!E117*ABS(B118) )+F118-B118, 5) -> 0.04337 | H118: =ROUND(IF(B118<0,B118, B118 - Shocks!D117 * ABS(B118))+F118-B118, 5) -> 0.02675
A119: 107 | B119: 0.03307099388 | C119: =ROUND(B119 + MAX(0.01,Shocks!E118*ABS(B119) ),5) -> 0.04307 | D119: =ROUND(IF(B119<0,B119, B119 - Shocks!D118 * ABS(B119)),5) -> 0.02646 | F119: 0.03336481976 | G119: =ROUND(B119 + MAX(0.01,Shocks!E118*ABS(B119) )+F119-B119, 5) -> 0.04336 | H119: =ROUND(IF(B119<0,B119, B119 - Shocks!D118 * ABS(B119))+F119-B119, 5) -> 0.02675
A120: 108 | B120: 0.03307033669 | C120: =ROUND(B120 + MAX(0.01,Shocks!E119*ABS(B120) ),5) -> 0.04307 | D120: =ROUND(IF(B120<0,B120, B120 - Shocks!D119 * ABS(B120)),5) -> 0.02646 | F120: 0.03336144133 | G120: =ROUND(B120 + MAX(0.01,Shocks!E119*ABS(B120) )+F120-B120, 5) -> 0.04336 | H120: =ROUND(IF(B120<0,B120, B120 - Shocks!D119 * ABS(B120))+F120-B120, 5) -> 0.02675
A121: 109 | B121: 0.03306969154 | C121: =ROUND(B121 + MAX(0.01,Shocks!E120*ABS(B121) ),5) -> 0.04307 | D121: =ROUND(IF(B121<0,B121, B121 - Shocks!D120 * ABS(B121)),5) -> 0.02646 | F121: 0.03335812488 | G121: =ROUND(B121 + MAX(0.01,Shocks!E120*ABS(B121) )+F121-B121, 5) -> 0.04336 | H121: =ROUND(IF(B121<0,B121, B121 - Shocks!D120 * ABS(B121))+F121-B121, 5) -> 0.02674
A122: 110 | B122: 0.03306905809 | C122: =ROUND(B122 + MAX(0.01,Shocks!E121*ABS(B122) ),5) -> 0.04307 | D122: =ROUND(IF(B122<0,B122, B122 - Shocks!D121 * ABS(B122)),5) -> 0.02646 | F122: 0.03335486873 | G122: =ROUND(B122 + MAX(0.01,Shocks!E121*ABS(B122) )+F122-B122, 5) -> 0.04335 | H122: =ROUND(IF(B122<0,B122, B122 - Shocks!D121 * ABS(B122))+F122-B122, 5) -> 0.02674
A123: 111 | B123: 0.03306843604 | C123: =ROUND(B123 + MAX(0.01,Shocks!E122*ABS(B123) ),5) -> 0.04307 | D123: =ROUND(IF(B123<0,B123, B123 - Shocks!D122 * ABS(B123)),5) -> 0.02645 | F123: 0.03335167124 | G123: =ROUND(B123 + MAX(0.01,Shocks!E122*ABS(B123) )+F123-B123, 5) -> 0.04335 | H123: =ROUND(IF(B123<0,B123, B123 - Shocks!D122 * ABS(B123))+F123-B123, 5) -> 0.02674
A124: 112 | B124: 0.03306782509 | C124: =ROUND(B124 + MAX(0.01,Shocks!E123*ABS(B124) ),5) -> 0.04307 | D124: =ROUND(IF(B124<0,B124, B124 - Shocks!D123 * ABS(B124)),5) -> 0.02645 | F124: 0.03334853086 | G124: =ROUND(B124 + MAX(0.01,Shocks!E123*ABS(B124) )+F124-B124, 5) -> 0.04335 | H124: =ROUND(IF(B124<0,B124, B124 - Shocks!D123 * ABS(B124))+F124-B124, 5) -> 0.02673
A125: 113 | B125: 0.03306722494 | C125: =ROUND(B125 + MAX(0.01,Shocks!E124*ABS(B125) ),5) -> 0.04307 | D125: =ROUND(IF(B125<0,B125, B125 - Shocks!D124 * ABS(B125)),5) -> 0.02645 | F125: 0.03334544605 | G125: =ROUND(B125 + MAX(0.01,Shocks!E124*ABS(B125) )+F125-B125, 5) -> 0.04335 | H125: =ROUND(IF(B125<0,B125, B125 - Shocks!D124 * ABS(B125))+F125-B125, 5) -> 0.02673
A126: 114 | B126: 0.0330666353 | C126: =ROUND(B126 + MAX(0.01,Shocks!E125*ABS(B126) ),5) -> 0.04307 | D126: =ROUND(IF(B126<0,B126, B126 - Shocks!D125 * ABS(B126)),5) -> 0.02645 | F126: 0.03334241537 | G126: =ROUND(B126 + MAX(0.01,Shocks!E125*ABS(B126) )+F126-B126, 5) -> 0.04334 | H126: =ROUND(IF(B126<0,B126, B126 - Shocks!D125 * ABS(B126))+F126-B126, 5) -> 0.02673
A127: 115 | B127: 0.03306605591 | C127: =ROUND(B127 + MAX(0.01,Shocks!E126*ABS(B127) ),5) -> 0.04307 | D127: =ROUND(IF(B127<0,B127, B127 - Shocks!D126 * ABS(B127)),5) -> 0.02645 | F127: 0.0333394374 | G127: =ROUND(B127 + MAX(0.01,Shocks!E126*ABS(B127) )+F127-B127, 5) -> 0.04334 | H127: =ROUND(IF(B127<0,B127, B127 - Shocks!D126 * ABS(B127))+F127-B127, 5) -> 0.02673
A128: 116 | B128: 0.0330654865 | C128: =ROUND(B128 + MAX(0.01,Shocks!E127*ABS(B128) ),5) -> 0.04307 | D128: =ROUND(IF(B128<0,B128, B128 - Shocks!D127 * ABS(B128)),5) -> 0.02645 | F128: 0.03333651077 | G128: =ROUND(B128 + MAX(0.01,Shocks!E127*ABS(B128) )+F128-B128, 5) -> 0.04334 | H128: =ROUND(IF(B128<0,B128, B128 - Shocks!D127 * ABS(B128))+F128-B128, 5) -> 0.02672
A129: 117 | B129: 0.03306492682 | C129: =ROUND(B129 + MAX(0.01,Shocks!E128*ABS(B129) ),5) -> 0.04306 | D129: =ROUND(IF(B129<0,B129, B129 - Shocks!D128 * ABS(B129)),5) -> 0.02645 | F129: 0.03333363418 | G129: =ROUND(B129 + MAX(0.01,Shocks!E128*ABS(B129) )+F129-B129, 5) -> 0.04333 | H129: =ROUND(IF(B129<0,B129, B129 - Shocks!D128 * ABS(B129))+F129-B129, 5) -> 0.02672
A130: 118 | B130: 0.03306437662 | C130: =ROUND(B130 + MAX(0.01,Shocks!E129*ABS(B130) ),5) -> 0.04306 | D130: =ROUND(IF(B130<0,B130, B130 - Shocks!D129 * ABS(B130)),5) -> 0.02645 | F130: 0.03333080634 | G130: =ROUND(B130 + MAX(0.01,Shocks!E129*ABS(B130) )+F130-B130, 5) -> 0.04333 | H130: =ROUND(IF(B130<0,B130, B130 - Shocks!D129 * ABS(B130))+F130-B130, 5) -> 0.02672
A131: 119 | B131: 0.03306383566 | C131: =ROUND(B131 + MAX(0.01,Shocks!E130*ABS(B131) ),5) -> 0.04306 | D131: =ROUND(IF(B131<0,B131, B131 - Shocks!D130 * ABS(B131)),5) -> 0.02645 | F131: 0.03332802604 | G131: =ROUND(B131 + MAX(0.01,Shocks!E130*ABS(B131) )+F131-B131, 5) -> 0.04333 | H131: =ROUND(IF(B131<0,B131, B131 - Shocks!D130 * ABS(B131))+F131-B131, 5) -> 0.02672
A132: 120 | B132: 0.03306330371 | C132: =ROUND(B132 + MAX(0.01,Shocks!E131*ABS(B132) ),5) -> 0.04306 | D132: =ROUND(IF(B132<0,B132, B132 - Shocks!D131 * ABS(B132)),5) -> 0.02645 | F132: 0.03332529208 | G132: =ROUND(B132 + MAX(0.01,Shocks!E131*ABS(B132) )+F132-B132, 5) -> 0.04333 | H132: =ROUND(IF(B132<0,B132, B132 - Shocks!D131 * ABS(B132))+F132-B132, 5) -> 0.02671
A133: 121 | B133: 0.03306278055 | C133: =ROUND(B133 + MAX(0.01,Shocks!E132*ABS(B133) ),5) -> 0.04306 | D133: =ROUND(IF(B133<0,B133, B133 - Shocks!D132 * ABS(B133)),5) -> 0.02645 | F133: 0.03332260331 | G133: =ROUND(B133 + MAX(0.01,Shocks!E132*ABS(B133) )+F133-B133, 5) -> 0.04332 | H133: =ROUND(IF(B133<0,B133, B133 - Shocks!D132 * ABS(B133))+F133-B133, 5) -> 0.02671
A134: 122 | B134: 0.03306226596 | C134: =ROUND(B134 + MAX(0.01,Shocks!E133*ABS(B134) ),5) -> 0.04306 | D134: =ROUND(IF(B134<0,B134, B134 - Shocks!D133 * ABS(B134)),5) -> 0.02645 | F134: 0.03331995862 | G134: =ROUND(B134 + MAX(0.01,Shocks!E133*ABS(B134) )+F134-B134, 5) -> 0.04332 | H134: =ROUND(IF(B134<0,B134, B134 - Shocks!D133 * ABS(B134))+F134-B134, 5) -> 0.02671
A135: 123 | B135: 0.03306175974 | C135: =ROUND(B135 + MAX(0.01,Shocks!E134*ABS(B135) ),5) -> 0.04306 | D135: =ROUND(IF(B135<0,B135, B135 - Shocks!D134 * ABS(B135)),5) -> 0.02645 | F135: 0.03331735695 | G135: =ROUND(B135 + MAX(0.01,Shocks!E134*ABS(B135) )+F135-B135, 5) -> 0.04332 | H135: =ROUND(IF(B135<0,B135, B135 - Shocks!D134 * ABS(B135))+F135-B135, 5) -> 0.02671
A136: 124 | B136: 0.03306126168 | C136: =ROUND(B136 + MAX(0.01,Shocks!E135*ABS(B136) ),5) -> 0.04306 | D136: =ROUND(IF(B136<0,B136, B136 - Shocks!D135 * ABS(B136)),5) -> 0.02645 | F136: 0.03331479724 | G136: =ROUND(B136 + MAX(0.01,Shocks!E135*ABS(B136) )+F136-B136, 5) -> 0.04331 | H136: =ROUND(IF(B136<0,B136, B136 - Shocks!D135 * ABS(B136))+F136-B136, 5) -> 0.0267
A137: 125 | B137: 0.03306077159 | C137: =ROUND(B137 + MAX(0.01,Shocks!E136*ABS(B137) ),5) -> 0.04306 | D137: =ROUND(IF(B137<0,B137, B137 - Shocks!D136 * ABS(B137)),5) -> 0.02645 | F137: 0.03331227849 | G137: =ROUND(B137 + MAX(0.01,Shocks!E136*ABS(B137) )+F137-B137, 5) -> 0.04331 | H137: =ROUND(IF(B137<0,B137, B137 - Shocks!D136 * ABS(B137))+F137-B137, 5) -> 0.0267
A138: 126 | B138: 0.03306028928 | C138: =ROUND(B138 + MAX(0.01,Shocks!E137*ABS(B138) ),5) -> 0.04306 | D138: =ROUND(IF(B138<0,B138, B138 - Shocks!D137 * ABS(B138)),5) -> 0.02645 | F138: 0.03330979972 | G138: =ROUND(B138 + MAX(0.01,Shocks!E137*ABS(B138) )+F138-B138, 5) -> 0.04331 | H138: =ROUND(IF(B138<0,B138, B138 - Shocks!D137 * ABS(B138))+F138-B138, 5) -> 0.0267
A139: 127 | B139: 0.03305981455 | C139: =ROUND(B139 + MAX(0.01,Shocks!E138*ABS(B139) ),5) -> 0.04306 | D139: =ROUND(IF(B139<0,B139, B139 - Shocks!D138 * ABS(B139)),5) -> 0.02645 | F139: 0.03330736 | G139: =ROUND(B139 + MAX(0.01,Shocks!E138*ABS(B139) )+F139-B139, 5) -> 0.04331 | H139: =ROUND(IF(B139<0,B139, B139 - Shocks!D138 * ABS(B139))+F139-B139, 5) -> 0.0267
A140: 128 | B140: 0.03305934725 | C140: =ROUND(B140 + MAX(0.01,Shocks!E139*ABS(B140) ),5) -> 0.04306 | D140: =ROUND(IF(B140<0,B140, B140 - Shocks!D139 * ABS(B140)),5) -> 0.02645 | F140: 0.0333049584 | G140: =ROUND(B140 + MAX(0.01,Shocks!E139*ABS(B140) )+F140-B140, 5) -> 0.0433 | H140: =ROUND(IF(B140<0,B140, B140 - Shocks!D139 * ABS(B140))+F140-B140, 5) -> 0.02669
A141: 129 | B141: 0.03305888719 | C141: =ROUND(B141 + MAX(0.01,Shocks!E140*ABS(B141) ),5) -> 0.04306 | D141: =ROUND(IF(B141<0,B141, B141 - Shocks!D140 * ABS(B141)),5) -> 0.02645 | F141: 0.03330259404 | G141: =ROUND(B141 + MAX(0.01,Shocks!E140*ABS(B141) )+F141-B141, 5) -> 0.0433 | H141: =ROUND(IF(B141<0,B141, B141 - Shocks!D140 * ABS(B141))+F141-B141, 5) -> 0.02669
A142: 130 | B142: 0.03305843421 | C142: =ROUND(B142 + MAX(0.01,Shocks!E141*ABS(B142) ),5) -> 0.04306 | D142: =ROUND(IF(B142<0,B142, B142 - Shocks!D141 * ABS(B142)),5) -> 0.02645 | F142: 0.03330026606 | G142: =ROUND(B142 + MAX(0.01,Shocks!E141*ABS(B142) )+F142-B142, 5) -> 0.0433 | H142: =ROUND(IF(B142<0,B142, B142 - Shocks!D141 * ABS(B142))+F142-B142, 5) -> 0.02669
A143: 131 | B143: 0.03305798814 | C143: =ROUND(B143 + MAX(0.01,Shocks!E142*ABS(B143) ),5) -> 0.04306 | D143: =ROUND(IF(B143<0,B143, B143 - Shocks!D142 * ABS(B143)),5) -> 0.02645 | F143: 0.03329797363 | G143: =ROUND(B143 + MAX(0.01,Shocks!E142*ABS(B143) )+F143-B143, 5) -> 0.0433 | H143: =ROUND(IF(B143<0,B143, B143 - Shocks!D142 * ABS(B143))+F143-B143, 5) -> 0.02669
A144: 132 | B144: 0.03305754883 | C144: =ROUND(B144 + MAX(0.01,Shocks!E143*ABS(B144) ),5) -> 0.04306 | D144: =ROUND(IF(B144<0,B144, B144 - Shocks!D143 * ABS(B144)),5) -> 0.02645 | F144: 0.03329571593 | G144: =ROUND(B144 + MAX(0.01,Shocks!E143*ABS(B144) )+F144-B144, 5) -> 0.0433 | H144: =ROUND(IF(B144<0,B144, B144 - Shocks!D143 * ABS(B144))+F144-B144, 5) -> 0.02668
A145: 133 | B145: 0.03305711612 | C145: =ROUND(B145 + MAX(0.01,Shocks!E144*ABS(B145) ),5) -> 0.04306 | D145: =ROUND(IF(B145<0,B145, B145 - Shocks!D144 * ABS(B145)),5) -> 0.02645 | F145: 0.03329349219 | G145: =ROUND(B145 + MAX(0.01,Shocks!E144*ABS(B145) )+F145-B145, 5) -> 0.04329 | H145: =ROUND(IF(B145<0,B145, B145 - Shocks!D144 * ABS(B145))+F145-B145, 5) -> 0.02668
A146: 134 | B146: 0.03305668987 | C146: =ROUND(B146 + MAX(0.01,Shocks!E145*ABS(B146) ),5) -> 0.04306 | D146: =ROUND(IF(B146<0,B146, B146 - Shocks!D145 * ABS(B146)),5) -> 0.02645 | F146: 0.03329130164 | G146: =ROUND(B146 + MAX(0.01,Shocks!E145*ABS(B146) )+F146-B146, 5) -> 0.04329 | H146: =ROUND(IF(B146<0,B146, B146 - Shocks!D145 * ABS(B146))+F146-B146, 5) -> 0.02668
A147: 135 | B147: 0.03305626994 | C147: =ROUND(B147 + MAX(0.01,Shocks!E146*ABS(B147) ),5) -> 0.04306 | D147: =ROUND(IF(B147<0,B147, B147 - Shocks!D146 * ABS(B147)),5) -> 0.02645 | F147: 0.03328914355 | G147: =ROUND(B147 + MAX(0.01,Shocks!E146*ABS(B147) )+F147-B147, 5) -> 0.04329 | H147: =ROUND(IF(B147<0,B147, B147 - Shocks!D146 * ABS(B147))+F147-B147, 5) -> 0.02668
A148: 136 | B148: 0.03305585618 | C148: =ROUND(B148 + MAX(0.01,Shocks!E147*ABS(B148) ),5) -> 0.04306 | D148: =ROUND(IF(B148<0,B148, B148 - Shocks!D147 * ABS(B148)),5) -> 0.02644 | F148: 0.0332870172 | G148: =ROUND(B148 + MAX(0.01,Shocks!E147*ABS(B148) )+F148-B148, 5) -> 0.04329 | H148: =ROUND(IF(B148<0,B148, B148 - Shocks!D147 * ABS(B148))+F148-B148, 5) -> 0.02668
A149: 137 | B149: 0.03305544847 | C149: =ROUND(B149 + MAX(0.01,Shocks!E148*ABS(B149) ),5) -> 0.04306 | D149: =ROUND(IF(B149<0,B149, B149 - Shocks!D148 * ABS(B149)),5) -> 0.02644 | F149: 0.0332849219 | G149: =ROUND(B149 + MAX(0.01,Shocks!E148*ABS(B149) )+F149-B149, 5) -> 0.04328 | H149: =ROUND(IF(B149<0,B149, B149 - Shocks!D148 * ABS(B149))+F149-B149, 5) -> 0.02667
A150: 138 | B150: 0.03305504666 | C150: =ROUND(B150 + MAX(0.01,Shocks!E149*ABS(B150) ),5) -> 0.04306 | D150: =ROUND(IF(B150<0,B150, B150 - Shocks!D149 * ABS(B150)),5) -> 0.02644 | F150: 0.03328285697 | G150: =ROUND(B150 + MAX(0.01,Shocks!E149*ABS(B150) )+F150-B150, 5) -> 0.04328 | H150: =ROUND(IF(B150<0,B150, B150 - Shocks!D149 * ABS(B150))+F150-B150, 5) -> 0.02667
A151: 139 | B151: 0.03305465063 | C151: =ROUND(B151 + MAX(0.01,Shocks!E150*ABS(B151) ),5) -> 0.04305 | D151: =ROUND(IF(B151<0,B151, B151 - Shocks!D150 * ABS(B151)),5) -> 0.02644 | F151: 0.03328082175 | G151: =ROUND(B151 + MAX(0.01,Shocks!E150*ABS(B151) )+F151-B151, 5) -> 0.04328 | H151: =ROUND(IF(B151<0,B151, B151 - Shocks!D150 * ABS(B151))+F151-B151, 5) -> 0.02667
A152: 140 | B152: 0.03305426026 | C152: =ROUND(B152 + MAX(0.01,Shocks!E151*ABS(B152) ),5) -> 0.04305 | D152: =ROUND(IF(B152<0,B152, B152 - Shocks!D151 * ABS(B152)),5) -> 0.02644 | F152: 0.03327881561 | G152: =ROUND(B152 + MAX(0.01,Shocks!E151*ABS(B152) )+F152-B152, 5) -> 0.04328 | H152: =ROUND(IF(B152<0,B152, B152 - Shocks!D151 * ABS(B152))+F152-B152, 5) -> 0.02667
A153: 141 | B153: 0.03305387543 | C153: =ROUND(B153 + MAX(0.01,Shocks!E152*ABS(B153) ),5) -> 0.04305 | D153: =ROUND(IF(B153<0,B153, B153 - Shocks!D152 * ABS(B153)),5) -> 0.02644 | F153: 0.03327683793 | G153: =ROUND(B153 + MAX(0.01,Shocks!E152*ABS(B153) )+F153-B153, 5) -> 0.04328 | H153: =ROUND(IF(B153<0,B153, B153 - Shocks!D152 * ABS(B153))+F153-B153, 5) -> 0.02667
A154: 142 | B154: 0.03305349601 | C154: =ROUND(B154 + MAX(0.01,Shocks!E153*ABS(B154) ),5) -> 0.04305 | D154: =ROUND(IF(B154<0,B154, B154 - Shocks!D153 * ABS(B154)),5) -> 0.02644 | F154: 0.03327488811 | G154: =ROUND(B154 + MAX(0.01,Shocks!E153*ABS(B154) )+F154-B154, 5) -> 0.04327 | H154: =ROUND(IF(B154<0,B154, B154 - Shocks!D153 * ABS(B154))+F154-B154, 5) -> 0.02666
A155: 143 | B155: 0.03305312191 | C155: =ROUND(B155 + MAX(0.01,Shocks!E154*ABS(B155) ),5) -> 0.04305 | D155: =ROUND(IF(B155<0,B155, B155 - Shocks!D154 * ABS(B155)),5) -> 0.02644 | F155: 0.03327296556 | G155: =ROUND(B155 + MAX(0.01,Shocks!E154*ABS(B155) )+F155-B155, 5) -> 0.04327 | H155: =ROUND(IF(B155<0,B155, B155 - Shocks!D154 * ABS(B155))+F155-B155, 5) -> 0.02666
A156: 144 | B156: 0.033052753 | C156: =ROUND(B156 + MAX(0.01,Shocks!E155*ABS(B156) ),5) -> 0.04305 | D156: =ROUND(IF(B156<0,B156, B156 - Shocks!D155 * ABS(B156)),5) -> 0.02644 | F156: 0.03327106972 | G156: =ROUND(B156 + MAX(0.01,Shocks!E155*ABS(B156) )+F156-B156, 5) -> 0.04327 | H156: =ROUND(IF(B156<0,B156, B156 - Shocks!D155 * ABS(B156))+F156-B156, 5) -> 0.02666
A157: 145 | B157: 0.03305238917 | C157: =ROUND(B157 + MAX(0.01,Shocks!E156*ABS(B157) ),5) -> 0.04305 | D157: =ROUND(IF(B157<0,B157, B157 - Shocks!D156 * ABS(B157)),5) -> 0.02644 | F157: 0.03326920003 | G157: =ROUND(B157 + MAX(0.01,Shocks!E156*ABS(B157) )+F157-B157, 5) -> 0.04327 | H157: =ROUND(IF(B157<0,B157, B157 - Shocks!D156 * ABS(B157))+F157-B157, 5) -> 0.02666
A158: 146 | B158: 0.03305203034 | C158: =ROUND(B158 + MAX(0.01,Shocks!E157*ABS(B158) ),5) -> 0.04305 | D158: =ROUND(IF(B158<0,B158, B158 - Shocks!D157 * ABS(B158)),5) -> 0.02644 | F158: 0.03326735595 | G158: =ROUND(B158 + MAX(0.01,Shocks!E157*ABS(B158) )+F158-B158, 5) -> 0.04327 | H158: =ROUND(IF(B158<0,B158, B158 - Shocks!D157 * ABS(B158))+F158-B158, 5) -> 0.02666
A159: 147 | B159: 0.03305167638 | C159: =ROUND(B159 + MAX(0.01,Shocks!E158*ABS(B159) ),5) -> 0.04305 | D159: =ROUND(IF(B159<0,B159, B159 - Shocks!D158 * ABS(B159)),5) -> 0.02644 | F159: 0.03326553697 | G159: =ROUND(B159 + MAX(0.01,Shocks!E158*ABS(B159) )+F159-B159, 5) -> 0.04327 | H159: =ROUND(IF(B159<0,B159, B159 - Shocks!D158 * ABS(B159))+F159-B159, 5) -> 0.02666
A160: 148 | B160: 0.03305132721 | C160: =ROUND(B160 + MAX(0.01,Shocks!E159*ABS(B160) ),5) -> 0.04305 | D160: =ROUND(IF(B160<0,B160, B160 - Shocks!D159 * ABS(B160)),5) -> 0.02644 | F160: 0.03326374258 | G160: =ROUND(B160 + MAX(0.01,Shocks!E159*ABS(B160) )+F160-B160, 5) -> 0.04326 | H160: =ROUND(IF(B160<0,B160, B160 - Shocks!D159 * ABS(B160))+F160-B160, 5) -> 0.02665
A161: 149 | B161: 0.03305098272 | C161: =ROUND(B161 + MAX(0.01,Shocks!E160*ABS(B161) ),5) -> 0.04305 | D161: =ROUND(IF(B161<0,B161, B161 - Shocks!D160 * ABS(B161)),5) -> 0.02644 | F161: 0.03326197227 | G161: =ROUND(B161 + MAX(0.01,Shocks!E160*ABS(B161) )+F161-B161, 5) -> 0.04326 | H161: =ROUND(IF(B161<0,B161, B161 - Shocks!D160 * ABS(B161))+F161-B161, 5) -> 0.02665
A162: 150 | B162: 0.03305064283 | C162: =ROUND(B162 + MAX(0.01,Shocks!E161*ABS(B162) ),5) -> 0.04305 | D162: =ROUND(IF(B162<0,B162, B162 - Shocks!D161 * ABS(B162)),5) -> 0.02644 | F162: 0.03326022557 | G162: =ROUND(B162 + MAX(0.01,Shocks!E161*ABS(B162) )+F162-B162, 5) -> 0.04326 | H162: =ROUND(IF(B162<0,B162, B162 - Shocks!D161 * ABS(B162))+F162-B162, 5) -> 0.02665

Sheet Scenario Data Current +100bps
I8: ='Scenario Data Expected'!J3 -> CZK
B11: NO volatility adjustment | F11: WITH volatility adjustment
B12: Smith Wilson Extrapolated RFR | C12: Baseline Scenario - Up Shock | D12: Baseline Scenario - Down Shock | F12: Smith Wilson Extrapolated RFR | G12: Baseline Scenario - Up Shock | H12: Baseline Scenario - Down Shock
A13: 1 | B13: =SWUP -> 0.04608875705 | C13: =ROUND(B13 + MAX(0.01,Shocks!E12*ABS(B13) ),5) -> 0.07835 | D13: =ROUND(IF(B13<0,B13, B13 - Shocks!D12 * ABS(B13)),5) -> 0.01152 | F13: =SWUPVA -> 0.04768875705 | G13: =ROUND(B13 + MAX(0.01,Shocks!E12*ABS(B13) )+F13-B13, 5) -> 0.07995 | H13: =ROUND(IF(B13<0,B13, B13 - Shocks!D12 * ABS(B13))+F13-B13, 5) -> 0.01312 | U13: Czech Republic | V13: 1
A14: 2 | B14: 0.04585232872 | C14: =ROUND(B14 + MAX(0.01,Shocks!E13*ABS(B14) ),5) -> 0.07795 | D14: =ROUND(IF(B14<0,B14, B14 - Shocks!D13 * ABS(B14)),5) -> 0.01605 | F14: 0.04745232872 | G14: =ROUND(B14 + MAX(0.01,Shocks!E13*ABS(B14) )+F14-B14, 5) -> 0.07955 | H14: =ROUND(IF(B14<0,B14, B14 - Shocks!D13 * ABS(B14))+F14-B14, 5) -> 0.01765 | U14: Hungary | V14: 2
A15: 3 | B15: 0.04567587932 | C15: =ROUND(B15 + MAX(0.01,Shocks!E14*ABS(B15) ),5) -> 0.07491 | D15: =ROUND(IF(B15<0,B15, B15 - Shocks!D14 * ABS(B15)),5) -> 0.0201 | F15: 0.04727587932 | G15: =ROUND(B15 + MAX(0.01,Shocks!E14*ABS(B15) )+F15-B15, 5) -> 0.07651 | H15: =ROUND(IF(B15<0,B15, B15 - Shocks!D14 * ABS(B15))+F15-B15, 5) -> 0.0217 | U15: Poland | V15: 3
A16: 4 | B16: 0.04573159138 | C16: =ROUND(B16 + MAX(0.01,Shocks!E15*ABS(B16) ),5) -> 0.07271 | D16: =ROUND(IF(B16<0,B16, B16 - Shocks!D15 * ABS(B16)),5) -> 0.02287 | F16: 0.04733316329 | G16: =ROUND(B16 + MAX(0.01,Shocks!E15*ABS(B16) )+F16-B16, 5) -> 0.07431 | H16: =ROUND(IF(B16<0,B16, B16 - Shocks!D15 * ABS(B16))+F16-B16, 5) -> 0.02447 | U16: Romania | V16: 4
A17: 5 | B17: 0.04605235046 | C17: =ROUND(B17 + MAX(0.01,Shocks!E16*ABS(B17) ),5) -> 0.07138 | D17: =ROUND(IF(B17<0,B17, B17 - Shocks!D16 * ABS(B17)),5) -> 0.02487 | F17: 0.04765235046 | G17: =ROUND(B17 + MAX(0.01,Shocks!E16*ABS(B17) )+F17-B17, 5) -> 0.07298 | H17: =ROUND(IF(B17<0,B17, B17 - Shocks!D16 * ABS(B17))+F17-B17, 5) -> 0.02647 | U17: Switzerland | V17: 5
A18: 6 | B18: 0.04659462449 | C18: =ROUND(B18 + MAX(0.01,Shocks!E17*ABS(B18) ),5) -> 0.07082 | D18: =ROUND(IF(B18<0,B18, B18 - Shocks!D17 * ABS(B18)),5) -> 0.02702 | F18: 0.04818949152 | G18: =ROUND(B18 + MAX(0.01,Shocks!E17*ABS(B18) )+F18-B18, 5) -> 0.07242 | H18: =ROUND(IF(B18<0,B18, B18 - Shocks!D17 * ABS(B18))+F18-B18, 5) -> 0.02862 | U18: United States | V18: 6
A19: 7 | B19: 0.04715015447 | C19: =ROUND(B19 + MAX(0.01,Shocks!E18*ABS(B19) ),5) -> 0.07025 | D19: =ROUND(IF(B19<0,B19, B19 - Shocks!D18 * ABS(B19)),5) -> 0.02876 | F19: 0.04874067514 | G19: =ROUND(B19 + MAX(0.01,Shocks!E18*ABS(B19) )+F19-B19, 5) -> 0.07184 | H19: =ROUND(IF(B19<0,B19, B19 - Shocks!D18 * ABS(B19))+F19-B19, 5) -> 0.03035
A20: 8 | B20: 0.04756518842 | C20: =ROUND(B20 + MAX(0.01,Shocks!E19*ABS(B20) ),5) -> 0.06992 | D20: =ROUND(IF(B20<0,B20, B20 - Shocks!D19 * ABS(B20)),5) -> 0.03044 | F20: 0.04915495164 | G20: =ROUND(B20 + MAX(0.01,Shocks!E19*ABS(B20) )+F20-B20, 5) -> 0.07151 | H20: =ROUND(IF(B20<0,B20, B20 - Shocks!D19 * ABS(B20))+F20-B20, 5) -> 0.03203
A21: 9 | B21: 0.04774486337 | C21: =ROUND(B21 + MAX(0.01,Shocks!E20*ABS(B21) ),5) -> 0.06875 | D21: =ROUND(IF(B21<0,B21, B21 - Shocks!D20 * ABS(B21)),5) -> 0.03199 | F21: 0.04933815079 | G21: =ROUND(B21 + MAX(0.01,Shocks!E20*ABS(B21) )+F21-B21, 5) -> 0.07035 | H21: =ROUND(IF(B21<0,B21, B21 - Shocks!D20 * ABS(B21))+F21-B21, 5) -> 0.03358
A22: 10 | B22: 0.04762352065 | C22: =ROUND(B22 + MAX(0.01,Shocks!E21*ABS(B22) ),5) -> 0.06763 | D22: =ROUND(IF(B22<0,B22, B22 - Shocks!D21 * ABS(B22)),5) -> 0.03286 | F22: 0.04922352065 | G22: =ROUND(B22 + MAX(0.01,Shocks!E21*ABS(B22) )+F22-B22, 5) -> 0.06923 | H22: =ROUND(IF(B22<0,B22, B22 - Shocks!D21 * ABS(B22))+F22-B22, 5) -> 0.03446
A23: 11 | B23: 0.04718646913 | C23: =ROUND(B23 + MAX(0.01,Shocks!E22*ABS(B23) ),5) -> 0.06559 | D23: =ROUND(IF(B23<0,B23, B23 - Shocks!D22 * ABS(B23)),5) -> 0.03303 | F23: 0.04879393311 | G23: =ROUND(B23 + MAX(0.01,Shocks!E22*ABS(B23) )+F23-B23, 5) -> 0.0672 | H23: =ROUND(IF(B23<0,B23, B23 - Shocks!D22 * ABS(B23))+F23-B23, 5) -> 0.03464
A24: 12 | B24: 0.04654558911 | C24: =ROUND(B24 + MAX(0.01,Shocks!E23*ABS(B24) ),5) -> 0.06377 | D24: =ROUND(IF(B24<0,B24, B24 - Shocks!D23 * ABS(B24)),5) -> 0.03305 | F24: 0.04815900723 | G24: =ROUND(B24 + MAX(0.01,Shocks!E23*ABS(B24) )+F24-B24, 5) -> 0.06538 | H24: =ROUND(IF(B24<0,B24, B24 - Shocks!D23 * ABS(B24))+F24-B24, 5) -> 0.03466
A25: 13 | B25: 0.04580882769 | C25: =ROUND(B25 + MAX(0.01,Shocks!E24*ABS(B25) ),5) -> 0.06184 | D25: =ROUND(IF(B25<0,B25, B25 - Shocks!D24 * ABS(B25)),5) -> 0.03298 | F25: 0.04742440639 | G25: =ROUND(B25 + MAX(0.01,Shocks!E24*ABS(B25) )+F25-B25, 5) -> 0.06346 | H25: =ROUND(IF(B25<0,B25, B25 - Shocks!D24 * ABS(B25))+F25-B25, 5) -> 0.0346
A26: 14 | B26: 0.04505447059 | C26: =ROUND(B26 + MAX(0.01,Shocks!E25*ABS(B26) ),5) -> 0.06037 | D26: =ROUND(IF(B26<0,B26, B26 - Shocks!D25 * ABS(B26)),5) -> 0.03244 | F26: 0.04666621073 | G26: =ROUND(B26 + MAX(0.01,Shocks!E25*ABS(B26) )+F26-B26, 5) -> 0.06198 | H26: =ROUND(IF(B26<0,B26, B26 - Shocks!D25 * ABS(B26))+F26-B26, 5) -> 0.03405
A27: 15 | B27: 0.04434026795 | C27: =ROUND(B27 + MAX(0.01,Shocks!E26*ABS(B27) ),5) -> 0.05897 | D27: =ROUND(IF(B27<0,B27, B27 - Shocks!D26 * ABS(B27)),5) -> 0.03237 | F27: 0.04594026795 | G27: =ROUND(B27 + MAX(0.01,Shocks!E26*ABS(B27) )+F27-B27, 5) -> 0.06057 | H27: =ROUND(IF(B27<0,B27, B27 - Shocks!D26 * ABS(B27))+F27-B27, 5) -> 0.03397
A28: 16 | B28: 0.04370114596 | C28: =ROUND(B28 + MAX(0.01,Shocks!E27*ABS(B28) ),5) -> 0.05725 | D28: =ROUND(IF(B28<0,B28, B28 - Shocks!D27 * ABS(B28)),5) -> 0.03146 | F28: 0.04528070513 | G28: =ROUND(B28 + MAX(0.01,Shocks!E27*ABS(B28) )+F28-B28, 5) -> 0.05883 | H28: =ROUND(IF(B28<0,B28, B28 - Shocks!D27 * ABS(B28))+F28-B28, 5) -> 0.03304
A29: 17 | B29: 0.04313215504 | C29: =ROUND(B29 + MAX(0.01,Shocks!E28*ABS(B29) ),5) -> 0.05607 | D29: =ROUND(IF(B29<0,B29, B29 - Shocks!D28 * ABS(B29)),5) -> 0.03106 | F29: 0.04468457494 | G29: =ROUND(B29 + MAX(0.01,Shocks!E28*ABS(B29) )+F29-B29, 5) -> 0.05762 | H29: =ROUND(IF(B29<0,B29, B29 - Shocks!D28 * ABS(B29))+F29-B29, 5) -> 0.03261
A30: 18 | B30: 0.04262195519 | C30: =ROUND(B30 + MAX(0.01,Shocks!E29*ABS(B30) ),5) -> 0.05498 | D30: =ROUND(IF(B30<0,B30, B30 - Shocks!D29 * ABS(B30)),5) -> 0.03069 | F30: 0.04414261892 | G30: =ROUND(B30 + MAX(0.01,Shocks!E29*ABS(B30) )+F30-B30, 5) -> 0.0565 | H30: =ROUND(IF(B30<0,B30, B30 - Shocks!D29 * ABS(B30))+F30-B30, 5) -> 0.03221
A31: 19 | B31: 0.04216157393 | C31: =ROUND(B31 + MAX(0.01,Shocks!E30*ABS(B31) ),5) -> 0.05355 | D31: =ROUND(IF(B31<0,B31, B31 - Shocks!D30 * ABS(B31)),5) -> 0.02993 | F31: 0.04364741151 | G31: =ROUND(B31 + MAX(0.01,Shocks!E30*ABS(B31) )+F31-B31, 5) -> 0.05503 | H31: =ROUND(IF(B31<0,B31, B31 - Shocks!D30 * ABS(B31))+F31-B31, 5) -> 0.03142
A32: 20 | B32: 0.04174381445 | C32: =ROUND(B32 + MAX(0.01,Shocks!E31*ABS(B32) ),5) -> 0.0526 | D32: =ROUND(IF(B32<0,B32, B32 - Shocks!D31 * ABS(B32)),5) -> 0.02964 | F32: 0.04319291093 | G32: =ROUND(B32 + MAX(0.01,Shocks!E31*ABS(B32) )+F32-B32, 5) -> 0.05405 | H32: =ROUND(IF(B32<0,B32, B32 - Shocks!D31 * ABS(B32))+F32-B32, 5) -> 0.03109
A33: 21 | B33: 0.04136283321 | C33: =ROUND(B33 + MAX(0.01,Shocks!E32*ABS(B33) ),5) -> 0.05208 | D33: =ROUND(IF(B33<0,B33, B33 - Shocks!D32 * ABS(B33)),5) -> 0.02942 | F33: 0.04277413791 | G33: =ROUND(B33 + MAX(0.01,Shocks!E32*ABS(B33) )+F33-B33, 5) -> 0.05349 | H33: =ROUND(IF(B33<0,B33, B33 - Shocks!D32 * ABS(B33))+F33-B33, 5) -> 0.03083
A34: 22 | B34: 0.041013833 | C34: =ROUND(B34 + MAX(0.01,Shocks!E33*ABS(B34) ),5) -> 0.05161 | D34: =ROUND(IF(B34<0,B34, B34 - Shocks!D33 * ABS(B34)),5) -> 0.02923 | F34: 0.04238694161 | G34: =ROUND(B34 + MAX(0.01,Shocks!E33*ABS(B34) )+F34-B34, 5) -> 0.05298 | H34: =ROUND(IF(B34<0,B34, B34 - Shocks!D33 * ABS(B34))+F34-B34, 5) -> 0.0306
A35: 23 | B35: 0.04069283621 | C35: =ROUND(B35 + MAX(0.01,Shocks!E34*ABS(B35) ),5) -> 0.05117 | D35: =ROUND(IF(B35<0,B35, B35 - Shocks!D34 * ABS(B35)),5) -> 0.02905 | F35: 0.04202782612 | G35: =ROUND(B35 + MAX(0.01,Shocks!E34*ABS(B35) )+F35-B35, 5) -> 0.0525 | H35: =ROUND(IF(B35<0,B35, B35 - Shocks!D34 * ABS(B35))+F35-B35, 5) -> 0.03038
A36: 24 | B36: 0.04039651481 | C36: =ROUND(B36 + MAX(0.01,Shocks!E35*ABS(B36) ),5) -> 0.05076 | D36: =ROUND(IF(B36<0,B36, B36 - Shocks!D35 * ABS(B36)),5) -> 0.02889 | F36: 0.04169381986 | G36: =ROUND(B36 + MAX(0.01,Shocks!E35*ABS(B36) )+F36-B36, 5) -> 0.05206 | H36: =ROUND(IF(B36<0,B36, B36 - Shocks!D35 * ABS(B36))+F36-B36, 5) -> 0.03019
A37: 25 | B37: 0.04012206122 | C37: =ROUND(B37 + MAX(0.01,Shocks!E36*ABS(B37) ),5) -> 0.05038 | D37: =ROUND(IF(B37<0,B37, B37 - Shocks!D36 * ABS(B37)),5) -> 0.02874 | F37: 0.04138237592 | G37: =ROUND(B37 + MAX(0.01,Shocks!E36*ABS(B37) )+F37-B37, 5) -> 0.05164 | H37: =ROUND(IF(B37<0,B37, B37 - Shocks!D36 * ABS(B37))+F37-B37, 5) -> 0.03
A38: 26 | B38: 0.03986708889 | C38: =ROUND(B38 + MAX(0.01,Shocks!E37*ABS(B38) ),5) -> 0.05003 | D38: =ROUND(IF(B38<0,B38, B38 - Shocks!D37 * ABS(B38)),5) -> 0.02861 | F38: 0.04109129498 | G38: =ROUND(B38 + MAX(0.01,Shocks!E37*ABS(B38) )+F38-B38, 5) -> 0.05125 | H38: =ROUND(IF(B38<0,B38, B38 - Shocks!D37 * ABS(B38))+F38-B38, 5) -> 0.02984
A39: 27 | B39: 0.03962955503 | C39: =ROUND(B39 + MAX(0.01,Shocks!E38*ABS(B39) ),5) -> 0.0497 | D39: =ROUND(IF(B39<0,B39, B39 - Shocks!D38 * ABS(B39)),5) -> 0.02849 | F39: 0.04081866494 | G39: =ROUND(B39 + MAX(0.01,Shocks!E38*ABS(B39) )+F39-B39, 5) -> 0.05088 | H39: =ROUND(IF(B39<0,B39, B39 - Shocks!D38 * ABS(B39))+F39-B39, 5) -> 0.02968
A40: 28 | B40: 0.03940769988 | C40: =ROUND(B40 + MAX(0.01,Shocks!E39*ABS(B40) ),5) -> 0.04941 | D40: =ROUND(IF(B40<0,B40, B40 - Shocks!D39 * ABS(B40)),5) -> 0.02838 | F40: 0.04056281326 | G40: =ROUND(B40 + MAX(0.01,Shocks!E39*ABS(B40) )+F40-B40, 5) -> 0.05056 | H40: =ROUND(IF(B40<0,B40, B40 - Shocks!D39 * ABS(B40))+F40-B40, 5) -> 0.02954
A41: 29 | B41: 0.03919999848 | C41: =ROUND(B41 + MAX(0.01,Shocks!E40*ABS(B41) ),5) -> 0.0492 | D41: =ROUND(IF(B41<0,B41, B41 - Shocks!D40 * ABS(B41)),5) -> 0.02829 | F41: 0.04032226872 | G41: =ROUND(B41 + MAX(0.01,Shocks!E40*ABS(B41) )+F41-B41, 5) -> 0.05032 | H41: =ROUND(IF(B41<0,B41, B41 - Shocks!D40 * ABS(B41))+F41-B41, 5) -> 0.02941
A42: 30 | B42: 0.03900512208 | C42: =ROUND(B42 + MAX(0.01,Shocks!E41*ABS(B42) ),5) -> 0.04901 | D42: =ROUND(IF(B42<0,B42, B42 - Shocks!D41 * ABS(B42)),5) -> 0.0282 | F42: 0.04009573068 | G42: =ROUND(B42 + MAX(0.01,Shocks!E41*ABS(B42) )+F42-B42, 5) -> 0.0501 | H42: =ROUND(IF(B42<0,B42, B42 - Shocks!D41 * ABS(B42))+F42-B42, 5) -> 0.02929
A43: 31 | B43: 0.03882190696 | C43: =ROUND(B43 + MAX(0.01,Shocks!E42*ABS(B43) ),5) -> 0.04882 | D43: =ROUND(IF(B43<0,B43, B43 - Shocks!D42 * ABS(B43)),5) -> 0.02811 | F43: 0.03988204395 | G43: =ROUND(B43 + MAX(0.01,Shocks!E42*ABS(B43) )+F43-B43, 5) -> 0.04988 | H43: =ROUND(IF(B43<0,B43, B43 - Shocks!D42 * ABS(B43))+F43-B43, 5) -> 0.02917
A44: 32 | B44: 0.03864932914 | C44: =ROUND(B44 + MAX(0.01,Shocks!E43*ABS(B44) ),5) -> 0.04865 | D44: =ROUND(IF(B44<0,B44, B44 - Shocks!D43 * ABS(B44)),5) -> 0.02804 | F44: 0.03968017821 | G44: =ROUND(B44 + MAX(0.01,Shocks!E43*ABS(B44) )+F44-B44, 5) -> 0.04968 | H44: =ROUND(IF(B44<0,B44, B44 - Shocks!D43 * ABS(B44))+F44-B44, 5) -> 0.02907
A45: 33 | B45: 0.03848648359 | C45: =ROUND(B45 + MAX(0.01,Shocks!E44*ABS(B45) ),5) -> 0.04849 | D45: =ROUND(IF(B45<0,B45, B45 - Shocks!D44 * ABS(B45)),5) -> 0.02797 | F45: 0.03948921096 | G45: =ROUND(B45 + MAX(0.01,Shocks!E44*ABS(B45) )+F45-B45, 5) -> 0.04949 | H45: =ROUND(IF(B45<0,B45, B45 - Shocks!D44 * ABS(B45))+F45-B45, 5) -> 0.02897
A46: 34 | B46: 0.03833256709 | C46: =ROUND(B46 + MAX(0.01,Shocks!E45*ABS(B46) ),5) -> 0.04833 | D46: =ROUND(IF(B46<0,B46, B46 - Shocks!D45 * ABS(B46)),5) -> 0.02791 | F46: 0.0393083133 | G46: =ROUND(B46 + MAX(0.01,Shocks!E45*ABS(B46) )+F46-B46, 5) -> 0.04931 | H46: =ROUND(IF(B46<0,B46, B46 - Shocks!D45 * ABS(B46))+F46-B46, 5) -> 0.02888
A47: 35 | B47: 0.03818686406 | C47: =ROUND(B47 + MAX(0.01,Shocks!E46*ABS(B47) ),5) -> 0.04819 | D47: =ROUND(IF(B47<0,B47, B47 - Shocks!D46 * ABS(B47)),5) -> 0.02785 | F47: 0.039136738 | G47: =ROUND(B47 + MAX(0.01,Shocks!E46*ABS(B47) )+F47-B47, 5) -> 0.04914 | H47: =ROUND(IF(B47<0,B47, B47 - Shocks!D46 * ABS(B47))+F47-B47, 5) -> 0.0288
A48: 36 | B48: 0.03804873468 | C48: =ROUND(B48 + MAX(0.01,Shocks!E47*ABS(B48) ),5) -> 0.04805 | D48: =ROUND(IF(B48<0,B48, B48 - Shocks!D47 * ABS(B48)),5) -> 0.0278 | F48: 0.03897380944 | G48: =ROUND(B48 + MAX(0.01,Shocks!E47*ABS(B48) )+F48-B48, 5) -> 0.04897 | H48: =ROUND(IF(B48<0,B48, B48 - Shocks!D47 * ABS(B48))+F48-B48, 5) -> 0.02872
A49: 37 | B49: 0.03791760489 | C49: =ROUND(B49 + MAX(0.01,Shocks!E48*ABS(B49) ),5) -> 0.04792 | D49: =ROUND(IF(B49<0,B49, B49 - Shocks!D48 * ABS(B49)),5) -> 0.02775 | F49: 0.03881891502 | G49: =ROUND(B49 + MAX(0.01,Shocks!E48*ABS(B49) )+F49-B49, 5) -> 0.04882 | H49: =ROUND(IF(B49<0,B49, B49 - Shocks!D48 * ABS(B49))+F49-B49, 5) -> 0.02865
A50: 38 | B50: 0.03779295806 | C50: =ROUND(B50 + MAX(0.01,Shocks!E49*ABS(B50) ),5) -> 0.04779 | D50: =ROUND(IF(B50<0,B50, B50 - Shocks!D49 * ABS(B50)),5) -> 0.02771 | F50: 0.03867149788 | G50: =ROUND(B50 + MAX(0.01,Shocks!E49*ABS(B50) )+F50-B50, 5) -> 0.04867 | H50: =ROUND(IF(B50<0,B50, B50 - Shocks!D49 * ABS(B50))+F50-B50, 5) -> 0.02859
A51: 39 | B51: 0.03767432779 | C51: =ROUND(B51 + MAX(0.01,Shocks!E50*ABS(B51) ),5) -> 0.04767 | D51: =ROUND(IF(B51<0,B51, B51 - Shocks!D50 * ABS(B51)),5) -> 0.02767 | F51: 0.03853105058 | G51: =ROUND(B51 + MAX(0.01,Shocks!E50*ABS(B51) )+F51-B51, 5) -> 0.04853 | H51: =ROUND(IF(B51<0,B51, B51 - Shocks!D50 * ABS(B51))+F51-B51, 5) -> 0.02853
A52: 40 | B52: 0.03756129186 | C52: =ROUND(B52 + MAX(0.01,Shocks!E51*ABS(B52) ),5) -> 0.04756 | D52: =ROUND(IF(B52<0,B52, B52 - Shocks!D51 * ABS(B52)),5) -> 0.02763 | F52: 0.03839710968 | G52: =ROUND(B52 + MAX(0.01,Shocks!E51*ABS(B52) )+F52-B52, 5) -> 0.0484 | H52: =ROUND(IF(B52<0,B52, B52 - Shocks!D51 * ABS(B52))+F52-B52, 5) -> 0.02847
A53: 41 | B53: 0.03745346703 | C53: =ROUND(B53 + MAX(0.01,Shocks!E52*ABS(B53) ),5) -> 0.04745 | D53: =ROUND(IF(B53<0,B53, B53 - Shocks!D52 * ABS(B53)),5) -> 0.0276 | F53: 0.03826925108 | G53: =ROUND(B53 + MAX(0.01,Shocks!E52*ABS(B53) )+F53-B53, 5) -> 0.04827 | H53: =ROUND(IF(B53<0,B53, B53 - Shocks!D52 * ABS(B53))+F53-B53, 5) -> 0.02842
A54: 42 | B54: 0.03735050455 | C54: =ROUND(B54 + MAX(0.01,Shocks!E53*ABS(B54) ),5) -> 0.04735 | D54: =ROUND(IF(B54<0,B54, B54 - Shocks!D53 * ABS(B54)),5) -> 0.02758 | F54: 0.03814708585 | G54: =ROUND(B54 + MAX(0.01,Shocks!E53*ABS(B54) )+F54-B54, 5) -> 0.04815 | H54: =ROUND(IF(B54<0,B54, B54 - Shocks!D53 * ABS(B54))+F54-B54, 5) -> 0.02837
A55: 43 | B55: 0.03725208633 | C55: =ROUND(B55 + MAX(0.01,Shocks!E54*ABS(B55) ),5) -> 0.04725 | D55: =ROUND(IF(B55<0,B55, B55 - Shocks!D54 * ABS(B55)),5) -> 0.02755 | F55: 0.03803025672 | G55: =ROUND(B55 + MAX(0.01,Shocks!E54*ABS(B55) )+F55-B55, 5) -> 0.04803 | H55: =ROUND(IF(B55<0,B55, B55 - Shocks!D54 * ABS(B55))+F55-B55, 5) -> 0.02833
A56: 44 | B56: 0.03715792155 | C56: =ROUND(B56 + MAX(0.01,Shocks!E55*ABS(B56) ),5) -> 0.04716 | D56: =ROUND(IF(B56<0,B56, B56 - Shocks!D55 * ABS(B56)),5) -> 0.02753 | F56: 0.0379184349 | G56: =ROUND(B56 + MAX(0.01,Shocks!E55*ABS(B56) )+F56-B56, 5) -> 0.04792 | H56: =ROUND(IF(B56<0,B56, B56 - Shocks!D55 * ABS(B56))+F56-B56, 5) -> 0.02829
A57: 45 | B57: 0.03706774379 | C57: =ROUND(B57 + MAX(0.01,Shocks!E56*ABS(B57) ),5) -> 0.04707 | D57: =ROUND(IF(B57<0,B57, B57 - Shocks!D56 * ABS(B57)),5) -> 0.02751 | F57: 0.03781131729 | G57: =ROUND(B57 + MAX(0.01,Shocks!E56*ABS(B57) )+F57-B57, 5) -> 0.04781 | H57: =ROUND(IF(B57<0,B57, B57 - Shocks!D56 * ABS(B57))+F57-B57, 5) -> 0.02825
A58: 46 | B58: 0.03698130848 | C58: =ROUND(B58 + MAX(0.01,Shocks!E57*ABS(B58) ),5) -> 0.04698 | D58: =ROUND(IF(B58<0,B58, B58 - Shocks!D57 * ABS(B58)),5) -> 0.02749 | F58: 0.03770862411 | G58: =ROUND(B58 + MAX(0.01,Shocks!E57*ABS(B58) )+F58-B58, 5) -> 0.04771 | H58: =ROUND(IF(B58<0,B58, B58 - Shocks!D57 * ABS(B58))+F58-B58, 5) -> 0.02822
A59: 47 | B59: 0.03689839067 | C59: =ROUND(B59 + MAX(0.01,Shocks!E58*ABS(B59) ),5) -> 0.0469 | D59: =ROUND(IF(B59<0,B59, B59 - Shocks!D58 * ABS(B59)),5) -> 0.02748 | F59: 0.03761009664 | G59: =ROUND(B59 + MAX(0.01,Shocks!E58*ABS(B59) )+F59-B59, 5) -> 0.04761 | H59: =ROUND(IF(B59<0,B59, B59 - Shocks!D58 * ABS(B59))+F59-B59, 5) -> 0.02819
A60: 48 | B60: 0.03681878306 | C60: =ROUND(B60 + MAX(0.01,Shocks!E59*ABS(B60) ),5) -> 0.04682 | D60: =ROUND(IF(B60<0,B60, B60 - Shocks!D59 * ABS(B60)),5) -> 0.02747 | F60: 0.03751549535 | G60: =ROUND(B60 + MAX(0.01,Shocks!E59*ABS(B60) )+F60-B60, 5) -> 0.04752 | H60: =ROUND(IF(B60<0,B60, B60 - Shocks!D59 * ABS(B60))+F60-B60, 5) -> 0.02816
A61: 49 | B61: 0.03674229433 | C61: =ROUND(B61 + MAX(0.01,Shocks!E60*ABS(B61) ),5) -> 0.04674 | D61: =ROUND(IF(B61<0,B61, B61 - Shocks!D60 * ABS(B61)),5) -> 0.02746 | F61: 0.03742459818 | G61: =ROUND(B61 + MAX(0.01,Shocks!E60*ABS(B61) )+F61-B61, 5) -> 0.04742 | H61: =ROUND(IF(B61<0,B61, B61 - Shocks!D60 * ABS(B61))+F61-B61, 5) -> 0.02814
A62: 50 | B62: 0.03666874757 | C62: =ROUND(B62 + MAX(0.01,Shocks!E61*ABS(B62) ),5) -> 0.04667 | D62: =ROUND(IF(B62<0,B62, B62 - Shocks!D61 * ABS(B62)),5) -> 0.02745 | F62: 0.03733719897 | G62: =ROUND(B62 + MAX(0.01,Shocks!E61*ABS(B62) )+F62-B62, 5) -> 0.04734 | H62: =ROUND(IF(B62<0,B62, B62 - Shocks!D61 * ABS(B62))+F62-B62, 5) -> 0.02812
A63: 51 | B63: 0.03659797896 | C63: =ROUND(B63 + MAX(0.01,Shocks!E62*ABS(B63) ),5) -> 0.0466 | D63: =ROUND(IF(B63<0,B63, B63 - Shocks!D62 * ABS(B63)),5) -> 0.02744 | F63: 0.03725310612 | G63: =ROUND(B63 + MAX(0.01,Shocks!E62*ABS(B63) )+F63-B63, 5) -> 0.04725 | H63: =ROUND(IF(B63<0,B63, B63 - Shocks!D62 * ABS(B63))+F63-B63, 5) -> 0.0281
A64: 52 | B64: 0.03652983655 | C64: =ROUND(B64 + MAX(0.01,Shocks!E63*ABS(B64) ),5) -> 0.04653 | D64: =ROUND(IF(B64<0,B64, B64 - Shocks!D63 * ABS(B64)),5) -> 0.02744 | F64: 0.03717214132 | G64: =ROUND(B64 + MAX(0.01,Shocks!E63*ABS(B64) )+F64-B64, 5) -> 0.04717 | H64: =ROUND(IF(B64<0,B64, B64 - Shocks!D63 * ABS(B64))+F64-B64, 5) -> 0.02808
A65: 53 | B65: 0.03646417923 | C65: =ROUND(B65 + MAX(0.01,Shocks!E64*ABS(B65) ),5) -> 0.04646 | D65: =ROUND(IF(B65<0,B65, B65 - Shocks!D64 * ABS(B65)),5) -> 0.02744 | F65: 0.03709413848 | G65: =ROUND(B65 + MAX(0.01,Shocks!E64*ABS(B65) )+F65-B65, 5) -> 0.04709 | H65: =ROUND(IF(B65<0,B65, B65 - Shocks!D64 * ABS(B65))+F65-B65, 5) -> 0.02807
A66: 54 | B66: 0.03640087575 | C66: =ROUND(B66 + MAX(0.01,Shocks!E65*ABS(B66) ),5) -> 0.0464 | D66: =ROUND(IF(B66<0,B66, B66 - Shocks!D65 * ABS(B66)),5) -> 0.02744 | F66: 0.03701894269 | G66: =ROUND(B66 + MAX(0.01,Shocks!E65*ABS(B66) )+F66-B66, 5) -> 0.04702 | H66: =ROUND(IF(B66<0,B66, B66 - Shocks!D65 * ABS(B66))+F66-B66, 5) -> 0.02805
A67: 55 | B67: 0.03633980385 | C67: =ROUND(B67 + MAX(0.01,Shocks!E66*ABS(B67) ),5) -> 0.04634 | D67: =ROUND(IF(B67<0,B67, B67 - Shocks!D66 * ABS(B67)),5) -> 0.02744 | F67: 0.03694640933 | G67: =ROUND(B67 + MAX(0.01,Shocks!E66*ABS(B67) )+F67-B67, 5) -> 0.04695 | H67: =ROUND(IF(B67<0,B67, B67 - Shocks!D66 * ABS(B67))+F67-B67, 5) -> 0.02804
A68: 56 | B68: 0.03628084957 | C68: =ROUND(B68 + MAX(0.01,Shocks!E67*ABS(B68) ),5) -> 0.04628 | D68: =ROUND(IF(B68<0,B68, B68 - Shocks!D67 * ABS(B68)),5) -> 0.02744 | F68: 0.03687640326 | G68: =ROUND(B68 + MAX(0.01,Shocks!E67*ABS(B68) )+F68-B68, 5) -> 0.04688 | H68: =ROUND(IF(B68<0,B68, B68 - Shocks!D67 * ABS(B68))+F68-B68, 5) -> 0.02803
A69: 57 | B69: 0.03622390647 | C69: =ROUND(B69 + MAX(0.01,Shocks!E68*ABS(B69) ),5) -> 0.04622 | D69: =ROUND(IF(B69<0,B69, B69 - Shocks!D68 * ABS(B69)),5) -> 0.02744 | F69: 0.03680879803 | G69: =ROUND(B69 + MAX(0.01,Shocks!E68*ABS(B69) )+F69-B69, 5) -> 0.04681 | H69: =ROUND(IF(B69<0,B69, B69 - Shocks!D68 * ABS(B69))+F69-B69, 5) -> 0.02803
A70: 58 | B70: 0.03616887509 | C70: =ROUND(B70 + MAX(0.01,Shocks!E69*ABS(B70) ),5) -> 0.04617 | D70: =ROUND(IF(B70<0,B70, B70 - Shocks!D69 * ABS(B70)),5) -> 0.02745 | F70: 0.03674347528 | G70: =ROUND(B70 + MAX(0.01,Shocks!E69*ABS(B70) )+F70-B70, 5) -> 0.04674 | H70: =ROUND(IF(B70<0,B70, B70 - Shocks!D69 * ABS(B70))+F70-B70, 5) -> 0.02802
A71: 59 | B71: 0.03611566233 | C71: =ROUND(B71 + MAX(0.01,Shocks!E70*ABS(B71) ),5) -> 0.04612 | D71: =ROUND(IF(B71<0,B71, B71 - Shocks!D70 * ABS(B71)),5) -> 0.02745 | F71: 0.03668032406 | G71: =ROUND(B71 + MAX(0.01,Shocks!E70*ABS(B71) )+F71-B71, 5) -> 0.04668 | H71: =ROUND(IF(B71<0,B71, B71 - Shocks!D70 * ABS(B71))+F71-B71, 5) -> 0.02802
A72: 60 | B72: 0.03606418099 | C72: =ROUND(B72 + MAX(0.01,Shocks!E71*ABS(B72) ),5) -> 0.04606 | D72: =ROUND(IF(B72<0,B72, B72 - Shocks!D71 * ABS(B72)),5) -> 0.02746 | F72: 0.03661924031 | G72: =ROUND(B72 + MAX(0.01,Shocks!E71*ABS(B72) )+F72-B72, 5) -> 0.04662 | H72: =ROUND(IF(B72<0,B72, B72 - Shocks!D71 * ABS(B72))+F72-B72, 5) -> 0.02802
A73: 61 | B73: 0.03601434929 | C73: =ROUND(B73 + MAX(0.01,Shocks!E72*ABS(B73) ),5) -> 0.04601 | D73: =ROUND(IF(B73<0,B73, B73 - Shocks!D72 * ABS(B73)),5) -> 0.02747 | F73: 0.03656012631 | G73: =ROUND(B73 + MAX(0.01,Shocks!E72*ABS(B73) )+F73-B73, 5) -> 0.04656 | H73: =ROUND(IF(B73<0,B73, B73 - Shocks!D72 * ABS(B73))+F73-B73, 5) -> 0.02801
A74: 62 | B74: 0.03596609048 | C74: =ROUND(B74 + MAX(0.01,Shocks!E73*ABS(B74) ),5) -> 0.04597 | D74: =ROUND(IF(B74<0,B74, B74 - Shocks!D73 * ABS(B74)),5) -> 0.02748 | F74: 0.03650289026 | G74: =ROUND(B74 + MAX(0.01,Shocks!E73*ABS(B74) )+F74-B74, 5) -> 0.0465 | H74: =ROUND(IF(B74<0,B74, B74 - Shocks!D73 * ABS(B74))+F74-B74, 5) -> 0.02801
A75: 63 | B75: 0.03591933241 | C75: =ROUND(B75 + MAX(0.01,Shocks!E74*ABS(B75) ),5) -> 0.04592 | D75: =ROUND(IF(B75<0,B75, B75 - Shocks!D74 * ABS(B75)),5) -> 0.02749 | F75: 0.03644744582 | G75: =ROUND(B75 + MAX(0.01,Shocks!E74*ABS(B75) )+F75-B75, 5) -> 0.04645 | H75: =ROUND(IF(B75<0,B75, B75 - Shocks!D74 * ABS(B75))+F75-B75, 5) -> 0.02802
A76: 64 | B76: 0.03587400724 | C76: =ROUND(B76 + MAX(0.01,Shocks!E75*ABS(B76) ),5) -> 0.04587 | D76: =ROUND(IF(B76<0,B76, B76 - Shocks!D75 * ABS(B76)),5) -> 0.0275 | F76: 0.03639371174 | G76: =ROUND(B76 + MAX(0.01,Shocks!E75*ABS(B76) )+F76-B76, 5) -> 0.04639 | H76: =ROUND(IF(B76<0,B76, B76 - Shocks!D75 * ABS(B76))+F76-B76, 5) -> 0.02802
A77: 65 | B77: 0.03583005111 | C77: =ROUND(B77 + MAX(0.01,Shocks!E76*ABS(B77) ),5) -> 0.04583 | D77: =ROUND(IF(B77<0,B77, B77 - Shocks!D76 * ABS(B77)),5) -> 0.02751 | F77: 0.03634161147 | G77: =ROUND(B77 + MAX(0.01,Shocks!E76*ABS(B77) )+F77-B77, 5) -> 0.04634 | H77: =ROUND(IF(B77<0,B77, B77 - Shocks!D76 * ABS(B77))+F77-B77, 5) -> 0.02802
A78: 66 | B78: 0.03578740386 | C78: =ROUND(B78 + MAX(0.01,Shocks!E77*ABS(B78) ),5) -> 0.04579 | D78: =ROUND(IF(B78<0,B78, B78 - Shocks!D77 * ABS(B78)),5) -> 0.02753 | F78: 0.03629107288 | G78: =ROUND(B78 + MAX(0.01,Shocks!E77*ABS(B78) )+F78-B78, 5) -> 0.04629 | H78: =ROUND(IF(B78<0,B78, B78 - Shocks!D77 * ABS(B78))+F78-B78, 5) -> 0.02803
A79: 67 | B79: 0.03574600873 | C79: =ROUND(B79 + MAX(0.01,Shocks!E78*ABS(B79) ),5) -> 0.04575 | D79: =ROUND(IF(B79<0,B79, B79 - Shocks!D78 * ABS(B79)),5) -> 0.02754 | F79: 0.03624202789 | G79: =ROUND(B79 + MAX(0.01,Shocks!E78*ABS(B79) )+F79-B79, 5) -> 0.04624 | H79: =ROUND(IF(B79<0,B79, B79 - Shocks!D78 * ABS(B79))+F79-B79, 5) -> 0.02804
A80: 68 | B80: 0.03570581219 | C80: =ROUND(B80 + MAX(0.01,Shocks!E79*ABS(B80) ),5) -> 0.04571 | D80: =ROUND(IF(B80<0,B80, B80 - Shocks!D79 * ABS(B80)),5) -> 0.02755 | F80: 0.03619441227 | G80: =ROUND(B80 + MAX(0.01,Shocks!E79*ABS(B80) )+F80-B80, 5) -> 0.04619 | H80: =ROUND(IF(B80<0,B80, B80 - Shocks!D79 * ABS(B80))+F80-B80, 5) -> 0.02804
A81: 69 | B81: 0.03566676364 | C81: =ROUND(B81 + MAX(0.01,Shocks!E80*ABS(B81) ),5) -> 0.04567 | D81: =ROUND(IF(B81<0,B81, B81 - Shocks!D80 * ABS(B81)),5) -> 0.02757 | F81: 0.03614816532 | G81: =ROUND(B81 + MAX(0.01,Shocks!E80*ABS(B81) )+F81-B81, 5) -> 0.04615 | H81: =ROUND(IF(B81<0,B81, B81 - Shocks!D80 * ABS(B81))+F81-B81, 5) -> 0.02805
A82: 70 | B82: 0.03562881528 | C82: =ROUND(B82 + MAX(0.01,Shocks!E81*ABS(B82) ),5) -> 0.04563 | D82: =ROUND(IF(B82<0,B82, B82 - Shocks!D81 * ABS(B82)),5) -> 0.02759 | F82: 0.03610322966 | G82: =ROUND(B82 + MAX(0.01,Shocks!E81*ABS(B82) )+F82-B82, 5) -> 0.0461 | H82: =ROUND(IF(B82<0,B82, B82 - Shocks!D81 * ABS(B82))+F82-B82, 5) -> 0.02806
A83: 71 | B83: 0.03559192188 | C83: =ROUND(B83 + MAX(0.01,Shocks!E82*ABS(B83) ),5) -> 0.04559 | D83: =ROUND(IF(B83<0,B83, B83 - Shocks!D82 * ABS(B83)),5) -> 0.0276 | F83: 0.03605955102 | G83: =ROUND(B83 + MAX(0.01,Shocks!E82*ABS(B83) )+F83-B83, 5) -> 0.04606 | H83: =ROUND(IF(B83<0,B83, B83 - Shocks!D82 * ABS(B83))+F83-B83, 5) -> 0.02807
A84: 72 | B84: 0.03555604063 | C84: =ROUND(B84 + MAX(0.01,Shocks!E83*ABS(B84) ),5) -> 0.04556 | D84: =ROUND(IF(B84<0,B84, B84 - Shocks!D83 * ABS(B84)),5) -> 0.02762 | F84: 0.03601707803 | G84: =ROUND(B84 + MAX(0.01,Shocks!E83*ABS(B84) )+F84-B84, 5) -> 0.04602 | H84: =ROUND(IF(B84<0,B84, B84 - Shocks!D83 * ABS(B84))+F84-B84, 5) -> 0.02808
A85: 73 | B85: 0.03552113097 | C85: =ROUND(B85 + MAX(0.01,Shocks!E84*ABS(B85) ),5) -> 0.04552 | D85: =ROUND(IF(B85<0,B85, B85 - Shocks!D84 * ABS(B85)),5) -> 0.02764 | F85: 0.035975762 | G85: =ROUND(B85 + MAX(0.01,Shocks!E84*ABS(B85) )+F85-B85, 5) -> 0.04598 | H85: =ROUND(IF(B85<0,B85, B85 - Shocks!D84 * ABS(B85))+F85-B85, 5) -> 0.0281
A86: 74 | B86: 0.03548715445 | C86: =ROUND(B86 + MAX(0.01,Shocks!E85*ABS(B86) ),5) -> 0.04549 | D86: =ROUND(IF(B86<0,B86, B86 - Shocks!D85 * ABS(B86)),5) -> 0.02766 | F86: 0.03593555682 | G86: =ROUND(B86 + MAX(0.01,Shocks!E85*ABS(B86) )+F86-B86, 5) -> 0.04594 | H86: =ROUND(IF(B86<0,B86, B86 - Shocks!D85 * ABS(B86))+F86-B86, 5) -> 0.02811
A87: 75 | B87: 0.03545407461 | C87: =ROUND(B87 + MAX(0.01,Shocks!E86*ABS(B87) ),5) -> 0.04545 | D87: =ROUND(IF(B87<0,B87, B87 - Shocks!D86 * ABS(B87)),5) -> 0.02768 | F87: 0.03589641873 | G87: =ROUND(B87 + MAX(0.01,Shocks!E86*ABS(B87) )+F87-B87, 5) -> 0.0459 | H87: =ROUND(IF(B87<0,B87, B87 - Shocks!D86 * ABS(B87))+F87-B87, 5) -> 0.02812
A88: 76 | B88: 0.03542185681 | C88: =ROUND(B88 + MAX(0.01,Shocks!E87*ABS(B88) ),5) -> 0.04542 | D88: =ROUND(IF(B88<0,B88, B88 - Shocks!D87 * ABS(B88)),5) -> 0.0277 | F88: 0.03585830622 | G88: =ROUND(B88 + MAX(0.01,Shocks!E87*ABS(B88) )+F88-B88, 5) -> 0.04586 | H88: =ROUND(IF(B88<0,B88, B88 - Shocks!D87 * ABS(B88))+F88-B88, 5) -> 0.02814
A89: 77 | B89: 0.03539046817 | C89: =ROUND(B89 + MAX(0.01,Shocks!E88*ABS(B89) ),5) -> 0.04539 | D89: =ROUND(IF(B89<0,B89, B89 - Shocks!D88 * ABS(B89)),5) -> 0.02772 | F89: 0.03582117984 | G89: =ROUND(B89 + MAX(0.01,Shocks!E88*ABS(B89) )+F89-B89, 5) -> 0.04582 | H89: =ROUND(IF(B89<0,B89, B89 - Shocks!D88 * ABS(B89))+F89-B89, 5) -> 0.02815
A90: 78 | B90: 0.03535987744 | C90: =ROUND(B90 + MAX(0.01,Shocks!E89*ABS(B90) ),5) -> 0.04536 | D90: =ROUND(IF(B90<0,B90, B90 - Shocks!D89 * ABS(B90)),5) -> 0.02774 | F90: 0.03578500216 | G90: =ROUND(B90 + MAX(0.01,Shocks!E89*ABS(B90) )+F90-B90, 5) -> 0.04579 | H90: =ROUND(IF(B90<0,B90, B90 - Shocks!D89 * ABS(B90))+F90-B90, 5) -> 0.02817
A91: 79 | B91: 0.03533005491 | C91: =ROUND(B91 + MAX(0.01,Shocks!E90*ABS(B91) ),5) -> 0.04533 | D91: =ROUND(IF(B91<0,B91, B91 - Shocks!D90 * ABS(B91)),5) -> 0.02776 | F91: 0.03574973754 | G91: =ROUND(B91 + MAX(0.01,Shocks!E90*ABS(B91) )+F91-B91, 5) -> 0.04575 | H91: =ROUND(IF(B91<0,B91, B91 - Shocks!D90 * ABS(B91))+F91-B91, 5) -> 0.02818
A92: 80 | B92: 0.03530097228 | C92: =ROUND(B92 + MAX(0.01,Shocks!E91*ABS(B92) ),5) -> 0.0453 | D92: =ROUND(IF(B92<0,B92, B92 - Shocks!D91 * ABS(B92)),5) -> 0.02779 | F92: 0.03571535212 | G92: =ROUND(B92 + MAX(0.01,Shocks!E91*ABS(B92) )+F92-B92, 5) -> 0.04572 | H92: =ROUND(IF(B92<0,B92, B92 - Shocks!D91 * ABS(B92))+F92-B92, 5) -> 0.0282
A93: 81 | B93: 0.03527260264 | C93: =ROUND(B93 + MAX(0.01,Shocks!E92*ABS(B93) ),5) -> 0.04527 | D93: =ROUND(IF(B93<0,B93, B93 - Shocks!D92 * ABS(B93)),5) -> 0.02781 | F93: 0.03568181365 | G93: =ROUND(B93 + MAX(0.01,Shocks!E92*ABS(B93) )+F93-B93, 5) -> 0.04568 | H93: =ROUND(IF(B93<0,B93, B93 - Shocks!D92 * ABS(B93))+F93-B93, 5) -> 0.02822
A94: 82 | B94: 0.03524492032 | C94: =ROUND(B94 + MAX(0.01,Shocks!E93*ABS(B94) ),5) -> 0.04524 | D94: =ROUND(IF(B94<0,B94, B94 - Shocks!D93 * ABS(B94)),5) -> 0.02783 | F94: 0.03564909142 | G94: =ROUND(B94 + MAX(0.01,Shocks!E93*ABS(B94) )+F94-B94, 5) -> 0.04565 | H94: =ROUND(IF(B94<0,B94, B94 - Shocks!D93 * ABS(B94))+F94-B94, 5) -> 0.02824
A95: 83 | B95: 0.03521790088 | C95: =ROUND(B95 + MAX(0.01,Shocks!E94*ABS(B95) ),5) -> 0.04522 | D95: =ROUND(IF(B95<0,B95, B95 - Shocks!D94 * ABS(B95)),5) -> 0.02786 | F95: 0.03561715619 | G95: =ROUND(B95 + MAX(0.01,Shocks!E94*ABS(B95) )+F95-B95, 5) -> 0.04562 | H95: =ROUND(IF(B95<0,B95, B95 - Shocks!D94 * ABS(B95))+F95-B95, 5) -> 0.02826
A96: 84 | B96: 0.03519152099 | C96: =ROUND(B96 + MAX(0.01,Shocks!E95*ABS(B96) ),5) -> 0.04519 | D96: =ROUND(IF(B96<0,B96, B96 - Shocks!D95 * ABS(B96)),5) -> 0.02788 | F96: 0.03558598005 | G96: =ROUND(B96 + MAX(0.01,Shocks!E95*ABS(B96) )+F96-B96, 5) -> 0.04559 | H96: =ROUND(IF(B96<0,B96, B96 - Shocks!D95 * ABS(B96))+F96-B96, 5) -> 0.02828
A97: 85 | B97: 0.03516575843 | C97: =ROUND(B97 + MAX(0.01,Shocks!E96*ABS(B97) ),5) -> 0.04517 | D97: =ROUND(IF(B97<0,B97, B97 - Shocks!D96 * ABS(B97)),5) -> 0.02791 | F97: 0.0355555364 | G97: =ROUND(B97 + MAX(0.01,Shocks!E96*ABS(B97) )+F97-B97, 5) -> 0.04556 | H97: =ROUND(IF(B97<0,B97, B97 - Shocks!D96 * ABS(B97))+F97-B97, 5) -> 0.0283
A98: 86 | B98: 0.03514059193 | C98: =ROUND(B98 + MAX(0.01,Shocks!E97*ABS(B98) ),5) -> 0.04514 | D98: =ROUND(IF(B98<0,B98, B98 - Shocks!D97 * ABS(B98)),5) -> 0.02793 | F98: 0.03552579987 | G98: =ROUND(B98 + MAX(0.01,Shocks!E97*ABS(B98) )+F98-B98, 5) -> 0.04553 | H98: =ROUND(IF(B98<0,B98, B98 - Shocks!D97 * ABS(B98))+F98-B98, 5) -> 0.02832
A99: 87 | B99: 0.03511600121 | C99: =ROUND(B99 + MAX(0.01,Shocks!E98*ABS(B99) ),5) -> 0.04512 | D99: =ROUND(IF(B99<0,B99, B99 - Shocks!D98 * ABS(B99)),5) -> 0.02796 | F99: 0.03549674622 | G99: =ROUND(B99 + MAX(0.01,Shocks!E98*ABS(B99) )+F99-B99, 5) -> 0.0455 | H99: =ROUND(IF(B99<0,B99, B99 - Shocks!D98 * ABS(B99))+F99-B99, 5) -> 0.02834
A100: 88 | B100: 0.03509196689 | C100: =ROUND(B100 + MAX(0.01,Shocks!E99*ABS(B100) ),5) -> 0.04509 | D100: =ROUND(IF(B100<0,B100, B100 - Shocks!D99 * ABS(B100)),5) -> 0.02798 | F100: 0.03546835229 | G100: =ROUND(B100 + MAX(0.01,Shocks!E99*ABS(B100) )+F100-B100, 5) -> 0.04547 | H100: =ROUND(IF(B100<0,B100, B100 - Shocks!D99 * ABS(B100))+F100-B100, 5) -> 0.02836
A101: 89 | B101: 0.03506847044 | C101: =ROUND(B101 + MAX(0.01,Shocks!E100*ABS(B101) ),5) -> 0.04507 | D101: =ROUND(IF(B101<0,B101, B101 - Shocks!D100 * ABS(B101)),5) -> 0.02801 | F101: 0.03544059597 | G101: =ROUND(B101 + MAX(0.01,Shocks!E100*ABS(B101) )+F101-B101, 5) -> 0.04544 | H101: =ROUND(IF(B101<0,B101, B101 - Shocks!D100 * ABS(B101))+F101-B101, 5) -> 0.02838
A102: 90 | B102: 0.03504549411 | C102: =ROUND(B102 + MAX(0.01,Shocks!E101*ABS(B102) ),5) -> 0.04505 | D102: =ROUND(IF(B102<0,B102, B102 - Shocks!D101 * ABS(B102)),5) -> 0.02804 | F102: 0.03541345608 | G102: =ROUND(B102 + MAX(0.01,Shocks!E101*ABS(B102) )+F102-B102, 5) -> 0.04541 | H102: =ROUND(IF(B102<0,B102, B102 - Shocks!D101 * ABS(B102))+F102-B102, 5) -> 0.0284
A103: 91 | B103: 0.03502302095 | C103: =ROUND(B103 + MAX(0.01,Shocks!E102*ABS(B103) ),5) -> 0.04502 | D103: =ROUND(IF(B103<0,B103, B103 - Shocks!D102 * ABS(B103)),5) -> 0.02802 | F103: 0.03538691241 | G103: =ROUND(B103 + MAX(0.01,Shocks!E102*ABS(B103) )+F103-B103, 5) -> 0.04539 | H103: =ROUND(IF(B103<0,B103, B103 - Shocks!D102 * ABS(B103))+F103-B103, 5) -> 0.02838
A104: 92 | B104: 0.03500103471 | C104: =ROUND(B104 + MAX(0.01,Shocks!E103*ABS(B104) ),5) -> 0.045 | D104: =ROUND(IF(B104<0,B104, B104 - Shocks!D103 * ABS(B104)),5) -> 0.028 | F104: 0.03536094558 | G104: =ROUND(B104 + MAX(0.01,Shocks!E103*ABS(B104) )+F104-B104, 5) -> 0.04536 | H104: =ROUND(IF(B104<0,B104, B104 - Shocks!D103 * ABS(B104))+F104-B104, 5) -> 0.02836
A105: 93 | B105: 0.03497951984 | C105: =ROUND(B105 + MAX(0.01,Shocks!E104*ABS(B105) ),5) -> 0.04498 | D105: =ROUND(IF(B105<0,B105, B105 - Shocks!D104 * ABS(B105)),5) -> 0.02798 | F105: 0.03533553704 | G105: =ROUND(B105 + MAX(0.01,Shocks!E104*ABS(B105) )+F105-B105, 5) -> 0.04534 | H105: =ROUND(IF(B105<0,B105, B105 - Shocks!D104 * ABS(B105))+F105-B105, 5) -> 0.02834
A106: 94 | B106: 0.03495846143 | C106: =ROUND(B106 + MAX(0.01,Shocks!E105*ABS(B106) ),5) -> 0.04496 | D106: =ROUND(IF(B106<0,B106, B106 - Shocks!D105 * ABS(B106)),5) -> 0.02797 | F106: 0.03531066905 | G106: =ROUND(B106 + MAX(0.01,Shocks!E105*ABS(B106) )+F106-B106, 5) -> 0.04531 | H106: =ROUND(IF(B106<0,B106, B106 - Shocks!D105 * ABS(B106))+F106-B106, 5) -> 0.02832
A107: 95 | B107: 0.03493784517 | C107: =ROUND(B107 + MAX(0.01,Shocks!E106*ABS(B107) ),5) -> 0.04494 | D107: =ROUND(IF(B107<0,B107, B107 - Shocks!D106 * ABS(B107)),5) -> 0.02795 | F107: 0.03528632457 | G107: =ROUND(B107 + MAX(0.01,Shocks!E106*ABS(B107) )+F107-B107, 5) -> 0.04529 | H107: =ROUND(IF(B107<0,B107, B107 - Shocks!D106 * ABS(B107))+F107-B107, 5) -> 0.0283
A108: 96 | B108: 0.03491765738 | C108: =ROUND(B108 + MAX(0.01,Shocks!E107*ABS(B108) ),5) -> 0.04492 | D108: =ROUND(IF(B108<0,B108, B108 - Shocks!D107 * ABS(B108)),5) -> 0.02793 | F108: 0.03526248729 | G108: =ROUND(B108 + MAX(0.01,Shocks!E107*ABS(B108) )+F108-B108, 5) -> 0.04526 | H108: =ROUND(IF(B108<0,B108, B108 - Shocks!D107 * ABS(B108))+F108-B108, 5) -> 0.02828
A109: 97 | B109: 0.0348978849 | C109: =ROUND(B109 + MAX(0.01,Shocks!E108*ABS(B109) ),5) -> 0.0449 | D109: =ROUND(IF(B109<0,B109, B109 - Shocks!D108 * ABS(B109)),5) -> 0.02792 | F109: 0.03523914157 | G109: =ROUND(B109 + MAX(0.01,Shocks!E108*ABS(B109) )+F109-B109, 5) -> 0.04524 | H109: =ROUND(IF(B109<0,B109, B109 - Shocks!D108 * ABS(B109))+F109-B109, 5) -> 0.02826
A110: 98 | B110: 0.0348785151 | C110: =ROUND(B110 + MAX(0.01,Shocks!E109*ABS(B110) ),5) -> 0.04488 | D110: =ROUND(IF(B110<0,B110, B110 - Shocks!D109 * ABS(B110)),5) -> 0.0279 | F110: 0.03521627237 | G110: =ROUND(B110 + MAX(0.01,Shocks!E109*ABS(B110) )+F110-B110, 5) -> 0.04522 | H110: =ROUND(IF(B110<0,B110, B110 - Shocks!D109 * ABS(B110))+F110-B110, 5) -> 0.02824
A111: 99 | B111: 0.03485953587 | C111: =ROUND(B111 + MAX(0.01,Shocks!E110*ABS(B111) ),5) -> 0.04486 | D111: =ROUND(IF(B111<0,B111, B111 - Shocks!D110 * ABS(B111)),5) -> 0.02789 | F111: 0.0351938653 | G111: =ROUND(B111 + MAX(0.01,Shocks!E110*ABS(B111) )+F111-B111, 5) -> 0.04519 | H111: =ROUND(IF(B111<0,B111, B111 - Shocks!D110 * ABS(B111))+F111-B111, 5) -> 0.02822
A112: 100 | B112: 0.03484093556 | C112: =ROUND(B112 + MAX(0.01,Shocks!E111*ABS(B112) ),5) -> 0.04484 | D112: =ROUND(IF(B112<0,B112, B112 - Shocks!D111 * ABS(B112)),5) -> 0.02787 | F112: 0.03517190651 | G112: =ROUND(B112 + MAX(0.01,Shocks!E111*ABS(B112) )+F112-B112, 5) -> 0.04517 | H112: =ROUND(IF(B112<0,B112, B112 - Shocks!D111 * ABS(B112))+F112-B112, 5) -> 0.0282
A113: 101 | B113: 0.03482270299 | C113: =ROUND(B113 + MAX(0.01,Shocks!E112*ABS(B113) ),5) -> 0.04482 | D113: =ROUND(IF(B113<0,B113, B113 - Shocks!D112 * ABS(B113)),5) -> 0.02786 | F113: 0.03515038271 | G113: =ROUND(B113 + MAX(0.01,Shocks!E112*ABS(B113) )+F113-B113, 5) -> 0.04515 | H113: =ROUND(IF(B113<0,B113, B113 - Shocks!D112 * ABS(B113))+F113-B113, 5) -> 0.02819
A114: 102 | B114: 0.0348048274 | C114: =ROUND(B114 + MAX(0.01,Shocks!E113*ABS(B114) ),5) -> 0.0448 | D114: =ROUND(IF(B114<0,B114, B114 - Shocks!D113 * ABS(B114)),5) -> 0.02784 | F114: 0.03512928111 | G114: =ROUND(B114 + MAX(0.01,Shocks!E113*ABS(B114) )+F114-B114, 5) -> 0.04513 | H114: =ROUND(IF(B114<0,B114, B114 - Shocks!D113 * ABS(B114))+F114-B114, 5) -> 0.02817
A115: 103 | B115: 0.03478729846 | C115: =ROUND(B115 + MAX(0.01,Shocks!E114*ABS(B115) ),5) -> 0.04479 | D115: =ROUND(IF(B115<0,B115, B115 - Shocks!D114 * ABS(B115)),5) -> 0.02783 | F115: 0.03510858944 | G115: =ROUND(B115 + MAX(0.01,Shocks!E114*ABS(B115) )+F115-B115, 5) -> 0.04511 | H115: =ROUND(IF(B115<0,B115, B115 - Shocks!D114 * ABS(B115))+F115-B115, 5) -> 0.02815
A116: 104 | B116: 0.03477010621 | C116: =ROUND(B116 + MAX(0.01,Shocks!E115*ABS(B116) ),5) -> 0.04477 | D116: =ROUND(IF(B116<0,B116, B116 - Shocks!D115 * ABS(B116)),5) -> 0.02782 | F116: 0.03508829587 | G116: =ROUND(B116 + MAX(0.01,Shocks!E115*ABS(B116) )+F116-B116, 5) -> 0.04509 | H116: =ROUND(IF(B116<0,B116, B116 - Shocks!D115 * ABS(B116))+F116-B116, 5) -> 0.02813
A117: 105 | B117: 0.03475324108 | C117: =ROUND(B117 + MAX(0.01,Shocks!E116*ABS(B117) ),5) -> 0.04475 | D117: =ROUND(IF(B117<0,B117, B117 - Shocks!D116 * ABS(B117)),5) -> 0.0278 | F117: 0.03506838906 | G117: =ROUND(B117 + MAX(0.01,Shocks!E116*ABS(B117) )+F117-B117, 5) -> 0.04507 | H117: =ROUND(IF(B117<0,B117, B117 - Shocks!D116 * ABS(B117))+F117-B117, 5) -> 0.02812
A118: 106 | B118: 0.03473669386 | C118: =ROUND(B118 + MAX(0.01,Shocks!E117*ABS(B118) ),5) -> 0.04474 | D118: =ROUND(IF(B118<0,B118, B118 - Shocks!D117 * ABS(B118)),5) -> 0.02779 | F118: 0.03504885806 | G118: =ROUND(B118 + MAX(0.01,Shocks!E117*ABS(B118) )+F118-B118, 5) -> 0.04505 | H118: =ROUND(IF(B118<0,B118, B118 - Shocks!D117 * ABS(B118))+F118-B118, 5) -> 0.0281
A119: 107 | B119: 0.03472045566 | C119: =ROUND(B119 + MAX(0.01,Shocks!E118*ABS(B119) ),5) -> 0.04472 | D119: =ROUND(IF(B119<0,B119, B119 - Shocks!D118 * ABS(B119)),5) -> 0.02778 | F119: 0.03502969233 | G119: =ROUND(B119 + MAX(0.01,Shocks!E118*ABS(B119) )+F119-B119, 5) -> 0.04503 | H119: =ROUND(IF(B119<0,B119, B119 - Shocks!D118 * ABS(B119))+F119-B119, 5) -> 0.02809
A120: 108 | B120: 0.03470451794 | C120: =ROUND(B120 + MAX(0.01,Shocks!E119*ABS(B120) ),5) -> 0.0447 | D120: =ROUND(IF(B120<0,B120, B120 - Shocks!D119 * ABS(B120)),5) -> 0.02776 | F120: 0.03501088174 | G120: =ROUND(B120 + MAX(0.01,Shocks!E119*ABS(B120) )+F120-B120, 5) -> 0.04501 | H120: =ROUND(IF(B120<0,B120, B120 - Shocks!D119 * ABS(B120))+F120-B120, 5) -> 0.02807
A121: 109 | B121: 0.03468887246 | C121: =ROUND(B121 + MAX(0.01,Shocks!E120*ABS(B121) ),5) -> 0.04469 | D121: =ROUND(IF(B121<0,B121, B121 - Shocks!D120 * ABS(B121)),5) -> 0.02775 | F121: 0.03499241651 | G121: =ROUND(B121 + MAX(0.01,Shocks!E120*ABS(B121) )+F121-B121, 5) -> 0.04499 | H121: =ROUND(IF(B121<0,B121, B121 - Shocks!D120 * ABS(B121))+F121-B121, 5) -> 0.02805
A122: 110 | B122: 0.03467351127 | C122: =ROUND(B122 + MAX(0.01,Shocks!E121*ABS(B122) ),5) -> 0.04467 | D122: =ROUND(IF(B122<0,B122, B122 - Shocks!D121 * ABS(B122)),5) -> 0.02774 | F122: 0.03497428724 | G122: =ROUND(B122 + MAX(0.01,Shocks!E121*ABS(B122) )+F122-B122, 5) -> 0.04497 | H122: =ROUND(IF(B122<0,B122, B122 - Shocks!D121 * ABS(B122))+F122-B122, 5) -> 0.02804
A123: 111 | B123: 0.03465842672 | C123: =ROUND(B123 + MAX(0.01,Shocks!E122*ABS(B123) ),5) -> 0.04466 | D123: =ROUND(IF(B123<0,B123, B123 - Shocks!D122 * ABS(B123)),5) -> 0.02773 | F123: 0.03495648483 | G123: =ROUND(B123 + MAX(0.01,Shocks!E122*ABS(B123) )+F123-B123, 5) -> 0.04496 | H123: =ROUND(IF(B123<0,B123, B123 - Shocks!D122 * ABS(B123))+F123-B123, 5) -> 0.02802
A124: 112 | B124: 0.03464361142 | C124: =ROUND(B124 + MAX(0.01,Shocks!E123*ABS(B124) ),5) -> 0.04464 | D124: =ROUND(IF(B124<0,B124, B124 - Shocks!D123 * ABS(B124)),5) -> 0.02771 | F124: 0.03493900055 | G124: =ROUND(B124 + MAX(0.01,Shocks!E123*ABS(B124) )+F124-B124, 5) -> 0.04494 | H124: =ROUND(IF(B124<0,B124, B124 - Shocks!D123 * ABS(B124))+F124-B124, 5) -> 0.02801
A125: 113 | B125: 0.03462905824 | C125: =ROUND(B125 + MAX(0.01,Shocks!E124*ABS(B125) ),5) -> 0.04463 | D125: =ROUND(IF(B125<0,B125, B125 - Shocks!D124 * ABS(B125)),5) -> 0.0277 | F125: 0.03492182593 | G125: =ROUND(B125 + MAX(0.01,Shocks!E124*ABS(B125) )+F125-B125, 5) -> 0.04492 | H125: =ROUND(IF(B125<0,B125, B125 - Shocks!D124 * ABS(B125))+F125-B125, 5) -> 0.028
A126: 114 | B126: 0.03461476031 | C126: =ROUND(B126 + MAX(0.01,Shocks!E125*ABS(B126) ),5) -> 0.04461 | D126: =ROUND(IF(B126<0,B126, B126 - Shocks!D125 * ABS(B126)),5) -> 0.02769 | F126: 0.03490495284 | G126: =ROUND(B126 + MAX(0.01,Shocks!E125*ABS(B126) )+F126-B126, 5) -> 0.0449 | H126: =ROUND(IF(B126<0,B126, B126 - Shocks!D125 * ABS(B126))+F126-B126, 5) -> 0.02798
A127: 115 | B127: 0.03460071097 | C127: =ROUND(B127 + MAX(0.01,Shocks!E126*ABS(B127) ),5) -> 0.0446 | D127: =ROUND(IF(B127<0,B127, B127 - Shocks!D126 * ABS(B127)),5) -> 0.02768 | F127: 0.0348883734 | G127: =ROUND(B127 + MAX(0.01,Shocks!E126*ABS(B127) )+F127-B127, 5) -> 0.04489 | H127: =ROUND(IF(B127<0,B127, B127 - Shocks!D126 * ABS(B127))+F127-B127, 5) -> 0.02797
A128: 116 | B128: 0.03458690382 | C128: =ROUND(B128 + MAX(0.01,Shocks!E127*ABS(B128) ),5) -> 0.04459 | D128: =ROUND(IF(B128<0,B128, B128 - Shocks!D127 * ABS(B128)),5) -> 0.02767 | F128: 0.03487208003 | G128: =ROUND(B128 + MAX(0.01,Shocks!E127*ABS(B128) )+F128-B128, 5) -> 0.04487 | H128: =ROUND(IF(B128<0,B128, B128 - Shocks!D127 * ABS(B128))+F128-B128, 5) -> 0.02795
A129: 117 | B129: 0.03457333266 | C129: =ROUND(B129 + MAX(0.01,Shocks!E128*ABS(B129) ),5) -> 0.04457 | D129: =ROUND(IF(B129<0,B129, B129 - Shocks!D128 * ABS(B129)),5) -> 0.02766 | F129: 0.03485606537 | G129: =ROUND(B129 + MAX(0.01,Shocks!E128*ABS(B129) )+F129-B129, 5) -> 0.04486 | H129: =ROUND(IF(B129<0,B129, B129 - Shocks!D128 * ABS(B129))+F129-B129, 5) -> 0.02794
A130: 118 | B130: 0.0345599915 | C130: =ROUND(B130 + MAX(0.01,Shocks!E129*ABS(B130) ),5) -> 0.04456 | D130: =ROUND(IF(B130<0,B130, B130 - Shocks!D129 * ABS(B130)),5) -> 0.02765 | F130: 0.03484032236 | G130: =ROUND(B130 + MAX(0.01,Shocks!E129*ABS(B130) )+F130-B130, 5) -> 0.04484 | H130: =ROUND(IF(B130<0,B130, B130 - Shocks!D129 * ABS(B130))+F130-B130, 5) -> 0.02793
A131: 119 | B131: 0.03454687456 | C131: =ROUND(B131 + MAX(0.01,Shocks!E130*ABS(B131) ),5) -> 0.04455 | D131: =ROUND(IF(B131<0,B131, B131 - Shocks!D130 * ABS(B131)),5) -> 0.02764 | F131: 0.03482484413 | G131: =ROUND(B131 + MAX(0.01,Shocks!E130*ABS(B131) )+F131-B131, 5) -> 0.04482 | H131: =ROUND(IF(B131<0,B131, B131 - Shocks!D130 * ABS(B131))+F131-B131, 5) -> 0.02792
A132: 120 | B132: 0.03453397623 | C132: =ROUND(B132 + MAX(0.01,Shocks!E131*ABS(B132) ),5) -> 0.04453 | D132: =ROUND(IF(B132<0,B132, B132 - Shocks!D131 * ABS(B132)),5) -> 0.02763 | F132: 0.03480962406 | G132: =ROUND(B132 + MAX(0.01,Shocks!E131*ABS(B132) )+F132-B132, 5) -> 0.04481 | H132: =ROUND(IF(B132<0,B132, B132 - Shocks!D131 * ABS(B132))+F132-B132, 5) -> 0.0279
A133: 121 | B133: 0.03452129111 | C133: =ROUND(B133 + MAX(0.01,Shocks!E132*ABS(B133) ),5) -> 0.04452 | D133: =ROUND(IF(B133<0,B133, B133 - Shocks!D132 * ABS(B133)),5) -> 0.02762 | F133: 0.03479465576 | G133: =ROUND(B133 + MAX(0.01,Shocks!E132*ABS(B133) )+F133-B133, 5) -> 0.04479 | H133: =ROUND(IF(B133<0,B133, B133 - Shocks!D132 * ABS(B133))+F133-B133, 5) -> 0.02789
A134: 122 | B134: 0.03450881396 | C134: =ROUND(B134 + MAX(0.01,Shocks!E133*ABS(B134) ),5) -> 0.04451 | D134: =ROUND(IF(B134<0,B134, B134 - Shocks!D133 * ABS(B134)),5) -> 0.02761 | F134: 0.03477993302 | G134: =ROUND(B134 + MAX(0.01,Shocks!E133*ABS(B134) )+F134-B134, 5) -> 0.04478 | H134: =ROUND(IF(B134<0,B134, B134 - Shocks!D133 * ABS(B134))+F134-B134, 5) -> 0.02788
A135: 123 | B135: 0.03449653972 | C135: =ROUND(B135 + MAX(0.01,Shocks!E134*ABS(B135) ),5) -> 0.0445 | D135: =ROUND(IF(B135<0,B135, B135 - Shocks!D134 * ABS(B135)),5) -> 0.0276 | F135: 0.03476544986 | G135: =ROUND(B135 + MAX(0.01,Shocks!E134*ABS(B135) )+F135-B135, 5) -> 0.04477 | H135: =ROUND(IF(B135<0,B135, B135 - Shocks!D134 * ABS(B135))+F135-B135, 5) -> 0.02787
A136: 124 | B136: 0.03448446348 | C136: =ROUND(B136 + MAX(0.01,Shocks!E135*ABS(B136) ),5) -> 0.04448 | D136: =ROUND(IF(B136<0,B136, B136 - Shocks!D135 * ABS(B136)),5) -> 0.02759 | F136: 0.03475120047 | G136: =ROUND(B136 + MAX(0.01,Shocks!E135*ABS(B136) )+F136-B136, 5) -> 0.04475 | H136: =ROUND(IF(B136<0,B136, B136 - Shocks!D135 * ABS(B136))+F136-B136, 5) -> 0.02785
A137: 125 | B137: 0.03447258049 | C137: =ROUND(B137 + MAX(0.01,Shocks!E136*ABS(B137) ),5) -> 0.04447 | D137: =ROUND(IF(B137<0,B137, B137 - Shocks!D136 * ABS(B137)),5) -> 0.02758 | F137: 0.03473717925 | G137: =ROUND(B137 + MAX(0.01,Shocks!E136*ABS(B137) )+F137-B137, 5) -> 0.04474 | H137: =ROUND(IF(B137<0,B137, B137 - Shocks!D136 * ABS(B137))+F137-B137, 5) -> 0.02784
A138: 126 | B138: 0.03446088617 | C138: =ROUND(B138 + MAX(0.01,Shocks!E137*ABS(B138) ),5) -> 0.04446 | D138: =ROUND(IF(B138<0,B138, B138 - Shocks!D137 * ABS(B138)),5) -> 0.02757 | F138: 0.03472338076 | G138: =ROUND(B138 + MAX(0.01,Shocks!E137*ABS(B138) )+F138-B138, 5) -> 0.04472 | H138: =ROUND(IF(B138<0,B138, B138 - Shocks!D137 * ABS(B138))+F138-B138, 5) -> 0.02783
A139: 127 | B139: 0.03444937605 | C139: =ROUND(B139 + MAX(0.01,Shocks!E138*ABS(B139) ),5) -> 0.04445 | D139: =ROUND(IF(B139<0,B139, B139 - Shocks!D138 * ABS(B139)),5) -> 0.02756 | F139: 0.03470979974 | G139: =ROUND(B139 + MAX(0.01,Shocks!E138*ABS(B139) )+F139-B139, 5) -> 0.04471 | H139: =ROUND(IF(B139<0,B139, B139 - Shocks!D138 * ABS(B139))+F139-B139, 5) -> 0.02782
A140: 128 | B140: 0.03443804582 | C140: =ROUND(B140 + MAX(0.01,Shocks!E139*ABS(B140) ),5) -> 0.04444 | D140: =ROUND(IF(B140<0,B140, B140 - Shocks!D139 * ABS(B140)),5) -> 0.02755 | F140: 0.03469643107 | G140: =ROUND(B140 + MAX(0.01,Shocks!E139*ABS(B140) )+F140-B140, 5) -> 0.0447 | H140: =ROUND(IF(B140<0,B140, B140 - Shocks!D139 * ABS(B140))+F140-B140, 5) -> 0.02781
A141: 129 | B141: 0.03442689131 | C141: =ROUND(B141 + MAX(0.01,Shocks!E140*ABS(B141) ),5) -> 0.04443 | D141: =ROUND(IF(B141<0,B141, B141 - Shocks!D140 * ABS(B141)),5) -> 0.02754 | F141: 0.03468326984 | G141: =ROUND(B141 + MAX(0.01,Shocks!E140*ABS(B141) )+F141-B141, 5) -> 0.04468 | H141: =ROUND(IF(B141<0,B141, B141 - Shocks!D140 * ABS(B141))+F141-B141, 5) -> 0.0278
A142: 130 | B142: 0.03441590846 | C142: =ROUND(B142 + MAX(0.01,Shocks!E141*ABS(B142) ),5) -> 0.04442 | D142: =ROUND(IF(B142<0,B142, B142 - Shocks!D141 * ABS(B142)),5) -> 0.02753 | F142: 0.03467031123 | G142: =ROUND(B142 + MAX(0.01,Shocks!E141*ABS(B142) )+F142-B142, 5) -> 0.04467 | H142: =ROUND(IF(B142<0,B142, B142 - Shocks!D141 * ABS(B142))+F142-B142, 5) -> 0.02779
A143: 131 | B143: 0.03440509334 | C143: =ROUND(B143 + MAX(0.01,Shocks!E142*ABS(B143) ),5) -> 0.04441 | D143: =ROUND(IF(B143<0,B143, B143 - Shocks!D142 * ABS(B143)),5) -> 0.02752 | F143: 0.03465755062 | G143: =ROUND(B143 + MAX(0.01,Shocks!E142*ABS(B143) )+F143-B143, 5) -> 0.04466 | H143: =ROUND(IF(B143<0,B143, B143 - Shocks!D142 * ABS(B143))+F143-B143, 5) -> 0.02778
A144: 132 | B144: 0.03439444214 | C144: =ROUND(B144 + MAX(0.01,Shocks!E143*ABS(B144) ),5) -> 0.04439 | D144: =ROUND(IF(B144<0,B144, B144 - Shocks!D143 * ABS(B144)),5) -> 0.02752 | F144: 0.03464498349 | G144: =ROUND(B144 + MAX(0.01,Shocks!E143*ABS(B144) )+F144-B144, 5) -> 0.04464 | H144: =ROUND(IF(B144<0,B144, B144 - Shocks!D143 * ABS(B144))+F144-B144, 5) -> 0.02777
A145: 133 | B145: 0.03438395116 | C145: =ROUND(B145 + MAX(0.01,Shocks!E144*ABS(B145) ),5) -> 0.04438 | D145: =ROUND(IF(B145<0,B145, B145 - Shocks!D144 * ABS(B145)),5) -> 0.02751 | F145: 0.03463260549 | G145: =ROUND(B145 + MAX(0.01,Shocks!E144*ABS(B145) )+F145-B145, 5) -> 0.04463 | H145: =ROUND(IF(B145<0,B145, B145 - Shocks!D144 * ABS(B145))+F145-B145, 5) -> 0.02776
A146: 134 | B146: 0.03437361683 | C146: =ROUND(B146 + MAX(0.01,Shocks!E145*ABS(B146) ),5) -> 0.04437 | D146: =ROUND(IF(B146<0,B146, B146 - Shocks!D145 * ABS(B146)),5) -> 0.0275 | F146: 0.03462041237 | G146: =ROUND(B146 + MAX(0.01,Shocks!E145*ABS(B146) )+F146-B146, 5) -> 0.04462 | H146: =ROUND(IF(B146<0,B146, B146 - Shocks!D145 * ABS(B146))+F146-B146, 5) -> 0.02775
A147: 135 | B147: 0.03436343566 | C147: =ROUND(B147 + MAX(0.01,Shocks!E146*ABS(B147) ),5) -> 0.04436 | D147: =ROUND(IF(B147<0,B147, B147 - Shocks!D146 * ABS(B147)),5) -> 0.02749 | F147: 0.03460840003 | G147: =ROUND(B147 + MAX(0.01,Shocks!E146*ABS(B147) )+F147-B147, 5) -> 0.04461 | H147: =ROUND(IF(B147<0,B147, B147 - Shocks!D146 * ABS(B147))+F147-B147, 5) -> 0.02774
A148: 136 | B148: 0.03435340427 | C148: =ROUND(B148 + MAX(0.01,Shocks!E147*ABS(B148) ),5) -> 0.04435 | D148: =ROUND(IF(B148<0,B148, B148 - Shocks!D147 * ABS(B148)),5) -> 0.02748 | F148: 0.03459656447 | G148: =ROUND(B148 + MAX(0.01,Shocks!E147*ABS(B148) )+F148-B148, 5) -> 0.0446 | H148: =ROUND(IF(B148<0,B148, B148 - Shocks!D147 * ABS(B148))+F148-B148, 5) -> 0.02773
A149: 137 | B149: 0.03434351939 | C149: =ROUND(B149 + MAX(0.01,Shocks!E148*ABS(B149) ),5) -> 0.04434 | D149: =ROUND(IF(B149<0,B149, B149 - Shocks!D148 * ABS(B149)),5) -> 0.02747 | F149: 0.03458490182 | G149: =ROUND(B149 + MAX(0.01,Shocks!E148*ABS(B149) )+F149-B149, 5) -> 0.04458 | H149: =ROUND(IF(B149<0,B149, B149 - Shocks!D148 * ABS(B149))+F149-B149, 5) -> 0.02772
A150: 138 | B150: 0.03433377783 | C150: =ROUND(B150 + MAX(0.01,Shocks!E149*ABS(B150) ),5) -> 0.04433 | D150: =ROUND(IF(B150<0,B150, B150 - Shocks!D149 * ABS(B150)),5) -> 0.02747 | F150: 0.03457340831 | G150: =ROUND(B150 + MAX(0.01,Shocks!E149*ABS(B150) )+F150-B150, 5) -> 0.04457 | H150: =ROUND(IF(B150<0,B150, B150 - Shocks!D149 * ABS(B150))+F150-B150, 5) -> 0.02771
A151: 139 | B151: 0.03432417649 | C151: =ROUND(B151 + MAX(0.01,Shocks!E150*ABS(B151) ),5) -> 0.04432 | D151: =ROUND(IF(B151<0,B151, B151 - Shocks!D150 * ABS(B151)),5) -> 0.02746 | F151: 0.03456208031 | G151: =ROUND(B151 + MAX(0.01,Shocks!E150*ABS(B151) )+F151-B151, 5) -> 0.04456 | H151: =ROUND(IF(B151<0,B151, B151 - Shocks!D150 * ABS(B151))+F151-B151, 5) -> 0.0277
A152: 140 | B152: 0.03431471238 | C152: =ROUND(B152 + MAX(0.01,Shocks!E151*ABS(B152) ),5) -> 0.04431 | D152: =ROUND(IF(B152<0,B152, B152 - Shocks!D151 * ABS(B152)),5) -> 0.02745 | F152: 0.03455091424 | G152: =ROUND(B152 + MAX(0.01,Shocks!E151*ABS(B152) )+F152-B152, 5) -> 0.04455 | H152: =ROUND(IF(B152<0,B152, B152 - Shocks!D151 * ABS(B152))+F152-B152, 5) -> 0.02769
A153: 141 | B153: 0.03430538257 | C153: =ROUND(B153 + MAX(0.01,Shocks!E152*ABS(B153) ),5) -> 0.04431 | D153: =ROUND(IF(B153<0,B153, B153 - Shocks!D152 * ABS(B153)),5) -> 0.02744 | F153: 0.03453990668 | G153: =ROUND(B153 + MAX(0.01,Shocks!E152*ABS(B153) )+F153-B153, 5) -> 0.04454 | H153: =ROUND(IF(B153<0,B153, B153 - Shocks!D152 * ABS(B153))+F153-B153, 5) -> 0.02768
A154: 142 | B154: 0.03429618423 | C154: =ROUND(B154 + MAX(0.01,Shocks!E153*ABS(B154) ),5) -> 0.0443 | D154: =ROUND(IF(B154<0,B154, B154 - Shocks!D153 * ABS(B154)),5) -> 0.02744 | F154: 0.03452905427 | G154: =ROUND(B154 + MAX(0.01,Shocks!E153*ABS(B154) )+F154-B154, 5) -> 0.04453 | H154: =ROUND(IF(B154<0,B154, B154 - Shocks!D153 * ABS(B154))+F154-B154, 5) -> 0.02767
A155: 143 | B155: 0.03428711459 | C155: =ROUND(B155 + MAX(0.01,Shocks!E154*ABS(B155) ),5) -> 0.04429 | D155: =ROUND(IF(B155<0,B155, B155 - Shocks!D154 * ABS(B155)),5) -> 0.02743 | F155: 0.03451835375 | G155: =ROUND(B155 + MAX(0.01,Shocks!E154*ABS(B155) )+F155-B155, 5) -> 0.04452 | H155: =ROUND(IF(B155<0,B155, B155 - Shocks!D154 * ABS(B155))+F155-B155, 5) -> 0.02766
A156: 144 | B156: 0.03427817098 | C156: =ROUND(B156 + MAX(0.01,Shocks!E155*ABS(B156) ),5) -> 0.04428 | D156: =ROUND(IF(B156<0,B156, B156 - Shocks!D155 * ABS(B156)),5) -> 0.02742 | F156: 0.03450780195 | G156: =ROUND(B156 + MAX(0.01,Shocks!E155*ABS(B156) )+F156-B156, 5) -> 0.04451 | H156: =ROUND(IF(B156<0,B156, B156 - Shocks!D155 * ABS(B156))+F156-B156, 5) -> 0.02765
A157: 145 | B157: 0.03426935079 | C157: =ROUND(B157 + MAX(0.01,Shocks!E156*ABS(B157) ),5) -> 0.04427 | D157: =ROUND(IF(B157<0,B157, B157 - Shocks!D156 * ABS(B157)),5) -> 0.02742 | F157: 0.0344973958 | G157: =ROUND(B157 + MAX(0.01,Shocks!E156*ABS(B157) )+F157-B157, 5) -> 0.0445 | H157: =ROUND(IF(B157<0,B157, B157 - Shocks!D156 * ABS(B157))+F157-B157, 5) -> 0.02764
A158: 146 | B158: 0.03426065148 | C158: =ROUND(B158 + MAX(0.01,Shocks!E157*ABS(B158) ),5) -> 0.04426 | D158: =ROUND(IF(B158<0,B158, B158 - Shocks!D157 * ABS(B158)),5) -> 0.02741 | F158: 0.0344871323 | G158: =ROUND(B158 + MAX(0.01,Shocks!E157*ABS(B158) )+F158-B158, 5) -> 0.04449 | H158: =ROUND(IF(B158<0,B158, B158 - Shocks!D157 * ABS(B158))+F158-B158, 5) -> 0.02764
A159: 147 | B159: 0.03425207059 | C159: =ROUND(B159 + MAX(0.01,Shocks!E158*ABS(B159) ),5) -> 0.04425 | D159: =ROUND(IF(B159<0,B159, B159 - Shocks!D158 * ABS(B159)),5) -> 0.0274 | F159: 0.03447700854 | G159: =ROUND(B159 + MAX(0.01,Shocks!E158*ABS(B159) )+F159-B159, 5) -> 0.04448 | H159: =ROUND(IF(B159<0,B159, B159 - Shocks!D158 * ABS(B159))+F159-B159, 5) -> 0.02763
A160: 148 | B160: 0.03424360572 | C160: =ROUND(B160 + MAX(0.01,Shocks!E159*ABS(B160) ),5) -> 0.04424 | D160: =ROUND(IF(B160<0,B160, B160 - Shocks!D159 * ABS(B160)),5) -> 0.02739 | F160: 0.03446702168 | G160: =ROUND(B160 + MAX(0.01,Shocks!E159*ABS(B160) )+F160-B160, 5) -> 0.04447 | H160: =ROUND(IF(B160<0,B160, B160 - Shocks!D159 * ABS(B160))+F160-B160, 5) -> 0.02762
A161: 149 | B161: 0.03423525452 | C161: =ROUND(B161 + MAX(0.01,Shocks!E160*ABS(B161) ),5) -> 0.04424 | D161: =ROUND(IF(B161<0,B161, B161 - Shocks!D160 * ABS(B161)),5) -> 0.02739 | F161: 0.03445716896 | G161: =ROUND(B161 + MAX(0.01,Shocks!E160*ABS(B161) )+F161-B161, 5) -> 0.04446 | H161: =ROUND(IF(B161<0,B161, B161 - Shocks!D160 * ABS(B161))+F161-B161, 5) -> 0.02761
A162: 150 | B162: 0.03422701473 | C162: =ROUND(B162 + MAX(0.01,Shocks!E161*ABS(B162) ),5) -> 0.04423 | D162: =ROUND(IF(B162<0,B162, B162 - Shocks!D161 * ABS(B162)),5) -> 0.02738 | F162: 0.03444744771 | G162: =ROUND(B162 + MAX(0.01,Shocks!E161*ABS(B162) )+F162-B162, 5) -> 0.04445 | H162: =ROUND(IF(B162<0,B162, B162 - Shocks!D161 * ABS(B162))+F162-B162, 5) -> 0.0276

Sheet RCS and Scaling Factors
B9: Currency | C9: Risk corrected currency spread | D9: Scaling factor | E9: Scaled Risk Corrected Currency Spread | F9: VA With CSSR=1
B10: CZK | C10: 0.002178461538 | D10: 1.745200698 | E10: =Table5[[#This Row],[Risk corrected currency spread]]*Table5[[#This Row],[Scaling factor]] -> 0.003801852598 | F10: 0.003232
B11: EUR | C11: 0.003206 | D11: 1.618122977 | E11: =Table5[[#This Row],[Risk corrected currency spread]]*Table5[[#This Row],[Scaling factor]] -> 0.005187702264 | F11: 0.004409
B12: JPY | C12: 0.0009846153846 | D12: 1.291989664 | E12: =Table5[[#This Row],[Risk corrected currency spread]]*Table5[[#This Row],[Scaling factor]] -> 0.0012721129 | F12: 0.001081

Sheet Extrapolation (hidden)
E2: inputs | G2: Alternative Extrapolation with VA - Derived from situation without VA | DT2: Interest rates with Smith-Wilson extrapolation for alternative interst rate scenario's
E3: outputs | G3: based on alternvative extrapolations from worksheet 2020 Review Term Structures | S3: Currency | T3: ='Scenario Data Expected'!$J$3 -> CZK | DU3: +100 bps SW no VA | EF3: +100 bps SW with VA | EQ3: -100 bps SW no VA | FB3: -100 bps SW with VA
H4: index | I4: =MATCH(T3,L.ISO4217,0) -> 2
H5: Interest rate up scenario | I5: 0.01 | L5: Floor | M5: -0.0125 | BM5: Baseline up shock no VA | BR5: Baseline down shock no VA | BV5: Baseline up shock with VA | CA5: Baseline down shock with VA | CG5: +100 bps scenario up shock no VA | CL5: +100 bps scenario down shock no VA | CP5: +100 bps scenario up shock with VA | CU5: +100 bps scenario down shock with VA | DA5: -100 bps scenario up shock no VA | DF5: -100 bps scenario down shock no VA | DJ5: -100 bps scenario up shock with VA | DO5: -100 bps scenario down shock with VA | DT5: LLPSW | DU5: =INDEX(tblRfrAltConfig[LLPSW],index) -> 15
H6: Interest rate down scenario | I6: -0.01 | S6: Alternative Extrapolation with VA | Z6: + 100 bps no VA | AI6: + 100 bps with VA | AS6: - 100 bps no VA | BB6: - 100 bps with VA | DT6: ConvergenceSW | DU6: =INDEX(tblRfrAltConfig[ConvergenceSW],index) -> 45
H7: FSP | I7: =INDEX(tblRfrAltConfig[FSP],index) -> 10 | DT7: alphaSW | DU7: 0.05
H8: UFR | I8: =INDEX(tblRfrAltConfig[UFR],index)/100 -> 0.033 | DT8: Input | DU8: Zero
H9: MeanReversion | I9: =IF(T3="SEK",40%,11%) -> 0.11 | L9: VA up | M9: ='Scenario Data Expected +100bps'!J7 -> 0 | S9: First weight | T9: =INDEX(LLFRweights,FSP) -> 0.5 | AL9: First weight | AM9: =INDEX(LLFRweights,FSP) -> 0.5 | BE9: First weight | BF9: =INDEX(LLFRweights,FSP) -> 0.5 | BL9: UFR | BM9: =UFR+0.0015 -> 0.0345 | BQ9: UFR | BR9: =UFR-0.0015 -> 0.0315 | BV9: UFR | BW9: =UFR+0.0015 -> 0.0345 | CA9: UFR | CB9: =UFR-0.0015 -> 0.0315 | CF9: UFR | CG9: =UFR+0.0015 -> 0.0345 | CK9: UFR | CL9: =UFR-0.0015 -> 0.0315 | CP9: UFR | CQ9: =UFR+0.0015 -> 0.0345 | CU9: UFR | CV9: =UFR-0.0015 -> 0.0315 | CZ9: UFR | DA9: =UFR+0.0015 -> 0.0345 | DE9: UFR | DF9: =UFR-0.0015 -> 0.0315 | DJ9: UFR | DK9: =UFR+0.0015 -> 0.0345 | DO9: UFR | DP9: =UFR-0.0015 -> 0.0315 | DT9: VASW | DU9: =INDEX(tblRfrAltConfig[VASW],index) -> 16
H10: VA | I10: ='Scenario Data Expected'!J7 -> 0 | J10: bp AC | L10: VA down | M10: ='Scenario Data Expected -100bps'!J7 -> 0 | S10: First fw LLFR | T10: =GetFirstFwLLFR($L$15:$L$64,DLT,LLFRweights) -> 0.03802515805 | AL10: First fw LLFR | AM10: =GetFirstFwLLFR($Z$15:$Z$64,DLT,LLFRweights) -> 0.04802515805 | BE10: First fw LLFR | BF10: =_xlfn.SINGLE(GetFirstFwLLFR($AS$15:$AS$64,DLT,LLFRweights)) -> 0.02802515805 | BL10: LLFR | BM10: =GetLLFR(BN15:BN64,DLT,LLFRweights) -> 0.05290482814 | BQ10: LLFR | BR10: =GetLLFR(BS15:BS64,DLT,LLFRweights) -> 0.01569833446 | BV10: LLFR | BW10: =GetLLFR(BX15:BX64,DLT,LLFRweights) -> 0.05290482814 | CA10: LLFR | CB10: =_xlfn.SINGLE(GetLLFR(CC15:CC64,DLT,LLFRweights)) -> 0.01569833446 | CF10: LLFR | CG10: =GetLLFR(CH15:CH64,DLT,LLFRweights) -> 0.06468968055 | CK10: LLFR | CL10: =GetLLFR(CM15:CM64,DLT,LLFRweights) -> 0.02108368096 | CP10: LLFR | CQ10: =GetLLFR(CR15:CR64,DLT,LLFRweights) -> 0.06468968055 | CU10: LLFR | CV10: =GetLLFR(CW15:CW64,DLT,LLFRweights) -> 0.02108368096 | CZ10: LLFR | DA10: =GetLLFR(DB15:DB64,DLT,LLFRweights) -> 0.04110053198 | DE10: LLFR | DF10: =GetLLFR(DG15:DG64,DLT,LLFRweights) -> 0.01033803812 | DJ10: LLFR | DK10: =GetLLFR(DL15:DL64,DLT,LLFRweights) -> 0.04110053198 | DO10: LLFR | DP10: =GetLLFR(DQ15:DQ64,DLT,LLFRweights) -> 0.01033803812 | DT10: Bandwith Convergence | DU10: 1
H11: LLFR | I11: =INDEX(TermStructuresLLFR,,2*index) -> 0.0385 | S11: LLFRVA | T11: =T9*(T10+LN(1+VA/10000))+(LLFR-T9*T10) -> 0.0385 | AC11: LLFR+100 | AD11: =LLFR+$I$5 -> 0.0485 | AL11: LLFRVA | AM11: =AM9*(AM10+LN(1+M9/10000))+(AD11-AM9*AM10) -> 0.0485 | AV11: LLFR-100 | AW11: =LLFR+$I$6 -> 0.0285 | BE11: LLFRVA | BF11: =BF9*(BF10+LN(1+M10/10000))+(AW11-BF9*BF10) -> 0.0285
A12: Original Curve | I12: Check Curve | P12: + VA up to FSP | Z12: + 100 bps to FSP | AI12: + VA up to FSP | AS12: - 100 bps to FSP | BB12: + VA up to FSP
A13: Tenor | B13: Zero AC | C13: Zero CC | E13: Tenor | F13: DLT | G13: LLFRweights | H13: Tenor | I13: Zero AC | K13: Tenor | L13: Zero CC | M13: 1YFw CC | O13: Tenor | P13: Zero CC | Q13: 1YFw CC | S13: Tenor | T13: Zero+VA AC | U13: 1YFw+VA AC | V13: Discount | W13: VA | Y13: Tenor | Z13: Zero CC | AA13: 1YFw CC | AB13: Tenor | AC13: Zero AC | AD13: FW AC | AE13: Discount | AF13: Diff | AH13: Tenor | AI13: Zero CC | AJ13: 1YFw CC | AL13: Tenor | AM13: Zero AC | AN13: FW AC | AO13: Discount | AP13: Diff Total | AQ13: Diff VA | AR13: Tenor | AS13: Zero CC | AT13: 1YFw CC | AU13: Tenor | AV13: Zero AC | AW13: FW AC | AX13: Discount | AY13: Diff | BA13: Tenor | BB13: Zero CC | BC13: 1YFw CC | BE13: Tenor | BF13: Zero AC | BG13: FW AC | BH13: Discount | BI13: Diff Total | BJ13: Diff VA | BL13: Tenor | BM13: Zero AC | BN13: Zero CC | BO13: Alternative Extrapolation | BQ13: Tenor | BR13: Zero AC | BS13: Zero CC | BT13: Alternative Extrapolation | BV13: Tenor | BW13: Zero AC | BX13: Zero CC + VA | BY13: Alternative Extrapolation | CA13: Tenor | CB13: Zero AC | CC13: Zero CC + VA | CD13: Alternative Extrapolation | CF13: Tenor | CG13: Zero AC | CH13: Zero CC | CI13: Alternative Extrapolation | CK13: Tenor | CL13: Zero AC | CM13: Zero CC | CN13: Alternative Extrapolation | CP13: Tenor | CQ13: Zero AC | CR13: Zero CC + VA | CS13: Alternative Extrapolation | CU13: Tenor | CV13: Zero AC | CW13: Zero CC + VA | CX13: Alternative Extrapolation | CZ13: Tenor | DA13: Zero AC | DB13: Zero CC | DC13: Alternative Extrapolation | DE13: Tenor | DF13: Zero AC | DG13: Zero CC | DH13: Alternative Extrapolation | DJ13: Tenor | DK13: Zero AC | DL13: Zero CC + VA | DM13: Alternative Extrapolation | DO13: Tenor | DP13: Zero AC | DQ13: Zero CC + VA | DR13: Alternative Extrapolation | DU13: Liquid | DV13: Maturity | DW13: Input Rates | DX13: Maturity | DY13: Discount factor | DZ13: Spot intensity = spot rate cc | EA13: Spot rate ac | EB13: Forward intensity | EC13: Forward rate cc | ED13: Forward rate ac | EF13: Liquid | EG13: Maturity | EH13: Input Rates | EI13: Maturity | EJ13: Discount factor | EK13: Spot intensity = spot rate cc | EL13: Spot rate ac | EM13: Forward intensity | EN13: Forward rate cc | EO13: Forward rate ac | EQ13: Liquid | ER13: Maturity | ES13: Input Rates | ET13: Maturity | EU13: Discount factor | EV13: Spot intensity = spot rate cc | EW13: Spot rate ac | EX13: Forward intensity | EY13: Forward rate cc | EZ13: Forward rate ac | FB13: Liquid | FC13: Maturity | FD13: Input Rates | FE13: Maturity | FF13: Discount factor | FG13: Spot intensity = spot rate cc | FH13: Spot rate ac | FI13: Forward intensity | FJ13: Forward rate cc | FK13: Forward rate ac
A14: 0 | H14: 0 | K14: 0 | O14: 0 | S14: 0 | V14: 1 | Y14: 0 | AB14: 0 | AE14: 1 | AH14: 0 | AL14: 0 | AO14: 1 | AR14: 0 | AU14: 0 | AX14: 1 | BA14: 0 | BE14: 0 | BH14: 1 | BL14: 0 | BQ14: 0 | BV14: 0 | CA14: 0 | CF14: 0 | CK14: 0 | CP14: 0 | CU14: 0 | CZ14: 0 | DE14: 0 | DJ14: 0 | DO14: 0 | DY14: =SmithWilsonBruteForce($DU$8,$DU$15:$DW$64,0,0,UFR,$DU$7,$DU$10,$DU$6) -> 1 | DZ14: 0.0451061862 | EA14: 0 | EB14: 0.0451061862 | EC14: 0 | ED14: 0 | EJ14: =SmithWilsonBruteForce($DU$8,$EF$15:$EI$64,0,0,UFR,$DU$7,$DU$10,$DU$6) -> 1 | EK14: 0.04662224238 | EL14: 0 | EM14: 0.04662224238 | EN14: 0 | EO14: 0 | EU14: =SmithWilsonBruteForce($DU$8,$EQ$15:$ES$64,0,0,UFR,$DU$7,$DU$10,$DU$6) -> 1 | EV14: 0.02512908116 | EW14: 0 | EX14: 0.02512908116 | EY14: 0 | EZ14: 0 | FF14: =SmithWilsonBruteForce($DU$8,$FB$15:$FD$64,0,0,UFR,$DU$7,$DU$10,$DU$6) -> 1 | FG14: 0.02669395728 | FH14: 0 | FI14: 0.02669395728 | FJ14: 0 | FK14: 0
A15: 1 | B15: =INDEX(TermStructures,,2*index) -> 0.03568 | C15: =LN(1+B15) -> 0.03505821582 | E15: 1 | F15: =INDEX(INDIRECT("tblRfrAltConfig[DLT"&E15&"]"),index) -> 1 | G15: =INDEX(INDIRECT("tblWeightsLLFR["&E15&"]"),index) -> 0 | H15: 1 | I15: =AlternativeExtrapolation($C$15:$C$134,FSP,UFR,$I$11,MeanReversion,"A") -> 0.03568 | K15: 1 | L15: =LN(1+I15) -> 0.03505821582 | M15: =$K15*L15-$K14*L14 -> 0.03505821582 | O15: 1 | P15: =AVERAGE(Q$15:Q15) -> 0.03505821582 | Q15: =M15+($O15<=FSP)*LN(1+VA/10000) -> 0.03505821582 | S15: 1 | T15: =AlternativeExtrapolation($P$15:$P$164,FSP,UFR,$T$11,MeanReversion,"A") -> 0.03568 | U15: 0.03568 | V15: 0.9655492044 | W15: =T15-I15 -> 0 | Y15: 1 | Z15: =AVERAGE(AA$15:AA15) -> 0.04505821582 | AA15: =$M15+($Y15<=FSP)*$I$5 -> 0.04505821582 | AB15: 1 | AC15: =AlternativeExtrapolation($Z$15:$Z$134,FSP,UFR,$AD$11,MeanReversion,"A") -> 0.04608875705 | AD15: 0.04608875705 | AE15: 0.9559418293 | AF15: =AC15-$I15 -> 0.01040875705 | AH15: 1 | AI15: =AVERAGE(AJ$15:AJ15) -> 0.04505821582 | AJ15: =AA15+($AH15<=FSP)*LN(1+$M$9/10000) -> 0.04505821582 | AL15: 1 | AM15: =AlternativeExtrapolation($AI$15:$AI$164,FSP,UFR,$AM$11,MeanReversion,"A") -> 0.04608875705 | AN15: 0.04608875705 | AO15: 0.9559418293 | AP15: =AM15-I15 -> 0.01040875705 | AQ15: =AM15-AC15 -> 0 | AR15: 1 | AS15: =AVERAGE(AT$15:AT15) -> 0.02505821582 | AT15: =$M15+($Y15<=FSP)*$I$6 -> 0.02505821582 | AU15: 1 | AV15: =AlternativeExtrapolation($AS$15:$AS$134,FSP,UFR,$AW$11,MeanReversion,"A") -> 0.02537481182 | AW15: 0.02537481182 | AX15: 0.9752531352 | AY15: =AV15-$I15 -> -0.01030518818 | BA15: 1 | BB15: =AVERAGE(BC$15:BC15) -> 0.02505821582 | BC15: =AT15+($AH15<=FSP)*LN(1+$M$10/10000) -> 0.02505821582 | BE15: 1 | BF15: =AlternativeExtrapolation($BB$15:$BB$164,FSP,UFR,$BF$11,MeanReversion,"A") -> 0.02537481182 | BG15: 0.02537481182 | BH15: 0.9752531352 | BI15: =BF15-I15 -> -0.01030518818 | BJ15: =BF15-AV15 -> 0 | BL15: 1 | BM15: =$B15*(1+Shocks!$H12)+Shocks!$I12 -> 0.0788448 | BN15: =LN(1+BM15) -> 0.07589083904 | BO15: =AlternativeExtrapolation($BN$15:$BN$64,FSP,$BM$9,$BM$10,MeanReversion,"A") -> 0.0788448 | BQ15: 1 | BR15: =MAX($B15*(1-Shocks!$F12)-Shocks!$G12,Floor) -> 0.0033856 | BS15: =LN(1+BR15) -> 0.003379881759 | BT15: =AlternativeExtrapolation($BS$15:$BS$64,FSP,$BR$9,$BR$10,MeanReversion,"A") -> 0.0033856 | BV15: 1 | BW15: =$B15*(1+Shocks!$H12)+Shocks!$I12 -> 0.0788448 | BX15: =LN(1+BW15)+(BV15<=FSP)*LN(1+VA/10000) -> 0.07589083904 | BY15: =AlternativeExtrapolation($BX$15:$BX$64,FSP,$BW$9,$BW$10,MeanReversion,"A") -> 0.0788448 | CA15: 1 | CB15: =MAX($B15*(1-Shocks!$F12)-Shocks!$G12,Floor) -> 0.0033856 | CC15: =LN(1+CB15)+(CA15<=FSP)*LN(1+VA/10000) -> 0.003379881759 | CD15: =AlternativeExtrapolation($CC$15:$CC$64,FSP,$CB$9,$CB$10,MeanReversion,"A") -> 0.0033856 | CF15: 1 | CG15: =(EXP($C15+$I$5)-1)*(1+Shocks!$H12)+Shocks!$I12 -> 0.09560289884 | CH15: =LN(1+CG15) -> 0.0913048043 | CI15: =AlternativeExtrapolation($CH$15:$CH$64,FSP,$CG$9,$CG$10,MeanReversion,"A") -> 0.09560289884 | CK15: 1 | CL15: =MAX((EXP($C15+$I$5)-1)*(1-Shocks!$F12)-Shocks!$G12,Floor) -> 0.007757277959 | CM15: =LN(1+CL15) -> 0.007727344978 | CN15: =AlternativeExtrapolation($CM$15:$CM$64,FSP,$CL$9,$CL$10,MeanReversion,"A") -> 0.007757277959 | CP15: 1 | CQ15: =(EXP($C15+$I$5)-1)*(1+Shocks!$H12)+Shocks!$I12 -> 0.09560289884 | CR15: =LN(1+CQ15)+(CP15<=FSP)*LN(1+$M$9/10000) -> 0.0913048043 | CS15: =AlternativeExtrapolation($CR$15:$CR$64,FSP,$CQ$9,$CQ$10,MeanReversion,"A") -> 0.09560289884 | CU15: 1 | CV15: =MAX((EXP($C15+$I$5)-1)*(1-Shocks!$F12)-Shocks!$G12,Floor) -> 0.007757277959 | CW15: =LN(1+CV15)+(CU15<=FSP)*LN(1+$M$9/10000) -> 0.007727344978 | CX15: =AlternativeExtrapolation($CW$15:$CW$64,FSP,$CV$9,$CV$10,MeanReversion,"A") -> 0.007757277959 | CZ15: 1 | DA15: =(EXP($C15+$I$6)-1)*(1+Shocks!$H12)+Shocks!$I12 -> 0.06225344703 | DB15: =LN(1+DA15) -> 0.06039254503 | DC15: =AlternativeExtrapolation($DB$15:$DB$64,FSP,$DA$9,$DA$10,MeanReversion,"A") -> 0.06225344703 | DE15: 1 | DF15: =MAX((EXP($C15+$I$6)-1)*(1-Shocks!$F12)-Shocks!$G12,Floor) -> -0.0009425790367 | DG15: =LN(1+DF15) -> -0.0009430235437 | DH15: =AlternativeExtrapolation($DG$15:$DG$64,FSP,$DF$9,$DF$10,MeanReversion,"A") -> -0.0009425790367 | DJ15: 1 | DK15: =(EXP($C15+$I$6)-1)*(1+Shocks!$H12)+Shocks!$I12 -> 0.06225344703 | DL15: =LN(1+DK15)+(DJ15<=FSP)*LN(1+$M$10/10000) -> 0.06039254503 | DM15: =AlternativeExtrapolation($DL$15:$DL$64,FSP,$DK$9,$DK$10,MeanReversion,"A") -> 0.06225344703 | DO15: 1 | DP15: =MAX((EXP($C15+$I$6)-1)*(1-Shocks!$F12)-Shocks!$G12,Floor) -> -0.0009425790367 | DQ15: =LN(1+DP15)+(DO15<=FSP)*LN(1+$M$10/10000) -> -0.0009430235437 | DR15: =AlternativeExtrapolation($DQ$15:$DQ$64,FSP,$DP$9,$DP$10,MeanReversion,"A") -> -0.0009425790367 | DU15: =IF(DV15<=$DU$5,$F15,0) -> 1 | DV15: 1 | DW15: =EXP(Z15)-1 -> 0.04608875705 | DX15: 1 | DY15: 0.9559418293 | DZ15: 0.04505821582 | EA15: 0.04608875705 | EB15: 0.04488070187 | EC15: 0.04505821582 | ED15: 0.04608875705 | EF15: =IF(EG15<=$DU$5,$F15,0) -> 1 | EG15: 1 | EH15: =IF(EG15<=$DU$5,EA15+$DU$9/10000,0) -> 0.04768875705 | EI15: 1 | EJ15: 0.9544819425 | EK15: 0.04658655424 | EL15: 0.04768875705 | EM15: 0.04641291006 | EN15: 0.04658655424 | EO15: 0.04768875705 | EQ15: =IF(ER15<=$DU$5,$F15,0) -> 1 | ER15: 1 | ES15: =EXP(AS15)-1 -> 0.02537481182 | ET15: 1 | EU15: 0.9752531352 | EV15: 0.02505821582 | EW15: 0.02537481182 | EX15: 0.02489010424 | EY15: 0.02505821582 | EZ15: 0.02537481182 | FB15: =IF(FC15<=$DU$5,$F15,0) -> 1 | FC15: 1 | FD15: =IF(FC15<=$DU$5,EW15+$DU$9/10000,0) -> 0.02697481182 | FE15: 1 | FF15: 0.9737337162 | FG15: 0.02661740466 | FH15: 0.02697481182 | FI15: 0.0264479896 | FJ15: 0.02661740466 | FK15: 0.02697481182
A16: 2 | B16: 0.03544592418 | C16: =LN(1+B16) -> 0.03483217855 | E16: 2 | F16: 1 | G16: 0 | H16: 2 | I16: 0.03544592418 | K16: 2 | L16: =LN(1+I16) -> 0.03483217855 | M16: =$K16*L16-$K15*L15 -> 0.03460614128 | O16: 2 | P16: =AVERAGE(Q$15:Q16) -> 0.03483217855 | Q16: =M16+($O16<=FSP)*LN(1+VA/10000) -> 0.03460614128 | S16: 2 | T16: 0.03544592418 | U16: 0.03521190126 | V16: 0.9327068238 | W16: =T16-I16 -> 0 | Y16: 2 | Z16: =AVERAGE(AA$15:AA16) -> 0.04483217855 | AA16: =$M16+($Y16<=FSP)*$I$5 -> 0.04460614128 | AB16: 2 | AC16: 0.04585232872 | AD16: 0.04561595384 | AE16: 0.9142379913 | AF16: =AC16-$I16 -> 0.01040640454 | AH16: 2 | AI16: =AVERAGE(AJ$15:AJ16) -> 0.04483217855 | AJ16: 0.04460614128 | AL16: 2 | AM16: 0.04585232872 | AN16: 0.04561595384 | AO16: 0.9142379913 | AP16: =AM16-I16 -> 0.01040640454 | AQ16: =AM16-AC16 -> 0 | AR16: 2 | AS16: =AVERAGE(AT$15:AT16) -> 0.02483217855 | AT16: 0.02460614128 | AU16: 2 | AV16: 0.02514306509 | AW16: 0.02491137074 | AX16: 0.9515487515 | AY16: =AV16-$I16 -> -0.01030285909 | BA16: 2 | BB16: =AVERAGE(BC$15:BC16) -> 0.02483217855 | BC16: 0.02460614128 | BE16: 2 | BF16: 0.02514306509 | BG16: 0.02491137074 | BH16: 0.9515487515 | BI16: =BF16-I16 -> -0.01030285909 | BJ16: =BF16-AV16 -> 0 | BL16: 2 | BM16: =$B16*(1+Shocks!$H13)+Shocks!$I13 -> 0.07283226399 | BN16: =LN(1+BM16) -> 0.0703021271 | BO16: 0.07283226399 | BQ16: 2 | BR16: =MAX($B16*(1-Shocks!$F13)-Shocks!$G13,Floor) -> 0.007468502848 | BS16: =LN(1+BR16) -> 0.007440751668 | BT16: 0.007468502848 | BV16: 2 | BW16: =$B16*(1+Shocks!$H13)+Shocks!$I13 -> 0.07283226399 | BX16: 0.0703021271 | BY16: 0.07283226399 | CA16: 2 | CB16: =MAX($B16*(1-Shocks!$F13)-Shocks!$G13,Floor) -> 0.007468502848 | CC16: 0.007440751668 | CD16: 0.007468502848 | CF16: 2 | CG16: =(EXP($C16+$I$5)-1)*(1+Shocks!$H13)+Shocks!$I13 -> 0.08875406295 | CH16: =LN(1+CG16) -> 0.08503398093 | CI16: 0.08875406295 | CK16: 2 | CL16: =MAX((EXP($C16+$I$5)-1)*(1-Shocks!$F13)-Shocks!$G13,Floor) -> 0.01256764107 | CM16: =LN(1+CL16) -> 0.01248932377 | CN16: 0.01256764107 | CP16: 2 | CQ16: =(EXP($C16+$I$5)-1)*(1+Shocks!$H13)+Shocks!$I13 -> 0.08875406295 | CR16: 0.08503398093 | CS16: 0.08875406295 | CU16: 2 | CV16: =MAX((EXP($C16+$I$5)-1)*(1-Shocks!$F13)-Shocks!$G13,Floor) -> 0.01256764107 | CW16: 0.01248932377 | CX16: 0.01256764107 | CZ16: 2 | DA16: =(EXP($C16+$I$6)-1)*(1+Shocks!$H13)+Shocks!$I13 -> 0.05706888959 | DB16: =LN(1+DA16) -> 0.0554998794 | DC16: 0.05706888959 | DE16: 2 | DF16: =MAX((EXP($C16+$I$6)-1)*(1-Shocks!$F13)-Shocks!$G13,Floor) -> 0.002420101894 | DG16: =LN(1+DF16) -> 0.002417178164 | DH16: 0.002420101894 | DJ16: 2 | DK16: =(EXP($C16+$I$6)-1)*(1+Shocks!$H13)+Shocks!$I13 -> 0.05706888959 | DL16: 0.0554998794 | DM16: 0.05706888959 | DO16: 2 | DP16: =MAX((EXP($C16+$I$6)-1)*(1-Shocks!$F13)-Shocks!$G13,Floor) -> 0.002420101894 | DQ16: 0.002417178164 | DR16: 0.002420101894 | DU16: =IF(DV16<=$DU$5,$F16,0) -> 1 | DV16: 2 | DW16: =EXP(Z16)-1 -> 0.04585232872 | DX16: 2 | DY16: 0.9142379913 | DZ16: 0.04483217855 | EA16: 0.04585232872 | EB16: 0.04436610164 | EC16: 0.04460614128 | ED16: 0.04561595384 | EF16: =IF(EG16<=$DU$5,$F16,0) -> 1 | EG16: 2 | EH16: =IF(EG16<=$DU$5,EA16+$DU$9/10000,0) -> 0.04745232872 | EI16: 2 | EJ16: 0.9114470985 | EK16: 0.04636086221 | EL16: 0.04745232872 | EM16: 0.0458936632 | EN16: 0.04613517018 | EO16: 0.04721595376 | EQ16: =IF(ER16<=$DU$5,$F16,0) -> 1 | ER16: 2 | ES16: =EXP(AS16)-1 -> 0.02514306509 | ET16: 2 | EU16: 0.9515487515 | EV16: 0.02483217855 | EW16: 0.02514306509 | EX16: 0.02430281428 | EY16: 0.02460614128 | EZ16: 0.02491137074 | FB16: =IF(FC16<=$DU$5,$F16,0) -> 1 | FC16: 2 | FD16: =IF(FC16<=$DU$5,EW16+$DU$9/10000,0) -> 0.02674306509 | FE16: 2 | FF16: 0.9485854167 | FG16: 0.0263917196 | FH16: 0.02674306509 | FI16: 0.02586377807 | FJ16: 0.02616603453 | FK16: 0.02651137066
A17: 3 | B17: 0.03527123047 | C17: 0.03466345081 | E17: 3 | F17: 1 | G17: 0 | H17: 3 | I17: 0.03527123047 | K17: 3 | L17: 0.03466345081 | M17: 0.03432599535 | O17: 3 | P17: =AVERAGE(Q$15:Q17) -> 0.03466345081 | Q17: 0.03432599535 | S17: 3 | T17: 0.03527123047 | U17: 0.03492193148 | V17: 0.9012339921 | W17: 0 | Y17: 3 | Z17: =AVERAGE(AA$15:AA17) -> 0.04466345081 | AA17: 0.04432599535 | AB17: 3 | AC17: 0.04567587932 | AD17: 0.04532306981 | AE17: 0.8745985023 | AF17: 0.01040464884 | AH17: 3 | AI17: =AVERAGE(AJ$15:AJ17) -> 0.04466345081 | AJ17: 0.04432599535 | AL17: 3 | AM17: 0.04567587932 | AN17: 0.04532306981 | AO17: 0.8745985023 | AP17: 0.01040464884 | AQ17: 0 | AR17: 3 | AS17: =AVERAGE(AT$15:AT17) -> 0.02466345081 | AT17: 0.02432599535 | AU17: 3 | AV17: 0.02497010962 | AW17: 0.0246242862 | AX17: 0.9286806533 | AY17: -0.01030112086 | BA17: 3 | BB17: =AVERAGE(BC$15:BC17) -> 0.02466345081 | BC17: 0.02432599535 | BE17: 3 | BF17: 0.02497010962 | BG17: 0.0246242862 | BH17: 0.9286806533 | BI17: -0.01030112086 | BJ17: 0 | BL17: 3 | BM17: =$B17*(1+Shocks!$H14)+Shocks!$I14 -> 0.06975413341 | BN17: 0.06742884021 | BO17: 0.06975413341 | BQ17: 3 | BR17: =MAX($B17*(1-Shocks!$F14)-Shocks!$G14,Floor) -> 0.01145188907 | BS17: 0.01138681255 | BT17: 0.01145188907 | BV17: 3 | BW17: =$B17*(1+Shocks!$H14)+Shocks!$I14 -> 0.06975413341 | BX17: 0.06742884021 | BY17: 0.06975413341 | CA17: 3 | CB17: =MAX($B17*(1-Shocks!$F14)-Shocks!$G14,Floor) -> 0.01145188907 | CC17: 0.01138681255 | CD17: 0.01145188907 | CF17: 3 | CG17: =(EXP($C17+$I$5)-1)*(1+Shocks!$H14)+Shocks!$I14 -> 0.08525706018 | CH17: 0.08181688076 | CI17: 0.08525706018 | CK17: 3 | CL17: =MAX((EXP($C17+$I$5)-1)*(1-Shocks!$F14)-Shocks!$G14,Floor) -> 0.01727849242 | CM17: 0.01713091677 | CN17: 0.01727849242 | CP17: 3 | CQ17: =(EXP($C17+$I$5)-1)*(1+Shocks!$H14)+Shocks!$I14 -> 0.08525706018 | CR17: 0.08181688076 | CS17: 0.08525706018 | CU17: 3 | CV17: =MAX((EXP($C17+$I$5)-1)*(1-Shocks!$F14)-Shocks!$G14,Floor) -> 0.01727849242 | CW17: 0.01713091677 | CX17: 0.01727849242 | CZ17: 3 | DA17: =(EXP($C17+$I$6)-1)*(1+Shocks!$H14)+Shocks!$I14 -> 0.05440546333 | DB17: 0.05297706621 | DC17: 0.05440546333 | DE17: 3 | DF17: =MAX((EXP($C17+$I$6)-1)*(1-Shocks!$F14)-Shocks!$G14,Floor) -> 0.005683261385 | DG17: 0.005667172584 | DH17: 0.005683261385 | DJ17: 3 | DK17: =(EXP($C17+$I$6)-1)*(1+Shocks!$H14)+Shocks!$I14 -> 0.05440546333 | DL17: 0.05297706621 | DM17: 0.05440546333 | DO17: 3 | DP17: =MAX((EXP($C17+$I$6)-1)*(1-Shocks!$F14)-Shocks!$G14,Floor) -> 0.005683261385 | DQ17: 0.005667172584 | DR17: 0.005683261385 | DU17: 1 | DV17: 3 | DW17: 0.04567587932 | DX17: 3 | DY17: 0.8745985023 | DZ17: 0.04466345081 | EA17: 0.04567587932 | EB17: 0.04445294465 | EC17: 0.04432599535 | ED17: 0.04532306981 | EF17: 1 | EG17: 3 | EH17: 0.04727587932 | EI17: 3 | EJ17: 0.870596059 | EK17: 0.04619239223 | EL17: 0.04727587932 | EM17: 0.04598624732 | EN17: 0.04585545227 | EO17: 0.04692306967 | EQ17: 1 | ER17: 3 | ES17: 0.02497010962 | ET17: 3 | EU17: 0.9286806533 | EV17: 0.02466345081 | EW17: 0.02497010962 | EX17: 0.02469264193 | EY17: 0.02432599535 | EZ17: 0.0246242862 | FB17: 1 | FC17: 3 | FD17: 0.02657010962 | FE17: 3 | FF17: 0.9243451257 | FG17: 0.02622325482 | FH17: 0.02657010962 | FI17: 0.02625219925 | FJ17: 0.02588632526 | FK17: 0.02622428607
A18: 4 | B18: 0.03550416799 | C18: 0.03488842695 | E18: 4 | F18: 0 | G18: 0 | H18: 4 | I18: 0.03550416799 | K18: 4 | L18: 0.03488842695 | M18: 0.03556335535 | O18: 4 | P18: =AVERAGE(Q$15:Q18) -> 0.03488842695 | Q18: 0.03556335535 | S18: 4 | T18: 0.03550416799 | U18: 0.03620329507 | V18: 0.8697463098 | W18: 0 | Y18: 4 | Z18: =AVERAGE(AA$15:AA18) -> 0.04488842695 | AA18: 0.04556335535 | AB18: 4 | AC18: 0.0459111579 | AD18: 0.04661731132 | AE18: 0.8356430692 | AF18: 0.0104069899 | AH18: 4 | AI18: =AVERAGE(AJ$15:AJ18) -> 0.04488842695 | AJ18: 0.04556335535 | AL18: 4 | AM18: 0.0459111579 | AN18: 0.04661731132 | AO18: 0.8356430692 | AP18: 0.0104069899 | AQ18: 0 | AR18: 4 | AS18: =AVERAGE(AT$15:AT18) -> 0.02488842695 | AT18: 0.02556335535 | AU18: 4 | AV18: 0.02520072937 | AW18: 0.02589290001 | AX18: 0.90524133 | AY18: -0.01030343862 | BA18: 4 | BB18: =AVERAGE(BC$15:BC18) -> 0.02488842695 | BC18: 0.02556335535 | BE18: 4 | BF18: 0.02520072937 | BG18: 0.02589290001 | BH18: 0.90524133 | BI18: -0.01030343862 | BJ18: 0 | BL18: 4 | BM18: =$B18*(1+Shocks!$H15)+Shocks!$I15 -> 0.06793608527 | BN18: 0.0657278935 | BO18: 0.06793608527 | BQ18: 4 | BR18: =MAX($B18*(1-Shocks!$F15)-Shocks!$G15,Floor) -> 0.0139025008 | BS18: 0.01380674749 | BT18: 0.0139025008 | BV18: 4 | BW18: =$B18*(1+Shocks!$H15)+Shocks!$I15 -> 0.06793608527 | BX18: 0.0657278935 | BY18: 0.06793608527 | CA18: 4 | CB18: =MAX($B18*(1-Shocks!$F15)-Shocks!$G15,Floor) -> 0.0139025008 | CC18: 0.01380674749 | CD18: 0.0139025008 | CF18: 4 | CG18: =(EXP($C18+$I$5)-1)*(1+Shocks!$H15)+Shocks!$I15 -> 0.08313029053 | CH18: 0.07985526598 | CI18: 0.08313029053 | CK18: 4 | CL18: =MAX((EXP($C18+$I$5)-1)*(1-Shocks!$F15)-Shocks!$G15,Floor) -> 0.02014669474 | CM18: 0.01994643533 | CN18: 0.02014669474 | CP18: 4 | CQ18: =(EXP($C18+$I$5)-1)*(1+Shocks!$H15)+Shocks!$I15 -> 0.08313029053 | CR18: 0.07985526598 | CS18: 0.08313029053 | CU18: 4 | CV18: =MAX((EXP($C18+$I$5)-1)*(1-Shocks!$F15)-Shocks!$G15,Floor) -> 0.02014669474 | CW18: 0.01994643533 | CX18: 0.02014669474 | CZ18: 4 | DA18: =(EXP($C18+$I$6)-1)*(1+Shocks!$H15)+Shocks!$I15 -> 0.05289306488 | DB18: 0.05154167517 | DC18: 0.05289306488 | DE18: 4 | DF18: =MAX((EXP($C18+$I$6)-1)*(1-Shocks!$F15)-Shocks!$G15,Floor) -> 0.007720437621 | DG18: 0.007690787553 | DH18: 0.007720437621 | DJ18: 4 | DK18: =(EXP($C18+$I$6)-1)*(1+Shocks!$H15)+Shocks!$I15 -> 0.05289306488 | DL18: 0.05154167517 | DM18: 0.05289306488 | DO18: 4 | DP18: =MAX((EXP($C18+$I$6)-1)*(1-Shocks!$F15)-Shocks!$G15,Floor) -> 0.007720437621 | DQ18: 0.007690787553 | DR18: 0.007720437621 | DU18: 0 | DV18: 4 | DW18: 0.0459111579 | DX18: 4 | DY18: 0.8362171828 | DZ18: 0.04471672791 | EA18: 0.04573159138 | EB18: 0.04542964293 | EC18: 0.04487655921 | ED18: 0.04589874538 | EF18: 0 | EG18: 4 | EH18: 0.04733159138 | EI18: 4 | EJ18: 0.8311139619 | EK18: 0.04624708881 | EL18: 0.04733316329 | EM18: 0.04696107915 | EN18: 0.04641117853 | EO18: 0.047505034 | EQ18: 0 | ER18: 4 | ES18: 0.02520072937 | ET18: 4 | EU18: 0.9055137459 | EV18: 0.02481320533 | EW18: 0.02512361501 | EX18: 0.02569626618 | EY18: 0.02526246887 | EZ18: 0.02558426915 | FB18: 0 | FC18: 4 | FD18: 0.02672361501 | FE18: 4 | FF18: 0.8998821534 | FG18: 0.02637286622 | FH18: 0.0267237077 | FI18: 0.02725505171 | FJ18: 0.02682170043 | FK18: 0.02718463986
A19: 5 | B19: 0.03564395566 | C19: 0.03502341263 | E19: 5 | F19: 1 | G19: 0 | H19: 5 | I19: 0.03564395566 | K19: 5 | L19: 0.03502341263 | M19: 0.03556335535 | O19: 5 | P19: =AVERAGE(Q$15:Q19) -> 0.03502341263 | Q19: 0.03556335535 | S19: 5 | T19: 0.03564395566 | U19: 0.03620329507 | V19: 0.839358757 | W19: 0 | Y19: 5 | Z19: =AVERAGE(AA$15:AA19) -> 0.04502341263 | AA19: 0.04556335535 | AB19: 5 | AC19: 0.04605235046 | AD19: 0.04661731132 | AE19: 0.7984227474 | AF19: 0.01040839479 | AH19: 5 | AI19: =AVERAGE(AJ$15:AJ19) -> 0.04502341263 | AJ19: 0.04556335535 | AL19: 5 | AM19: 0.04605235046 | AN19: 0.04661731132 | AO19: 0.7984227474 | AP19: 0.01040839479 | AQ19: 0 | AR19: 5 | AS19: =AVERAGE(AT$15:AT19) -> 0.02502341263 | AT19: 0.02556335535 | AU19: 5 | AV19: 0.02533912613 | AW19: 0.02589290001 | AX19: 0.8823936008 | AY19: -0.01030482954 | BA19: 5 | BB19: =AVERAGE(BC$15:BC19) -> 0.02502341263 | BC19: 0.02556335535 | BE19: 5 | BF19: 0.02533912613 | BG19: 0.02589290001 | BH19: 0.8823936008 | BI19: -0.01030482954 | BJ19: 0 | BL19: 5 | BM19: =$B19*(1+Shocks!$H16)+Shocks!$I16 -> 0.06748373571 | BN19: 0.06530423014 | BO19: 0.06748373571 | BQ19: 5 | BR19: =MAX($B19*(1-Shocks!$F16)-Shocks!$G16,Floor) -> 0.0142863734 | BS19: 0.01418528482 | BT19: 0.0142863734 | BV19: 5 | BW19: =$B19*(1+Shocks!$H16)+Shocks!$I16 -> 0.06748373571 | BX19: 0.06530423014 | BY19: 0.06748373571 | CA19: 5 | CB19: =MAX($B19*(1-Shocks!$F16)-Shocks!$G16,Floor) -> 0.0142863734 | CC19: 0.01418528482 | CD19: 0.0142863734 | CF19: 5 | CG19: =(EXP($C19+$I$5)-1)*(1+Shocks!$H16)+Shocks!$I16 -> 0.08257590816 | CH19: 0.07934330145 | CI19: 0.08257590816 | CK19: 5 | CL19: =MAX((EXP($C19+$I$5)-1)*(1-Shocks!$F16)-Shocks!$G16,Floor) -> 0.02053141027 | CM19: 0.02032348209 | CN19: 0.02053141027 | CP19: 5 | CQ19: =(EXP($C19+$I$5)-1)*(1+Shocks!$H16)+Shocks!$I16 -> 0.08257590816 | CR19: 0.07934330145 | CS19: 0.08257590816 | CU19: 5 | CV19: =MAX((EXP($C19+$I$5)-1)*(1-Shocks!$F16)-Shocks!$G16,Floor) -> 0.02053141027 | CW19: 0.02032348209 | CX19: 0.02053141027 | CZ19: 5 | DA19: =(EXP($C19+$I$6)-1)*(1+Shocks!$H16)+Shocks!$I16 -> 0.05254173288 | DB19: 0.05120793698 | DC19: 0.05254173288 | DE19: 5 | DF19: =MAX((EXP($C19+$I$6)-1)*(1-Shocks!$F16)-Shocks!$G16,Floor) -> 0.008103475676 | DG19: 0.008070818821 | DH19: 0.008103475676 | DJ19: 5 | DK19: =(EXP($C19+$I$6)-1)*(1+Shocks!$H16)+Shocks!$I16 -> 0.05254173288 | DL19: 0.05120793698 | DM19: 0.05254173288 | DO19: 5 | DP19: =MAX((EXP($C19+$I$6)-1)*(1-Shocks!$F16)-Shocks!$G16,Floor) -> 0.008103475676 | DQ19: 0.008070818821 | DR19: 0.008103475676 | DU19: 1 | DV19: 5 | DW19: 0.04605235046 | DX19: 5 | DY19: 0.7984227474 | DZ19: 0.04502341263 | EA19: 0.04605235046 | EB19: 0.04720921496 | EC19: 0.04625015148 | ED19: 0.04733637094 | EF19: 1 | EG19: 5 | EH19: 0.04765235046 | EI19: 5 | EJ19: 0.7923444889 | EK19: 0.0465518042 | EL19: 0.04765235046 | EM19: 0.04871568767 | EN19: 0.04777066579 | EO19: 0.04893007219 | EQ19: 1 | ER19: 5 | ES19: 0.02533912613 | ET19: 5 | EU19: 0.8823936008 | EV19: 0.02502341263 | EW19: 0.02533912613 | EX19: 0.0259017493 | EY19: 0.02586424183 | EZ19: 0.02620162376 | FB19: 1 | FC19: 5 | FD19: 0.02693912613 | FE19: 5 | FF19: 0.875541017 | FG19: 0.0265826557 | FH19: 0.02693912613 | FI19: 0.02745741284 | FJ19: 0.02742181362 | FK19: 0.0278012519
A20: 6 | B20: 0.03616220854 | C20: 0.03552370353 | E20: 6 | F20: 0 | G20: 0 | H20: 6 | I20: 0.03616220854 | K20: 6 | L20: 0.03552370353 | M20: 0.03802515805 | O20: 6 | P20: =AVERAGE(Q$15:Q20) -> 0.03552370353 | Q20: 0.03802515805 | S20: 6 | T20: 0.03616220854 | U20: 0.03875736566 | V20: 0.8080412085 | W20: 0 | Y20: 6 | Z20: =AVERAGE(AA$15:AA20) -> 0.04552370353 | AA20: 0.04802515805 | AB20: 6 | AC20: 0.04657581186 | AD20: 0.04919705074 | AE20: 0.7609845518 | AF20: 0.01041360332 | AH20: 6 | AI20: =AVERAGE(AJ$15:AJ20) -> 0.04552370353 | AJ20: 0.04802515805 | AL20: 6 | AM20: 0.04657581186 | AN20: 0.04919705074 | AO20: 0.7609845518 | AP20: 0.01041360332 | AQ20: 0 | AR20: 6 | AS20: =AVERAGE(AT$15:AT20) -> 0.02552370353 | AT20: 0.02802515805 | AU20: 6 | AV20: 0.0258522223 | AW20: 0.02842155717 | AX20: 0.8580076863 | AY20: -0.01030998624 | BA20: 6 | BB20: =AVERAGE(BC$15:BC20) -> 0.02552370353 | BC20: 0.02802515805 | BE20: 6 | BF20: 0.0258522223 | BG20: 0.02842155717 | BH20: 0.8580076863 | BI20: -0.01030998624 | BJ20: 0 | BL20: 6 | BM20: =$B20*(1+Shocks!$H17)+Shocks!$I17 -> 0.06538871404 | BN20: 0.06333972228 | BO20: 0.06538871404 | BQ20: 6 | BR20: =MAX($B20*(1-Shocks!$F17)-Shocks!$G17,Floor) -> 0.01572056929 | BS20: 0.01559828111 | BT20: 0.01572056929 | BV20: 6 | BW20: =$B20*(1+Shocks!$H17)+Shocks!$I17 -> 0.06538871404 | BX20: 0.06333972228 | BY20: 0.06538871404 | CA20: 6 | CB20: =MAX($B20*(1-Shocks!$F17)-Shocks!$G17,Floor) -> 0.01572056929 | CC20: 0.01559828111 | CD20: 0.01572056929 | CF20: 6 | CG20: =(EXP($C20+$I$5)-1)*(1+Shocks!$H17)+Shocks!$I17 -> 0.08007189473 | CH20: 0.07702760811 | CI20: 0.08007189473 | CK20: 6 | CL20: =MAX((EXP($C20+$I$5)-1)*(1-Shocks!$F17)-Shocks!$G17,Floor) -> 0.02217700335 | CM20: 0.02193466989 | CN20: 0.02217700335 | CP20: 6 | CQ20: =(EXP($C20+$I$5)-1)*(1+Shocks!$H17)+Shocks!$I17 -> 0.08007189473 | CR20: 0.07702760811 | CS20: 0.08007189473 | CU20: 6 | CV20: =MAX((EXP($C20+$I$5)-1)*(1-Shocks!$F17)-Shocks!$G17,Floor) -> 0.02217700335 | CW20: 0.02193466989 | CX20: 0.02217700335 | CZ20: 6 | DA20: =(EXP($C20+$I$6)-1)*(1+Shocks!$H17)+Shocks!$I17 -> 0.05085163345 | DB20: 0.04960091489 | DC20: 0.05085163345 | DE20: 6 | DF20: =MAX((EXP($C20+$I$6)-1)*(1-Shocks!$F17)-Shocks!$G17,Floor) -> 0.009328377827 | DG20: 0.009285137213 | DH20: 0.009328377827 | DJ20: 6 | DK20: =(EXP($C20+$I$6)-1)*(1+Shocks!$H17)+Shocks!$I17 -> 0.05085163345 | DL20: 0.04960091489 | DM20: 0.05085163345 | DO20: 6 | DP20: =MAX((EXP($C20+$I$6)-1)*(1-Shocks!$F17)-Shocks!$G17,Floor) -> 0.009328377827 | DQ20: 0.009285137213 | DR20: 0.009328377827 | DU20: 0 | DV20: 6 | DW20: 0.04657581186 | DX20: 6 | DY20: 0.7609024829 | DZ20: 0.04554167878 | EA20: 0.04659462449 | EB20: 0.04887818545 | EC20: 0.04813300954 | ED20: 0.04931021431 | EF20: 0 | EG20: 6 | EH20: 0.04819462449 | EI20: 6 | EJ20: 0.7539823706 | EK20: 0.04706438208 | EL20: 0.04818949152 | EM20: 0.05036480795 | EN20: 0.04962727146 | EO20: 0.05087933065 | EQ20: 0 | ER20: 6 | ES20: 0.0258522223 | ET20: 6 | EU20: 0.8598212481 | EV20: 0.02517179373 | EW20: 0.02549127836 | EX20: 0.02602897418 | EY20: 0.02591369924 | EZ20: 0.02625237829 | FB20: 0 | FC20: 6 | FD20: 0.02709127836 | FE20: 6 | FF20: 0.8518204404 | FG20: 0.02672992084 | FH20: 0.02709036959 | FI20: 0.02757824479 | FJ20: 0.02746624652 | FK20: 0.02784692111
A21: 7 | B21: 0.03653254794 | C21: 0.03588105418 | E21: 7 | F21: 0 | G21: 0 | H21: 7 | I21: 0.03653254794 | K21: 7 | L21: 0.03588105418 | M21: 0.03802515805 | O21: 7 | P21: =AVERAGE(Q$15:Q21) -> 0.03588105418 | Q21: 0.03802515805 | S21: 7 | T21: 0.03653254794 | U21: 0.03875736566 | V21: 0.7778921577 | W21: 0 | Y21: 7 | Z21: =AVERAGE(AA$15:AA21) -> 0.04588105418 | AA21: 0.04802515805 | AB21: 7 | AC21: 0.04694987324 | AD21: 0.04919705074 | AE21: 0.7253018404 | AF21: 0.01041732529 | AH21: 7 | AI21: =AVERAGE(AJ$15:AJ21) -> 0.04588105418 | AJ21: 0.04802515805 | AL21: 7 | AM21: 0.04694987324 | AN21: 0.04919705074 | AO21: 0.7253018404 | AP21: 0.01041732529 | AQ21: 0 | AR21: 7 | AS21: =AVERAGE(AT$15:AT21) -> 0.02588105418 | AT21: 0.02802515805 | AU21: 7 | AV21: 0.02621887676 | AW21: 0.02842155717 | AX21: 0.8342957032 | AY21: -0.01031367118 | BA21: 7 | BB21: =AVERAGE(BC$15:BC21) -> 0.02588105418 | BC21: 0.02802515805 | BE21: 7 | BF21: 0.02621887676 | BG21: 0.02842155717 | BH21: 0.8342957032 | BI21: -0.01031367118 | BJ21: 0 | BL21: 7 | BM21: =$B21*(1+Shocks!$H18)+Shocks!$I18 -> 0.06304959068 | BN21: 0.0611417499 | BO21: 0.06304959068 | BQ21: 7 | BR21: =MAX($B21*(1-Shocks!$F18)-Shocks!$G18,Floor) -> 0.0167155052 | BS21: 0.0165773387 | BT21: 0.0167155052 | BV21: 7 | BW21: =$B21*(1+Shocks!$H18)+Shocks!$I18 -> 0.06304959068 | BX21: 0.0611417499 | BY21: 0.06304959068 | CA21: 7 | CB21: =MAX($B21*(1-Shocks!$F18)-Shocks!$G18,Floor) -> 0.0167155052 | CC21: 0.0165773387 | CD21: 0.0167155052 | CF21: 7 | CG21: =(EXP($C21+$I$5)-1)*(1+Shocks!$H18)+Shocks!$I18 -> 0.07732132633 | CH21: 0.07447770682 | CI21: 0.07732132633 | CK21: 7 | CL21: =MAX((EXP($C21+$I$5)-1)*(1-Shocks!$F18)-Shocks!$G18,Floor) -> 0.02327842014 | CM21: 0.02301161039 | CN21: 0.02327842014 | CP21: 7 | CQ21: =(EXP($C21+$I$5)-1)*(1+Shocks!$H18)+Shocks!$I18 -> 0.07732132633 | CR21: 0.07447770682 | CS21: 0.07732132633 | CU21: 7 | CV21: =MAX((EXP($C21+$I$5)-1)*(1-Shocks!$F18)-Shocks!$G18,Floor) -> 0.02327842014 | CW21: 0.02301161039 | CX21: 0.02327842014 | CZ21: 7 | DA21: =(EXP($C21+$I$6)-1)*(1+Shocks!$H18)+Shocks!$I18 -> 0.04891986117 | DB21: 0.04776093104 | DC21: 0.04891986117 | DE21: 7 | DF21: =MAX((EXP($C21+$I$6)-1)*(1-Shocks!$F18)-Shocks!$G18,Floor) -> 0.01021789236 | DG21: 0.0101660426 | DH21: 0.01021789236 | DJ21: 7 | DK21: =(EXP($C21+$I$6)-1)*(1+Shocks!$H18)+Shocks!$I18 -> 0.04891986117 | DL21: 0.04776093104 | DM21: 0.04891986117 | DO21: 7 | DP21: =MAX((EXP($C21+$I$6)-1)*(1-Shocks!$F18)-Shocks!$G18,Floor) -> 0.01021789236 | DQ21: 0.0101660426 | DR21: 0.01021789236 | DU21: 0 | DV21: 7 | DW21: 0.04694987324 | DX21: 7 | DY21: 0.7243313328 | DZ21: 0.04607233562 | EA21: 0.04715015447 | EB21: 0.0494451445 | EC21: 0.04925627666 | ED21: 0.05048953219 | EF21: 0 | EG21: 7 | EH21: 0.04875015447 | EI21: 7 | EJ21: 0.7166765819 | EK21: 0.04759008735 | EL21: 0.04874067514 | EM21: 0.0509389258 | EN21: 0.05074431901 | EO21: 0.05205386872 | EQ21: 0 | ER21: 7 | ES21: 0.02621887676 | ET21: 7 | EU21: 0.8374615748 | EV21: 0.02533998531 | EW21: 0.02566377187 | EX21: 0.02677133549 | EY21: 0.02634913477 | EZ21: 0.02669934235 | FB21: 0 | FC21: 7 | FD21: 0.02726377187 | FE21: 7 | FF21: 0.8283867888 | FG21: 0.02689644249 | FH21: 0.02726141662 | FI21: 0.02831558001 | FJ21: 0.02789557241 | FK21: 0.02828829714
A22: 8 | B22: 0.03681038935 | C22: 0.03614906716 | E22: 8 | F22: 0 | G22: 0 | H22: 8 | I22: 0.03681038935 | K22: 8 | L22: 0.03614906716 | M22: 0.03802515805 | O22: 8 | P22: =AVERAGE(Q$15:Q22) -> 0.03614906716 | Q22: 0.03802515805 | S22: 8 | T22: 0.03681038935 | U22: 0.03875736566 | V22: 0.7488680065 | W22: 0 | Y22: 8 | Z22: =AVERAGE(AA$15:AA22) -> 0.04614906716 | AA22: 0.04802515805 | AB22: 8 | AC22: 0.047230507 | AD22: 0.04919705074 | AE22: 0.6912922981 | AF22: 0.01042011765 | AH22: 8 | AI22: =AVERAGE(AJ$15:AJ22) -> 0.04614906716 | AJ22: 0.04802515805 | AL22: 8 | AM22: 0.047230507 | AN22: 0.04919705074 | AO22: 0.6912922981 | AP22: 0.01042011765 | AQ22: 0 | AR22: 8 | AS22: =AVERAGE(AT$15:AT22) -> 0.02614906716 | AT22: 0.02802515805 | AU22: 8 | AV22: 0.02649395361 | AW22: 0.02842155717 | AX22: 0.8112390268 | AY22: -0.01031643574 | BA22: 8 | BB22: =AVERAGE(BC$15:BC22) -> 0.02614906716 | BC22: 0.02802515805 | BE22: 8 | BF22: 0.02649395361 | BG22: 0.02842155717 | BH22: 0.8112390268 | BI22: -0.01031643574 | BJ22: 0 | BL22: 8 | BM22: =$B22*(1+Shocks!$H19)+Shocks!$I19 -> 0.06122592173 | BN22: 0.05942476979 | BO22: 0.06122592173 | BQ22: 8 | BR22: =MAX($B22*(1-Shocks!$F19)-Shocks!$G19,Floor) -> 0.0166224414 | BS22: 0.01648580074 | BT22: 0.0166224414 | BV22: 8 | BW22: =$B22*(1+Shocks!$H19)+Shocks!$I19 -> 0.06122592173 | BX22: 0.05942476979 | BY22: 0.06122592173 | CA22: 8 | CB22: =MAX($B22*(1-Shocks!$F19)-Shocks!$G19,Floor) -> 0.0166224414 | CC22: 0.01648580074 | CD22: 0.0166224414 | CF22: 8 | CG22: =(EXP($C22+$I$5)-1)*(1+Shocks!$H19)+Shocks!$I19 -> 0.07518887938 | CH22: 0.07249634789 | CI22: 0.07518887938 | CK22: 8 | CL22: =MAX((EXP($C22+$I$5)-1)*(1-Shocks!$F19)-Shocks!$G19,Floor) -> 0.02308291434 | CM22: 0.02282053387 | CN22: 0.02308291434 | CP22: 8 | CQ22: =(EXP($C22+$I$5)-1)*(1+Shocks!$H19)+Shocks!$I19 -> 0.07518887938 | CR22: 0.07249634789 | CS22: 0.07518887938 | CU22: 8 | CV22: =MAX((EXP($C22+$I$5)-1)*(1-Shocks!$F19)-Shocks!$G19,Floor) -> 0.02308291434 | CW22: 0.02282053387 | CX22: 0.02308291434 | CZ22: 8 | DA22: =(EXP($C22+$I$6)-1)*(1+Shocks!$H19)+Shocks!$I19 -> 0.04740189783 | DB22: 0.04631271481 | DC22: 0.04740189783 | DE22: 8 | DF22: =MAX((EXP($C22+$I$6)-1)*(1-Shocks!$F19)-Shocks!$G19,Floor) -> 0.01022625124 | DG22: 0.01017431689 | DH22: 0.01022625124 | DJ22: 8 | DK22: =(EXP($C22+$I$6)-1)*(1+Shocks!$H19)+Shocks!$I19 -> 0.04740189783 | DL22: 0.04631271481 | DM22: 0.04740189783 | DO22: 8 | DP22: =MAX((EXP($C22+$I$6)-1)*(1-Shocks!$F19)-Shocks!$G19,Floor) -> 0.01022625124 | DQ22: 0.01017431689 | DR22: 0.01022625124 | DU22: 0 | DV22: 8 | DW22: 0.047230507 | DX22: 8 | DY22: 0.6895274121 | DZ22: 0.04646860326 | EA22: 0.04756518842 | EB22: 0.04883712174 | EC22: 0.04924247673 | ED22: 0.05047503562 | EF22: 0 | EG22: 8 | EH22: 0.04916518842 | EI22: 8 | EJ22: 0.6812129925 | EK22: 0.04798503218 | EL22: 0.04915495164 | EM22: 0.05036079799 | EN22: 0.05074964595 | EO22: 0.05205947296 | EQ22: 0 | ER22: 8 | ES22: 0.02649395361 | ET22: 8 | EU22: 0.8148279257 | EV22: 0.02559729026 | EW22: 0.02592771419 | EX22: 0.02812896261 | EY22: 0.02739842496 | EZ22: 0.0277772133 | FB22: 0 | FC22: 8 | FD22: 0.02752771419 | FE22: 8 | FF22: 0.804754669 | FG22: 0.02715222588 | FH22: 0.02752420663 | FI22: 0.02967492456 | FJ22: 0.02894270959 | FK22: 0.02936562001
A23: 9 | B23: 0.03702653972 | C23: 0.0363575217 | E23: 9 | F23: 0 | G23: 0 | H23: 9 | I23: 0.03702653972 | K23: 9 | L23: 0.0363575217 | M23: 0.03802515805 | O23: 9 | P23: =AVERAGE(Q$15:Q23) -> 0.0363575217 | Q23: 0.03802515805 | S23: 9 | T23: 0.03702653972 | U23: 0.03875736566 | V23: 0.7209267835 | W23: 0 | Y23: 9 | Z23: =AVERAGE(AA$15:AA23) -> 0.0463575217 | AA23: =$M23+($Y23<=FSP)*$I$5 -> 0.04802515805 | AB23: 9 | AC23: 0.04744882971 | AD23: 0.04919705074 | AE23: 0.6588774698 | AF23: 0.01042228999 | AH23: 9 | AI23: =AVERAGE(AJ$15:AJ23) -> 0.0463575217 | AJ23: 0.04802515805 | AL23: 9 | AM23: 0.04744882971 | AN23: 0.04919705074 | AO23: 0.6588774698 | AP23: 0.01042228999 | AQ23: 0 | AR23: 9 | AS23: =AVERAGE(AT$15:AT23) -> 0.0263575217 | AT23: 0.02802515805 | AU23: 9 | AV23: 0.02670795324 | AW23: 0.02842155717 | AX23: 0.788819547 | AY23: -0.01031858648 | BA23: 9 | BB23: =AVERAGE(BC$15:BC23) -> 0.0263575217 | BC23: 0.02802515805 | BE23: 9 | BF23: 0.02670795324 | BG23: 0.02842155717 | BH23: 0.788819547 | BI23: -0.01031858648 | BJ23: 0 | BL23: 9 | BM23: =$B23*(1+Shocks!$H20)+Shocks!$I20 -> 0.06007503243 | BN23: 0.05833969093 | BO23: 0.06007503243 | BQ23: 9 | BR23: =MAX($B23*(1-Shocks!$F20)-Shocks!$G20,Floor) -> 0.01648618923 | BS23: 0.0163517674 | BT23: 0.01648618923 | BV23: 9 | BW23: =$B23*(1+Shocks!$H20)+Shocks!$I20 -> 0.06007503243 | BX23: 0.05833969093 | BY23: 0.06007503243 | CA23: 9 | CB23: =MAX($B23*(1-Shocks!$F20)-Shocks!$G20,Floor) -> 0.01648618923 | CC23: 0.0163517674 | CD23: 0.01648618923 | CF23: 9 | CG23: =(EXP($C23+$I$5)-1)*(1+Shocks!$H20)+Shocks!$I20 -> 0.07383245522 | CH23: 0.07123398319 | CI23: 0.07383245522 | CK23: 9 | CL23: =MAX((EXP($C23+$I$5)-1)*(1-Shocks!$F20)-Shocks!$G20,Floor) -> 0.02284378612 | CM23: 0.02258677357 | CN23: 0.02284378612 | CP23: 9 | CQ23: =(EXP($C23+$I$5)-1)*(1+Shocks!$H20)+Shocks!$I20 -> 0.07383245522 | CR23: 0.07123398319 | CS23: 0.07383245522 | CU23: 9 | CV23: =MAX((EXP($C23+$I$5)-1)*(1-Shocks!$F20)-Shocks!$G20,Floor) -> 0.02284378612 | CW23: 0.02258677357 | CX23: 0.02284378612 | CZ23: 9 | DA23: =(EXP($C23+$I$6)-1)*(1+Shocks!$H20)+Shocks!$I20 -> 0.04645449828 | DB23: 0.04540778205 | DC23: 0.04645449828 | DE23: 9 | DF23: =MAX((EXP($C23+$I$6)-1)*(1-Shocks!$F20)-Shocks!$G20,Floor) -> 0.01019185148 | DG23: 0.01014026477 | DH23: 0.01019185148 | DJ23: 9 | DK23: =(EXP($C23+$I$6)-1)*(1+Shocks!$H20)+Shocks!$I20 -> 0.04645449828 | DL23: 0.04540778205 | DM23: 0.04645449828 | DO23: 9 | DP23: =MAX((EXP($C23+$I$6)-1)*(1-Shocks!$F20)-Shocks!$G20,Floor) -> 0.01019185148 | DQ23: 0.01014026477 | DR23: 0.01019185148 | DU23: 0 | DV23: 9 | DW23: 0.04744882971 | DX23: 9 | DY23: 0.6572039073 | DZ23: 0.04664010528 | EA23: 0.04774486337 | EB23: 0.04697027567 | EC23: 0.04801212146 | ED23: 0.04918337288 | EF23: 0 | EG23: 9 | EH23: 0.04934486337 | EI23: 9 | EJ23: 0.6482773301 | EK23: 0.04815963284 | EL23: 0.04933815079 | EM23: 0.04853599724 | EN23: 0.04955643814 | EO23: 0.05080489601 | EQ23: 0 | ER23: 9 | ES23: 0.02670795324 | ET23: 9 | EU23: 0.7914815336 | EV23: 0.02598319231 | EW23: 0.0263236982 | EX23: 0.03012005921 | EY23: 0.02907040865 | EZ23: 0.02949707743 | FB23: 0 | FC23: 9 | FD23: 0.0279236982 | FE23: 9 | FF23: 0.7804845594 | FG23: 0.02753781357 | FH23: 0.02792048372 | FI23: 0.03168119916 | FJ23: 0.03062251513 | FK23: 0.0310962072
A24: 10 | B24: 0.03719949245 | C24: 0.03652428534 | E24: 10 | F24: 1 | G24: 0.5 | H24: 10 | I24: 0.03719949245 | K24: 10 | L24: 0.03652428534 | M24: 0.03802515805 | O24: 10 | P24: =AVERAGE(Q$15:Q24) -> 0.03652428534 | Q24: 0.03802515805 | S24: 10 | T24: 0.03719949245 | U24: 0.03875736566 | V24: 0.6940280833 | W24: 0 | Y24: 10 | Z24: =AVERAGE(AA$15:AA24) -> 0.04652428534 | AA24: =$M24+($Y24<=FSP)*$I$5 -> 0.04802515805 | AB24: 10 | AC24: 0.04762352065 | AD24: 0.04919705074 | AE24: 0.627982579 | AF24: 0.0104240282 | AH24: 10 | AI24: =AVERAGE(AJ$15:AJ24) -> 0.04652428534 | AJ24: 0.04802515805 | AL24: 10 | AM24: 0.04762352065 | AN24: 0.04919705074 | AO24: 0.627982579 | AP24: 0.0104240282 | AQ24: 0 | AR24: 10 | AS24: =AVERAGE(AT$15:AT24) -> 0.02652428534 | AT24: 0.02802515805 | AU24: 10 | AV24: 0.02687918507 | AW24: 0.02842155717 | AX24: 0.767019654 | AY24: -0.01032030739 | BA24: 10 | BB24: =AVERAGE(BC$15:BC24) -> 0.02652428534 | BC24: 0.02802515805 | BE24: 10 | BF24: 0.02687918507 | BG24: 0.02842155717 | BH24: 0.767019654 | BI24: -0.01032030739 | BJ24: 0 | BL24: 10 | BM24: =$B24*(1+Shocks!$H21)+Shocks!$I21 -> 0.05885934019 | BN24: 0.05719223456 | BO24: 0.05885934019 | BQ24: 10 | BR24: =MAX($B24*(1-Shocks!$F21)-Shocks!$G21,Floor) -> 0.01621969547 | BS24: 0.01608956148 | BT24: 0.01621969547 | BV24: 10 | BW24: =$B24*(1+Shocks!$H21)+Shocks!$I21 -> 0.05885934019 | BX24: 0.05719223456 | BY24: 0.05885934019 | CA24: 10 | CB24: =MAX($B24*(1-Shocks!$F21)-Shocks!$G21,Floor) -> 0.01621969547 | CC24: 0.01608956148 | CD24: 0.01621969547 | CF24: 10 | CG24: =(EXP($C24+$I$5)-1)*(1+Shocks!$H21)+Shocks!$I21 -> 0.07241057685 | CH24: 0.06990899011 | CI24: 0.07241057685 | CK24: 10 | CL24: =MAX((EXP($C24+$I$5)-1)*(1-Shocks!$F21)-Shocks!$G21,Floor) -> 0.02247411239 | CM24: 0.02222529066 | CN24: 0.02247411239 | CP24: 10 | CQ24: =(EXP($C24+$I$5)-1)*(1+Shocks!$H21)+Shocks!$I21 -> 0.07241057685 | CR24: 0.06990899011 | CS24: 0.07241057685 | CU24: 10 | CV24: =MAX((EXP($C24+$I$5)-1)*(1-Shocks!$F21)-Shocks!$G21,Floor) -> 0.02247411239 | CW24: 0.02222529066 | CX24: 0.02247411239 | CZ24: 10 | DA24: =(EXP($C24+$I$6)-1)*(1+Shocks!$H21)+Shocks!$I21 -> 0.04544294059 | DB24: 0.0444406622 | DC24: 0.04544294059 | DE24: 10 | DF24: =MAX((EXP($C24+$I$6)-1)*(1-Shocks!$F21)-Shocks!$G21,Floor) -> 0.01002751104 | DG24: 0.009977569136 | DH24: 0.01002751104 | DJ24: 10 | DK24: =(EXP($C24+$I$6)-1)*(1+Shocks!$H21)+Shocks!$I21 -> 0.04544294059 | DL24: 0.0444406622 | DM24: 0.04544294059 | DO24: 10 | DP24: =MAX((EXP($C24+$I$6)-1)*(1-Shocks!$F21)-Shocks!$G21,Floor) -> 0.01002751104 | DQ24: 0.009977569136 | DR24: 0.01002751104 | DU24: 1 | DV24: 10 | DW24: 0.04762352065 | DX24: 10 | DY24: 0.627982579 | DZ24: 0.04652428534 | EA24: 0.04762352065 | EB24: 0.04376457873 | EC24: 0.04548190584 | ED24: 0.04653206832 | EF24: 1 | EG24: 10 | EH24: 0.04922352065 | EI24: 10 | EJ24: 0.6184716873 | EK24: 0.04805038646 | EL24: 0.04922352065 | EM24: 0.04536648703 | EN24: 0.04706716902 | EO24: 0.04819241278 | EQ24: 1 | ER24: 10 | ES24: 0.02687918507 | ET24: 10 | EU24: 0.767019654 | EV24: 0.02652428534 | EW24: 0.02687918507 | EX24: 0.03278533263 | EY24: 0.03139412261 | EZ24: 0.03189211577 | FB24: 1 | FC24: 10 | FD24: 0.02847918507 | FE24: 10 | FF24: 0.7551703564 | FG24: 0.02808119176 | FH24: 0.02847918507 | FI24: 0.03438363298 | FJ24: 0.03297159545 | FK24: 0.03352118212
A25: 11 | B25: 0.03740248615 | C25: 0.03671997946 | E25: 11 | F25: 0 | G25: 0 | H25: 11 | I25: 0.0373556262 | K25: 11 | L25: 0.03667480797 | M25: 0.03818003428 | O25: 11 | P25: =AVERAGE(Q$15:Q25) -> 0.03667480797 | Q25: 0.03818003428 | S25: 11 | T25: 0.0373556262 | U25: 0.03891825695 | V25: 0.6680295381 | W25: 0 | Y25: 11 | Z25: =AVERAGE(AA$15:AA25) -> 0.04576571706 | AA25: 0.03818003428 | AB25: 11 | AC25: 0.04773070497 | AD25: 0.04880315152 | AE25: 0.598761148 | AF25: 0.01037507877 | AH25: 11 | AI25: =AVERAGE(AJ$15:AJ25) -> 0.04576571706 | AJ25: 0.03818003428 | AL25: 11 | AM25: 0.04773070497 | AN25: 0.04880315152 | AO25: 0.598761148 | AP25: 0.01037507877 | AQ25: 0 | AR25: 11 | AS25: =AVERAGE(AT$15:AT25) -> 0.02758389888 | AT25: 0.03818003428 | AU25: 11 | AV25: 0.02708328591 | AW25: 0.02912652679 | AX25: 0.7453113238 | AY25: -0.01027234029 | BA25: 11 | BB25: =AVERAGE(BC$15:BC25) -> 0.02758389888 | BC25: 0.03818003428 | BE25: 11 | BF25: 0.02708328591 | BG25: 0.02912652679 | BH25: 0.7453113238 | BI25: -0.01027234029 | BJ25: 0 | BL25: 11 | BM25: =$B25*(1+Shocks!$H22)+Shocks!$I22 -> 0.059123232 | BN25: 0.05744142623 | BO25: 0.05834982318 | BQ25: 11 | BR25: =MAX($B25*(1-Shocks!$F22)-Shocks!$G22,Floor) -> 0.01606746683 | BS25: 0.01593975131 | BT25: 0.01625859728 | BV25: 11 | BW25: =$B25*(1+Shocks!$H22)+Shocks!$I22 -> 0.059123232 | BX25: 0.05744142623 | BY25: 0.05834982318 | CA25: 11 | CB25: =MAX($B25*(1-Shocks!$F22)-Shocks!$G22,Floor) -> 0.01606746683 | CC25: 0.01593975131 | CD25: 0.01625859728 | CF25: 11 | CG25: =(EXP($C25+$I$5)-1)*(1+Shocks!$H22)+Shocks!$I22 -> 0.07267712082 | CH25: 0.0701575058 | CI25: 0.07174283351 | CK25: 11 | CL25: =MAX((EXP($C25+$I$5)-1)*(1-Shocks!$F22)-Shocks!$G22,Floor) -> 0.02221884714 | CM25: 0.021975605 | CN25: 0.02241695521 | CP25: 11 | CQ25: =(EXP($C25+$I$5)-1)*(1+Shocks!$H22)+Shocks!$I22 -> 0.07267712082 | CR25: 0.0701575058 | CS25: 0.07174283351 | CU25: 11 | CV25: =MAX((EXP($C25+$I$5)-1)*(1-Shocks!$F22)-Shocks!$G22,Floor) -> 0.02221884714 | CW25: 0.021975605 | CX25: 0.02241695521 | CZ25: 11 | DA25: =(EXP($C25+$I$6)-1)*(1+Shocks!$H22)+Shocks!$I22 -> 0.04570420663 | DB25: 0.04469054041 | DC25: 0.04508934959 | DE25: 11 | DF25: =MAX((EXP($C25+$I$6)-1)*(1-Shocks!$F22)-Shocks!$G22,Floor) -> 0.009977293779 | DG25: 0.009927849194 | DH25: 0.01016130953 | DJ25: 11 | DK25: =(EXP($C25+$I$6)-1)*(1+Shocks!$H22)+Shocks!$I22 -> 0.04570420663 | DL25: 0.04469054041 | DM25: 0.04508934959 | DO25: 11 | DP25: =MAX((EXP($C25+$I$6)-1)*(1-Shocks!$F22)-Shocks!$G22,Floor) -> 0.009977293779 | DQ25: 0.009927849194 | DR25: 0.01016130953 | DU25: 0 | DV25: 11 | DW25: 0.04682912802 | DX25: 11 | DY25: 0.6021930766 | DZ25: 0.04610701453 | EA25: 0.04718646913 | EB25: 0.04022426443 | EC25: 0.04193430649 | ED25: 0.0428259696 | EF25: 0 | EG25: 11 | EH25: 0.04878646913 | EI25: 11 | EJ25: 0.5921178711 | EK25: 0.04764086885 | EL25: 0.04879393311 | EM25: 0.04184138639 | EN25: 0.04354569273 | EO25: 0.04450771963 | EQ25: 0 | ER25: 11 | ES25: 0.02796785684 | ET25: 11 | EU25: 0.7412606589 | EV25: 0.02721844992 | EW25: 0.0275922557 | EX25: 0.03540110842 | EY25: 0.03416009577 | EZ25: 0.03475025261 | FB25: 0 | FC25: 11 | FD25: 0.0291922557 | FE25: 11 | FF25: 0.7286301603 | FG25: 0.02878081822 | FH25: 0.02919898808 | FI25: 0.03702969381 | FJ25: 0.03577708278 | FK25: 0.0364247838
A26: 12 | B26: 0.03757167792 | C26: 0.03688305789 | E26: 12 | F26: 0 | G26: 0 | H26: 12 | I26: 0.03743430768 | K26: 12 | L26: 0.03675065322 | M26: 0.03758495093 | O26: 12 | P26: =AVERAGE(Q$15:Q26) -> 0.03675065322 | Q26: 0.03758495093 | S26: 12 | T26: 0.03743430768 | U26: 0.0383001979 | V26: 0.6433876633 | W26: 0 | Y26: 12 | Z26: =AVERAGE(AA$15:AA26) -> 0.04508398655 | AA26: 0.03758495093 | AB26: 12 | AC26: 0.04768194921 | AD26: 0.04714578556 | AE26: 0.5718030442 | AF26: 0.01024764154 | AH26: 12 | AI26: =AVERAGE(AJ$15:AJ26) -> 0.04508398655 | AJ26: 0.03758495093 | AL26: 12 | AM26: 0.04768194921 | AN26: 0.04714578556 | AO26: 0.5718030442 | AP26: 0.01024764154 | AQ26: 0 | AR26: 12 | AS26: =AVERAGE(AT$15:AT26) -> 0.02841731988 | AT26: 0.03758495093 | AU26: 12 | AV26: 0.02728690091 | AW26: 0.02952933186 | AX26: 0.7239340354 | AY26: -0.01014740677 | BA26: 12 | BB26: =AVERAGE(BC$15:BC26) -> 0.02841731988 | BC26: 0.03758495093 | BE26: 12 | BF26: 0.02728690091 | BG26: 0.02952933186 | BH26: 0.7239340354 | BI26: -0.01014740677 | BJ26: 0 | BL26: 12 | BM26: =$B26*(1+Shocks!$H23)+Shocks!$I23 -> 0.0593431813 | BN26: 0.05764907578 | BO26: 0.05776031356 | BQ26: 12 | BR26: =MAX($B26*(1-Shocks!$F23)-Shocks!$G23,Floor) -> 0.01579157319 | BS26: 0.01566818362 | BT26: 0.01641897232 | BV26: 12 | BW26: =$B26*(1+Shocks!$H23)+Shocks!$I23 -> 0.0593431813 | BX26: 0.05764907578 | BY26: 0.05776031356 | CA26: 12 | CB26: =MAX($B26*(1-Shocks!$F23)-Shocks!$G23,Floor) -> 0.01579157319 | CC26: 0.01566818362 | CD26: 0.01641897232 | CF26: 12 | CG26: =(EXP($C26+$I$5)-1)*(1+Shocks!$H23)+Shocks!$I23 -> 0.07289928064 | CH26: 0.07036459218 | CI26: 0.07091578195 | CK26: 12 | CL26: =MAX((EXP($C26+$I$5)-1)*(1-Shocks!$F23)-Shocks!$G23,Floor) -> 0.02183967905 | CM26: 0.02160460967 | CN26: 0.02245278467 | CP26: 12 | CQ26: =(EXP($C26+$I$5)-1)*(1+Shocks!$H23)+Shocks!$I23 -> 0.07289928064 | CR26: 0.07036459218 | CS26: 0.07091578195 | CU26: 12 | CV26: =MAX((EXP($C26+$I$5)-1)*(1-Shocks!$F23)-Shocks!$G23,Floor) -> 0.02183967905 | CW26: 0.02160460967 | CX26: 0.02245278467 | CZ26: 12 | DA26: =(EXP($C26+$I$6)-1)*(1+Shocks!$H23)+Shocks!$I23 -> 0.0459219674 | DB26: 0.0448987619 | DC26: 0.04473309963 | DE26: 12 | DF26: =MAX((EXP($C26+$I$6)-1)*(1-Shocks!$F23)-Shocks!$G23,Floor) -> 0.009803646993 | DG26: 0.009755903035 | DH26: 0.0104445412 | DJ26: 12 | DK26: =(EXP($C26+$I$6)-1)*(1+Shocks!$H23)+Shocks!$I23 -> 0.0459219674 | DL26: 0.0448987619 | DM26: 0.04473309963 | DO26: 12 | DP26: =MAX((EXP($C26+$I$6)-1)*(1-Shocks!$F23)-Shocks!$G23,Floor) -> 0.009803646993 | DQ26: 0.009755903035 | DR26: 0.0104445412 | DU26: 0 | DV26: 12 | DW26: 0.04611571587 | DX26: 12 | DY26: 0.5792982021 | DZ26: 0.04549482537 | EA26: 0.04654558911 | EB26: 0.03742290657 | EC26: 0.03876074452 | ED26: 0.03952174262 | EF26: 0 | EG26: 12 | EH26: 0.04814558911 | EI26: 12 | EJ26: 0.5686878519 | EK26: 0.04703529884 | EL26: 0.04815900723 | EM26: 0.03902665462 | EN26: 0.04037402882 | EO26: 0.04120014023 | EQ26: 0 | ER26: 12 | ES26: 0.02882494395 | ET26: 12 | EU26: 0.7147756497 | EV26: 0.02798221352 | EW26: 0.02837739304 | EX26: 0.03724030492 | EY26: 0.03638361309 | EZ26: 0.03705359753 | FB26: 0 | FC26: 12 | FD26: 0.02997739304 | FE26: 12 | FF26: 0.7014550532 | FG26: 0.02954987116 | FH26: 0.02999080103 | FI26: 0.03885603417 | FJ26: 0.03800945355 | FK26: 0.03874105263
A27: 13 | B27: 0.03771486174 | C27: 0.03702104733 | E27: 13 | F27: 0 | G27: 0 | H27: 13 | I27: 0.03745834465 | K27: 13 | L27: 0.03677382258 | M27: 0.03705185495 | O27: 13 | P27: =AVERAGE(Q$15:Q27) -> 0.03677382258 | Q27: 0.03705185495 | S27: 13 | T27: 0.03745834465 | U27: 0.03774683176 | V27: 0.6199851868 | W27: 0 | Y27: 13 | Z27: =AVERAGE(AA$15:AA27) -> 0.04446613027 | AA27: 0.03705185495 | AB27: 13 | AC27: 0.04752652907 | AD27: 0.04566328471 | AE27: 0.5468328597 | AF27: 0.01006818442 | AH27: 13 | AI27: =AVERAGE(AJ$15:AJ27) -> 0.04446613027 | AJ27: 0.03705185495 | AL27: 13 | AM27: 0.04752652907 | AN27: 0.04566328471 | AO27: 0.5468328597 | AP27: 0.01006818442 | AQ27: 0 | AR27: 13 | AS27: =AVERAGE(AT$15:AT27) -> 0.02908151489 | AT27: 0.03705185495 | AU27: 13 | AV27: 0.02748692946 | AW27: 0.02989031227 | AX27: 0.7029234345 | AY27: -0.009971415185 | BA27: 13 | BB27: =AVERAGE(BC$15:BC27) -> 0.02908151489 | BC27: 0.03705185495 | BE27: 13 | BF27: 0.02748692946 | BG27: 0.02989031227 | BH27: 0.7029234345 | BI27: -0.009971415185 | BJ27: 0 | BL27: 13 | BM27: =$B27*(1+Shocks!$H24)+Shocks!$I24 -> 0.05952932026 | BN27: 0.05782477202 | BO27: 0.05712531338 | BQ27: 13 | BR27: =MAX($B27*(1-Shocks!$F24)-Shocks!$G24,Floor) -> 0.01559747119 | BS27: 0.01547708088 | BT27: 0.01666052998 | BV27: 13 | BW27: =$B27*(1+Shocks!$H24)+Shocks!$I24 -> 0.05952932026 | BX27: 0.05782477202 | BY27: 0.05712531338 | CA27: 13 | CB27: =MAX($B27*(1-Shocks!$F24)-Shocks!$G24,Floor) -> 0.01559747119 | CC27: 0.01547708088 | CD27: 0.01666052998 | CF27: 13 | CG27: =(EXP($C27+$I$5)-1)*(1+Shocks!$H24)+Shocks!$I24 -> 0.07308729033 | CH27: 0.070539812 | CI27: 0.0699926384 | CK27: 13 | CL27: =MAX((EXP($C27+$I$5)-1)*(1-Shocks!$F24)-Shocks!$G24,Floor) -> 0.02154211961 | CM27: 0.02131336752 | CN27: 0.02255212349 | CP27: 13 | CQ27: =(EXP($C27+$I$5)-1)*(1+Shocks!$H24)+Shocks!$I24 -> 0.07308729033 | CR27: 0.070539812 | CS27: 0.0699926384 | CU27: 13 | CV27: =MAX((EXP($C27+$I$5)-1)*(1-Shocks!$F24)-Shocks!$G24,Floor) -> 0.02154211961 | CW27: 0.02131336752 | CX27: 0.02255212349 | CZ27: 13 | DA27: =(EXP($C27+$I$6)-1)*(1+Shocks!$H24)+Shocks!$I24 -> 0.04610625425 | DB27: 0.04507494198 | DC27: 0.04438076325 | DE27: 13 | DF27: =MAX((EXP($C27+$I$6)-1)*(1-Shocks!$F24)-Shocks!$G24,Floor) -> 0.009711973015 | DG27: 0.009665114951 | DH27: 0.01082631539 | DJ27: 13 | DK27: =(EXP($C27+$I$6)-1)*(1+Shocks!$H24)+Shocks!$I24 -> 0.04610625425 | DL27: 0.04507494198 | DM27: 0.04438076325 | DO27: 13 | DP27: =MAX((EXP($C27+$I$6)-1)*(1-Shocks!$F24)-Shocks!$G24,Floor) -> 0.009711973015 | DQ27: 0.009665114951 | DR27: 0.01082631539 | DU27: 0 | DV27: 13 | DW27: 0.04546956634 | DX27: 13 | DY27: 0.5586245989 | DZ27: 0.04479058382 | EA27: 0.04580882769 | EB27: 0.03538495658 | EC27: 0.03633968532 | ED27: 0.03700804308 | EF27: 0 | EG27: 13 | EH27: 0.04740882769 | EI27: 13 | EJ27: 0.5475263678 | EK27: 0.04633420447 | EL27: 0.04742440639 | EM27: 0.03693698366 | EN27: 0.037921072 | EO27: 0.03864925114 | EQ27: 0 | ER27: 13 | ES27: 0.02950851133 | ET27: 13 | EU27: 0.6882273702 | EV27: 0.02874123197 | EW27: 0.02915824677 | EX27: 0.03833604613 | EY27: 0.03784945342 | EZ27: 0.03857486721 | FB27: 0 | FC27: 13 | FD27: 0.03075824677 | FE27: 13 | FF27: 0.6743283661 | FG27: 0.03031062282 | FH27: 0.03077466636 | FI27: 0.03989253883 | FJ27: 0.03943964272 | FK27: 0.04022771168
A28: 14 | B28: 0.03783760645 | C28: 0.037139324 | E28: 14 | F28: 0 | G28: 0 | H28: 14 | I28: 0.03744355851 | K28: 14 | L28: 0.03675957021 | M28: 0.03657428938 | O28: 14 | P28: =AVERAGE(Q$15:Q28) -> 0.03675957021 | Q28: 0.03657428938 | S28: 14 | T28: 0.03744355851 | U28: 0.03725135791 | V28: 0.5977193301 | W28: 0 | Y28: 14 | Z28: =AVERAGE(AA$15:AA28) -> 0.04390242735 | AA28: 0.03657428938 | AB28: 14 | AC28: 0.04729838231 | AD28: 0.04433699223 | AE28: 0.5236172459 | AF28: 0.009854823794 | AH28: 14 | AI28: =AVERAGE(AJ$15:AJ28) -> 0.04390242735 | AJ28: 0.03657428938 | AL28: 14 | AM28: 0.04729838231 | AN28: 0.04433699223 | AO28: 0.5236172459 | AP28: 0.009854823794 | AQ28: 0 | AR28: 14 | AS28: =AVERAGE(AT$15:AT28) -> 0.02961671307 | AT28: 0.03657428938 | AU28: 14 | AV28: 0.02768146622 | AW28: 0.03021379833 | AX28: 0.6823083088 | AY28: -0.009762092292 | BA28: 14 | BB28: =AVERAGE(BC$15:BC28) -> 0.02961671307 | BC28: 0.03657428938 | BE28: 14 | BF28: 0.02768146622 | BG28: 0.03021379833 | BH28: 0.6823083088 | BI28: -0.009762092292 | BJ28: 0 | BL28: 14 | BM28: =$B28*(1+Shocks!$H25)+Shocks!$I25 -> 0.05901051232 | BN28: 0.05733499322 | BO28: 0.05646790499 | BQ28: 14 | BR28: =MAX($B28*(1-Shocks!$F25)-Shocks!$G25,Floor) -> 0.01538905961 | BS28: 0.01527184901 | BT28: 0.01695569062 | BV28: 14 | BW28: =$B28*(1+Shocks!$H25)+Shocks!$I25 -> 0.05901051232 | BX28: 0.05733499322 | BY28: 0.05646790499 | CA28: 14 | CB28: =MAX($B28*(1-Shocks!$F25)-Shocks!$G25,Floor) -> 0.01538905961 | CC28: 0.01527184901 | CD28: 0.01695569062 | CF28: 14 | CG28: =(EXP($C28+$I$5)-1)*(1+Shocks!$H25)+Shocks!$I25 -> 0.07246578166 | CH28: 0.0699604661 | CI28: 0.06901598768 | CK28: 14 | CL28: =MAX((EXP($C28+$I$5)-1)*(1-Shocks!$F25)-Shocks!$G25,Floor) -> 0.02123010677 | CM28: 0.02100788771 | CN28: 0.02269470158 | CP28: 14 | CQ28: =(EXP($C28+$I$5)-1)*(1+Shocks!$H25)+Shocks!$I25 -> 0.07246578166 | CR28: 0.0699604661 | CS28: 0.06901598768 | CU28: 14 | CV28: =MAX((EXP($C28+$I$5)-1)*(1-Shocks!$F25)-Shocks!$G25,Floor) -> 0.02123010677 | CW28: 0.02100788771 | CX28: 0.02269470158 | CZ28: 14 | DA28: =(EXP($C28+$I$6)-1)*(1+Shocks!$H25)+Shocks!$I25 -> 0.04568912515 | DB28: 0.04467611797 | DC28: 0.04403645439 | DE28: 14 | DF28: =MAX((EXP($C28+$I$6)-1)*(1-Shocks!$F25)-Shocks!$G25,Floor) -> 0.009606131846 | DG28: 0.009560286326 | DH28: 0.01127188625 | DJ28: 14 | DK28: =(EXP($C28+$I$6)-1)*(1+Shocks!$H25)+Shocks!$I25 -> 0.04568912515 | DL28: 0.04467611797 | DM28: 0.04403645439 | DO28: 14 | DP28: =MAX((EXP($C28+$I$6)-1)*(1-Shocks!$F25)-Shocks!$G25,Floor) -> 0.009606131846 | DQ28: 0.009560286326 | DR28: 0.01127188625 | DU28: 0 | DV28: 14 | DW28: 0.04488039817 | DX28: 14 | DY28: 0.5395789713 | DZ28: 0.04406900902 | EA28: 0.04505447059 | EB28: 0.03412168197 | EC28: 0.0346885366 | ED28: 0.03529720139 | EF28: 0 | EG28: 14 | EH28: 0.04665447059 | EI28: 14 | EJ28: 0.528062274 | EK28: 0.04561007564 | EL28: 0.04666621073 | EM28: 0.0355776912 | EN28: 0.03619640083 | EO28: 0.03685946656 | EQ28: 0 | ER28: 14 | ES28: 0.03005964988 | ET28: 14 | EU28: 0.6621826971 | EV28: 0.02944384169 | EW28: 0.02988159743 | EX28: 0.038696533 | EY28: 0.03857776796 | EZ28: 0.03933155191 | FB28: 0 | FC28: 14 | FD28: 0.03148159743 | FE28: 14 | FF28: 0.6478337313 | FG28: 0.03100865736 | FH28: 0.03149443387 | FI28: 0.04014133744 | FJ28: 0.0400831064 | FK28: 0.04089727582
A29: 15 | B29: 0.0382 | C29: 0.03748844441 | E29: 15 | F29: 1 | G29: 0.5 | H29: 15 | I29: 0.03740115558 | K29: 15 | L29: 0.03671869685 | M29: 0.03614646983 | O29: 15 | P29: =AVERAGE(Q$15:Q29) -> 0.03671869685 | Q29: 0.03614646983 | S29: 15 | T29: 0.03740115558 | U29: 0.03680769642 | V29: 0.576499704 | W29: 0 | Y29: 15 | Z29: =AVERAGE(AA$15:AA29) -> 0.04338536352 | AA29: 0.03614646983 | AB29: 15 | AC29: 0.04702132988 | AD29: 0.04315028273 | AE29: 0.5019576322 | AF29: 0.009620174305 | AH29: 15 | AI29: =AVERAGE(AJ$15:AJ29) -> 0.04338536352 | AJ29: 0.03614646983 | AL29: 15 | AM29: 0.04702132988 | AN29: 0.04315028273 | AO29: 0.5019576322 | AP29: 0.009620174305 | AQ29: 0 | AR29: 15 | AS29: =AVERAGE(AT$15:AT29) -> 0.03005203018 | AT29: 0.03614646983 | AU29: 15 | AV29: 0.02786937274 | AW29: 0.03050367446 | AX29: 0.6621114759 | AY29: -0.009531782836 | BA29: 15 | BB29: =AVERAGE(BC$15:BC29) -> 0.03005203018 | BC29: 0.03614646983 | BE29: 15 | BF29: 0.02786937274 | BG29: 0.03050367446 | BH29: 0.6621114759 | BI29: -0.009531782836 | BJ29: 0 | BL29: 15 | BM29: =$B29*(1+Shocks!$H26)+Shocks!$I26 -> 0.058696 | BN29: 0.05703796214 | BO29: 0.05580370544 | BQ29: 15 | BR29: =MAX($B29*(1-Shocks!$F26)-Shocks!$G26,Floor) -> 0.01531 | BS29: 0.01519398458 | BT29: 0.01728522285 | BV29: 15 | BW29: =$B29*(1+Shocks!$H26)+Shocks!$I26 -> 0.058696 | BX29: 0.05703796214 | BY29: 0.05580370544 | CA29: 15 | CB29: =MAX($B29*(1-Shocks!$F26)-Shocks!$G26,Floor) -> 0.01531 | CC29: 0.01519398458 | CD29: 0.01728522285 | CF29: 15 | CG29: =(EXP($C29+$I$5)-1)*(1+Shocks!$H26)+Shocks!$I26 -> 0.07205162684 | CH29: 0.06957422085 | CI29: 0.068014894 | CK29: 15 | CL29: =MAX((EXP($C29+$I$5)-1)*(1-Shocks!$F26)-Shocks!$G26,Floor) -> 0.02104874591 | CM29: 0.02083028134 | CN29: 0.02286630553 | CP29: 15 | CQ29: =(EXP($C29+$I$5)-1)*(1+Shocks!$H26)+Shocks!$I26 -> 0.07205162684 | CR29: 0.06957422085 | CS29: 0.068014894 | CU29: 15 | CV29: =MAX((EXP($C29+$I$5)-1)*(1-Shocks!$F26)-Shocks!$G26,Floor) -> 0.02104874591 | CW29: 0.02083028134 | CX29: 0.02286630553 | CZ29: 15 | DA29: =(EXP($C29+$I$6)-1)*(1+Shocks!$H26)+Shocks!$I26 -> 0.04547326387 | DB29: 0.04446966698 | DC29: 0.04370270483 | DE29: 15 | DF29: =MAX((EXP($C29+$I$6)-1)*(1-Shocks!$F26)-Shocks!$G26,Floor) -> 0.009628355569 | DG29: 0.009582298354 | DH29: 0.0117571009 | DJ29: 15 | DK29: =(EXP($C29+$I$6)-1)*(1+Shocks!$H26)+Shocks!$I26 -> 0.04547326387 | DL29: 0.04446966698 | DM29: 0.04370270483 | DO29: 15 | DP29: =MAX((EXP($C29+$I$6)-1)*(1-Shocks!$F26)-Shocks!$G26,Floor) -> 0.009628355569 | DQ29: 0.009582298354 | DR29: 0.0117571009 | DU29: 1 | DV29: 15 | DW29: 0.04434026795 | DX29: 15 | DY29: 0.5216385036 | DZ29: 0.04338536352 | EA29: 0.04434026795 | EB29: 0.03363685419 | EC29: 0.03381432645 | ED29: 0.03439252956 | EF29: 1 | EG29: 15 | EH29: 0.04594026795 | EI29: 15 | EJ29: 0.509796383 | EK29: 0.04491625881 | EL29: 0.04594026795 | EM29: 0.03494996449 | EN29: 0.03520282311 | EO29: 0.03582977772 | EQ29: 1 | ER29: 15 | ES29: 0.03050815009 | ET29: 15 | EU29: 0.6371307071 | EV29: 0.03005203018 | EW29: 0.03050815009 | EX29: 0.03831065924 | EY29: 0.03856666914 | EZ29: 0.03932001662 | FB29: 1 | FC29: 15 | FD29: 0.03210815009 | FE29: 15 | FF29: 0.6224749624 | FG29: 0.03160345816 | FH29: 0.03210815009 | FI29: 0.03958290563 | FJ29: 0.03993066943 | FK29: 0.04073861669
A30: 16 | B30: 0 | C30: 0 | E30: 16 | F30: 0 | G30: 0 | H30: 16 | I30: 0.03733920627 | K30: 16 | L30: 0.0366589792 | M30: 0.03576321448 | O30: 16 | P30: =AVERAGE(Q$15:Q30) -> 0.0366589792 | Q30: 0.03576321448 | S30: 16 | T30: 0.03733920627 | U30: 0.03641041046 | V30: 0.5562465392 | W30: 0 | Y30: 16 | Z30: =AVERAGE(AA$15:AA30) -> 0.0429089792 | AA30: 0.03576321448 | AB30: 16 | AC30: 0.04671233459 | AD30: 0.042088333 | AE30: 0.4816843412 | AF30: 0.009373128322 | AH30: 16 | AI30: =AVERAGE(AJ$15:AJ30) -> 0.0429089792 | AJ30: 0.03576321448 | AL30: 16 | AM30: 0.04671233459 | AN30: 0.042088333 | AO30: 0.4816843412 | AP30: 0.009373128322 | AQ30: 0 | AR30: 16 | AS30: =AVERAGE(AT$15:AT30) -> 0.0304089792 | AT30: 0.03576321448 | AU30: 16 | AV30: 0.02805001269 | AW30: 0.03076342465 | AX30: 0.6423505725 | AY30: -0.009289193575 | BA30: 16 | BB30: =AVERAGE(BC$15:BC30) -> 0.0304089792 | BC30: 0.03576321448 | BE30: 16 | BF30: 0.02805001269 | BG30: 0.03076342465 | BH30: 0.6423505725 | BI30: -0.009289193575 | BJ30: 0 | BL30: 16 | BM30: =$B30*(1+Shocks!$H27)+Shocks!$I27 -> 0.0098 | BN30: 0.009752291443 | BO30: 0.05514332638 | BQ30: 16 | BR30: =MAX($B30*(1-Shocks!$F27)-Shocks!$G27,Floor) -> -0.0056 | BS30: -0.005615738786 | BT30: 0.01763553324 | BV30: 16 | BW30: =$B30*(1+Shocks!$H27)+Shocks!$I27 -> 0.0098 | BX30: 0.009752291443 | BY30: 0.05514332638 | CA30: 16 | CB30: =MAX($B30*(1-Shocks!$F27)-Shocks!$G27,Floor) -> -0.0056 | CC30: -0.005615738786 | CD30: 0.01763553324 | CF30: 16 | CG30: =(EXP($C30+$I$5)-1)*(1+Shocks!$H27)+Shocks!$I27 -> 0.02266421387 | CH30: 0.0224111964 | CI30: 0.06700933194 | CK30: 16 | CL30: =MAX((EXP($C30+$I$5)-1)*(1-Shocks!$F27)-Shocks!$G27,Floor) -> -0.0002734114454 | CM30: -0.0002734488291 | CN30: 0.02305681977 | CP30: 16 | CQ30: =(EXP($C30+$I$5)-1)*(1+Shocks!$H27)+Shocks!$I27 -> 0.02266421387 | CR30: 0.0224111964 | CS30: 0.06700933194 | CU30: 16 | CV30: =MAX((EXP($C30+$I$5)-1)*(1-Shocks!$F27)-Shocks!$G27,Floor) -> -0.0002734114454 | CW30: -0.0002734488291 | CX30: 0.02305681977 | CZ30: 16 | DA30: =(EXP($C30+$I$6)-1)*(1+Shocks!$H27)+Shocks!$I27 -> -0.002936212801 | DB30: -0.002940531931 | DC30: 0.04338100634 | DE30: 16 | DF30: =MAX((EXP($C30+$I$6)-1)*(1-Shocks!$F27)-Shocks!$G27,Floor) -> -0.01087358811 | DG30: -0.01093313764 | DH30: 0.01226495293 | DJ30: 16 | DK30: =(EXP($C30+$I$6)-1)*(1+Shocks!$H27)+Shocks!$I27 -> -0.002936212801 | DL30: -0.002940531931 | DM30: 0.04338100634 | DO30: 16 | DP30: =MAX((EXP($C30+$I$6)-1)*(1-Shocks!$F27)-Shocks!$G27,Floor) -> -0.01087358811 | DQ30: -0.01093313764 | DR30: 0.01226495293 | DU30: 0 | DV30: 16 | DW30: 0.04384287912 | DX30: 16 | DY30: 0.5044073833 | DZ30: 0.04277318982 | EA30: 0.04370114596 | EB30: 0.0335455346 | EC30: 0.0335905844 | ED30: 0.03416111835 | EF30: 0 | EG30: 16 | EH30: 0 | EI30: 16 | EJ30: 0.4923489987 | EK30: 0.04428546669 | EL30: 0.04528070513 | EM30: 0.03470147459 | EN30: 0.03482358501 | EO30: 0.03543702607 | EQ30: 0 | ER30: 16 | ES30: 0.03087605462 | ET30: 16 | EU30: 0.6134089727 | EV30: 0.03054521248 | EW30: 0.03101650381 | EX30: 0.03759036533 | EY30: 0.03794294692 | EZ30: 0.03867197175 | FB30: 0 | FC30: 16 | FD30: 0 | FE30: 16 | FF30: 0.598595751 | FG30: 0.03207304887 | FH30: 0.0325929323 | FI30: 0.03867075129 | FJ30: 0.03911690942 | FK30: 0.03989204972
A31: 17 | B31: 0 | C31: 0 | E31: 17 | F31: 0 | G31: 0 | H31: 17 | I31: 0.03726359933 | K31: 17 | L31: 0.03658609109 | M31: 0.03541988126 | O31: 17 | P31: =AVERAGE(Q$15:Q31) -> 0.03658609109 | Q31: 0.03541988126 | S31: 17 | T31: 0.03726359933 | U31: 0.03605463741 | V31: 0.536889194 | W31: 0 | Y31: 17 | Z31: =AVERAGE(AA$15:AA31) -> 0.04246844403 | AA31: 0.03541988126 | AB31: 17 | AC31: 0.04638360323 | AD31: 0.04113792025 | AE31: 0.462651808 | AF31: 0.009120003901 | AH31: 17 | AI31: =AVERAGE(AJ$15:AJ31) -> 0.04246844403 | AJ31: 0.03541988126 | AL31: 17 | AM31: 0.04638360323 | AN31: 0.04113792025 | AO31: 0.462651808 | AP31: 0.009120003901 | AQ31: 0 | AR31: 17 | AS31: =AVERAGE(AT$15:AT31) -> 0.03070373815 | AT31: 0.03541988126 | AU31: 17 | AV31: 0.02822308298 | AW31: 0.03099617334 | AX31: 0.6230387552 | AY31: -0.009040516349 | BA31: 17 | BB31: =AVERAGE(BC$15:BC31) -> 0.03070373815 | BC31: 0.03541988126 | BE31: 17 | BF31: 0.02822308298 | BG31: 0.03099617334 | BH31: 0.6230387552 | BI31: -0.009040516349 | BJ31: 0 | BL31: 17 | BM31: =$B31*(1+Shocks!$H28)+Shocks!$I28 -> 0.0095 | BN31: 0.009455158771 | BO31: 0.05449395457 | BQ31: 17 | BR31: =MAX($B31*(1-Shocks!$F28)-Shocks!$G28,Floor) -> -0.0055 | BS31: -0.005515180688 | BT31: 0.01799692475 | BV31: 17 | BW31: =$B31*(1+Shocks!$H28)+Shocks!$I28 -> 0.0095 | BX31: 0.009455158771 | BY31: 0.05449395457 | CA31: 17 | CB31: =MAX($B31*(1-Shocks!$F28)-Shocks!$G28,Floor) -> -0.0055 | CC31: -0.005515180688 | CD31: 0.01799692475 | CF31: 17 | CG31: =(EXP($C31+$I$5)-1)*(1+Shocks!$H28)+Shocks!$I28 -> 0.0222637122 | CH31: 0.02201949391 | CI31: 0.06601303786 | CK31: 17 | CL31: =MAX((EXP($C31+$I$5)-1)*(1-Shocks!$F28)-Shocks!$G28,Floor) -> -0.0002739131162 | CM31: -0.0002739506373 | CN31: 0.02325896666 | CP31: 17 | CQ31: =(EXP($C31+$I$5)-1)*(1+Shocks!$H28)+Shocks!$I28 -> 0.0222637122 | CR31: 0.02201949391 | CS31: 0.06601303786 | CU31: 17 | CV31: =MAX((EXP($C31+$I$5)-1)*(1-Shocks!$F28)-Shocks!$G28,Floor) -> -0.0002739131162 | CW31: -0.0002739506373 | CX31: 0.02325896666 | CZ31: 17 | DA31: =(EXP($C31+$I$6)-1)*(1+Shocks!$H28)+Shocks!$I28 -> -0.003136711139 | DB31: -0.003141640929 | DC31: 0.04307215686 | DE31: 17 | DF31: =MAX((EXP($C31+$I$6)-1)*(1-Shocks!$F28)-Shocks!$G28,Floor) -> -0.01067408645 | DG31: -0.01073146317 | DH31: 0.01278336898 | DJ31: 17 | DK31: =(EXP($C31+$I$6)-1)*(1+Shocks!$H28)+Shocks!$I28 -> -0.003136711139 | DL31: -0.003141640929 | DM31: 0.04307215686 | DO31: 17 | DP31: =MAX((EXP($C31+$I$6)-1)*(1-Shocks!$F28)-Shocks!$G28,Floor) -> -0.01067408645 | DQ31: -0.01073146317 | DR31: 0.01278336898 | DU31: 0 | DV31: 17 | DW31: 0.04338313089 | DX31: 17 | DY31: 0.487788256 | DZ31: 0.04222787465 | EA31: 0.04313215504 | EB31: 0.03346125741 | EC31: 0.03350283182 | ED31: 0.03407037203 | EF31: 0 | EG31: 17 | EH31: 0 | EI31: 17 | EJ31: 0.4756110119 | EK31: 0.04371499769 | EL31: 0.04468457494 | EM31: 0.0344773803 | EN31: 0.03458749366 | EO31: 0.0351925972 | EQ31: 0 | ER31: 17 | ES31: 0.03117995934 | ET31: 17 | EU31: 0.5909701584 | EV31: 0.0309405739 | EW31: 0.03142420854 | EX31: 0.0369558203 | EY31: 0.03726635657 | EZ31: 0.037969454 | FB31: 0 | FC31: 17 | FD31: 0 | FE31: 17 | FF31: 0.5761249023 | FG31: 0.03243710573 | FH31: 0.03296892328 | FI31: 0.03787090326 | FJ31: 0.03826201559 | FK31: 0.03900343232
A32: 18 | B32: 0 | C32: 0 | E32: 18 | F32: 0 | G32: 0 | H32: 18 | I32: 0.03717867515 | K32: 18 | L32: 0.03650421445 | M32: 0.03511231163 | O32: 18 | P32: =AVERAGE(Q$15:Q32) -> 0.03650421445 | Q32: 0.03511231163 | S32: 18 | T32: 0.03717867515 | U32: 0.03573602747 | V32: 0.5183648919 | W32: 0 | Y32: 18 | Z32: =AVERAGE(AA$15:AA32) -> 0.04205977001 | AA32: 0.03511231163 | AB32: 18 | AC32: 0.04604398128 | AD32: 0.04028724416 | AE32: 0.4447346737 | AF32: 0.008865306128 | AH32: 18 | AI32: =AVERAGE(AJ$15:AJ32) -> 0.04205977001 | AJ32: 0.03511231163 | AL32: 18 | AM32: 0.04604398128 | AN32: 0.04028724416 | AO32: 0.4447346737 | AP32: 0.008865306128 | AQ32: 0 | AR32: 18 | AS32: =AVERAGE(AT$15:AT32) -> 0.0309486589 | AT32: 0.03511231163 | AU32: 18 | AV32: 0.0283885032 | AW32: 0.03120472218 | AX32: 0.6041853202 | AY32: -0.008790171952 | BA32: 18 | BB32: =AVERAGE(BC$15:BC32) -> 0.0309486589 | BC32: 0.03511231163 | BE32: 18 | BF32: 0.0283885032 | BG32: 0.03120472218 | BH32: 0.6041853202 | BI32: -0.008790171952 | BJ32: 0 | BL32: 18 | BM32: =$B32*(1+Shocks!$H29)+Shocks!$I29 -> 0.0091 | BN32: 0.009058844488 | BO32: 0.05386039544 | BQ32: 18 | BR32: =MAX($B32*(1-Shocks!$F29)-Shocks!$G29,Floor) -> -0.0054 | BS32: -0.005414632701 | BT32: 0.01836244491 | BV32: 18 | BW32: =$B32*(1+Shocks!$H29)+Shocks!$I29 -> 0.0091 | BX32: 0.009058844488 | BY32: 0.05386039544 | CA32: 18 | CB32: =MAX($B32*(1-Shocks!$F29)-Shocks!$G29,Floor) -> -0.0054 | CC32: -0.005414632701 | CD32: 0.01836244491 | CF32: 18 | CG32: =(EXP($C32+$I$5)-1)*(1+Shocks!$H29)+Shocks!$I29 -> 0.02176321053 | CH32: 0.02152977269 | CI32: 0.06503539538 | CK32: 18 | CL32: =MAX((EXP($C32+$I$5)-1)*(1-Shocks!$F29)-Shocks!$G29,Floor) -> -0.0002744147871 | CM32: -0.0002744524457 | CN32: 0.02346747255 | CP32: 18 | CQ32: =(EXP($C32+$I$5)-1)*(1+Shocks!$H29)+Shocks!$I29 -> 0.02176321053 | CR32: 0.02152977269 | CS32: 0.06503539538 | CU32: 18 | CV32: =MAX((EXP($C32+$I$5)-1)*(1-Shocks!$F29)-Shocks!$G29,Floor) -> -0.0002744147871 | CW32: -0.0002744524457 | CX32: 0.02346747255 | CZ32: 18 | DA32: =(EXP($C32+$I$6)-1)*(1+Shocks!$H29)+Shocks!$I29 -> -0.003437209476 | DB32: -0.003443130252 | DC32: 0.04277648729 | DE32: 18 | DF32: =MAX((EXP($C32+$I$6)-1)*(1-Shocks!$F29)-Shocks!$G29,Floor) -> -0.01047458479 | DG32: -0.01052982937 | DH32: 0.01330374579 | DJ32: 18 | DK32: =(EXP($C32+$I$6)-1)*(1+Shocks!$H29)+Shocks!$I29 -> -0.003437209476 | DL32: -0.003443130252 | DM32: 0.04277648729 | DO32: 18 | DP32: =MAX((EXP($C32+$I$6)-1)*(1-Shocks!$F29)-Shocks!$G29,Floor) -> -0.01047458479 | DQ32: -0.01052982937 | DR32: 0.01330374579 | DU32: 0 | DV32: 18 | DW32: 0.04295681442 | DX32: 18 | DY32: 0.4717548932 | DZ32: 0.04173865124 | EA32: 0.04262195519 | EB32: 0.03338349263 | EC32: 0.03342185338 | ED32: 0.03398663801 | EF32: 0 | EG32: 18 | EH32: 0 | EI32: 18 | EJ32: 0.4595398624 | EK32: 0.04319608829 | EL32: 0.04414261892 | EM32: 0.03427537728 | EN32: 0.03437462847 | EO32: 0.03497226418 | EQ32: 0 | ER32: 18 | ES32: 0.03143254764 | ET32: 18 | EU32: 0.5696914118 | EV32: 0.03125891375 | EW32: 0.03175260425 | EX32: 0.03639752673 | EY32: 0.03667069135 | EZ32: 0.03735135581 | FB32: 0 | FC32: 18 | FD32: 0 | FE32: 18 | FF32: 0.5549130876 | FG32: 0.03271909869 | FH32: 0.03326025432 | FI32: 0.03717065819 | FJ32: 0.03751297898 | FK32: 0.0382254721
A33: 19 | B33: 0 | C33: 0 | E33: 19 | F33: 0 | G33: 0 | H33: 19 | I33: 0.03708765666 | K33: 19 | L33: 0.03641645476 | M33: 0.03483678027 | O33: 19 | P33: =AVERAGE(Q$15:Q33) -> 0.03641645476 | Q33: 0.03483678027 | S33: 19 | T33: 0.03708765666 | U33: 0.03545068902 | V33: 0.5006176513 | W33: 0 | Y33: 19 | Z33: =AVERAGE(AA$15:AA33) -> 0.04167961265 | AA33: 0.03483678027 | AB33: 19 | AC33: 0.04569990078 | AD33: 0.03952576972 | AE33: 0.4278245779 | AF33: 0.008612244126 | AH33: 19 | AI33: =AVERAGE(AJ$15:AJ33) -> 0.04167961265 | AJ33: 0.03483678027 | AL33: 19 | AM33: 0.04569990078 | AN33: 0.03952576972 | AO33: 0.4278245779 | AP33: 0.008612244126 | AQ33: 0 | AR33: 19 | AS33: =AVERAGE(AT$15:AT33) -> 0.03115329686 | AT33: 0.03483678027 | AU33: 19 | AV33: 0.02854634182 | AW33: 0.03139158318 | AX33: 0.5857962485 | AY33: -0.008541314839 | BA33: 19 | BB33: =AVERAGE(BC$15:BC33) -> 0.03115329686 | BC33: 0.03483678027 | BE33: 19 | BF33: 0.02854634182 | BG33: 0.03139158318 | BH33: 0.5857962485 | BI33: -0.008541314839 | BJ33: 0 | BL33: 19 | BM33: =$B33*(1+Shocks!$H30)+Shocks!$I30 -> 0.0091 | BN33: 0.009058844488 | BO33: 0.05324577822 | BQ33: 19 | BR33: =MAX($B33*(1-Shocks!$F30)-Shocks!$G30,Floor) -> -0.0052 | BS33: -0.005213567053 | BT33: 0.01872710515 | BV33: 19 | BW33: =$B33*(1+Shocks!$H30)+Shocks!$I30 -> 0.0091 | BX33: 0.009058844488 | BY33: 0.05324577822 | CA33: 19 | CB33: =MAX($B33*(1-Shocks!$F30)-Shocks!$G30,Floor) -> -0.0052 | CC33: -0.005213567053 | CD33: 0.01872710515 | CF33: 19 | CG33: =(EXP($C33+$I$5)-1)*(1+Shocks!$H30)+Shocks!$I30 -> 0.02176321053 | CH33: 0.02152977269 | CI33: 0.0640827113 | CK33: 19 | CL33: =MAX((EXP($C33+$I$5)-1)*(1-Shocks!$F30)-Shocks!$G30,Floor) -> -7.441478707e-05 | CM33: -7.441755599e-05 | CN33: 0.02367850199 | CP33: 19 | CQ33: =(EXP($C33+$I$5)-1)*(1+Shocks!$H30)+Shocks!$I30 -> 0.02176321053 | CR33: 0.02152977269 | CS33: 0.0640827113 | CU33: 19 | CV33: =MAX((EXP($C33+$I$5)-1)*(1-Shocks!$F30)-Shocks!$G30,Floor) -> -7.441478707e-05 | CW33: -7.441755599e-05 | CX33: 0.02367850199 | CZ33: 19 | DA33: =(EXP($C33+$I$6)-1)*(1+Shocks!$H30)+Shocks!$I30 -> -0.003437209476 | DB33: -0.003443130252 | DC33: 0.04249401324 | DE33: 19 | DF33: =MAX((EXP($C33+$I$6)-1)*(1-Shocks!$F30)-Shocks!$G30,Floor) -> -0.01027458479 | DG33: -0.0103277327 | DH33: 0.01381995929 | DJ33: 19 | DK33: =(EXP($C33+$I$6)-1)*(1+Shocks!$H30)+Shocks!$I30 -> -0.003437209476 | DL33: -0.003443130252 | DM33: 0.04249401324 | DO33: 19 | DP33: =MAX((EXP($C33+$I$6)-1)*(1-Shocks!$F30)-Shocks!$G30,Floor) -> -0.01027458479 | DQ33: -0.0103277327 | DR33: 0.01381995929 | DU33: 0 | DV33: 19 | DW33: 0.04256040207 | DX33: 19 | DY33: 0.4562826292 | DZ33: 0.04129699267 | EA33: 0.04216157393 | EB33: 0.03331174821 | EC33: 0.03334713827 | ED33: 0.03390938647 | EF33: 0 | EG33: 19 | EH33: 0 | EI33: 19 | EJ33: 0.444096954 | EK33: 0.04272170398 | EL33: 0.04364741151 | EM33: 0.03409336144 | EN33: 0.03418278641 | EO33: 0.03477373202 | EQ33: 0 | ER33: 19 | ES33: 0.0316436395 | ET33: 19 | EU33: 0.5494665688 | EV33: 0.03151617612 | EW33: 0.03201806951 | EX33: 0.03590687129 | EY33: 0.03614689878 | EZ33: 0.03680814116 | FB33: 0 | FC33: 19 | FD33: 0 | FE33: 19 | FF33: 0.5348326126 | FG33: 0.03293691867 | FH33: 0.03348534355 | FI33: 0.03655847312 | FJ33: 0.03685767821 | FK33: 0.03754534501
A34: 20 | B34: 0 | C34: 0 | E34: 20 | F34: 0 | G34: 0 | H34: 20 | I34: 0.0369929487 | K34: 20 | L34: 0.03632512951 | M34: =$K34*L34-$K33*L33 -> 0.03458994986 | O34: 20 | P34: =AVERAGE(Q$15:Q34) -> 0.03632512951 | Q34: 0.03458994986 | S34: 20 | T34: 0.0369929487 | U34: 0.03519513985 | V34: 0.4835973741 | W34: 0 | Y34: 20 | Z34: =AVERAGE(AA$15:AA34) -> 0.04132512951 | AA34: 0.03458994986 | AB34: 20 | AC34: 0.04535603807 | AD34: 0.03884408826 | AE34: 0.4118275136 | AF34: 0.008363089372 | AH34: 20 | AI34: =AVERAGE(AJ$15:AJ34) -> 0.04132512951 | AJ34: 0.03458994986 | AL34: 20 | AM34: 0.04535603807 | AN34: 0.03884408826 | AO34: 0.4118275136 | AP34: 0.008363089372 | AQ34: 0 | AR34: 20 | AS34: =AVERAGE(AT$15:AT34) -> 0.03132512951 | AT34: 0.03458994986 | AU34: 20 | AV34: 0.02869676597 | AW34: 0.03155900839 | AX34: 0.5678746865 | AY34: -0.008296182728 | BA34: 20 | BB34: =AVERAGE(BC$15:BC34) -> 0.03132512951 | BC34: 0.03458994986 | BE34: 20 | BF34: 0.02869676597 | BG34: 0.03155900839 | BH34: 0.5678746865 | BI34: -0.008296182728 | BJ34: 0 | BL34: 20 | BM34: =$B34*(1+Shocks!$H31)+Shocks!$I31 -> 0.0088 | BN34: 0.008761505669 | BO34: 0.05265204178 | BQ34: 20 | BR34: =MAX($B34*(1-Shocks!$F31)-Shocks!$G31,Floor) -> -0.005 | BS34: -0.005012541824 | BT34: 0.01908734043 | BV34: 20 | BW34: =$B34*(1+Shocks!$H31)+Shocks!$I31 -> 0.0088 | BX34: 0.008761505669 | BY34: 0.05265204178 | CA34: 20 | CB34: =MAX($B34*(1-Shocks!$F31)-Shocks!$G31,Floor) -> -0.005 | CC34: -0.005012541824 | CD34: 0.01908734043 | CF34: 20 | CG34: =(EXP($C34+$I$5)-1)*(1+Shocks!$H31)+Shocks!$I31 -> 0.02136270886 | CH34: 0.02113772473 | CI34: 0.06315909608 | CK34: 20 | CL34: =MAX((EXP($C34+$I$5)-1)*(1-Shocks!$F31)-Shocks!$G31,Floor) -> 2.508354208e-05 | CM34: 2.50832275e-05 | CN34: 0.02388926568 | CP34: 20 | CQ34: =(EXP($C34+$I$5)-1)*(1+Shocks!$H31)+Shocks!$I31 -> 0.02136270886 | CR34: 0.02113772473 | CS34: 0.06315909608 | CU34: 20 | CV34: =MAX((EXP($C34+$I$5)-1)*(1-Shocks!$F31)-Shocks!$G31,Floor) -> 2.508354208e-05 | CW34: 2.50832275e-05 | CX34: 0.02388926568 | CZ34: 20 | DA34: =(EXP($C34+$I$6)-1)*(1+Shocks!$H31)+Shocks!$I31 -> -0.003637707814 | DB34: -0.003644340362 | DC34: 0.0422245384 | DE34: 20 | DF34: =MAX((EXP($C34+$I$6)-1)*(1-Shocks!$F31)-Shocks!$G31,Floor) -> -0.009975083125 | DG34: -0.01002516761 | DH34: 0.01432767901 | DJ34: 20 | DK34: =(EXP($C34+$I$6)-1)*(1+Shocks!$H31)+Shocks!$I31 -> -0.003637707814 | DL34: -0.003644340362 | DM34: 0.0422245384 | DO34: 20 | DP34: =MAX((EXP($C34+$I$6)-1)*(1-Shocks!$F31)-Shocks!$G31,Floor) -> -0.009975083125 | DQ34: -0.01002516761 | DR34: 0.01432767901 | DU34: 0 | DV34: 20 | DW34: 0.04219089749 | DX34: 20 | DY34: 0.4413482322 | DZ34: 0.04089605365 | EA34: 0.04174381445 | EB34: 0.03324556755 | EC34: 0.03327821236 | ED34: 0.03383812578 | EF34: =IF(EG34<=$DU$5,$F34,0) -> 0 | EG34: 20 | EH34: 0 | EI34: 20 | EJ34: 0.4292471867 | EK34: 0.04228611667 | EL34: 0.04319291093 | EM34: 0.03392941496 | EN34: 0.03400995767 | EO34: 0.03459490884 | EQ34: 0 | ER34: 20 | ES34: 0.03182092479 | ET34: 20 | EU34: 0.5302036307 | EV34: 0.03172470686 | EW34: 0.03223329944 | EX34: 0.03547608357 | EY34: 0.03568679089 | EZ34: 0.03633120728 | FB34: 0 | FC34: 20 | FD34: 0 | FE34: 20 | FF34: 0.5157740012 | FG34: 0.03310432958 | FH34: 0.03365837476 | FI34: 0.03602393071 | FJ34: 0.03628513701 | FK34: 0.03695147759
A35: 21 | B35: 0 | C35: 0 | E35: 21 | F35: 0 | G35: 0 | H35: 21 | I35: 0.03689634996 | K35: 21 | L35: 0.03623197243 | M35: 0.03436883076 | O35: 21 | P35: =AVERAGE(Q$15:Q35) -> 0.03623197243 | Q35: 0.03436883076 | S35: 21 | T35: 0.03689634996 | U35: 0.03496626373 | V35: 0.4672590702 | W35: 0 | Y35: 21 | Z35: =AVERAGE(AA$15:AA35) -> 0.04099387719 | AA35: 0.03436883076 | AB35: 21 | AC35: 0.04501577835 | AD35: 0.03823379435 | AE35: 0.3966616343 | AF35: 0.008119428395 | AH35: 21 | AI35: =AVERAGE(AJ$15:AJ35) -> 0.04099387719 | AJ35: 0.03436883076 | AL35: 21 | AM35: 0.04501577835 | AN35: 0.03823379435 | AO35: 0.3966616343 | AP35: 0.008119428395 | AQ35: 0 | AR35: 21 | AS35: =AVERAGE(AT$15:AT35) -> 0.03147006767 | AT35: 0.03436883076 | AU35: 21 | AV35: 0.02884000685 | AW35: 0.0317090167 | AX35: 0.5504213662 | AY35: -0.00805634311 | BA35: 21 | BB35: =AVERAGE(BC$15:BC35) -> 0.03147006767 | BC35: 0.03436883076 | BE35: 21 | BF35: 0.02884000685 | BG35: 0.0317090167 | BH35: 0.5504213662 | BI35: -0.00805634311 | BJ35: 0 | BL35: 21 | BM35: =$B35*(1+Shocks!$H32)+Shocks!$I32 -> 0.0087 | BN35: 0.008662373079 | BO35: 0.05208027498 | BQ35: 21 | BR35: =MAX($B35*(1-Shocks!$F32)-Shocks!$G32,Floor) -> -0.0049 | BS35: -0.004912044361 | BT35: 0.01944062826 | BV35: 21 | BW35: =$B35*(1+Shocks!$H32)+Shocks!$I32 -> 0.0087 | BX35: 0.008662373079 | BY35: 0.05208027498 | CA35: 21 | CB35: =MAX($B35*(1-Shocks!$F32)-Shocks!$G32,Floor) -> -0.0049 | CC35: -0.004912044361 | CD35: 0.01944062826 | CF35: 21 | CG35: =(EXP($C35+$I$5)-1)*(1+Shocks!$H32)+Shocks!$I32 -> 0.02126270886 | CH35: 0.02103981153 | CI35: 0.06226708172 | CK35: 21 | CL35: =MAX((EXP($C35+$I$5)-1)*(1-Shocks!$F32)-Shocks!$G32,Floor) -> 0.0002255852129 | CM35: 0.0002255597724 | CN35: 0.0240977437 | CP35: 21 | CQ35: =(EXP($C35+$I$5)-1)*(1+Shocks!$H32)+Shocks!$I32 -> 0.02126270886 | CR35: 0.02103981153 | CS35: 0.06226708172 | CU35: 21 | CV35: =MAX((EXP($C35+$I$5)-1)*(1-Shocks!$F32)-Shocks!$G32,Floor) -> 0.0002255852129 | CW35: 0.0002255597724 | CX35: 0.0240977437 | CZ35: 21 | DA35: =(EXP($C35+$I$6)-1)*(1+Shocks!$H32)+Shocks!$I32 -> -0.003737707814 | DB35: -0.003744710498 | DC35: 0.04196772588 | DE35: 21 | DF35: =MAX((EXP($C35+$I$6)-1)*(1-Shocks!$F32)-Shocks!$G32,Floor) -> -0.009974584788 | DG35: -0.01002466425 | DH35: 0.01482388514 | DJ35: 21 | DK35: =(EXP($C35+$I$6)-1)*(1+Shocks!$H32)+Shocks!$I32 -> -0.003737707814 | DL35: -0.003744710498 | DM35: 0.04196772588 | DO35: 21 | DP35: =MAX((EXP($C35+$I$6)-1)*(1-Shocks!$F32)-Shocks!$G32,Floor) -> -0.009974584788 | DQ35: -0.01002466425 | DR35: 0.01482388514 | DU35: 0 | DV35: 21 | DW35: 0.0418457265 | DX35: 21 | DY35: 0.4269297886 | DZ35: 0.04053027185 | EA35: 0.04136283321 | EB35: 0.03318452729 | EC35: 0.03321463587 | ED35: 0.03377240006 | EF35: 0 | EG35: 21 | EH35: 0 | EI35: 21 | EJ35: 0.4149585492 | EK35: 0.04188460215 | EL35: 0.04277413791 | EM35: 0.03378179252 | EN35: 0.03385431182 | EO35: 0.03443389096 | EQ35: 0 | ER35: 21 | ES35: 0.03197048585 | ET35: 21 | EU35: 0.5118226323 | EV35: 0.03189414929 | EW35: 0.03240821838 | EX35: 0.03509818536 | EY35: 0.0352829979 | EZ35: 0.03591282847 | FB35: 0 | FC35: 21 | FD35: 0 | FE35: 21 | FF35: 0.4976431276 | FG35: 0.03323200334 | FH35: 0.03379035424 | FI35: 0.03555768381 | FJ35: 0.03578547844 | FK35: 0.03643348531
A36: 22 | B36: 0 | C36: 0 | E36: 22 | F36: 0 | G36: 0 | H36: 22 | I36: 0.03679920544 | K36: 22 | L36: 0.03613828026 | M36: 0.03417074472 | O36: 22 | P36: =AVERAGE(Q$15:Q36) -> 0.03613828026 | Q36: 0.03417074472 | S36: 22 | T36: 0.03679920544 | U36: 0.03476127167 | V36: 0.4515621941 | W36: 0 | Y36: 22 | Z36: =AVERAGE(AA$15:AA36) -> 0.04068373481 | AA36: 0.03417074472 | AB36: 22 | AC36: 0.04468154916 | AD36: 0.03768737669 | AE36: 0.3822554299 | AF36: 0.007882343715 | AH36: 22 | AI36: =AVERAGE(AJ$15:AJ36) -> 0.04068373481 | AJ36: 0.03417074472 | AL36: 22 | AM36: 0.04468154916 | AN36: 0.03768737669 | AO36: 0.3822554299 | AP36: 0.007882343715 | AQ36: 0 | AR36: 22 | AS36: =AVERAGE(AT$15:AT36) -> 0.03159282572 | AT36: 0.03417074472 | AU36: 22 | AV36: 0.02897633568 | AW36: 0.03184341778 | AX36: 0.5334349735 | AY36: -0.007822869761 | BA36: 22 | BB36: =AVERAGE(BC$15:BC36) -> 0.03159282572 | BC36: 0.03417074472 | BE36: 22 | BF36: 0.02897633568 | BG36: 0.03184341778 | BH36: 0.5334349735 | BI36: -0.007822869761 | BJ36: 0 | BL36: 22 | BM36: =$B36*(1+Shocks!$H33)+Shocks!$I33 -> 0.0085 | BN36: 0.008464078412 | BO36: 0.05153095848 | BQ36: 22 | BR36: =MAX($B36*(1-Shocks!$F33)-Shocks!$G33,Floor) -> -0.0049 | BS36: -0.004912044361 | BT36: 0.01978521584 | BV36: 22 | BW36: =$B36*(1+Shocks!$H33)+Shocks!$I33 -> 0.0085 | BX36: 0.008464078412 | BY36: 0.05153095848 | CA36: 22 | CB36: =MAX($B36*(1-Shocks!$F33)-Shocks!$G33,Floor) -> -0.0049 | CC36: -0.004912044361 | CD36: 0.01978521584 | CF36: 22 | CG36: =(EXP($C36+$I$5)-1)*(1+Shocks!$H33)+Shocks!$I33 -> 0.02096220718 | CH36: 0.02074552301 | CI36: 0.06140806158 | CK36: 22 | CL36: =MAX((EXP($C36+$I$5)-1)*(1-Shocks!$F33)-Shocks!$G33,Floor) -> 0.0001250835421 | CM36: 0.0001250757198 | CN36: 0.02430248708 | CP36: 22 | CQ36: =(EXP($C36+$I$5)-1)*(1+Shocks!$H33)+Shocks!$I33 -> 0.02096220718 | CR36: 0.02074552301 | CS36: 0.06140806158 | CU36: 22 | CV36: =MAX((EXP($C36+$I$5)-1)*(1-Shocks!$F33)-Shocks!$G33,Floor) -> 0.0001250835421 | CW36: 0.0001250757198 | CX36: 0.02430248708 | CZ36: 22 | DA36: =(EXP($C36+$I$6)-1)*(1+Shocks!$H33)+Shocks!$I33 -> -0.003838206151 | DB36: -0.003845590967 | DC36: 0.04172314802 | DE36: 22 | DF36: =MAX((EXP($C36+$I$6)-1)*(1-Shocks!$F33)-Shocks!$G33,Floor) -> -0.009875083125 | DG36: -0.009924165152 | DH36: 0.01530652288 | DJ36: 22 | DK36: =(EXP($C36+$I$6)-1)*(1+Shocks!$H33)+Shocks!$I33 -> -0.003838206151 | DL36: -0.003845590967 | DM36: 0.04172314802 | DO36: 22 | DP36: =MAX((EXP($C36+$I$6)-1)*(1-Shocks!$F33)-Shocks!$G33,Floor) -> -0.009875083125 | DQ36: -0.009924165152 | DR36: 0.01530652288 | DU36: 0 | DV36: 22 | DW36: 0.04152265609 | DX36: 22 | DY36: 0.4130065982 | DZ36: 0.04019507772 | EA36: 0.041013833 | EB36: 0.03312823504 | EC36: 0.03315600107 | ED36: 0.03371178681 | EF36: 0 | EG36: 22 | EH36: 0 | EI36: 22 | EJ36: 0.4012017627 | EK36: 0.04151321952 | EL36: 0.04238694161 | EM36: 0.03364890805 | EN36: 0.03371418425 | EO36: 0.0342889484 | EQ36: 0 | ER36: 22 | ES36: 0.03209717631 | ET36: 22 | EU36: 0.4942538391 | EV36: 0.03203209316 | EW36: 0.03255064259 | EX36: 0.03476693437 | EY36: 0.03492891437 | EZ36: 0.03554609374 | FB36: 0 | FC36: 22 | FD36: 0 | FE36: 22 | FF36: 0.4803588106 | FG36: 0.03332826965 | FH36: 0.03388987821 | FI36: 0.03515138687 | FJ36: 0.03534986222 | FK36: 0.0359820964
A37: 23 | B37: 0 | C37: 0 | E37: 23 | F37: 0 | G37: 0 | H37: 23 | I37: 0.03670251771 | K37: 23 | L37: 0.03604501992 | M37: 0.03399329248 | O37: 23 | P37: =AVERAGE(Q$15:Q37) -> 0.03604501992 | Q37: 0.03399329248 | S37: 23 | T37: 0.03670251771 | U37: 0.03457766726 | V37: 0.436470077 | W37: 0 | Y37: 23 | Z37: =AVERAGE(AA$15:AA37) -> 0.04039284601 | AA37: 0.03399329248 | AB37: 23 | AC37: 0.0443550628 | AD37: 0.03719812131 | AE37: 0.3685462035 | AF37: 0.007652545097 | AH37: 23 | AI37: =AVERAGE(AJ$15:AJ37) -> 0.04039284601 | AJ37: 0.03399329248 | AL37: 23 | AM37: 0.0443550628 | AN37: 0.03719812131 | AO37: 0.3685462035 | AP37: 0.007652545097 | AQ37: 0 | AR37: 23 | AS37: =AVERAGE(AT$15:AT37) -> 0.03169719384 | AT37: 0.03399329248 | AU37: 23 | AV37: 0.02910604688 | AW37: 0.03196383372 | AX37: 0.5169124693 | AY37: -0.007596470828 | BA37: 23 | BB37: =AVERAGE(BC$15:BC37) -> 0.03169719384 | BC37: 0.03399329248 | BE37: 23 | BF37: 0.02910604688 | BG37: 0.03196383372 | BH37: 0.5169124693 | BI37: -0.007596470828 | BJ37: 0 | BL37: 23 | BM37: =$B37*(1+Shocks!$H34)+Shocks!$I34 -> 0.0082 | BN37: 0.008166562666 | BO37: 0.05100413851 | BQ37: 23 | BR37: =MAX($B37*(1-Shocks!$F34)-Shocks!$G34,Floor) -> -0.0048 | BS37: -0.004811556997 | BT37: 0.02011992207 | BV37: 23 | BW37: =$B37*(1+Shocks!$H34)+Shocks!$I34 -> 0.0082 | BX37: 0.008166562666 | BY37: 0.05100413851 | CA37: 23 | CB37: =MAX($B37*(1-Shocks!$F34)-Shocks!$G34,Floor) -> -0.0048 | CC37: -0.004811556997 | CD37: 0.02011992207 | CF37: 23 | CG37: =(EXP($C37+$I$5)-1)*(1+Shocks!$H34)+Shocks!$I34 -> 0.02066220718 | CH37: 0.02045163937 | CI37: 0.0605826072 | CK37: 23 | CL37: =MAX((EXP($C37+$I$5)-1)*(1-Shocks!$F34)-Shocks!$G34,Floor) -> 0.0001245818712 | CM37: 0.0001245741116 | CN37: 0.0245024734 | CP37: 23 | CQ37: =(EXP($C37+$I$5)-1)*(1+Shocks!$H34)+Shocks!$I34 -> 0.02066220718 | CR37: 0.02045163937 | CS37: 0.0605826072 | CU37: 23 | CV37: =MAX((EXP($C37+$I$5)-1)*(1-Shocks!$F34)-Shocks!$G34,Floor) -> 0.0001245818712 | CW37: 0.0001245741116 | CX37: 0.0245024734 | CZ37: 23 | DA37: =(EXP($C37+$I$6)-1)*(1+Shocks!$H34)+Shocks!$I34 -> -0.004138206151 | DB37: -0.004146792222 | DC37: 0.04149032139 | DE37: 23 | DF37: =MAX((EXP($C37+$I$6)-1)*(1-Shocks!$F34)-Shocks!$G34,Floor) -> -0.009675581463 | DG37: -0.009722694042 | DH37: 0.01577425173 | DJ37: 23 | DK37: =(EXP($C37+$I$6)-1)*(1+Shocks!$H34)+Shocks!$I34 -> -0.004138206151 | DL37: -0.004146792222 | DM37: 0.04149032139 | DO37: 23 | DP37: =MAX((EXP($C37+$I$6)-1)*(1-Shocks!$F34)-Shocks!$G34,Floor) -> -0.009675581463 | DQ37: -0.009722694042 | DR37: 0.01577425173 | DU37: 0 | DV37: 23 | DW37: 0.04121973288 | DX37: 23 | DY37: 0.3995590799 | DZ37: 0.03988668001 | EA37: 0.04069283621 | EB37: 0.03307632733 | EC37: 0.03310193023 | ED37: 0.03365589465 | EF37: 0 | EG37: 23 | EH37: 0 | EI37: 23 | EJ37: 0.3879499694 | EK37: 0.0411686475 | EL37: 0.04202782612 | EM37: 0.03352932204 | EN37: 0.03358806319 | EO37: 0.03415851101 | EQ37: 0 | ER37: 23 | ES37: 0.03220489997 | ET37: 23 | EU37: 0.4774362236 | EV37: 0.03214455178 | EW37: 0.03266676834 | EX37: 0.03447676535 | EY37: 0.03461864149 | EZ37: 0.0352248417 | FB37: 0 | FC37: 23 | FD37: 0 | FE37: 23 | FF37: 0.4638507934 | FG37: 0.03339966715 | FH37: 0.033963698 | FI37: 0.03479761999 | FJ37: 0.03497041214 | FK37: 0.03558906748
A38: 24 | B38: 0 | C38: 0 | E38: 24 | F38: 0 | G38: 0 | H38: 24 | I38: 0.03660702905 | K38: 24 | L38: 0.03595290762 | M38: 0.03383432471 | O38: 24 | P38: =AVERAGE(Q$15:Q38) -> 0.03595290762 | Q38: 0.03383432471 | S38: 24 | T38: 0.03660702905 | U38: 0.03441321582 | V38: 0.4219494398 | W38: 0 | Y38: 24 | Z38: =AVERAGE(AA$15:AA38) -> 0.04011957429 | AA38: 0.03383432471 | AB38: 24 | AC38: 0.04403749488 | AD38: 0.03676002552 | AE38: 0.355478794 | AF38: 0.007430465827 | AH38: 24 | AI38: =AVERAGE(AJ$15:AJ38) -> 0.04011957429 | AJ38: 0.03383432471 | AL38: 24 | AM38: 0.04403749488 | AN38: 0.03676002552 | AO38: 0.355478794 | AP38: 0.007430465827 | AQ38: 0 | AR38: 24 | AS38: =AVERAGE(AT$15:AT38) -> 0.03178624096 | AT38: 0.03383432471 | AU38: 24 | AV38: 0.02922944621 | AW38: 0.03207171836 | AX38: 0.5008493694 | AY38: -0.007377582839 | BA38: 24 | BB38: =AVERAGE(BC$15:BC38) -> 0.03178624096 | BC38: 0.03383432471 | BE38: 24 | BF38: 0.02922944621 | BG38: 0.03207171836 | BH38: 0.5008493694 | BI38: -0.007377582839 | BJ38: 0 | BL38: 24 | BM38: =$B38*(1+Shocks!$H35)+Shocks!$I35 -> 0.008 | BN38: 0.007968169649 | BO38: 0.05049955298 | BQ38: 24 | BR38: =MAX($B38*(1-Shocks!$F35)-Shocks!$G35,Floor) -> -0.0048 | BS38: -0.004811556997 | BT38: 0.02044399197 | BV38: 24 | BW38: =$B38*(1+Shocks!$H35)+Shocks!$I35 -> 0.008 | BX38: 0.007968169649 | BY38: 0.05049955298 | CA38: 24 | CB38: =MAX($B38*(1-Shocks!$F35)-Shocks!$G35,Floor) -> -0.0048 | CC38: -0.004811556997 | CD38: 0.02044399197 | CF38: 24 | CG38: =(EXP($C38+$I$5)-1)*(1+Shocks!$H35)+Shocks!$I35 -> 0.02036170551 | CH38: 0.02015717768 | CI38: 0.0597906988 | CK38: 24 | CL38: =MAX((EXP($C38+$I$5)-1)*(1-Shocks!$F35)-Shocks!$G35,Floor) -> 0.0001245818712 | CM38: 0.0001245741116 | CN38: 0.02469700066 | CP38: 24 | CQ38: =(EXP($C38+$I$5)-1)*(1+Shocks!$H35)+Shocks!$I35 -> 0.02036170551 | CR38: 0.02015717768 | CS38: 0.0597906988 | CU38: 24 | CV38: =MAX((EXP($C38+$I$5)-1)*(1-Shocks!$F35)-Shocks!$G35,Floor) -> 0.0001245818712 | CW38: 0.0001245741116 | CX38: 0.02469700066 | CZ38: 24 | DA38: =(EXP($C38+$I$6)-1)*(1+Shocks!$H35)+Shocks!$I35 -> -0.004238704489 | DB38: -0.004247713262 | DC38: 0.04126873147 | DE38: 24 | DF38: =MAX((EXP($C38+$I$6)-1)*(1-Shocks!$F35)-Shocks!$G35,Floor) -> -0.009675581463 | DG38: -0.009722694042 | DH38: 0.01622626155 | DJ38: 24 | DK38: =(EXP($C38+$I$6)-1)*(1+Shocks!$H35)+Shocks!$I35 -> -0.004238704489 | DL38: -0.004247713262 | DM38: 0.04126873147 | DO38: 24 | DP38: =MAX((EXP($C38+$I$6)-1)*(1-Shocks!$F35)-Shocks!$G35,Floor) -> -0.009675581463 | DQ38: -0.009722694042 | DR38: 0.01622626155 | DU38: 0 | DV38: 24 | DW38: 0.04093523584 | DX38: 24 | DY38: 0.3865686861 | DZ38: 0.03960190474 | EA38: 0.04039651481 | EB38: 0.03302846762 | EC38: 0.03305207349 | ED38: 0.03360436122 | EF38: 0 | EG38: 24 | EH38: 0 | EI38: 24 | EJ38: 0.3751784611 | EK38: 0.04084806124 | EL38: 0.04169381986 | EM38: 0.0334217294 | EN38: 0.03347457732 | EO38: 0.03404115529 | EQ38: 0 | ER38: 24 | ES38: 0.03229681894 | ET38: 24 | EU38: 0.4613161778 | EV38: 0.03223631746 | EW38: 0.03276153605 | EX38: 0.03422273119 | EY38: 0.03434692794 | EZ38: 0.0349435953 | FB38: 0 | FC38: 24 | FD38: 0 | FE38: 24 | FF38: 0.4480580483 | FG38: 0.03345135345 | FH38: 0.03401714114 | FI38: 0.03448981011 | FJ38: 0.03464013831 | FK38: 0.03524709599
A39: 25 | B39: 0 | C39: 0 | E39: 25 | F39: 0 | G39: 0 | H39: 25 | I39: 0.0365132829 | K39: 25 | L39: 0.03586246796 | M39: 0.03369191596 | O39: 25 | P39: =AVERAGE(Q$15:Q39) -> 0.03586246796 | Q39: 0.03369191596 | S39: 25 | T39: 0.0365132829 | U39: 0.03426591681 | V39: 0.4079699746 | W39: 0 | Y39: 25 | Z39: =AVERAGE(AA$15:AA39) -> 0.03986246796 | AA39: 0.03369191596 | AB39: 25 | AC39: 0.04372961691 | AD39: 0.0363677215 | AE39: 0.3430045018 | AF39: 0.007216334018 | AH39: 25 | AI39: =AVERAGE(AJ$15:AJ39) -> 0.03986246796 | AJ39: 0.03369191596 | AL39: 25 | AM39: 0.04372961691 | AN39: 0.0363677215 | AO39: 0.3430045018 | AP39: 0.007216334018 | AQ39: 0 | AR39: 25 | AS39: =AVERAGE(AT$15:AT39) -> 0.03186246796 | AT39: 0.03369191596 | AU39: 25 | AV39: 0.02934684253 | AW39: 0.03216837469 | AX39: 0.4852399876 | AY39: -0.007166440371 | BA39: 25 | BB39: =AVERAGE(BC$15:BC39) -> 0.03186246796 | BC39: 0.03369191596 | BE39: 25 | BF39: 0.02934684253 | BG39: 0.03216837469 | BH39: 0.4852399876 | BI39: -0.007166440371 | BJ39: 0 | BL39: 25 | BM39: =$B39*(1+Shocks!$H36)+Shocks!$I36 -> 0.0078 | BN39: 0.007769737264 | BO39: 0.0500167237 | BQ39: 25 | BR39: =MAX($B39*(1-Shocks!$F36)-Shocks!$G36,Floor) -> -0.0047 | BS39: -0.00471107973 | BT39: 0.02075698882 | BV39: 25 | BW39: =$B39*(1+Shocks!$H36)+Shocks!$I36 -> 0.0078 | BX39: 0.007769737264 | BY39: 0.0500167237 | CA39: 25 | CB39: =MAX($B39*(1-Shocks!$F36)-Shocks!$G36,Floor) -> -0.0047 | CC39: -0.00471107973 | CD39: 0.02075698882 | CF39: 25 | CG39: =(EXP($C39+$I$5)-1)*(1+Shocks!$H36)+Shocks!$I36 -> 0.02006120384 | CH39: 0.01986262926 | CI39: 0.05903189439 | CK39: 25 | CL39: =MAX((EXP($C39+$I$5)-1)*(1-Shocks!$F36)-Shocks!$G36,Floor) -> 0.0001240802004 | CM39: 0.0001240725031 | CN39: 0.02488560818 | CP39: 25 | CQ39: =(EXP($C39+$I$5)-1)*(1+Shocks!$H36)+Shocks!$I36 -> 0.02006120384 | CR39: 0.01986262926 | CS39: 0.05903189439 | CU39: 25 | CV39: =MAX((EXP($C39+$I$5)-1)*(1-Shocks!$F36)-Shocks!$G36,Floor) -> 0.0001240802004 | CW39: 0.0001240725031 | CX39: 0.02488560818 | CZ39: 25 | DA39: =(EXP($C39+$I$6)-1)*(1+Shocks!$H36)+Shocks!$I36 -> -0.004339202826 | DB39: -0.004348644489 | DC39: 0.04105785018 | DE39: 25 | DF39: =MAX((EXP($C39+$I$6)-1)*(1-Shocks!$F36)-Shocks!$G36,Floor) -> -0.0094760798 | DG39: -0.009521263514 | DH39: 0.01666213621 | DJ39: 25 | DK39: =(EXP($C39+$I$6)-1)*(1+Shocks!$H36)+Shocks!$I36 -> -0.004339202826 | DL39: -0.004348644489 | DM39: 0.04105785018 | DO39: 25 | DP39: =MAX((EXP($C39+$I$6)-1)*(1-Shocks!$F36)-Shocks!$G36,Floor) -> -0.0094760798 | DQ39: -0.009521263514 | DR39: 0.01666213621 | DU39: 0 | DV39: 25 | DW39: 0.0406676392 | DX39: 25 | DY39: 0.3740178256 | DZ39: 0.03933807283 | EA39: 0.04012206122 | EB39: 0.03298434445 | EC39: 0.033006107 | ED39: 0.03355685116 | EF39: 0 | EG39: 25 | EH39: 0 | EI39: 25 | EJ39: 0.3628644415 | EK39: 0.04054903816 | EL39: 0.04138237592 | EM39: 0.03332494819 | EN39: 0.03337248405 | EO39: 0.03393559204 | EQ39: 0 | ER39: 25 | ES39: 0.03237551083 | ET39: 25 | EU39: 0.4458464225 | EV39: 0.03231122922 | EW39: 0.03283890494 | EX39: 0.03400044528 | EY39: 0.03410911158 | EZ39: 0.03469749804 | FB39: 0 | FC39: 25 | FD39: 0 | FE39: 25 | FF39: 0.432927353 | FG39: 0.03348741364 | FH39: 0.03405442867 | FI39: 0.0342221524 | FJ39: 0.03435285828 | FK39: 0.03494973289
A40: 26 | B40: 0 | C40: 0 | E40: 26 | F40: 0 | G40: 0 | H40: 26 | I40: 0.03642167007 | K40: 26 | L40: 0.03577407847 | M40: 0.03356434133 | O40: 26 | P40: =AVERAGE(Q$15:Q40) -> 0.03577407847 | Q40: 0.03356434133 | S40: 26 | T40: 0.03642167007 | U40: 0.03413397914 | V40: 0.3945039839 | W40: 0 | Y40: 26 | Z40: =AVERAGE(AA$15:AA40) -> 0.03962023232 | AA40: 0.03356434133 | AB40: 26 | AC40: 0.04343189591 | AD40: 0.03601640823 | AE40: 0.3310801828 | AF40: 0.00701022584 | AH40: 26 | AI40: =AVERAGE(AJ$15:AJ40) -> 0.03962023232 | AJ40: 0.03356434133 | AL40: 26 | AM40: 0.04343189591 | AN40: 0.03601640823 | AO40: 0.3310801828 | AP40: 0.00701022584 | AQ40: 0 | AR40: 26 | AS40: =AVERAGE(AT$15:AT40) -> 0.03192792462 | AT40: 0.03356434133 | AU40: 26 | AV40: 0.02945854195 | AW40: 0.03225497041 | AX40: 0.470077647 | AY40: -0.006963128117 | BA40: 26 | BB40: =AVERAGE(BC$15:BC40) -> 0.03192792462 | BC40: 0.03356434133 | BE40: 26 | BF40: 0.02945854195 | BG40: 0.03225497041 | BH40: 0.470077647 | BI40: -0.006963128117 | BJ40: 0 | BL40: 26 | BM40: =$B40*(1+Shocks!$H37)+Shocks!$I37 -> 0.0076 | BN40: 0.007571265496 | BO40: 0.04955502419 | BQ40: 26 | BR40: =MAX($B40*(1-Shocks!$F37)-Shocks!$G37,Floor) -> -0.0046 | BS40: -0.004610612558 | BT40: 0.0210587133 | BV40: 26 | BW40: =$B40*(1+Shocks!$H37)+Shocks!$I37 -> 0.0076 | BX40: 0.007571265496 | BY40: 0.04955502419 | CA40: 26 | CB40: =MAX($B40*(1-Shocks!$F37)-Shocks!$G37,Floor) -> -0.0046 | CC40: -0.004610612558 | CD40: 0.0210587133 | CF40: 26 | CG40: =(EXP($C40+$I$5)-1)*(1+Shocks!$H37)+Shocks!$I37 -> 0.01986120384 | CH40: 0.01966654337 | CI40: 0.05830545459 | CK40: 26 | CL40: =MAX((EXP($C40+$I$5)-1)*(1-Shocks!$F37)-Shocks!$G37,Floor) -> 0.0002240802004 | CM40: 0.0002240550982 | CN40: 0.02506801744 | CP40: 26 | CQ40: =(EXP($C40+$I$5)-1)*(1+Shocks!$H37)+Shocks!$I37 -> 0.01986120384 | CR40: 0.01966654337 | CS40: 0.05830545459 | CU40: 26 | CV40: =MAX((EXP($C40+$I$5)-1)*(1-Shocks!$F37)-Shocks!$G37,Floor) -> 0.0002240802004 | CW40: 0.0002240550982 | CX40: 0.02506801744 | CZ40: 26 | DA40: =(EXP($C40+$I$6)-1)*(1+Shocks!$H37)+Shocks!$I37 -> -0.004539202826 | DB40: -0.004549536289 | DC40: 0.04085714809 | DE40: 26 | DF40: =MAX((EXP($C40+$I$6)-1)*(1-Shocks!$F37)-Shocks!$G37,Floor) -> -0.0093760798 | DG40: -0.009420311936 | DH40: 0.0170817517 | DJ40: 26 | DK40: =(EXP($C40+$I$6)-1)*(1+Shocks!$H37)+Shocks!$I37 -> -0.004539202826 | DL40: -0.004549536289 | DM40: 0.04085714809 | DO40: 26 | DP40: =MAX((EXP($C40+$I$6)-1)*(1-Shocks!$F37)-Shocks!$G37,Floor) -> -0.0093760798 | DQ40: -0.009420311936 | DR40: 0.0170817517 | DU40: 0 | DV40: 26 | DW40: 0.04041558294 | DX40: 26 | DY40: 0.3618897933 | DZ40: 0.03909290584 | EA40: 0.03986708889 | EB40: 0.03294366971 | EC40: 0.03296373114 | ED40: 0.03351305422 | EF40: 0 | EG40: 26 | EH40: 0 | EI40: 26 | EJ40: 0.3509868178 | EK40: 0.04026948509 | EL40: 0.04109129498 | EM40: 0.0332379089 | EN40: 0.03328065851 | EO40: 0.0338406547 | EQ40: 0 | ER40: 26 | ES40: 0.0324430889 | ET40: 26 | EU40: 0.4309850856 | EV40: 0.03237237668 | EW40: 0.03290206234 | EX40: 0.03380602656 | EY40: 0.03390106301 | EZ40: 0.03448225311 | FB40: 0 | FC40: 26 | FD40: 0 | FE40: 26 | FF40: 0.4184120943 | FG40: 0.03351109464 | FH40: 0.03407891639 | FI40: 0.03398953419 | FJ40: 0.03410311947 | FK40: 0.03469129805
A41: 27 | B41: 0 | C41: 0 | E41: 27 | F41: 0 | G41: 0 | H41: 27 | I41: 0.036332464 | K41: 27 | L41: 0.03568800355 | M41: 0.03345005563 | O41: 27 | P41: =AVERAGE(Q$15:Q41) -> 0.03568800355 | Q41: 0.03345005563 | S41: 27 | T41: 0.036332464 | U41: 0.03401579917 | V41: 0.3815260697 | W41: 0 | Y41: 27 | Z41: =AVERAGE(AA$15:AA41) -> 0.03939170725 | AA41: 0.03345005563 | AB41: 27 | AC41: 0.04314456952 | AD41: 0.03570179093 | AE41: 0.3196674812 | AF41: 0.006812105523 | AH41: 27 | AI41: =AVERAGE(AJ$15:AJ41) -> 0.03939170725 | AJ41: 0.03345005563 | AL41: 27 | AM41: 0.04314456952 | AN41: 0.03570179093 | AO41: 0.3196674812 | AP41: 0.006812105523 | AQ41: 0 | AR41: 27 | AS41: =AVERAGE(AT$15:AT41) -> 0.03198429985 | AT41: 0.03345005563 | AU41: 27 | AV41: 0.02956484395 | AW41: 0.03233255199 | AX41: 0.4553548623 | AY41: -0.006767620048 | BA41: 27 | BB41: =AVERAGE(BC$15:BC41) -> 0.03198429985 | BC41: 0.03345005563 | BE41: 27 | BF41: 0.02956484395 | BG41: 0.03233255199 | BH41: 0.4553548623 | BI41: -0.006767620048 | BJ41: 0 | BL41: 27 | BM41: =$B41*(1+Shocks!$H38)+Shocks!$I38 -> 0.0074 | BN41: 0.007372754329 | BO41: 0.0491137297 | BQ41: 27 | BR41: =MAX($B41*(1-Shocks!$F38)-Shocks!$G38,Floor) -> -0.0045 | BS41: -0.004510155478 | BT41: 0.02134914268 | BV41: 27 | BW41: =$B41*(1+Shocks!$H38)+Shocks!$I38 -> 0.0074 | BX41: 0.007372754329 | BY41: 0.0491137297 | CA41: 27 | CB41: =MAX($B41*(1-Shocks!$F38)-Shocks!$G38,Floor) -> -0.0045 | CC41: -0.004510155478 | CD41: 0.02134914268 | CF41: 27 | CG41: =(EXP($C41+$I$5)-1)*(1+Shocks!$H38)+Shocks!$I38 -> 0.01956070217 | CH41: 0.01937185038 | CI41: 0.05761043519 | CK41: 27 | CL41: =MAX((EXP($C41+$I$5)-1)*(1-Shocks!$F38)-Shocks!$G38,Floor) -> 0.0002235785296 | CM41: 0.0002235535396 | CN41: 0.02524408717 | CP41: 27 | CQ41: =(EXP($C41+$I$5)-1)*(1+Shocks!$H38)+Shocks!$I38 -> 0.01956070217 | CR41: 0.01937185038 | CS41: 0.05761043519 | CU41: 27 | CV41: =MAX((EXP($C41+$I$5)-1)*(1-Shocks!$F38)-Shocks!$G38,Floor) -> 0.0002235785296 | CW41: 0.0002235535396 | CX41: 0.02524408717 | CZ41: 27 | DA41: =(EXP($C41+$I$6)-1)*(1+Shocks!$H38)+Shocks!$I38 -> -0.004639701164 | DB41: -0.004650497986 | DC41: 0.04066610305 | DE41: 27 | DF41: =MAX((EXP($C41+$I$6)-1)*(1-Shocks!$F38)-Shocks!$G38,Floor) -> -0.009176578138 | DG41: -0.009218942302 | DH41: 0.01748519945 | DJ41: 27 | DK41: =(EXP($C41+$I$6)-1)*(1+Shocks!$H38)+Shocks!$I38 -> -0.004639701164 | DL41: -0.004650497986 | DM41: 0.04066610305 | DO41: 27 | DP41: =MAX((EXP($C41+$I$6)-1)*(1-Shocks!$F38)-Shocks!$G38,Floor) -> -0.009176578138 | DQ41: -0.009218942302 | DR41: 0.01748519945 | DU41: 0 | DV41: 27 | DW41: 0.04017784907 | DX41: 27 | DY41: 0.350168707 | DZ41: 0.03886445261 | EA41: 0.03962955503 | EB41: 0.03290617693 | EC41: 0.03292466872 | ED41: 0.03347268349 | EF41: 0 | EG41: 27 | EH41: 0 | EI41: 27 | EJ41: 0.339526019 | EK41: 0.04000758132 | EL41: 0.04081866494 | EM41: 0.03315964457 | EN41: 0.03319808325 | EO41: 0.03375528857 | EQ41: 0 | ER41: 27 | ES41: 0.03250129475 | ET41: 27 | EU41: 0.4166949224 | EV41: 0.03242225651 | EW41: 0.03295358461 | EX41: 0.03363604771 | EY41: 0.03371913223 | EZ41: 0.03429406606 | FB41: 0 | FC41: 27 | FD41: 0 | FE41: 27 | FF41: 0.4044712641 | FG41: 0.03352498465 | FH41: 0.03409327986 | FI41: 0.03378746272 | FJ41: 0.03388612502 | FK41: 0.03446680013
A42: 28 | B42: 0 | C42: 0 | E42: 28 | F42: 0 | G42: 0 | H42: 28 | I42: 0.03624584766 | K42: 28 | L42: 0.03560442037 | M42: 0.0333476746 | O42: 28 | P42: =AVERAGE(Q$15:Q42) -> 0.03560442037 | Q42: 0.0333476746 | S42: 28 | T42: 0.03624584766 | U42: 0.03390994098 | V42: 0.3690128652 | W42: 0 | Y42: 28 | Z42: =AVERAGE(AA$15:AA42) -> 0.03917584894 | AA42: 0.0333476746 | AB42: 28 | AC42: 0.04286770324 | AD42: 0.03542002716 | AE42: 0.308732179 | AF42: 0.006621855588 | AH42: 28 | AI42: =AVERAGE(AJ$15:AJ42) -> 0.03917584894 | AJ42: 0.0333476746 | AL42: 28 | AM42: 0.04286770324 | AN42: 0.03542002716 | AO42: 0.308732179 | AP42: 0.006621855588 | AQ42: 0 | AR42: 28 | AS42: =AVERAGE(AT$15:AT42) -> 0.0320329918 | AT42: 0.0333476746 | AU42: 28 | AV42: 0.0296660386 | AW42: 0.03240205716 | AX42: 0.4410634976 | AY42: -0.006579809055 | BA42: 28 | BB42: =AVERAGE(BC$15:BC42) -> 0.0320329918 | BC42: 0.0333476746 | BE42: 28 | BF42: 0.0296660386 | BG42: 0.03240205716 | BH42: 0.4410634976 | BI42: -0.006579809055 | BJ42: 0 | BL42: 28 | BM42: =$B42*(1+Shocks!$H39)+Shocks!$I39 -> 0.0072 | BN42: 0.007174203748 | BO42: 0.04869205426 | BQ42: 28 | BR42: =MAX($B42*(1-Shocks!$F39)-Shocks!$G39,Floor) -> -0.0044 | BS42: -0.004409708489 | BT42: 0.0216283846 | BV42: 28 | BW42: =$B42*(1+Shocks!$H39)+Shocks!$I39 -> 0.0072 | BX42: 0.007174203748 | BY42: 0.04869205426 | CA42: 28 | CB42: =MAX($B42*(1-Shocks!$F39)-Shocks!$G39,Floor) -> -0.0044 | CC42: -0.004409708489 | CD42: 0.0216283846 | CF42: 28 | CG42: =(EXP($C42+$I$5)-1)*(1+Shocks!$H39)+Shocks!$I39 -> 0.01936070217 | CH42: 0.01917566822 | CI42: 0.056945756 | CK42: 28 | CL42: =MAX((EXP($C42+$I$5)-1)*(1-Shocks!$F39)-Shocks!$G39,Floor) -> 0.0003235785296 | CM42: 0.0003235261893 | CN42: 0.02541377927 | CP42: 28 | CQ42: =(EXP($C42+$I$5)-1)*(1+Shocks!$H39)+Shocks!$I39 -> 0.01936070217 | CR42: 0.01917566822 | CS42: 0.056945756 | CU42: 28 | CV42: =MAX((EXP($C42+$I$5)-1)*(1-Shocks!$F39)-Shocks!$G39,Floor) -> 0.0003235785296 | CW42: 0.0003235261893 | CX42: 0.02541377927 | CZ42: 28 | DA42: =(EXP($C42+$I$6)-1)*(1+Shocks!$H39)+Shocks!$I39 -> -0.004839701164 | DB42: -0.004851450441 | DC42: 0.04048420606 | DE42: 28 | DF42: =MAX((EXP($C42+$I$6)-1)*(1-Shocks!$F39)-Shocks!$G39,Floor) -> -0.009076578138 | DG42: -0.009118021238 | DH42: 0.01787272837 | DJ42: 28 | DK42: =(EXP($C42+$I$6)-1)*(1+Shocks!$H39)+Shocks!$I39 -> -0.004839701164 | DL42: -0.004851450441 | DM42: 0.04048420606 | DO42: 28 | DP42: =MAX((EXP($C42+$I$6)-1)*(1-Shocks!$F39)-Shocks!$G39,Floor) -> -0.009076578138 | DQ42: -0.009118021238 | DR42: 0.01787272837 | DU42: 0 | DV42: 28 | DW42: 0.03995334227 | DX42: 28 | DY42: 0.3388394495 | DZ42: 0.03865103157 | EA42: 0.03940769988 | EB42: 0.03287161979 | EC42: 0.03288866349 | ED42: 0.03343547373 | EF42: 0 | EG42: 28 | EH42: 0 | EI42: 28 | EJ42: 0.3284638363 | EK42: 0.03976173337 | EL42: 0.04056281326 | EM42: 0.03308928157 | EN42: 0.03312383873 | EO42: 0.03367854075 | EQ42: 0 | ER42: 28 | ES42: 0.03255157048 | ET42: 28 | EU42: 0.4029426542 | EV42: 0.03246289373 | EW42: 0.03299556182 | EX42: 0.03348748712 | EY42: 0.0335600986 | EZ42: 0.0341295916 | FB42: 0 | FC42: 28 | FD42: 0 | FE42: 28 | FF42: 0.3910686146 | FG42: 0.03353115176 | FH42: 0.03409965725 | FI42: 0.03361199786 | FJ42: 0.03369766385 | FK42: 0.03427186168
A43: 29 | B43: 0 | C43: 0 | E43: 29 | F43: 0 | G43: 0 | H43: 29 | I43: 0.03616193436 | K43: 29 | L43: 0.03552343892 | M43: 0.03325595817 | O43: 29 | P43: =AVERAGE(Q$15:Q43) -> 0.03552343892 | Q43: 0.03325595817 | S43: 29 | T43: 0.03616193436 | U43: 0.03381511881 | V43: 0.356942802 | W43: 0 | Y43: 29 | Z43: =AVERAGE(AA$15:AA43) -> 0.03897171478 | AA43: 0.03325595817 | AB43: 29 | AC43: 0.04260123412 | AD43: 0.03516767864 | AE43: 0.2982436424 | AF43: 0.006439299767 | AH43: 29 | AI43: =AVERAGE(AJ$15:AJ43) -> 0.03897171478 | AJ43: 0.03325595817 | AL43: 29 | AM43: 0.04260123412 | AN43: 0.03516767864 | AO43: 0.2982436424 | AP43: 0.006439299767 | AQ43: 0 | AR43: 29 | AS43: =AVERAGE(AT$15:AT43) -> 0.03207516306 | AT43: 0.03325595817 | AU43: 29 | AV43: 0.02976240491 | AW43: 0.03246432624 | AX43: 0.4271949029 | AY43: -0.00639952945 | BA43: 29 | BB43: =AVERAGE(BC$15:BC43) -> 0.03207516306 | BC43: 0.03325595817 | BE43: 29 | BF43: 0.02976240491 | BG43: 0.03246432624 | BH43: 0.4271949029 | BI43: -0.00639952945 | BJ43: 0 | BL43: 29 | BM43: =$B43*(1+Shocks!$H40)+Shocks!$I40 -> 0.007 | BN43: 0.006975613736 | BO43: 0.04828917802 | BQ43: 29 | BR43: =MAX($B43*(1-Shocks!$F40)-Shocks!$G40,Floor) -> -0.0042 | BS43: -0.004208844774 | BT43: 0.02189664197 | BV43: 29 | BW43: =$B43*(1+Shocks!$H40)+Shocks!$I40 -> 0.007 | BX43: 0.006975613736 | BY43: 0.04828917802 | CA43: 29 | CB43: =MAX($B43*(1-Shocks!$F40)-Shocks!$G40,Floor) -> -0.0042 | CC43: -0.004208844774 | CD43: 0.02189664197 | CF43: 29 | CG43: =(EXP($C43+$I$5)-1)*(1+Shocks!$H40)+Shocks!$I40 -> 0.0190602005 | CH43: 0.01888083051 | CI43: 0.05631025216 | CK43: 29 | CL43: =MAX((EXP($C43+$I$5)-1)*(1-Shocks!$F40)-Shocks!$G40,Floor) -> 0.0005235785296 | CM43: 0.0005234415101 | CN43: 0.02557713274 | CP43: 29 | CQ43: =(EXP($C43+$I$5)-1)*(1+Shocks!$H40)+Shocks!$I40 -> 0.0190602005 | CR43: 0.01888083051 | CS43: 0.05631025216 | CU43: 29 | CV43: =MAX((EXP($C43+$I$5)-1)*(1-Shocks!$F40)-Shocks!$G40,Floor) -> 0.0005235785296 | CW43: 0.0005234415101 | CX43: 0.02557713274 | CZ43: 29 | DA43: =(EXP($C43+$I$6)-1)*(1+Shocks!$H40)+Shocks!$I40 -> -0.004940199501 | DB43: -0.004952442626 | DC43: 0.04031096523 | DE43: 29 | DF43: =MAX((EXP($C43+$I$6)-1)*(1-Shocks!$F40)-Shocks!$G40,Floor) -> -0.008876578138 | DG43: -0.00891620966 | DH43: 0.0182447007 | DJ43: 29 | DK43: =(EXP($C43+$I$6)-1)*(1+Shocks!$H40)+Shocks!$I40 -> -0.004940199501 | DL43: -0.004952442626 | DM43: 0.04031096523 | DO43: 29 | DP43: =MAX((EXP($C43+$I$6)-1)*(1-Shocks!$F40)-Shocks!$G40,Floor) -> -0.008876578138 | DQ43: -0.00891620966 | DR43: 0.0182447007 | DU43: 0 | DV43: 29 | DW43: 0.03974107393 | DX43: 29 | DY43: 0.3278876163 | DZ43: 0.03845118492 | EA43: 0.03919999848 | EB43: 0.03283977063 | EC43: 0.03285547856 | ED43: 0.03340117982 | EF43: 0 | EG43: 29 | EH43: 0 | EI43: 29 | EJ43: 0.3177832829 | EK43: 0.03953053893 | EL43: 0.04032226872 | EM43: 0.03302603113 | EN43: 0.03305709442 | EO43: 0.03360955089 | EQ43: 0 | ER43: 29 | ES43: 0.03259511539 | ET43: 29 | EU43: 0.389698409 | EV43: 0.03249593618 | EW43: 0.03302969509 | EX43: 0.03335768467 | EY43: 0.03342112479 | EZ43: 0.03398588466 | FB43: 0 | FC43: 29 | FD43: 0 | FE43: 29 | FF43: 0.3781719489 | FG43: 0.03353125157 | FH43: 0.03409976046 | FI43: 0.03345968995 | FJ43: 0.03353404604 | FK43: 0.03410265022
A44: 30 | B44: 0 | C44: 0 | E44: 30 | F44: 0 | G44: 0 | H44: 30 | I44: 0.03608078383 | K44: 30 | L44: 0.03544511747 | M44: 0.03317379547 | O44: 30 | P44: =AVERAGE(Q$15:Q44) -> 0.03544511747 | Q44: 0.03317379547 | S44: 30 | T44: 0.03608078383 | U44: 0.03373018125 | V44: 0.3452959084 | W44: 0 | Y44: 30 | Z44: =AVERAGE(AA$15:AA44) -> 0.0387784508 | AA44: 0.03317379547 | AB44: 30 | AC44: 0.04234500428 | AD44: 0.03494166845 | AE44: 0.2881743498 | AF44: 0.006264220446 | AH44: 30 | AI44: =AVERAGE(AJ$15:AJ44) -> 0.0387784508 | AJ44: 0.03317379547 | AL44: 30 | AM44: 0.04234500428 | AN44: 0.03494166845 | AO44: 0.2881743498 | AP44: 0.006264220446 | AQ44: 0 | AR44: 30 | AS44: =AVERAGE(AT$15:AT44) -> 0.03211178414 | AT44: 0.03317379547 | AU44: 30 | AV44: 0.02985420971 | AW44: 0.0325201122 | AX44: 0.4137400307 | AY44: -0.006226574122 | BA44: 30 | BB44: =AVERAGE(BC$15:BC44) -> 0.03211178414 | BC44: 0.03317379547 | BE44: 30 | BF44: 0.02985420971 | BG44: 0.0325201122 | BH44: 0.4137400307 | BI44: -0.006226574122 | BJ44: 0 | BL44: 30 | BM44: =$B44*(1+Shocks!$H41)+Shocks!$I41 -> 0.0069 | BN44: 0.006876303939 | BO44: 0.04790426741 | BQ44: 30 | BR44: =MAX($B44*(1-Shocks!$F41)-Shocks!$G41,Floor) -> -0.0041 | BS44: -0.004108428045 | BT44: 0.02215418606 | BV44: 30 | BW44: =$B44*(1+Shocks!$H41)+Shocks!$I41 -> 0.0069 | BX44: 0.006876303939 | BY44: 0.04790426741 | CA44: 30 | CB44: =MAX($B44*(1-Shocks!$F41)-Shocks!$G41,Floor) -> -0.0041 | CC44: -0.004108428045 | CD44: 0.02215418606 | CF44: 30 | CG44: =(EXP($C44+$I$5)-1)*(1+Shocks!$H41)+Shocks!$I41 -> 0.0189602005 | CH44: 0.01878269607 | CI44: 0.05570271221 | CK44: 30 | CL44: =MAX((EXP($C44+$I$5)-1)*(1-Shocks!$F41)-Shocks!$G41,Floor) -> 0.0006235785296 | CM44: 0.0006233841853 | CN44: 0.02573424362 | CP44: 30 | CQ44: =(EXP($C44+$I$5)-1)*(1+Shocks!$H41)+Shocks!$I41 -> 0.0189602005 | CR44: 0.01878269607 | CS44: 0.05570271221 | CU44: 30 | CV44: =MAX((EXP($C44+$I$5)-1)*(1-Shocks!$F41)-Shocks!$G41,Floor) -> 0.0006235785296 | CW44: 0.0006233841853 | CX44: 0.02573424362 | CZ44: 30 | DA44: =(EXP($C44+$I$6)-1)*(1+Shocks!$H41)+Shocks!$I41 -> -0.005040199501 | DB44: -0.005052944148 | DC44: 0.0401459083 | DE44: 30 | DF44: =MAX((EXP($C44+$I$6)-1)*(1-Shocks!$F41)-Shocks!$G41,Floor) -> -0.008776578138 | DG44: -0.008815319142 | DH44: 0.01860155851 | DJ44: 30 | DK44: =(EXP($C44+$I$6)-1)*(1+Shocks!$H41)+Shocks!$I41 -> -0.005040199501 | DL44: -0.005052944148 | DM44: 0.0401459083 | DO44: 30 | DP44: =MAX((EXP($C44+$I$6)-1)*(1-Shocks!$F41)-Shocks!$G41,Floor) -> -0.008776578138 | DQ44: -0.008815319142 | DR44: 0.01860155851 | DU44: 0 | DV44: 30 | DW44: 0.03954014885 | DX44: 30 | DY44: 0.3172994678 | DZ44: 0.03826364192 | EA44: 0.03900512208 | EB44: 0.03281041912 | EC44: 0.03282489507 | ED44: 0.03336957529 | EF44: 0 | EG44: 30 | EH44: 0 | EI44: 30 | EJ44: 0.3074684713 | EK44: 0.03931275765 | EL44: 0.04009573068 | EM44: 0.03296918149 | EN44: 0.03299710068 | EO44: 0.03354754265 | EQ44: 0 | ER44: 30 | ES44: 0.03263293083 | ET44: 30 | EU44: 0.3769352475 | EV44: 0.03252272879 | EW44: 0.03305737302 | EX44: 0.03324430136 | EY44: 0.03329971444 | EZ44: 0.03386035568 | FB44: 0 | FC44: 30 | FD44: 0 | FE44: 30 | FF44: 0.3657525238 | FG44: 0.03352661129 | FH44: 0.03409496196 | FI44: 0.03332752327 | FJ44: 0.03339204337 | FK44: 0.03395581531
A45: 31 | B45: 0 | C45: 0 | E45: 31 | F45: 0 | G45: 0 | H45: 31 | I45: 0.03600241477 | K45: 31 | L45: 0.03536947469 | M45: 0.03310019131 | O45: 31 | P45: =AVERAGE(Q$15:Q45) -> 0.03536947469 | Q45: 0.03310019131 | S45: 31 | T45: 0.03600241477 | U45: 0.03365409721 | V45: 0.3340536349 | W45: 0 | Y45: 31 | Z45: =AVERAGE(AA$15:AA45) -> 0.03859528114 | AA45: 0.03310019131 | AB45: 31 | AC45: 0.04209878672 | AD45: 0.03473924271 | AE45: 0.2784994885 | AF45: 0.00609637195 | AH45: 31 | AI45: =AVERAGE(AJ$15:AJ45) -> 0.03859528114 | AJ45: 0.03310019131 | AL45: 31 | AM45: 0.04209878672 | AN45: 0.03473924271 | AO45: 0.2784994885 | AP45: 0.00609637195 | AQ45: 0 | AR45: 31 | AS45: =AVERAGE(AT$15:AT45) -> 0.03214366824 | AT45: 0.03310019131 | AU45: 31 | AV45: 0.02994170714 | AW45: 0.03257008972 | AX45: 0.4006895365 | AY45: -0.006060707623 | BA45: 31 | BB45: =AVERAGE(BC$15:BC45) -> 0.03214366824 | BC45: 0.03310019131 | BE45: 31 | BF45: 0.02994170714 | BG45: 0.03257008972 | BH45: 0.4006895365 | BI45: -0.006060707623 | BJ45: 0 | BL45: 31 | BM45: =$B45*(1+Shocks!$H42)+Shocks!$I42 -> 0.007 | BN45: 0.006975613736 | BO45: 0.0475364899 | BQ45: 31 | BR45: =MAX($B45*(1-Shocks!$F42)-Shocks!$G42,Floor) -> -0.004 | BS45: -0.004008021398 | BT45: 0.02240133597 | BV45: 31 | BW45: =$B45*(1+Shocks!$H42)+Shocks!$I42 -> 0.007 | BX45: 0.006975613736 | BY45: 0.0475364899 | CA45: 31 | CB45: =MAX($B45*(1-Shocks!$F42)-Shocks!$G42,Floor) -> -0.004 | CC45: -0.004008021398 | CD45: 0.02240133597 | CF45: 31 | CG45: =(EXP($C45+$I$5)-1)*(1+Shocks!$H42)+Shocks!$I42 -> 0.0190602005 | CH45: 0.01888083051 | CI45: 0.05512190639 | CK45: 31 | CL45: =MAX((EXP($C45+$I$5)-1)*(1-Shocks!$F42)-Shocks!$G42,Floor) -> 0.0007235785296 | CM45: 0.0007233168728 | CN45: 0.02588524955 | CP45: 31 | CQ45: =(EXP($C45+$I$5)-1)*(1+Shocks!$H42)+Shocks!$I42 -> 0.0190602005 | CR45: 0.01888083051 | CS45: 0.05512190639 | CU45: 31 | CV45: =MAX((EXP($C45+$I$5)-1)*(1-Shocks!$F42)-Shocks!$G42,Floor) -> 0.0007235785296 | CW45: 0.0007233168728 | CX45: 0.02588524955 | CZ45: 31 | DA45: =(EXP($C45+$I$6)-1)*(1+Shocks!$H42)+Shocks!$I42 -> -0.004940199501 | DB45: -0.004952442626 | DC45: 0.03998858414 | DE45: 31 | DF45: =MAX((EXP($C45+$I$6)-1)*(1-Shocks!$F42)-Shocks!$G42,Floor) -> -0.008676578138 | DG45: -0.008714438802 | DH45: 0.01894379802 | DJ45: 31 | DK45: =(EXP($C45+$I$6)-1)*(1+Shocks!$H42)+Shocks!$I42 -> -0.004940199501 | DL45: -0.004952442626 | DM45: 0.03998858414 | DO45: 31 | DP45: =MAX((EXP($C45+$I$6)-1)*(1-Shocks!$F42)-Shocks!$G42,Floor) -> -0.008676578138 | DQ45: -0.008714438802 | DR45: 0.01894379802 | DU45: 0 | DV45: 31 | DW45: 0.03934975407 | DX45: 31 | DY45: 0.3070618861 | DZ45: 0.0380872893 | EA45: 0.03882190696 | EB45: 0.03278337098 | EC45: 0.03279671079 | ED45: 0.03334045093 | EF45: 0 | EG45: 31 | EH45: 0 | EI45: 31 | EJ45: 0.2975045052 | EK45: 0.03910728744 | EL45: 0.03988204395 | EM45: 0.03291809073 | EN45: 0.03294318123 | EO45: 0.03349181584 | EQ45: 0 | ER45: 31 | ES45: 0.03266585593 | ET45: 31 | EU45: 0.3646287606 | EV45: 0.03254437217 | EW45: 0.03307973212 | EX45: 0.03314528281 | EY45: 0.03319367375 | EZ45: 0.03375073023 | FB45: 0 | FC45: 31 | FD45: 0 | FE45: 31 | FF45: 0.3537845474 | FG45: 0.03351829595 | FH45: 0.03408636314 | FI45: 0.03321286475 | FJ45: 0.0332688355 | FK45: 0.03382843166
A46: 32 | B46: 0 | C46: 0 | E46: 32 | F46: 0 | G46: 0 | H46: 32 | I46: 0.03592681459 | K46: 32 | L46: 0.03529649905 | M46: 0.0330342542 | O46: 32 | P46: =AVERAGE(Q$15:Q46) -> 0.03529649905 | Q46: 0.0330342542 | S46: 32 | T46: 0.03592681459 | U46: 0.03358594329 | V46: 0.3231987016 | W46: 0 | Y46: 32 | Z46: =AVERAGE(AA$15:AA46) -> 0.03842149905 | AA46: 0.0330342542 | AB46: 32 | AC46: 0.04186230523 | AD46: 0.03455793645 | AE46: 0.2691966092 | AF46: 0.005935490648 | AH46: 32 | AI46: =AVERAGE(AJ$15:AJ46) -> 0.03842149905 | AJ46: 0.0330342542 | AL46: 32 | AM46: 0.04186230523 | AN46: 0.03455793645 | AO46: 0.2691966092 | AP46: 0.005935490648 | AQ46: 0 | AR46: 32 | AS46: =AVERAGE(AT$15:AT46) -> 0.03217149905 | AT46: 0.0330342542 | AU46: 32 | AV46: 0.03002513843 | AW46: 0.03261486335 | AX46: 0.3880338651 | AY46: -0.005901676151 | BA46: 32 | BB46: =AVERAGE(BC$15:BC46) -> 0.03217149905 | BC46: 0.0330342542 | BE46: 32 | BF46: 0.03002513843 | BG46: 0.03261486335 | BH46: 0.3880338651 | BI46: -0.005901676151 | BJ46: 0 | BL46: 32 | BM46: =$B46*(1+Shocks!$H43)+Shocks!$I43 -> 0.0071 | BN46: 0.007074913672 | BO46: 0.04718502472 | BQ46: 32 | BR46: =MAX($B46*(1-Shocks!$F43)-Shocks!$G43,Floor) -> -0.0039 | BS46: -0.003907624831 | BT46: 0.02263844285 | BV46: 32 | BW46: =$B46*(1+Shocks!$H43)+Shocks!$I43 -> 0.0071 | BX46: 0.007074913672 | BY46: 0.04718502472 | CA46: 32 | CB46: =MAX($B46*(1-Shocks!$F43)-Shocks!$G43,Floor) -> -0.0039 | CC46: -0.003907624831 | CD46: 0.02263844285 | CF46: 32 | CG46: =(EXP($C46+$I$5)-1)*(1+Shocks!$H43)+Shocks!$I43 -> 0.0191602005 | CH46: 0.01897895533 | CI46: 0.05456660745 | CK46: 32 | CL46: =MAX((EXP($C46+$I$5)-1)*(1-Shocks!$F43)-Shocks!$G43,Floor) -> 0.0008235785296 | CM46: 0.0008232395749 | CN46: 0.02603031785 | CP46: 32 | CQ46: =(EXP($C46+$I$5)-1)*(1+Shocks!$H43)+Shocks!$I43 -> 0.0191602005 | CR46: 0.01897895533 | CS46: 0.05456660745 | CU46: 32 | CV46: =MAX((EXP($C46+$I$5)-1)*(1-Shocks!$F43)-Shocks!$G43,Floor) -> 0.0008235785296 | CW46: 0.0008232395749 | CX46: 0.02603031785 | CZ46: 32 | DA46: =(EXP($C46+$I$6)-1)*(1+Shocks!$H43)+Shocks!$I43 -> -0.004840199501 | DB46: -0.004851951202 | DC46: 0.03983856346 | DE46: 32 | DF46: =MAX((EXP($C46+$I$6)-1)*(1-Shocks!$F43)-Shocks!$G43,Floor) -> -0.008576578138 | DG46: -0.008613568637 | DH46: 0.01927195006 | DJ46: 32 | DK46: =(EXP($C46+$I$6)-1)*(1+Shocks!$H43)+Shocks!$I43 -> -0.004840199501 | DL46: -0.004851951202 | DM46: 0.03983856346 | DO46: 32 | DP46: =MAX((EXP($C46+$I$6)-1)*(1-Shocks!$F43)-Shocks!$G43,Floor) -> -0.008576578138 | DQ46: -0.008613568637 | DR46: 0.01927195006 | DU46: 0 | DV46: 32 | DW46: 0.03916914939 | DX46: 32 | DY46: 0.2971623349 | DZ46: 0.03792114711 | EA46: 0.03864932914 | EB46: 0.0327584468 | EC46: 0.03277073899 | ED46: 0.03331361356 | EF46: 0 | EG46: 32 | EH46: 0 | EI46: 32 | EJ46: 0.2878773847 | EK46: 0.03891314491 | EL46: 0.03968017821 | EM46: 0.03287218016 | EN46: 0.03289472632 | EO46: 0.0334417393 | EQ46: 0 | ER46: 32 | ES46: 0.03269459626 | ET46: 32 | EU46: 0.3527567285 | EV46: 0.03256176919 | EW46: 0.03309770478 | EX46: 0.0330588263 | EY46: 0.03310107676 | EZ46: 0.03365501246 | FB46: 0 | FC46: 32 | FD46: 0 | FE46: 32 | FF46: 0.3422447565 | FG46: 0.03350716049 | FH46: 0.03407484818 | FI46: 0.03311341795 | FJ46: 0.0331619613 | FK46: 0.03371794799
A47: 33 | B47: 0 | C47: 0 | E47: 33 | F47: =INDEX(INDIRECT("tblRfrAltConfig[DLT"&E47&"]"),index) -> 0 | G47: =INDEX(INDIRECT("tblWeightsLLFR["&E47&"]"),index) -> 0 | H47: 33 | I47: 0.03585394712 | K47: 33 | L47: =LN(1+I47) -> 0.03522615621 | M47: 0.03297518548 | O47: 33 | P47: =AVERAGE(Q$15:Q47) -> 0.03522615621 | Q47: =M47+($O47<=FSP)*LN(1+VA/10000) -> 0.03297518548 | S47: 33 | T47: 0.03585394712 | U47: 0.0335248925 | V47: 0.312714966 | W47: 0 | Y47: 33 | Z47: =AVERAGE(AA$15:AA47) -> 0.03825645924 | AA47: =$M47+($Y47<=FSP)*$I$5 -> 0.03297518548 | AB47: 33 | AC47: 0.04163524977 | AD47: 0.03439554308 | AE47: 0.2602453298 | AF47: 0.005781302651 | AH47: 33 | AI47: =AVERAGE(AJ$15:AJ47) -> 0.03825645924 | AJ47: =AA47+($AH47<=FSP)*LN(1+$M$9/10000) -> 0.03297518548 | AL47: 33 | AM47: 0.04163524977 | AN47: 0.03439554308 | AO47: 0.2602453298 | AP47: 0.005781302651 | AQ47: 0 | AR47: 33 | AS47: =AVERAGE(AT$15:AT47) -> 0.03219585318 | AT47: =$M47+($Y47<=FSP)*$I$6 -> 0.03297518548 | AU47: 33 | AV47: 0.03010473196 | AW47: 0.03265497474 | AX47: 0.3757633232 | AY47: -0.005749215161 | BA47: 33 | BB47: =AVERAGE(BC$15:BC47) -> 0.03219585318 | BC47: =AT47+($AH47<=FSP)*LN(1+$M$10/10000) -> 0.03297518548 | BE47: 33 | BF47: 0.03010473196 | BG47: 0.03265497474 | BH47: 0.3757633232 | BI47: -0.005749215161 | BJ47: 0 | BL47: 33 | BM47: =$B47*(1+Shocks!$H44)+Shocks!$I44 -> 0.0071 | BN47: 0.007074913672 | BO47: 0.04684907054 | BQ47: 33 | BR47: =MAX($B47*(1-Shocks!$F44)-Shocks!$G44,Floor) -> -0.0037 | BS47: -0.003706861931 | BT47: 0.02286587784 | BV47: 33 | BW47: =$B47*(1+Shocks!$H44)+Shocks!$I44 -> 0.0071 | BX47: =LN(1+BW47)+(BV47<=FSP)*LN(1+VA/10000) -> 0.007074913672 | BY47: 0.04684907054 | CA47: 33 | CB47: =MAX($B47*(1-Shocks!$F44)-Shocks!$G44,Floor) -> -0.0037 | CC47: =LN(1+CB47)+(CA47<=FSP)*LN(1+VA/10000) -> -0.003706861931 | CD47: 0.02286587784 | CF47: 33 | CG47: =(EXP($C47+$I$5)-1)*(1+Shocks!$H44)+Shocks!$I44 -> 0.0191602005 | CH47: 0.01897895533 | CI47: 0.05403560578 | CK47: 33 | CL47: =MAX((EXP($C47+$I$5)-1)*(1-Shocks!$F44)-Shocks!$G44,Floor) -> 0.0009230768587 | CM47: 0.0009226510853 | CN47: 0.02616963631 | CP47: 33 | CQ47: =(EXP($C47+$I$5)-1)*(1+Shocks!$H44)+Shocks!$I44 -> 0.0191602005 | CR47: =LN(1+CQ47)+(CP47<=FSP)*LN(1+$M$9/10000) -> 0.01897895533 | CS47: 0.05403560578 | CU47: 33 | CV47: =MAX((EXP($C47+$I$5)-1)*(1-Shocks!$F44)-Shocks!$G44,Floor) -> 0.0009230768587 | CW47: =LN(1+CV47)+(CU47<=FSP)*LN(1+$M$9/10000) -> 0.0009226510853 | CX47: 0.02616963631 | CZ47: 33 | DA47: =(EXP($C47+$I$6)-1)*(1+Shocks!$H44)+Shocks!$I44 -> -0.004840199501 | DB47: -0.004851951202 | DC47: 0.03969543904 | DE47: 33 | DF47: =MAX((EXP($C47+$I$6)-1)*(1-Shocks!$F44)-Shocks!$G44,Floor) -> -0.008277076475 | DG47: -0.008311521675 | DH47: 0.01958656517 | DJ47: 33 | DK47: =(EXP($C47+$I$6)-1)*(1+Shocks!$H44)+Shocks!$I44 -> -0.004840199501 | DL47: =LN(1+DK47)+(DJ47<=FSP)*LN(1+$M$10/10000) -> -0.004851951202 | DM47: 0.03969543904 | DO47: 33 | DP47: =MAX((EXP($C47+$I$6)-1)*(1-Shocks!$F44)-Shocks!$G44,Floor) -> -0.008277076475 | DQ47: =LN(1+DP47)+(DO47<=FSP)*LN(1+$M$10/10000) -> -0.008311521675 | DR47: 0.01958656517 | DU47: 0 | DV47: 33 | DW47: 0.03899765927 | DX47: 33 | DY47: 0.2875888236 | DZ47: 0.03776434893 | EA47: 0.03848648359 | EB47: 0.03273548094 | EC47: 0.03274680723 | ED47: 0.03328888485 | EF47: 0 | EG47: 33 | EH47: =IF(EG47<=$DU$5,EA47+$DU$9/10000,0) -> 0 | EI47: 33 | EJ47: 0.2785739227 | EK47: 0.03872944919 | EL47: 0.03948921096 | EM47: 0.03283092835 | EN47: 0.03285118635 | EO47: 0.03339674425 | EQ47: 0 | ER47: 33 | ES47: 0.03271974695 | ET47: 33 | EU47: 0.341298831 | EV47: 0.03257566207 | EW47: 0.03311205758 | EX47: 0.03298335122 | EY47: 0.03302023415 | EZ47: 0.03357145247 | FB47: 0 | FC47: 33 | FD47: 0 | FE47: 33 | FF47: 0.33111206 | FG47: 0.03349389124 | FH47: 0.03406112688 | FI47: 0.03302718196 | FJ47: 0.03306927534 | FK47: 0.03362214128
A48: 34 | B48: 0 | C48: 0 | E48: 34 | F48: 0 | G48: 0 | H48: 34 | I48: 0.03578375862 | K48: 34 | L48: 0.03515839485 | M48: 0.03292226971 | O48: 34 | P48: =AVERAGE(Q$15:Q48) -> 0.03515839485 | Q48: 0.03292226971 | S48: 34 | T48: 0.03578375862 | U48: 0.03347020418 | V48: 0.3025873071 | W48: 0 | Y48: 34 | Z48: =AVERAGE(AA$15:AA48) -> 0.03809957132 | AA48: 0.03292226971 | AB48: 34 | AC48: 0.04141728825 | AD48: 0.03425008721 | AE48: 0.2516270803 | AF48: 0.00563352963 | AH48: 34 | AI48: =AVERAGE(AJ$15:AJ48) -> 0.03809957132 | AJ48: 0.03292226971 | AL48: 34 | AM48: 0.04141728825 | AN48: 0.03425008721 | AO48: 0.2516270803 | AP48: 0.00563352963 | AQ48: 0 | AR48: 34 | AS48: =AVERAGE(AT$15:AT48) -> 0.03221721838 | AT48: 0.03292226971 | AU48: 34 | AV48: 0.03018070347 | AW48: 0.03269090922 | AX48: 0.3638681428 | AY48: -0.005603055144 | BA48: 34 | BB48: =AVERAGE(BC$15:BC48) -> 0.03221721838 | BC48: 0.03292226971 | BE48: 34 | BF48: 0.03018070347 | BG48: 0.03269090922 | BH48: 0.3638681428 | BI48: -0.005603055144 | BJ48: 0 | BL48: 34 | BM48: =$B48*(1+Shocks!$H45)+Shocks!$I45 -> 0.0071 | BN48: 0.007074913672 | BO48: 0.04652785075 | BQ48: 34 | BR48: =MAX($B48*(1-Shocks!$F45)-Shocks!$G45,Floor) -> -0.0036 | BS48: -0.003606495594 | BT48: 0.02308402287 | BV48: 34 | BW48: =$B48*(1+Shocks!$H45)+Shocks!$I45 -> 0.0071 | BX48: 0.007074913672 | BY48: 0.04652785075 | CA48: 34 | CB48: =MAX($B48*(1-Shocks!$F45)-Shocks!$G45,Floor) -> -0.0036 | CC48: -0.003606495594 | CD48: 0.02308402287 | CF48: 34 | CG48: =(EXP($C48+$I$5)-1)*(1+Shocks!$H45)+Shocks!$I45 -> 0.0191602005 | CH48: 0.01897895533 | CI48: 0.05352772036 | CK48: 34 | CL48: =MAX((EXP($C48+$I$5)-1)*(1-Shocks!$F45)-Shocks!$G45,Floor) -> 0.001023076859 | CM48: 0.001022553872 | CN48: 0.02630340607 | CP48: 34 | CQ48: =(EXP($C48+$I$5)-1)*(1+Shocks!$H45)+Shocks!$I45 -> 0.0191602005 | CR48: 0.01897895533 | CS48: 0.05352772036 | CU48: 34 | CV48: =MAX((EXP($C48+$I$5)-1)*(1-Shocks!$F45)-Shocks!$G45,Floor) -> 0.001023076859 | CW48: 0.001022553872 | CX48: 0.02630340607 | CZ48: 34 | DA48: =(EXP($C48+$I$6)-1)*(1+Shocks!$H45)+Shocks!$I45 -> -0.004840199501 | DB48: -0.004851951202 | DC48: 0.0395588255 | DE48: 34 | DF48: =MAX((EXP($C48+$I$6)-1)*(1-Shocks!$F45)-Shocks!$G45,Floor) -> -0.008177076475 | DG48: -0.008210692143 | DH48: 0.01988820229 | DJ48: 34 | DK48: =(EXP($C48+$I$6)-1)*(1+Shocks!$H45)+Shocks!$I45 -> -0.004840199501 | DL48: -0.004851951202 | DM48: 0.0395588255 | DO48: 34 | DP48: =MAX((EXP($C48+$I$6)-1)*(1-Shocks!$F45)-Shocks!$G45,Floor) -> -0.008177076475 | DQ48: -0.008210692143 | DR48: 0.01988820229 | DU48: 0 | DV48: 34 | DW48: 0.03883466586 | DX48: 34 | DY48: 0.2783298742 | DZ48: 0.03761612562 | EA48: 0.03833256709 | EB48: 0.03271432052 | EC48: 0.03272475633 | ED48: 0.03326610015 | EF48: 0 | EG48: 34 | EH48: 0 | EI48: 34 | EJ48: 0.2695816706 | EK48: 0.03855540852 | EL48: 0.0393083133 | EM48: 0.03279386563 | EN48: 0.0328120662 | EO48: 0.03335631841 | EQ48: 0 | ER48: 34 | ES48: 0.03274181144 | ET48: 34 | EU48: 0.3302364013 | EV48: 0.03258666216 | EW48: 0.03312342197 | EX48: 0.03291747273 | EY48: 0.03294966525 | EZ48: 0.03349851704 | FB48: 0 | FC48: 34 | FD48: 0 | FE48: 34 | FF48: 0.3203672388 | FG48: 0.03347903882 | FH48: 0.03404576868 | FI48: 0.03295241475 | FJ48: 0.032988909 | FK48: 0.0335390762
